Workbook

Sheet User_Agreement
B11: v9
B12: ©2001-2016 University of New Hampshire. All rights reserved.
B13: UNH, Campus Carbon Calculator, and the UNH logo are trademarks of the University of New Hampshire.
B15: USERS' AGREEMENT
B16: By using UNH’s Campus Carbon Calculator, you are agreeing to specific terms and conditions:
B17: 1. The Campus Carbon Calculator is designed to help campus staff, faculty, students and administrators document, understand, project, and reduce the campus greenhouse gas footprint. The Calculator can help a campus in taking the first steps toward a comprehensive Climate Action or Climate Neutrality Plan. Organizations or entities wishing to use the Calculator for other purposes should contact UNH. UNH reserves all copyright privileges.
B18: 2. When presenting the results of your campus greenhouse gas inventory, whether in written reports or spoken presentations, please credit the “University of New Hampshire Campus Carbon Calculator” as a tool you used to complete this task.
B19: 3. Many campuses want to share the results of the inventory with their constituents and the general public once they’ve completed it. Whether or not you are making your inventory public, download and use of the Calculator implies willingness to share results of the inventory with UNH, only for purposes of aggregating U.S. campus inventory results. Results are expected to be shared upon completion. UNH will keep these results completely confidential unless express written consent is given to the contrary.
B20: 4. UNH will not be responsible for verifying your results from the Campus Carbon Calculator, and assumes no liability for your inventory results, or their use on your campus.
B22: I UNDERSTAND AND AM WILLING TO ABIDE BY THESE TERMS. I WISH TO PROCEED.
B25: Acknowledgments:
B26: The planning elements of the tool were inspired by the good work of students at Middlebury College (MiddShift), University of California Santa Barbara (NAELS Climate Neutral project), and the efforts of Duke University as presented by then-Sustainability Coordinator Sam Hummel in his "Charting a Path to Greenhouse Gas Reductions" paper at the Ball State Greening of the Campus conference in 2005. Tai Young Taft and Lisa Weil did the hard work of taking it from a vague vision to a functional, coherent framework; Jason Kowalski's and Ian Hough's phenomenal dedication, expertise and Google doc-madness made the tool what it, ultimately, is - an amazing resource that UNH is proud to claim. And Claire Roby helped us bring this over the finish line with some final creative modeling. Again, sincere thanks to each.
B27: UNH would also like to extend sincere thanks for the invaluable review, assistance and/or collaboration offered over the years by the following individuals and organizations: Julian Dautremont-Smith of the Association for the Advancement of Sustainability in Higher Education (AASHE); the team over at the World Resources Institute, including Jennifer Layke, Samantha Putt del Pino, Ryan Levinson and Derik Broekhoeff; the staff of the National Wildlife Federation's Campus Ecology Program, especially Julian Keniry, Kristy Jones, Praween Dayananda, Justin Schott and Lisa Madry; Dr. Edward Wells at Wilson College, Dr. Kurt Teichert at Brown University, Ramsay Huntley (formerly of) Tufts University, Jim Simon at the University of Buffalo (SUNY); and to the many Calculator users - students, staff and faculty - whose feedback and keen eyes for details have improved this tool tremendously over the years.

Sheet Introduction
B6: ©2001-2016 University of New Hampshire All Rights Reserved
B7: UNH, Campus Carbon Calculator, and the UNH logo are trademarks of the University of New Hampshire.
F8: http://www.sustainableunh.unh.edu
F10: University
F11: Contact Name
F12: Title
F13: Organization
F14: State
F15: Phone
F16: Fax
F17: E-Mail
F26: Getting Started
F34: Navigating the Calculator
F43: Background Information
F52: Color Coding
F61: Using the Calculator

Sheet Spreadsheet_Map
A1: ©2001-2016 University of New Hampshire. All rights reserved.
A2: UNH, Campus Carbon Calculator, and the UNH logo are trademarks of the University of New Hampshire.
E12: INPUTS | H12: EMISSIONS FACTORS | M12: CALCULATIONS | S12: RESULTS | X12: GRAPHS
B64: REFERENCE MODULE

Sheet Input
C2: On this Worksheet: Enter data related to emissions. If a column does not apply or the data is unavailable, leave it blank.
C3: MODULE | D3: Input
C4: WORKSHEET | D4: Input: Enter emissions source activity and institutional data
C5: UNIVERSITY | D5: =IF((ISBLANK(Introduction!$G$10)),"Please enter university name on 'Introduction' sheet",Introduction!$G$10) -> Please enter university name on 'Introduction' sheet
N6: --- Scope 1 Emissions Sources --- | BX6: --- Scope 2 Emissions Sources --- | CA6: --- Scope 3 Emissions Sources --- | DL6: --- Offsets ---
D7: Institutional Data | N7: On-Campus Stationary Sources | AV7: Direct Transportation Sources | BF7: Refrigerants & Chemicals | BL7: Agriculture Sources | BX7: Purchased Electricity, Steam, and Chilled Water | CA7: Commuting - click here to enter data | CK7: Directly Financed Outsourced Travel | CR7: Study Abroad Travel | CS7: Student Travel to/from Home (OPTIONAL) | CX7: Solid Waste | DC7: Wastewater | DG7: Paper
C8: Fiscal Year | D8: Budget - Click here to enter data | G8: Population | L8: Physical Size | N8: On-Campus Cogeneration Plant(s) | AG8: Other On-Campus Stationary Sources | AV8: University Fleet | BF8: Refrigerants & Chemicals | BL8: Fertilizer Application | BP8: Animal Husbandry | BX8: Electricity | BY8: Steam | BZ8: Chilled Water | CA8: Faculty / Staff Commuting | CF8: Student Commuting | CK8: Air Travel | CM8: Other | CX8: Incinerated Waste (not used for on-campus power) | CZ8: Landfilled Waste | DC8: Septic System | DD8: Central Treatment System | DG8: Uncoated Freesheet | DH8: Uncoated Freesheet | DI8: Uncoated Freesheet | DJ8: Uncoated Freesheet | DK8: Uncoated Freesheet | DL8: Offsets with Additionality | DQ8: Non-Additional Renewable Energy Certificates (RECs)
D9: Operating Budget | E9: Research Budget | F9: Energy Budget | G9: Full Time Students | H9: Part-Time Students | I9: Summer School Students | J9: Faculty | K9: Staff | L9: Total Building Space | M9: Total Research Building Space | N9: Residual Oil (#5-6) | O9: Distillate Oil (#1-4) | P9: Natural Gas | Q9: LPG (Propane) | R9: Coal (Steam Coal) | S9: Incinerated Waste | T9: Wood Chips | U9: Wood Pellets | V9: Grass Pellets | W9: Residual BioHeat | X9: Distillate BioHeat | Y9: Attributable Solar - Electric | Z9: Attributable Solar - Thermal | AA9: Attributable Wind | AB9: =Other_Stationary -> Other | AC9: Electric Output | AD9: Steam Output | AE9: Electric Efficiency | AF9: Steam Efficiency | AG9: Residual Oil (#5-6) | AH9: Distillate Oil (#1-4) | AI9: Natural Gas | AJ9: LPG (Propane) | AK9: Coal (Steam Coal) | AL9: Incinerated Waste | AM9: Wood Chips | AN9: Wood Pellets | AO9: Grass Pellets | AP9: Residual BioHeat | AQ9: Distillate BioHeat | AR9: Attributable Solar - Electric | AS9: Attributable Solar - Thermal | AT9: Attributable Wind | AU9: =Other_Stationary -> Other | AV9: Gasoline Fleet | AW9: Diesel Fleet | AX9: Natural Gas Fleet | AY9: E85 Fleet | AZ9: B5 Fleet | BA9: B20 Fleet | BB9: B100 | BC9: Hydrogen | BD9: =Other_Transportation -> Other Fleet Fuel | BE9: Electric Fleet | BF9: HFC-134a | BG9: R-404a | BH9: HCFC-22 | BI9: HCFE-235da2 | BJ9: HG-10 | BK9: Other | BL9: Synthetic | BM9: % Nitrogen | BN9: Organic | BO9: % Nitrogen | BP9: Dairy Cows | BQ9: Beef Cows | BR9: Swine | BS9: Goats | BT9: Sheep | BU9: Horses | BV9: Poultry | BW9: =Other_Animal -> Other | BX9: CLICK TO SET eGRID SUBREGION | BY9: CLICK TO SET FUEL MIX | BZ9: CLICK TO SET FUEL MIX | CA9: Carbon-free Modes | CB9: Automobile | CC9: Bus | CD9: Light Rail | CE9: Commuter Rail | CF9: Carbon-free Modes | CG9: Automobile | CH9: Bus | CI9: Light Rail | CJ9: Commuter Rail | CK9: Faculty / Staff | CL9: Students | CM9: Train | CN9: Taxi / Ferry / Rental Car | CO9: Bus | CP9: Alternative Fuel Bus | CQ9: Personal Mileage Reimbursement | CR9: Air | CS9: Automobile | CT9: Carpool | CU9: Bus | CV9: Train | CW9: Air | CX9: Mass Burn | CY9: Refuse Derived Fuel (RDF) | CZ9: No CH4 Recovery | DA9: CH4 Recovery and Flaring | DB9: CH4 Recovery and Electric Generation | DD9: Aerobic | DE9: Anaerobic | DF9: Anaerobic Digestion | DG9: 0 | DH9: 0.25 | DI9: 0.5 | DJ9: 0.75 | DK9: 1 | DL9: On-campus Composting | DM9: Forest Preservation | DN9: Retail Offsets (High End) | DO9: Retail Offsets (Low End) | DP9: =Other_Offset -> Other | DQ9: Green Power Certificates | DR9: Retail Offsets (High End) | DS9: Retail Offsets (Low End) | DT9: =Other_Offset -> Other
C10: =HLOOKUP(EF_ElectricMap!$D$30,EF_ElectricCO2!$C$6:$AE$39,ROW(G4),FALSE) ->  | D10: =Input_InflAdj!$F$10 -> $ (2005) | E10: =Input_InflAdj!$F$10 -> $ (2005) | F10: =Input_InflAdj!$F$10 -> $ (2005) | G10: # | H10: # | I10: # | J10: # | K10: # | L10: Square feet | M10: Square feet | N10: Gallons | O10: Gallons | P10: MMBtu | Q10: Gallons | R10: Short Tons | S10: Short Tons | T10: Short Tons | U10: Short Tons | V10: Short Tons | W10: Gallons | X10: Gallons | Y10: kWh | Z10: MMBtu | AA10: kWh | AB10: MMBtu | AC10: kWh | AD10: MMBtu | AE10: % | AF10: % | AG10: Gallons | AH10: Gallons | AI10: MMBtu | AJ10: Gallons | AK10: Short Tons | AL10: Short Tons | AM10: Short Tons | AN10: Short Tons | AO10: Short Tons | AP10: Gallons | AQ10: Gallons | AR10: kWh | AS10: MMBtu | AT10: kWh | AU10: MMBtu | AV10: Gallons | AW10: Gallons | AX10: MMBtu | AY10: Gallons | AZ10: Gallons | BA10: Gallons | BB10: Gallons | BC10: MMBtu | BD10: MMBtu | BE10: kWh | BF10: Pounds | BG10: Pounds | BH10: Pounds | BI10: Pounds | BJ10: Pounds | BK10: Pounds | BL10: Pounds | BM10: % | BN10: Pounds | BO10: % | BP10: # | BQ10: # | BR10: # | BS10: # | BT10: # | BU10: # | BV10: # | BW10: # | BX10: kWh | BY10: MMBtu | BZ10: MMBtu | CA10: Miles | CB10: Miles | CC10: Passenger Miles | CD10: Passenger Miles | CE10: Passenger Miles | CF10: Miles | CG10: Miles | CH10: Passenger Miles | CI10: Passenger Miles | CJ10: Passenger Miles | CK10: Miles | CL10: Miles | CM10: Passenger Miles | CN10: Miles | CO10: Passenger Miles | CP10: Passenger Miles | CQ10: Miles | CR10: Passenger Miles | CS10: Miles | CT10: Miles | CU10: Passenger Miles | CV10: Passenger Miles | CW10: Passenger Miles | CX10: Short Tons | CY10: Short Tons | CZ10: Short Tons | DA10: Short Tons | DB10: Short Tons | DC10: Gallons | DD10: Gallons | DE10: Gallons | DF10: Gallons | DG10: lbs | DH10: lbs | DI10: lbs | DJ10: lbs | DK10: lbs | DL10: Short Tons of Wet Organic Compost | DM10: MT eCO2 | DN10: MT eCO2 | DO10: MT eCO2 | DP10: MT eCO2 | DQ10: kWh | DR10: MT eCO2 | DS10: MT eCO2 | DT10: MT eCO2
C11: 1990 | D11: =Input_InflAdj!G11 -> 0 | E11: =Input_InflAdj!H11 -> 0 | F11: =Input_InflAdj!I11 -> 0 | G11: 5785 | K11: 568 | L11: 1636715 | AH11: 500 | AI11: 66300 | AK11: 3345 | AV11: 32835 | BL11: 12500 | BM11: 1 | BN11: 13000 | BO11: 1 | BP11: 60 | BQ11: 60 | BR11: 29 | BT11: 130 | BU11: 38 | BX11: 12894000 | CA11: =Input_Commuter!BL11+Input_Commuter!BN11+Input_Commuter!CW11+Input_Commuter!CY11 -> 0 | CB11: 1121232 | CC11: =Input_Commuter!BR11+Input_Commuter!DC11 -> 0 | CD11: =Input_Commuter!BT11+Input_Commuter!DE11 -> 0 | CE11: =Input_Commuter!BV11+Input_Commuter!DG11 -> 0 | CF11: =Input_Commuter!AA11+Input_Commuter!AC11 -> 0 | CG11: 7015758.75 | CH11: =Input_Commuter!AG11 -> 0 | CI11: =Input_Commuter!AI11 -> 0 | CJ11: =Input_Commuter!AK11 -> 0 | CR11: 142120 | CZ11: 356 | DM11: 21
C12: 1991 | D12: =Input_InflAdj!G12 -> 0 | E12: =Input_InflAdj!H12 -> 0 | F12: =Input_InflAdj!I12 -> 0 | G12: 5571 | K12: 568 | L12: 1636715 | AH12: 7000 | AI12: 82600 | AK12: 3130 | AV12: 32835 | BL12: 12500 | BM12: 1 | BN12: 13000 | BO12: 1 | BP12: 60 | BQ12: 60 | BR12: 29 | BT12: 125 | BU12: 38 | BX12: 13085000 | CA12: =Input_Commuter!BL12+Input_Commuter!BN12+Input_Commuter!CW12+Input_Commuter!CY12 -> 0 | CB12: 1121232 | CC12: =Input_Commuter!BR12+Input_Commuter!DC12 -> 0 | CD12: =Input_Commuter!BT12+Input_Commuter!DE12 -> 0 | CE12: =Input_Commuter!BV12+Input_Commuter!DG12 -> 0 | CF12: =Input_Commuter!AA12+Input_Commuter!AC12 -> 0 | CG12: 6756230.25 | CH12: =Input_Commuter!AG12 -> 0 | CI12: =Input_Commuter!AI12 -> 0 | CJ12: =Input_Commuter!AK12 -> 0 | CR12: 201960 | CZ12: 356 | DM12: 21
C13: 1992 | D13: =Input_InflAdj!G13 -> 0 | E13: =Input_InflAdj!H13 -> 0 | F13: =Input_InflAdj!I13 -> 0 | G13: 5357 | K13: 568 | L13: 1636715 | AH13: 0 | AI13: 93000 | AK13: 2260 | AV13: 32835 | BL13: 12500 | BM13: 1 | BN13: 13000 | BO13: 1 | BP13: 60 | BQ13: 60 | BR13: 32 | BT13: 125 | BU13: 38 | BX13: 13456000 | CA13: =Input_Commuter!BL13+Input_Commuter!BN13+Input_Commuter!CW13+Input_Commuter!CY13 -> 0 | CB13: 1121232 | CC13: =Input_Commuter!BR13+Input_Commuter!DC13 -> 0 | CD13: =Input_Commuter!BT13+Input_Commuter!DE13 -> 0 | CE13: =Input_Commuter!BV13+Input_Commuter!DG13 -> 0 | CF13: =Input_Commuter!AA13+Input_Commuter!AC13 -> 0 | CG13: 6496701.75 | CH13: =Input_Commuter!AG13 -> 0 | CI13: =Input_Commuter!AI13 -> 0 | CJ13: =Input_Commuter!AK13 -> 0 | CR13: 194480 | CZ13: 356 | DM13: 21
C14: 1993 | D14: =Input_InflAdj!G14 -> 0 | E14: =Input_InflAdj!H14 -> 0 | F14: =Input_InflAdj!I14 -> 0 | G14: 5503 | K14: 568 | L14: 1636715 | AH14: 0 | AI14: 74900 | AK14: 3242 | AV14: 32835 | BL14: 12500 | BM14: 1 | BN14: 12000 | BO14: 1 | BP14: 58 | BQ14: 60 | BR14: 32 | BT14: 125 | BU14: 40 | BX14: 13386000 | CA14: =Input_Commuter!BL14+Input_Commuter!BN14+Input_Commuter!CW14+Input_Commuter!CY14 -> 0 | CB14: 1121232 | CC14: =Input_Commuter!BR14+Input_Commuter!DC14 -> 0 | CD14: =Input_Commuter!BT14+Input_Commuter!DE14 -> 0 | CE14: =Input_Commuter!BV14+Input_Commuter!DG14 -> 0 | CF14: =Input_Commuter!AA14+Input_Commuter!AC14 -> 0 | CG14: 6673763.25 | CH14: =Input_Commuter!AG14 -> 0 | CI14: =Input_Commuter!AI14 -> 0 | CJ14: =Input_Commuter!AK14 -> 0 | CR14: 216920 | CZ14: 356 | DM14: 21
C15: 1994 | D15: =Input_InflAdj!G15 -> 0 | E15: =Input_InflAdj!H15 -> 0 | F15: =Input_InflAdj!I15 -> 0 | G15: 5417 | K15: 568 | L15: 1636715 | AH15: 3700 | AI15: 84200 | AK15: 2365 | AV15: 32835 | BH15: 625 | BL15: 12500 | BM15: 1 | BN15: 12000 | BO15: 1 | BP15: 58 | BQ15: 60 | BR15: 32 | BT15: 120 | BU15: 40 | BX15: 14112000 | CA15: =Input_Commuter!BL15+Input_Commuter!BN15+Input_Commuter!CW15+Input_Commuter!CY15 -> 0 | CB15: 1121232 | CC15: =Input_Commuter!BR15+Input_Commuter!DC15 -> 0 | CD15: =Input_Commuter!BT15+Input_Commuter!DE15 -> 0 | CE15: =Input_Commuter!BV15+Input_Commuter!DG15 -> 0 | CF15: =Input_Commuter!AA15+Input_Commuter!AC15 -> 0 | CG15: 6569466.75 | CH15: =Input_Commuter!AG15 -> 0 | CI15: =Input_Commuter!AI15 -> 0 | CJ15: =Input_Commuter!AK15 -> 0 | CR15: 179520 | CZ15: 356 | DM15: 21
C16: 1995 | D16: =Input_InflAdj!G16 -> 0 | E16: =Input_InflAdj!H16 -> 0 | F16: =Input_InflAdj!I16 -> 0 | G16: 5355 | K16: 566 | L16: 1636715 | AH16: 10400 | AI16: 160000 | AK16: 0 | AV16: 32835 | BL16: 13000 | BM16: 1 | BN16: 13000 | BO16: 1 | BP16: 58 | BQ16: 60 | BR16: 29 | BT16: 120 | BU16: 40 | BV16: 15 | BX16: 14112000 | CA16: =Input_Commuter!BL16+Input_Commuter!BN16+Input_Commuter!CW16+Input_Commuter!CY16 -> 0 | CB16: 1117284 | CC16: =Input_Commuter!BR16+Input_Commuter!DC16 -> 0 | CD16: =Input_Commuter!BT16+Input_Commuter!DE16 -> 0 | CE16: =Input_Commuter!BV16+Input_Commuter!DG16 -> 0 | CF16: =Input_Commuter!AA16+Input_Commuter!AC16 -> 0 | CG16: 6494276.25 | CH16: =Input_Commuter!AG16 -> 0 | CI16: =Input_Commuter!AI16 -> 0 | CJ16: =Input_Commuter!AK16 -> 0 | CR16: 216920 | CZ16: 356 | DM16: 21
C17: 1996 | D17: =Input_InflAdj!G17 -> 0 | E17: =Input_InflAdj!H17 -> 0 | F17: =Input_InflAdj!I17 -> 0 | G17: 5428 | K17: 556 | L17: 1636715 | AH17: 24600 | AI17: 125100 | AK17: 1557 | AV17: 32835 | BL17: 14000 | BM17: 1 | BN17: 13000 | BO17: 1 | BP17: 60 | BQ17: 60 | BR17: 29 | BT17: 120 | BU17: 40 | BV17: 15 | BX17: 14700000 | CA17: =Input_Commuter!BL17+Input_Commuter!BN17+Input_Commuter!CW17+Input_Commuter!CY17 -> 0 | CB17: 1097544 | CC17: =Input_Commuter!BR17+Input_Commuter!DC17 -> 0 | CD17: =Input_Commuter!BT17+Input_Commuter!DE17 -> 0 | CE17: =Input_Commuter!BV17+Input_Commuter!DG17 -> 0 | CF17: =Input_Commuter!AA17+Input_Commuter!AC17 -> 0 | CG17: 6582807 | CH17: =Input_Commuter!AG17 -> 0 | CI17: =Input_Commuter!AI17 -> 0 | CJ17: =Input_Commuter!AK17 -> 0 | CR17: 209440 | CZ17: 356 | DM17: 21
C18: 1997 | D18: =Input_InflAdj!G18 -> 0 | E18: =Input_InflAdj!H18 -> 0 | F18: =Input_InflAdj!I18 -> 0 | G18: 5617 | K18: 556 | L18: 1636715 | AH18: 44100 | AI18: 79600 | AK18: 3115 | AV18: 32835 | BH18: 1000 | BL18: 14000 | BM18: 1 | BN18: 13900 | BO18: 1 | BP18: 65 | BQ18: 60 | BR18: 30 | BT18: 120 | BU18: 41 | BV18: 15 | BX18: 15568000 | CA18: =Input_Commuter!BL18+Input_Commuter!BN18+Input_Commuter!CW18+Input_Commuter!CY18 -> 0 | CB18: 1097544 | CC18: =Input_Commuter!BR18+Input_Commuter!DC18 -> 0 | CD18: =Input_Commuter!BT18+Input_Commuter!DE18 -> 0 | CE18: =Input_Commuter!BV18+Input_Commuter!DG18 -> 0 | CF18: =Input_Commuter!AA18+Input_Commuter!AC18 -> 0 | CG18: 6812016.75 | CH18: =Input_Commuter!AG18 -> 0 | CI18: =Input_Commuter!AI18 -> 0 | CJ18: =Input_Commuter!AK18 -> 0 | CR18: 254320 | CZ18: 356 | DM18: 21
C19: 1998 | D19: =Input_InflAdj!G19 -> 0 | E19: =Input_InflAdj!H19 -> 0 | F19: =Input_InflAdj!I19 -> 0 | G19: 5769 | K19: 579 | L19: 1810076 | AH19: 38300 | AI19: 87700 | AK19: 2267 | AV19: 32835 | BH19: 375 | BL19: 14000 | BM19: 1 | BN19: 14900 | BO19: 1 | BP19: 67 | BQ19: 60 | BR19: 40 | BT19: 100 | BU19: 42 | BV19: 15 | BX19: 15529000 | CA19: =Input_Commuter!BL19+Input_Commuter!BN19+Input_Commuter!CW19+Input_Commuter!CY19 -> 0 | CB19: 1142946 | CC19: =Input_Commuter!BR19+Input_Commuter!DC19 -> 0 | CD19: =Input_Commuter!BT19+Input_Commuter!DE19 -> 0 | CE19: =Input_Commuter!BV19+Input_Commuter!DG19 -> 0 | CF19: =Input_Commuter!AA19+Input_Commuter!AC19 -> 0 | CG19: 6996354.75 | CH19: =Input_Commuter!AG19 -> 0 | CI19: =Input_Commuter!AI19 -> 0 | CJ19: =Input_Commuter!AK19 -> 0 | CR19: 246840 | CZ19: 356 | DM19: 21
C20: 1999 | D20: =Input_InflAdj!G20 -> 0 | E20: =Input_InflAdj!H20 -> 0 | F20: =Input_InflAdj!I20 -> 0 | G20: 5899 | K20: 585 | L20: 1810076 | AH20: 4700 | AI20: 137700 | AK20: 843 | AV20: 32835 | BG20: 24 | BH20: 255 | BL20: 15000 | BM20: 1 | BN20: 14000 | BO20: 1 | BP20: 64 | BQ20: 60 | BR20: 42 | BT20: 110 | BU20: 42 | BV20: 15 | BX20: 15869000 | CA20: =Input_Commuter!BL20+Input_Commuter!BN20+Input_Commuter!CW20+Input_Commuter!CY20 -> 0 | CB20: 1154790 | CC20: =Input_Commuter!BR20+Input_Commuter!DC20 -> 0 | CD20: =Input_Commuter!BT20+Input_Commuter!DE20 -> 0 | CE20: =Input_Commuter!BV20+Input_Commuter!DG20 -> 0 | CF20: =Input_Commuter!AA20+Input_Commuter!AC20 -> 0 | CG20: 7154012.25 | CH20: =Input_Commuter!AG20 -> 0 | CI20: =Input_Commuter!AI20 -> 0 | CJ20: =Input_Commuter!AK20 -> 0 | CR20: 261800 | CZ20: 356 | DM20: 21
C21: 2000 | D21: =Input_InflAdj!G21 -> 0 | E21: =Input_InflAdj!H21 -> 0 | F21: =Input_InflAdj!I21 -> 0 | G21: 5880 | K21: 603 | L21: 1810076 | AH21: 1100 | AI21: 95300 | AK21: 2721 | AV21: 34525 | AW21: 3100 | BF21: 30 | BH21: 30 | BL21: 15900 | BM21: 1 | BN21: 13800 | BO21: 1 | BP21: 63 | BQ21: 60 | BR21: 42 | BT21: 110 | BU21: 42 | BV21: 20 | BX21: 16210000 | CA21: =Input_Commuter!BL21+Input_Commuter!BN21+Input_Commuter!CW21+Input_Commuter!CY21 -> 0 | CB21: 1190322 | CC21: =Input_Commuter!BR21+Input_Commuter!DC21 -> 0 | CD21: =Input_Commuter!BT21+Input_Commuter!DE21 -> 0 | CE21: =Input_Commuter!BV21+Input_Commuter!DG21 -> 0 | CF21: =Input_Commuter!AA21+Input_Commuter!AC21 -> 0 | CG21: 7184992.5 | CH21: =Input_Commuter!AG21 -> 0 | CI21: =Input_Commuter!AI21 -> 0 | CJ21: =Input_Commuter!AK21 -> 0 | CR21: 231880 | CZ21: 356 | DM21: 21
C22: 2001 | D22: =Input_InflAdj!G22 -> 0 | E22: =Input_InflAdj!H22 -> 0 | F22: =Input_InflAdj!I22 -> 0 | G22: 5676 | K22: 603 | L22: 1810076 | AH22: 3800 | AI22: 59935 | AK22: 3387 | AV22: 33657 | AW22: 3215 | BG22: 24 | BH22: 30 | BL22: 14000 | BM22: 1 | BN22: 13000 | BO22: 1 | BP22: 60 | BQ22: 60 | BR22: 42 | BT22: 100 | BU22: 46 | BV22: 20 | BX22: 15268000 | CA22: =Input_Commuter!BL22+Input_Commuter!BN22+Input_Commuter!CW22+Input_Commuter!CY22 -> 0 | CB22: 1190322 | CC22: =Input_Commuter!BR22+Input_Commuter!DC22 -> 0 | CD22: =Input_Commuter!BT22+Input_Commuter!DE22 -> 0 | CE22: =Input_Commuter!BV22+Input_Commuter!DG22 -> 0 | CF22: =Input_Commuter!AA22+Input_Commuter!AC22 -> 0 | CG22: 6831420.75 | CH22: =Input_Commuter!AG22 -> 0 | CI22: =Input_Commuter!AI22 -> 0 | CJ22: =Input_Commuter!AK22 -> 0 | CR22: 299200 | CZ22: 356 | DM22: 21
C23: 2002 | D23: =Input_InflAdj!G23 -> 0 | E23: =Input_InflAdj!H23 -> 0 | F23: =Input_InflAdj!I23 -> 0 | G23: 5905 | K23: 598 | L23: 1810076 | AH23: 600 | AI23: 50125 | AK23: 4328 | AV23: 33264 | AW23: 2298 | BH23: 60 | BL23: 13000 | BM23: 1 | BN23: 13200 | BO23: 1 | BP23: 61 | BQ23: 57 | BR23: 42 | BT23: 110 | BU23: 49 | BV23: 20 | BX23: 15734000 | CA23: =Input_Commuter!BL23+Input_Commuter!BN23+Input_Commuter!CW23+Input_Commuter!CY23 -> 0 | CB23: 1180452 | CC23: =Input_Commuter!BR23+Input_Commuter!DC23 -> 0 | CD23: =Input_Commuter!BT23+Input_Commuter!DE23 -> 0 | CE23: =Input_Commuter!BV23+Input_Commuter!DG23 -> 0 | CF23: =Input_Commuter!AA23+Input_Commuter!AC23 -> 0 | CG23: 7324045.312 | CH23: =Input_Commuter!AG23 -> 0 | CI23: =Input_Commuter!AI23 -> 0 | CJ23: =Input_Commuter!AK23 -> 0 | CR23: 321640 | CZ23: 363 | DM23: 21
C24: 2003 | D24: =Input_InflAdj!G24 -> 0 | E24: =Input_InflAdj!H24 -> 0 | F24: =Input_InflAdj!I24 -> 0 | G24: 5959 | K24: 612 | L24: 1810076 | AH24: 1000 | AI24: 57327 | AK24: 4043 | AV24: 32117 | AW24: 2825 | BF24: 30 | BG24: 24 | BH24: 60 | BL24: 13000 | BM24: 1 | BN24: 15300 | BO24: 1 | BP24: 60 | BQ24: 57 | BR24: 52 | BT24: 110 | BU24: 59 | BV24: 20 | BX24: 15771000 | CA24: =Input_Commuter!BL24+Input_Commuter!BN24+Input_Commuter!CW24+Input_Commuter!CY24 -> 0 | CB24: 1208088 | CC24: =Input_Commuter!BR24+Input_Commuter!DC24 -> 0 | CD24: =Input_Commuter!BT24+Input_Commuter!DE24 -> 0 | CE24: =Input_Commuter!BV24+Input_Commuter!DG24 -> 0 | CF24: =Input_Commuter!AA24+Input_Commuter!AC24 -> 0 | CG24: 7281525.563 | CH24: =Input_Commuter!AG24 -> 0 | CI24: =Input_Commuter!AI24 -> 0 | CJ24: =Input_Commuter!AK24 -> 0 | CR24: 411400 | CZ24: 348 | DM24: 21
C25: 2004 | D25: =Input_InflAdj!G25 -> 0 | E25: =Input_InflAdj!H25 -> 0 | F25: =Input_InflAdj!I25 -> 0 | G25: 6126 | K25: 599 | L25: 1810408 | AH25: 3400 | AI25: 62644 | AK25: 3612 | AV25: 34573 | AW25: 2727 | BH25: 180 | BL25: 13600 | BM25: 1 | BN25: 16000 | BO25: 1 | BP25: 65 | BQ25: 57 | BR25: 60 | BT25: 110 | BU25: 60 | BV25: 20 | BX25: 15863000 | CA25: =Input_Commuter!BL25+Input_Commuter!BN25+Input_Commuter!CW25+Input_Commuter!CY25 -> 0 | CB25: 1182426 | CC25: =Input_Commuter!BR25+Input_Commuter!DC25 -> 0 | CD25: =Input_Commuter!BT25+Input_Commuter!DE25 -> 0 | CE25: =Input_Commuter!BV25+Input_Commuter!DG25 -> 0 | CF25: =Input_Commuter!AA25+Input_Commuter!AC25 -> 0 | CG25: 7598154.375 | CH25: =Input_Commuter!AG25 -> 0 | CI25: =Input_Commuter!AI25 -> 0 | CJ25: =Input_Commuter!AK25 -> 0 | CR25: 710730 | CZ25: 334 | DM25: 21
C26: 2005 | D26: =Input_InflAdj!G26 -> 0 | E26: =Input_InflAdj!H26 -> 0 | F26: =Input_InflAdj!I26 -> 0 | G26: 6126 | K26: 687 | L26: 1870896 | AH26: 0 | AI26: 61049 | AK26: 3537 | AV26: 31517 | AW26: 2970 | BF26: 60 | BL26: 12500 | BM26: 1 | BN26: 17000 | BO26: 1 | BP26: 70 | BQ26: 54 | BR26: 70 | BT26: 107 | BU26: 65 | BV26: 25 | BX26: 16131000 | CA26: =Input_Commuter!BL26+Input_Commuter!BN26+Input_Commuter!CW26+Input_Commuter!CY26 -> 0 | CB26: 1356138 | CC26: =Input_Commuter!BR26+Input_Commuter!DC26 -> 0 | CD26: =Input_Commuter!BT26+Input_Commuter!DE26 -> 0 | CE26: =Input_Commuter!BV26+Input_Commuter!DG26 -> 0 | CF26: =Input_Commuter!AA26+Input_Commuter!AC26 -> 0 | CG26: 7373023.875 | CH26: =Input_Commuter!AG26 -> 0 | CI26: =Input_Commuter!AI26 -> 0 | CJ26: =Input_Commuter!AK26 -> 0 | CR26: 1915520 | CZ26: 366 | DH26: 174200 | DL26: 0.54 | DM26: 21
C27: 2006 | D27: =Input_InflAdj!G27 -> 0 | E27: =Input_InflAdj!H27 -> 0 | F27: =Input_InflAdj!I27 -> 0 | G27: 6229 | K27: 700 | L27: 2017271 | AH27: 0 | AI27: 63578 | AK27: 3381 | AV27: 30193 | AW27: 3560 | BF27: 30 | BH27: 60 | BL27: 13000 | BM27: 1 | BN27: 18300 | BO27: 1 | BP27: 75 | BQ27: 47 | BR27: 70 | BT27: 80 | BU27: 70 | BV27: 25 | BX27: 16315000 | CA27: =Input_Commuter!BL27+Input_Commuter!BN27+Input_Commuter!CW27+Input_Commuter!CY27 -> 0 | CB27: 1381800 | CC27: =Input_Commuter!BR27+Input_Commuter!DC27 -> 0 | CD27: =Input_Commuter!BT27+Input_Commuter!DE27 -> 0 | CE27: =Input_Commuter!BV27+Input_Commuter!DG27 -> 0 | CF27: =Input_Commuter!AA27+Input_Commuter!AC27 -> 0 | CG27: 7382532.937 | CH27: =Input_Commuter!AG27 -> 0 | CI27: =Input_Commuter!AI27 -> 0 | CJ27: =Input_Commuter!AK27 -> 0 | CR27: 1942610 | CZ27: 366 | DH27: 174200 | DL27: 0.472 | DM27: 21 | DQ27: 612000
C28: 2007 | D28: =Input_InflAdj!G28 -> 0 | E28: =Input_InflAdj!H28 -> 0 | F28: =Input_InflAdj!I28 -> 0 | G28: 6452 | K28: 726 | L28: 2017271 | AH28: 120 | AI28: 56053 | AK28: 3879 | AV28: 30619 | AW28: 2757 | BH28: 120 | BL28: 15600 | BM28: 1 | BN28: 18400 | BO28: 1 | BP28: 80 | BQ28: 54 | BR28: 79 | BT28: 79 | BU28: 74 | BV28: 25 | BX28: 16977000 | CA28: =Input_Commuter!BL28+Input_Commuter!BN28+Input_Commuter!CW28+Input_Commuter!CY28 -> 0 | CB28: 1433124 | CC28: =Input_Commuter!BR28+Input_Commuter!DC28 -> 0 | CD28: =Input_Commuter!BT28+Input_Commuter!DE28 -> 0 | CE28: =Input_Commuter!BV28+Input_Commuter!DG28 -> 0 | CF28: =Input_Commuter!AA28+Input_Commuter!AC28 -> 0 | CG28: 7765385.25 | CH28: =Input_Commuter!AG28 -> 0 | CI28: =Input_Commuter!AI28 -> 0 | CJ28: =Input_Commuter!AK28 -> 0 | CR28: 2453760 | CZ28: 361 | DH28: 174200 | DL28: 0.967 | DM28: 21 | DQ28: 918000
C29: 2008 | D29: =Input_InflAdj!G29 -> 0 | E29: =Input_InflAdj!H29 -> 0 | F29: =Input_InflAdj!I29 -> 0 | G29: 6555 | K29: 732 | L29: 2017271 | AH29: 0 | AI29: 87852 | AK29: 2794 | AV29: 30533 | AW29: 2379 | BH29: 120 | BL29: 9000 | BM29: 1 | BN29: 19000 | BO29: 1 | BP29: 87 | BQ29: 60 | BR29: 80 | BT29: 85 | BU29: 76 | BV29: 25 | BX29: 15853000 | CA29: =Input_Commuter!BL29+Input_Commuter!BN29+Input_Commuter!CW29+Input_Commuter!CY29 -> 0 | CB29: 1444968 | CC29: =Input_Commuter!BR29+Input_Commuter!DC29 -> 0 | CD29: =Input_Commuter!BT29+Input_Commuter!DE29 -> 0 | CE29: =Input_Commuter!BV29+Input_Commuter!DG29 -> 0 | CF29: =Input_Commuter!AA29+Input_Commuter!AC29 -> 0 | CG29: 7889352.187 | CH29: =Input_Commuter!AG29 -> 0 | CI29: =Input_Commuter!AI29 -> 0 | CJ29: =Input_Commuter!AK29 -> 0 | CR29: 2971940 | CZ29: 540 | DH29: 174200 | DL29: 0.975 | DM29: 21 | DQ29: 2178000
C30: 2009 | D30: =Input_InflAdj!G30 -> 0 | E30: =Input_InflAdj!H30 -> 0 | F30: =Input_InflAdj!I30 -> 0 | G30: 6728 | K30: 752 | L30: 2021591 | AH30: 1409 | AI30: 123408 | AK30: 981 | AV30: 29573 | AW30: 2726 | BF30: 37 | BH30: 90 | BL30: 8400 | BM30: 1 | BN30: 19000 | BO30: 1 | BP30: 85 | BQ30: 60 | BR30: 85 | BT30: 85 | BU30: 76 | BV30: 20 | BX30: 15018000 | CA30: =Input_Commuter!BL30+Input_Commuter!BN30+Input_Commuter!CW30+Input_Commuter!CY30 -> 0 | CB30: 1484448 | CC30: =Input_Commuter!BR30+Input_Commuter!DC30 -> 0 | CD30: =Input_Commuter!BT30+Input_Commuter!DE30 -> 0 | CE30: =Input_Commuter!BV30+Input_Commuter!DG30 -> 0 | CF30: =Input_Commuter!AA30+Input_Commuter!AC30 -> 0 | CG30: 8097568.5 | CH30: =Input_Commuter!AG30 -> 0 | CI30: =Input_Commuter!AI30 -> 0 | CJ30: =Input_Commuter!AK30 -> 0 | CN30: 8014 | CR30: 3417040 | CZ30: 450 | DH30: 174200 | DL30: 1 | DM30: 21 | DQ30: 4356000
C31: 2010 | D31: =Input_InflAdj!G31 -> 0 | E31: =Input_InflAdj!H31 -> 0 | F31: =Input_InflAdj!I31 -> 0 | G31: 5723 | H31: 811 | I31: 2408 | J31: 237 | K31: 648 | L31: 2217547 | M31: 356976 | AH31: 3185 | AI31: 64161 | AK31: 2903 | AM31: 31 | AV31: 26705 | AW31: 3014 | BF31: 0 | BG31: 0 | BH31: 90 | BL31: 9200 | BM31: 1 | BN31: 19700 | BO31: 1 | BP31: 85 | BQ31: 60 | BR31: 85 | BT31: 85 | BU31: 76 | BV31: 20 | BX31: 14794000 | CA31: =Input_Commuter!BL31+Input_Commuter!BN31+Input_Commuter!CW31+Input_Commuter!CY31 -> 0 | CB31: 2911650 | CC31: =Input_Commuter!BR31+Input_Commuter!DC31 -> 0 | CD31: =Input_Commuter!BT31+Input_Commuter!DE31 -> 0 | CE31: =Input_Commuter!BV31+Input_Commuter!DG31 -> 0 | CF31: =Input_Commuter!AA31+Input_Commuter!AC31 -> 0 | CG31: 10590663 | CH31: =Input_Commuter!AG31 -> 0 | CI31: =Input_Commuter!AI31 -> 0 | CJ31: =Input_Commuter!AK31 -> 0 | CN31: 12702 | CO31: 37201 | CR31: 2898120 | CZ31: 435 | DH31: 97760 | DL31: 1 | DM31: 21 | DQ31: 3927600
C32: 2011 | D32: =Input_InflAdj!G32 -> 0 | E32: =Input_InflAdj!H32 -> 0 | F32: =Input_InflAdj!I32 -> 0 | G32: 5806 | H32: 833 | I32: 2258 | J32: 236 | K32: 651 | L32: 2217547 | M32: 356976 | AH32: 0 | AI32: 123512 | AK32: 927 | AM32: 0 | AV32: 26935 | AW32: 3034 | BF32: 60 | BG32: 0 | BH32: 90 | BL32: 11546 | BM32: 1 | BN32: 19700 | BO32: 1 | BP32: 85 | BQ32: 60 | BR32: 85 | BT32: 85 | BU32: 76 | BV32: 20 | BX32: 14658000 | CA32: =Input_Commuter!BL32+Input_Commuter!BN32+Input_Commuter!CW32+Input_Commuter!CY32 -> 0 | CB32: 2918230 | CC32: =Input_Commuter!BR32+Input_Commuter!DC32 -> 0 | CD32: =Input_Commuter!BT32+Input_Commuter!DE32 -> 0 | CE32: =Input_Commuter!BV32+Input_Commuter!DG32 -> 0 | CF32: =Input_Commuter!AA32+Input_Commuter!AC32 -> 0 | CG32: 11261323 | CH32: =Input_Commuter!AG32 -> 0 | CI32: =Input_Commuter!AI32 -> 0 | CJ32: =Input_Commuter!AK32 -> 0 | CN32: 11432 | CO32: 27218 | CR32: 2795300 | CZ32: 500 | DH32: 106080 | DL32: 1 | DM32: 21 | DQ32: 3895200
C33: 2012 | D33: =Input_InflAdj!G33 -> 0 | E33: =Input_InflAdj!H33 -> 0 | F33: =Input_InflAdj!I33 -> 0 | G33: 5469 | H33: 1357 | I33: 1899 | J33: 217 | K33: 689 | L33: 2185017 | M33: 356976 | AH33: 1068 | AI33: 124116 | AK33: 347 | AM33: 0 | AV33: 24571 | AW33: 2776 | BF33: 1875 | BG33: 24 | BH33: 300 | BL33: 21528 | BM33: 1 | BN33: 20000 | BO33: 1 | BP33: 87 | BQ33: 60 | BR33: 85 | BT33: 65 | BU33: 73 | BV33: 29 | BX33: 14924000 | CA33: =Input_Commuter!BL33+Input_Commuter!BN33+Input_Commuter!CW33+Input_Commuter!CY33 -> 0 | CB33: 3099970 | CC33: =Input_Commuter!BR33+Input_Commuter!DC33 -> 0 | CD33: =Input_Commuter!BT33+Input_Commuter!DE33 -> 0 | CE33: =Input_Commuter!BV33+Input_Commuter!DG33 -> 0 | CF33: =Input_Commuter!AA33+Input_Commuter!AC33 -> 0 | CG33: 9853960 | CH33: =Input_Commuter!AG33 -> 0 | CI33: =Input_Commuter!AI33 -> 0 | CJ33: =Input_Commuter!AK33 -> 0 | CN33: 8915 | CR33: 2519672 | CZ33: 688 | DH33: 91520 | DL33: 1 | DM33: 21 | DQ33: 4084800
C34: 2013 | D34: =Input_InflAdj!G34 -> 0 | E34: =Input_InflAdj!H34 -> 0 | F34: =Input_InflAdj!I34 -> 0 | G34: 5173 | H34: 805 | I34: 1769 | J34: 224 | K34: 697 | L34: 2185017 | M34: 356976 | AH34: 773 | AI34: 151934 | AK34: 173 | AM34: 0 | AV34: 26885 | AW34: 4040 | BF34: 0 | BG34: 24 | BH34: 120 | BL34: 16560 | BM34: 1 | BN34: 21000 | BO34: 1 | BP34: 92 | BQ34: 60 | BR34: 85 | BT34: 65 | BU34: 73 | BV34: 29 | BX34: 14738000 | CA34: =Input_Commuter!BL34+Input_Commuter!BN34+Input_Commuter!CW34+Input_Commuter!CY34 -> 0 | CB34: 2901500 | CC34: =Input_Commuter!BR34+Input_Commuter!DC34 -> 0 | CD34: =Input_Commuter!BT34+Input_Commuter!DE34 -> 0 | CE34: =Input_Commuter!BV34+Input_Commuter!DG34 -> 0 | CF34: =Input_Commuter!AA34+Input_Commuter!AC34 -> 0 | CG34: 13869865 | CH34: =Input_Commuter!AG34 -> 0 | CI34: =Input_Commuter!AI34 -> 0 | CJ34: =Input_Commuter!AK34 -> 0 | CO34: 37111 | CR34: 3301592 | CZ34: 741 | DH34: 60320 | DL34: 1 | DM34: 21 | DQ34: 4464000
C35: 2014 | D35: =Input_InflAdj!G35 -> 0 | E35: =Input_InflAdj!H35 -> 0 | F35: =Input_InflAdj!I35 -> 0 | BM35: 1 | BO35: 1 | CA35: =Input_Commuter!BL35+Input_Commuter!BN35+Input_Commuter!CW35+Input_Commuter!CY35 -> 0 | CB35: =Input_Commuter!BP35+Input_Commuter!DA35 -> 0 | CC35: =Input_Commuter!BR35+Input_Commuter!DC35 -> 0 | CD35: =Input_Commuter!BT35+Input_Commuter!DE35 -> 0 | CE35: =Input_Commuter!BV35+Input_Commuter!DG35 -> 0 | CF35: =Input_Commuter!AA35+Input_Commuter!AC35 -> 0 | CG35: =Input_Commuter!AE35 -> 0 | CH35: =Input_Commuter!AG35 -> 0 | CI35: =Input_Commuter!AI35 -> 0 | CJ35: =Input_Commuter!AK35 -> 0
C36: 2015 | D36: =Input_InflAdj!G36 -> 0 | E36: =Input_InflAdj!H36 -> 0 | F36: =Input_InflAdj!I36 -> 0 | BM36: 1 | BO36: 1 | CA36: =Input_Commuter!BL36+Input_Commuter!BN36+Input_Commuter!CW36+Input_Commuter!CY36 -> 0 | CB36: =Input_Commuter!BP36+Input_Commuter!DA36 -> 0 | CC36: =Input_Commuter!BR36+Input_Commuter!DC36 -> 0 | CD36: =Input_Commuter!BT36+Input_Commuter!DE36 -> 0 | CE36: =Input_Commuter!BV36+Input_Commuter!DG36 -> 0 | CF36: =Input_Commuter!AA36+Input_Commuter!AC36 -> 0 | CG36: =Input_Commuter!AE36 -> 0 | CH36: =Input_Commuter!AG36 -> 0 | CI36: =Input_Commuter!AI36 -> 0 | CJ36: =Input_Commuter!AK36 -> 0
C37: 2016 | D37: 133983541 | E37: 619047 | F37: 2158296 | G37: 5448 | H37: 913 | I37: 416 | J37: 199 | K37: 426 | L37: 2185017 | M37: 356976 | AH37: 427 | AI37: 123448 | AK37: 666 | AM37: 0 | AV37: 21344 | AW37: 4719 | BF37: 750 | BG37: 73 | BL37: 16836 | BM37: 1 | BN37: 16500 | BO37: 1 | BP37: 93 | BQ37: 66 | BR37: 34 | BT37: 65 | BU37: 66 | BV37: 29 | BX37: 14889000 | CA37: =Input_Commuter!BL37+Input_Commuter!BN37+Input_Commuter!CW37+Input_Commuter!CY37 -> 0 | CB37: 2665871 | CC37: =Input_Commuter!BR37+Input_Commuter!DC37 -> 0 | CD37: =Input_Commuter!BT37+Input_Commuter!DE37 -> 0 | CE37: =Input_Commuter!BV37+Input_Commuter!DG37 -> 0 | CF37: =Input_Commuter!AA37+Input_Commuter!AC37 -> 0 | CG37: 13908168 | CH37: =Input_Commuter!AG37 -> 0 | CI37: =Input_Commuter!AI37 -> 0 | CJ37: =Input_Commuter!AK37 -> 0 | CN37: 48347 | CO37: 38045.8 | CR37: 2585584 | CZ37: 726 | DH37: 336000 | DL37: 1 | DM37: 21 | DQ37: 339600
C38: 2017 | D38: 132913380 | E38: 713540 | F38: 2158296 | G38: 6926.51 | H38: 256 | I38: 216 | J38: 442 | K38: 321 | L38: 2198037 | M38: 356976 | AH38: 0 | AI38: 132034 | AK38: 609 | AM38: 0 | AV38: 21451 | AW38: 4155 | BF38: 375 | BG38: 73 | BH38: 60 | BL38: 33000 | BM38: 1 | BN38: 21000 | BO38: 1 | BP38: 100 | BQ38: 57 | BR38: 60 | BT38: 86 | BU38: 66 | BV38: 16 | BX38: 15461000 | CA38: =Input_Commuter!BL38+Input_Commuter!BN38+Input_Commuter!CW38+Input_Commuter!CY38 -> 0 | CB38: 2665872 | CC38: =Input_Commuter!BR38+Input_Commuter!DC38 -> 0 | CD38: =Input_Commuter!BT38+Input_Commuter!DE38 -> 0 | CE38: =Input_Commuter!BV38+Input_Commuter!DG38 -> 0 | CF38: =Input_Commuter!AA38+Input_Commuter!AC38 -> 0 | CG38: 13908168 | CH38: =Input_Commuter!AG38 -> 0 | CI38: =Input_Commuter!AI38 -> 0 | CJ38: =Input_Commuter!AK38 -> 0 | CK38: 42648 | CL38: 2489688 | CN38: 42688 | CO38: 27853 | CR38: 2585584 | CZ38: 657 | DG38: 11379 | DH38: 1417 | DI38: 34346.5 | DJ38: 1044 | DL38: 330.63 | DM38: 21 | DQ38: 54000
B41: ©2001-2016 University of New Hampshire. All rights reserved.
B42: UNH, Campus Carbon Calculator, and the UNH logo are trademarks of the University of New Hampshire.

Sheet Input_InflAdj
B2: On this Worksheet: Original budget values, and values adjusted for inflation
B3: MODULE | C3: Input
B4: WORKSHEET | C4: Inflation Adjustment: Enter your budget values in the left-hand columns and they will be adjusted for inflation.
B5: UNIVERSITY | C5: =IF((ISBLANK(Introduction!$G$10)),"Please enter university name on 'Introduction' sheet",Introduction!$G$10) -> Please enter university name on 'Introduction' sheet
C8: Budget | F8: Conversion | G8: Budget Adjusted for Inflation
B9: Fiscal Year | C9: Operating Budget | D9: Research Dollars | E9: Energy Budget | F9: Deflator | G9: Operating Budget | H9: Research Dollars | I9: Energy Budget
C10: $ | D10: $ | E10: $ | F10: $ (2005) | G10: $ | H10: $ | I10: $
B11: =Input!C11 -> 1990 | F11: 0.722 | G11: =C11/$F11 -> 0 | H11: =D11/$F11 -> 0 | I11: =E11/$F11 -> 0
B12: =Input!C12 -> 1991 | F12: 0.74726 | G12: =C12/$F12 -> 0 | H12: 0 | I12: 0
B13: =Input!C13 -> 1992 | F13: 0.76444 | G13: 0 | H13: 0 | I13: 0
B14: =Input!C14 -> 1993 | F14: 0.7821 | G14: 0 | H14: 0 | I14: 0
B15: =Input!C15 -> 1994 | F15: 0.79872 | G15: 0 | H15: 0 | I15: 0
B16: =Input!C16 -> 1995 | F16: 0.81506 | G16: 0 | H16: 0 | I16: 0
B17: =Input!C17 -> 1996 | F17: 0.83051 | G17: 0 | H17: 0 | I17: 0
B18: =Input!C18 -> 1997 | F18: 0.84433 | G18: 0 | H18: 0 | I18: 0
B19: =Input!C19 -> 1998 | F19: 0.8537 | G19: 0 | H19: 0 | I19: 0
B20: =Input!C20 -> 1999 | F20: 0.86605 | G20: 0 | H20: 0 | I20: 0
B21: =Input!C21 -> 2000 | F21: 0.88492 | G21: 0 | H21: 0 | I21: 0
B22: =Input!C22 -> 2001 | F22: 0.90615 | G22: 0 | H22: 0 | I22: 0
B23: =Input!C23 -> 2002 | F23: 0.92197 | G23: 0 | H23: 0 | I23: 0
B24: =Input!C24 -> 2003 | F24: 0.94159 | G24: 0 | H24: 0 | I24: 0
B25: =Input!C25 -> 2004 | F25: 0.96833 | G25: 0 | H25: 0 | I25: 0
B26: =Input!C26 -> 2005 | F26: 1 | G26: =C26/$F26 -> 0 | H26: =D26/$F26 -> 0 | I26: =E26/$F26 -> 0
B27: =Input!C27 -> 2006 | F27: 1.03153 | G27: 0 | H27: 0 | I27: 0
B28: =Input!C28 -> 2007 | F28: 1.05887 | G28: 0 | H28: 0 | I28: 0
B29: =Input!C29 -> 2008 | F29: 1.08105 | G29: 0 | H29: 0 | I29: 0
B30: =Input!C30 -> 2009 | F30: 1.10057 | G30: 0 | H30: 0 | I30: 0
B31: =Input!C31 -> 2010 | F31: 1.12153 | G31: 0 | H31: 0 | I31: 0
B32: =Input!C32 -> 2011 | F32: 1.13369 | G32: =C32/$F32 -> 0 | H32: 0 | I32: 0
B33: =Input!C33 -> 2012 | F33: 1.153875 | G33: 0 | H33: 0 | I33: 0
B34: =Input!C34 -> 2013 | F34: 1.171069 | G34: 0 | H34: 0 | I34: 0
B35: =Input!C35 -> 2014 | F35: 1.192421 | G35: 0 | H35: 0 | I35: 0
B36: =Input!C36 -> 2015 | F36: 1.210988 | G36: 0 | H36: 0 | I36: 0
B37: =Input!C37 -> 2016 | C37: 133983541 | D37: 619047 | E37: 2158296 | F37: 1.229621 | G37: 108963283 | H37: 503445.3706 | I37: 1755253.041
B38: ='Linear Projection'!B11 -> 2017 | F38: 1.247604 | G38: 0 | H38: 0 | I38: 0
B39: ='Linear Projection'!B12 -> 2018 | F39: 1.266705 | G39: 0 | H39: 0 | I39: 0
B40: ='Linear Projection'!B13 -> 2019 | F40: 1.286367 | G40: 0 | H40: 0 | I40: 0
B41: ='Linear Projection'!B14 -> 2020 | F41: 1.306895 | G41: 0 | H41: 0 | I41: 0
B42: ='Linear Projection'!B15 -> 2021 | F42: 1.328329 | G42: 0 | H42: 0 | I42: 0
B43: ='Linear Projection'!B16 -> 2022 | F43: 1.350553 | G43: 0 | H43: 0 | I43: 0
B44: ='Linear Projection'!B17 -> 2023 | F44: 1.373579 | G44: 0 | H44: 0 | I44: 0
B45: ='Linear Projection'!B18 -> 2024 | F45: 1.397296 | G45: 0 | H45: 0 | I45: 0
B46: ='Linear Projection'!B19 -> 2025 | F46: 1.421298 | G46: 0 | H46: 0 | I46: 0
B47: ='Linear Projection'!B20 -> 2026 | F47: 1.445899 | G47: 0 | H47: 0 | I47: 0
B48: ='Linear Projection'!B21 -> 2027 | F48: 1.471223 | G48: 0 | H48: 0 | I48: 0
B49: ='Linear Projection'!B22 -> 2028 | F49: 1.497329 | G49: 0 | H49: 0 | I49: 0
B50: ='Linear Projection'!B23 -> 2029 | F50: 1.524715 | G50: 0 | H50: 0 | I50: 0
B51: ='Linear Projection'!B24 -> 2030 | F51: 1.553321 | G51: 0 | H51: 0 | I51: 0
B52: ='Linear Projection'!B25 -> 2031 | F52: 1.584095 | G52: 0 | H52: 0 | I52: 0
B53: ='Linear Projection'!B26 -> 2032 | F53: 1.615903 | G53: 0 | H53: 0 | I53: 0
B54: ='Linear Projection'!B27 -> 2033 | F54: 1.649061 | G54: 0 | H54: 0 | I54: 0
B55: ='Linear Projection'!B28 -> 2034 | F55: 1.683385 | G55: 0 | H55: 0 | I55: 0
B56: ='Linear Projection'!B29 -> 2035 | F56: 1.718587 | G56: 0 | H56: 0 | I56: 0
B57: ='Linear Projection'!B30 -> 2036 | F57: 1.755467 | G57: 0 | H57: 0 | I57: 0
B58: ='Linear Projection'!B31 -> 2037 | F58: 1.79325 | G58: 0 | H58: 0 | I58: 0
B59: ='Linear Projection'!B32 -> 2038 | F59: 1.831851 | G59: 0 | H59: 0 | I59: 0
B60: ='Linear Projection'!B33 -> 2039 | F60: 1.8719 | G60: 0 | H60: 0 | I60: 0
B61: ='Linear Projection'!B34 -> 2040 | F61: 1.913109 | G61: 0 | H61: 0 | I61: 0
B62: ='Linear Projection'!B35 -> 2041 | F62: =F61+$F$84 -> 1.93365594 | G62: =C62/$F62 -> 0 | H62: 0 | I62: 0
B63: ='Linear Projection'!B36 -> 2042 | F63: =F62+$F$84 -> 1.95420288 | G63: 0 | H63: 0 | I63: 0
B64: ='Linear Projection'!B37 -> 2043 | F64: 1.97474982 | G64: 0 | H64: 0 | I64: 0
B65: ='Linear Projection'!B38 -> 2044 | F65: 1.99529676 | G65: 0 | H65: 0 | I65: 0
B66: ='Linear Projection'!B39 -> 2045 | F66: 2.0158437 | G66: 0 | H66: 0 | I66: 0
B67: ='Linear Projection'!B40 -> 2046 | F67: 2.03639064 | G67: 0 | H67: 0 | I67: 0
B68: ='Linear Projection'!B41 -> 2047 | F68: 2.05693758 | G68: 0 | H68: 0 | I68: 0
B69: ='Linear Projection'!B42 -> 2048 | F69: 2.077484521 | G69: 0 | H69: 0 | I69: 0
B70: ='Linear Projection'!B43 -> 2049 | F70: 2.098031461 | G70: 0 | H70: 0 | I70: 0
B71: ='Linear Projection'!B44 -> 2050 | F71: 2.118578401 | G71: 0 | H71: 0 | I71: 0
B72: ='Linear Projection'!B45 -> 2051 | F72: 2.139125341 | G72: 0 | H72: 0 | I72: 0
B73: ='Linear Projection'!B46 -> 2052 | F73: 2.159672281 | G73: 0 | H73: 0 | I73: 0
B74: ='Linear Projection'!B47 -> 2053 | F74: 2.180219221 | G74: 0 | H74: 0 | I74: 0
B75: ='Linear Projection'!B48 -> 2054 | F75: 2.200766161 | G75: 0 | H75: 0 | I75: 0
B76: ='Linear Projection'!B49 -> 2055 | F76: 2.221313101 | G76: 0 | H76: 0 | I76: 0
B77: ='Linear Projection'!B50 -> 2056 | F77: 2.241860041 | G77: 0 | H77: 0 | I77: 0
B78: ='Linear Projection'!B51 -> 2057 | F78: 2.262406981 | G78: 0 | H78: 0 | I78: 0
B79: ='Linear Projection'!B52 -> 2058 | F79: 2.282953921 | G79: 0 | H79: 0 | I79: 0
B80: ='Linear Projection'!B53 -> 2059 | F80: 2.303500861 | G80: 0 | H80: 0 | I80: 0
B81: ='Linear Projection'!B54 -> 2060 | F81: 2.324047801 | G81: 0 | H81: 0 | I81: 0
B82: Source: | F82: =Reference!B26 -> 19
B83: Source 2: | F83: =Reference!B27 -> 20
E84: Slope | F84: =SLOPE(F11:F51,B11:B51) -> 0.02054694007
A85: ©2001-2016 University of New Hampshire. All rights reserved.
A86: UNH, Campus Carbon Calculator, and the UNH logo are trademarks of the University of New Hampshire.

Sheet CustFuelMix
B2: On this Worksheet: If you know the exact fuel mix of your electric utility, enter it on this sheet.
B3: MODULE | C3: Input
B4: WORKSHEET | C4: Custom Fuel Mix
B5: UNIVERSITY | C5: =IF((ISBLANK(Introduction!$G$10)),"Please enter university name on 'Introduction' sheet",Introduction!$G$10) -> Please enter university name on 'Introduction' sheet
B7: Fiscal Year | C7: Total Electricity Purchased | D7: Net Purchased | E7: Coal | F7: Natural Gas | G7: Distillate Oil (#1-#4) | H7: Residual Oil (#5-#6) | I7: Nuclear | J7: Waste to Energy | K7: Hydro-Electric | L7: Biomass | M7: Renewable (wind, solar) | N7: Total Percentage
C8: (kWh) | D8: (%) | E8: (%) | F8: (%) | G8: (%) | H8: (%) | I8: (%) | J8: (%) | K8: (%) | L8: (%) | M8: (%) | N8: (%)
B9: 1990 | C9: =Input!BX11 -> 12894000 | N9: =SUM(D9:M9) -> 0
B10: 1991 | C10: =Input!BX12 -> 13085000 | N10: 0
B11: 1992 | C11: =Input!BX13 -> 13456000 | N11: 0
B12: 1993 | C12: =Input!BX14 -> 13386000 | N12: 0
B13: 1994 | C13: =Input!BX15 -> 14112000 | N13: 0
B14: 1995 | C14: =Input!BX16 -> 14112000 | N14: 0
B15: 1996 | C15: =Input!BX17 -> 14700000 | N15: 0
B16: 1997 | C16: =Input!BX18 -> 15568000 | N16: 0
B17: 1998 | C17: =Input!BX19 -> 15529000 | N17: 0
B18: 1999 | C18: =Input!BX20 -> 15869000 | N18: 0
B19: 2000 | C19: =Input!BX21 -> 16210000 | N19: 0
B20: 2001 | C20: =Input!BX22 -> 15268000 | N20: 0
B21: 2002 | C21: =Input!BX23 -> 15734000 | N21: 0
B22: 2003 | C22: =Input!BX24 -> 15771000 | N22: 0
B23: 2004 | C23: =Input!BX25 -> 15863000 | N23: 0
B24: 2005 | C24: =Input!BX26 -> 16131000 | N24: 0
B25: 2006 | C25: =Input!BX27 -> 16315000 | N25: 0
B26: 2007 | C26: =Input!BX28 -> 16977000 | N26: 0
B27: 2008 | C27: =Input!BX29 -> 15853000 | N27: 0
B28: 2009 | C28: =Input!BX30 -> 15018000 | N28: 0
B29: 2010 | C29: =Input!BX31 -> 14794000 | N29: 0
B30: 2011 | C30: =Input!BX32 -> 14658000 | N30: 0
B31: 2012 | C31: =Input!BX33 -> 14924000 | N31: 0
B32: 2013 | C32: =Input!BX34 -> 14738000 | N32: 0
B33: 2014 | C33: =Input!BX35 -> 0 | N33: 0
B34: 2015 | C34: =Input!BX36 -> 0 | N34: =SUM(D34:M34) -> 0
B35: 2016 | C35: =Input!BX37 -> 14889000 | N35: 0
B36: 2017 | C36: ='Detailed Projection'!BW23 -> 16382178.12 | D36: =D$35 -> 0 | E36: =E$35 -> 0 | F36: 0 | G36: 0 | H36: 0 | I36: 0 | J36: 0 | K36: 0 | L36: 0 | M36: 0 | N36: 0
B37: 2018 | C37: ='Detailed Projection'!BW24 -> 16468756.81 | D37: =D$35 -> 0 | E37: 0 | F37: 0 | G37: 0 | H37: 0 | I37: 0 | J37: 0 | K37: 0 | L37: 0 | M37: 0 | N37: 0
B38: 2019 | C38: ='Detailed Projection'!BW25 -> 16555335.51 | D38: 0 | E38: 0 | F38: 0 | G38: 0 | H38: 0 | I38: 0 | J38: 0 | K38: 0 | L38: 0 | M38: 0 | N38: 0
B39: 2020 | C39: ='Detailed Projection'!BW26 -> 16641914.2 | D39: 0 | E39: 0 | F39: 0 | G39: 0 | H39: 0 | I39: 0 | J39: 0 | K39: 0 | L39: 0 | M39: 0 | N39: 0
B40: 2021 | C40: ='Detailed Projection'!BW27 -> 16728492.9 | D40: 0 | E40: 0 | F40: 0 | G40: 0 | H40: 0 | I40: 0 | J40: 0 | K40: 0 | L40: 0 | M40: 0 | N40: 0
B41: 2022 | C41: ='Detailed Projection'!BW28 -> 16815071.59 | D41: 0 | E41: 0 | F41: 0 | G41: 0 | H41: 0 | I41: 0 | J41: 0 | K41: 0 | L41: 0 | M41: 0 | N41: =SUM(D41:M41) -> 0
B42: 2023 | C42: ='Detailed Projection'!BW29 -> 16901650.29 | D42: 0 | E42: 0 | F42: 0 | G42: 0 | H42: 0 | I42: 0 | J42: 0 | K42: 0 | L42: 0 | M42: 0 | N42: 0
B43: 2024 | C43: ='Detailed Projection'!BW30 -> 16988228.99 | D43: 0 | E43: 0 | F43: 0 | G43: 0 | H43: 0 | I43: 0 | J43: 0 | K43: 0 | L43: 0 | M43: 0 | N43: 0
B44: 2025 | C44: ='Detailed Projection'!BW31 -> 17074807.68 | D44: 0 | E44: 0 | F44: 0 | G44: 0 | H44: 0 | I44: 0 | J44: 0 | K44: 0 | L44: 0 | M44: 0 | N44: 0
B45: 2026 | C45: ='Detailed Projection'!BW32 -> 17161386.38 | D45: 0 | E45: 0 | F45: 0 | G45: 0 | H45: 0 | I45: 0 | J45: 0 | K45: 0 | L45: 0 | M45: 0 | N45: 0
B46: 2027 | C46: ='Detailed Projection'!BW33 -> 17247965.07 | D46: 0 | E46: 0 | F46: 0 | G46: 0 | H46: 0 | I46: 0 | J46: 0 | K46: 0 | L46: 0 | M46: 0 | N46: 0
B47: 2028 | C47: ='Detailed Projection'!BW34 -> 17334543.77 | D47: 0 | E47: 0 | F47: 0 | G47: 0 | H47: 0 | I47: 0 | J47: 0 | K47: 0 | L47: 0 | M47: 0 | N47: 0
B48: 2029 | C48: ='Detailed Projection'!BW35 -> 17421122.46 | D48: 0 | E48: 0 | F48: 0 | G48: 0 | H48: 0 | I48: 0 | J48: 0 | K48: 0 | L48: 0 | M48: 0 | N48: 0
B49: 2030 | C49: ='Detailed Projection'!BW36 -> 17507701.16 | D49: 0 | E49: 0 | F49: 0 | G49: 0 | H49: 0 | I49: 0 | J49: 0 | K49: 0 | L49: 0 | M49: 0 | N49: 0
B50: 2031 | C50: ='Detailed Projection'!BW37 -> 17594279.86 | D50: 0 | E50: 0 | F50: 0 | G50: 0 | H50: 0 | I50: 0 | J50: 0 | K50: 0 | L50: 0 | M50: 0 | N50: 0
B51: 2032 | C51: ='Detailed Projection'!BW38 -> 17680858.55 | D51: 0 | E51: 0 | F51: 0 | G51: 0 | H51: 0 | I51: 0 | J51: 0 | K51: 0 | L51: 0 | M51: 0 | N51: 0
B52: 2033 | C52: ='Detailed Projection'!BW39 -> 17767437.25 | D52: 0 | E52: 0 | F52: 0 | G52: 0 | H52: 0 | I52: 0 | J52: 0 | K52: 0 | L52: 0 | M52: 0 | N52: 0
B53: 2034 | C53: ='Detailed Projection'!BW40 -> 17854015.94 | D53: 0 | E53: 0 | F53: 0 | G53: 0 | H53: 0 | I53: 0 | J53: 0 | K53: 0 | L53: 0 | M53: 0 | N53: 0
B54: 2035 | C54: ='Detailed Projection'!BW41 -> 17940594.64 | D54: 0 | E54: 0 | F54: 0 | G54: 0 | H54: 0 | I54: 0 | J54: 0 | K54: 0 | L54: 0 | M54: 0 | N54: 0
B55: 2036 | C55: ='Detailed Projection'!BW42 -> 18027173.33 | D55: 0 | E55: 0 | F55: 0 | G55: 0 | H55: 0 | I55: 0 | J55: 0 | K55: 0 | L55: 0 | M55: 0 | N55: 0
B56: 2037 | C56: ='Detailed Projection'!BW43 -> 18113752.03 | D56: 0 | E56: 0 | F56: 0 | G56: 0 | H56: 0 | I56: 0 | J56: 0 | K56: 0 | L56: 0 | M56: 0 | N56: 0
B57: 2038 | C57: ='Detailed Projection'!BW44 -> 18200330.72 | D57: 0 | E57: 0 | F57: 0 | G57: 0 | H57: 0 | I57: 0 | J57: 0 | K57: 0 | L57: 0 | M57: 0 | N57: 0
B58: 2039 | C58: ='Detailed Projection'!BW45 -> 18286909.42 | D58: 0 | E58: 0 | F58: 0 | G58: 0 | H58: 0 | I58: 0 | J58: 0 | K58: 0 | L58: 0 | M58: 0 | N58: 0
B59: 2040 | C59: ='Detailed Projection'!BW46 -> 18373488.12 | D59: 0 | E59: 0 | F59: 0 | G59: 0 | H59: 0 | I59: 0 | J59: 0 | K59: 0 | L59: 0 | M59: 0 | N59: 0
B60: 2041 | C60: ='Detailed Projection'!BW47 -> 18460066.81 | D60: 0 | E60: 0 | F60: 0 | G60: 0 | H60: 0 | I60: 0 | J60: 0 | K60: 0 | L60: 0 | M60: 0 | N60: 0
B61: 2042 | C61: ='Detailed Projection'!BW48 -> 18546645.51 | D61: 0 | E61: 0 | F61: 0 | G61: 0 | H61: 0 | I61: 0 | J61: 0 | K61: 0 | L61: 0 | M61: 0 | N61: 0
B62: 2043 | C62: ='Detailed Projection'!BW49 -> 18633224.2 | D62: 0 | E62: 0 | F62: 0 | G62: 0 | H62: 0 | I62: 0 | J62: 0 | K62: 0 | L62: 0 | M62: 0 | N62: 0
B63: 2044 | C63: ='Detailed Projection'!BW50 -> 18719802.9 | D63: 0 | E63: 0 | F63: 0 | G63: 0 | H63: 0 | I63: 0 | J63: 0 | K63: 0 | L63: 0 | M63: 0 | N63: 0
B64: 2045 | C64: ='Detailed Projection'!BW51 -> 18806381.59 | D64: 0 | E64: 0 | F64: 0 | G64: 0 | H64: 0 | I64: 0 | J64: 0 | K64: 0 | L64: 0 | M64: 0 | N64: 0
B65: 2046 | C65: ='Detailed Projection'!BW52 -> 18892960.29 | D65: 0 | E65: 0 | F65: 0 | G65: 0 | H65: 0 | I65: 0 | J65: 0 | K65: 0 | L65: 0 | M65: 0 | N65: 0
B66: 2047 | C66: ='Detailed Projection'!BW53 -> 18979538.99 | D66: 0 | E66: 0 | F66: 0 | G66: 0 | H66: 0 | I66: 0 | J66: 0 | K66: 0 | L66: 0 | M66: 0 | N66: 0
B67: 2048 | C67: ='Detailed Projection'!BW54 -> 19066117.68 | D67: 0 | E67: 0 | F67: 0 | G67: 0 | H67: 0 | I67: 0 | J67: 0 | K67: 0 | L67: 0 | M67: 0 | N67: 0
B68: 2049 | C68: ='Detailed Projection'!BW55 -> 19152696.38 | D68: 0 | E68: 0 | F68: 0 | G68: 0 | H68: 0 | I68: 0 | J68: 0 | K68: 0 | L68: 0 | M68: 0 | N68: 0
B69: 2050 | C69: ='Detailed Projection'!BW56 -> 19239275.07 | D69: 0 | E69: 0 | F69: 0 | G69: 0 | H69: 0 | I69: 0 | J69: 0 | K69: 0 | L69: 0 | M69: 0 | N69: 0
B70: 2051 | C70: ='Detailed Projection'!BW57 -> 19325853.77 | D70: 0 | E70: 0 | F70: 0 | G70: 0 | H70: 0 | I70: 0 | J70: 0 | K70: 0 | L70: 0 | M70: 0 | N70: 0
B71: 2052 | C71: ='Detailed Projection'!BW58 -> 19412432.46 | D71: 0 | E71: 0 | F71: 0 | G71: 0 | H71: 0 | I71: 0 | J71: 0 | K71: 0 | L71: 0 | M71: 0 | N71: 0
B72: 2053 | C72: ='Detailed Projection'!BW59 -> 19499011.16 | D72: 0 | E72: 0 | F72: 0 | G72: 0 | H72: 0 | I72: 0 | J72: 0 | K72: 0 | L72: 0 | M72: 0 | N72: 0
B73: 2054 | C73: ='Detailed Projection'!BW60 -> 19585589.86 | D73: 0 | E73: 0 | F73: 0 | G73: 0 | H73: 0 | I73: 0 | J73: 0 | K73: 0 | L73: 0 | M73: 0 | N73: =SUM(D73:M73) -> 0
B74: 2055 | C74: ='Detailed Projection'!BW61 -> 19672168.55 | D74: 0 | E74: 0 | F74: 0 | G74: 0 | H74: 0 | I74: 0 | J74: 0 | K74: 0 | L74: 0 | M74: 0 | N74: 0
B75: 2056 | C75: ='Detailed Projection'!BW62 -> 19758747.25 | D75: 0 | E75: 0 | F75: 0 | G75: 0 | H75: 0 | I75: 0 | J75: 0 | K75: 0 | L75: 0 | M75: 0 | N75: 0
B76: 2057 | C76: ='Detailed Projection'!BW63 -> 19845325.94 | D76: =D$35 -> 0 | E76: 0 | F76: 0 | G76: 0 | H76: 0 | I76: 0 | J76: 0 | K76: 0 | L76: 0 | M76: 0 | N76: 0
B77: 2058 | C77: ='Detailed Projection'!BW64 -> 19931904.64 | D77: 0 | E77: 0 | F77: 0 | G77: 0 | H77: 0 | I77: 0 | J77: 0 | K77: 0 | L77: 0 | M77: 0 | N77: 0
B78: 2059 | C78: ='Detailed Projection'!BW65 -> 20018483.33 | D78: 0 | E78: 0 | F78: 0 | G78: 0 | H78: 0 | I78: 0 | J78: 0 | K78: 0 | L78: 0 | M78: 0 | N78: 0
B79: 2060 | C79: ='Detailed Projection'!BW66 -> 20105062.03 | D79: 0 | E79: 0 | F79: 0 | G79: 0 | H79: 0 | I79: 0 | J79: 0 | K79: 0 | L79: 0 | M79: 0 | N79: 0
B83: ©2001-2016 University of New Hampshire. All rights reserved.
B84: UNH, Campus Carbon Calculator, and the UNH logo are trademarks of the University of New Hampshire.

Sheet Input_Commuter
B2: On this Worksheet: Estimates of commuter miles traveled for faculty, staff, and students.
B3: MODULE | C3: Input
B4: WORKSHEET | C4: Commuter Traffic
B5: UNIVERSITY | C5: =IF((ISBLANK(Introduction!$G$10)),"Please enter university name on 'Introduction' sheet",Introduction!$G$10) -> Please enter university name on 'Introduction' sheet
C7: STUDENTS | AA7: Summary - Students | AN7: FACULTY | BL7: Summary - Faculty | BY7: STAFF | CW7: Summary - Staff | DJ7: Summary - Faculty and Staff
C8: 1) Trips / Week | F8: 2) Weeks / Year | G8: 3) Trip Distribution (% Trips by Mode) | O8: 4) Trip Distance (Miles per One-Way Trip for Each Mode) | V8: Fuel Efficiencies Used in Calculations | AA8: Summary - Students | AN8: 1) Trips / Week | AQ8: 2) Weeks / Year | AR8: 3) Trip Distribution (% Trips by Mode) | AZ8: 4) Trip Distance (Miles per One-Way Trip for Each Mode) | BG8: Fuel Efficiencies Used in Calculations | BL8: Summary - Faculty | BY8: 1) Trips / Week | CB8: 2) Weeks / Year | CC8: 3) Trip Distribution (% Trips by Mode) | CK8: 4) Trip Distance (Miles per One-Way Trip for Each Mode) | CR8: Fuel Efficiencies Used in Calculations | CW8: Summary - Staff | DJ8: Summary - Faculty and Staff
B9: Fiscal Year | C9: Students Commuters | D9: One-Way Trips / Week | E9: Total Commuter Trips / Week | F9: Weeks / Year | G9: Bike | H9: Walk | I9: Drive Alone | J9: Carpool | K9: Bus | L9: Light Rail | M9: Commuter Rail | N9: Total | O9: Bike | P9: Walk | Q9: Drive Alone | R9: Carpool | S9: Bus | T9: Light Rail | U9: Commuter Rail | V9: Automobile Fuel Efficiency | W9: Bus fuel efficiency | X9: Light rail fuel efficiency | Y9: Commuter rail fuel efficiency - diesel | Z9: Commuter rail fuel efficiency - electric | AA9: Biking | AC9: Walking | AE9: Automobile Commuting | AG9: Bus Commuting | AI9: Light Rail Commuting | AK9: Commuter Rail Commuting | AN9: Faculty Commuters | AO9: One-Way Trips / Week | AP9: Total Commuter Trips / Week | AQ9: Weeks / Year | AR9: Bike | AS9: Walk | AT9: Drive Alone | AU9: Carpool | AV9: Bus | AW9: Light Rail | AX9: Commuter Rail | AY9: Total | AZ9: Bike | BA9: Walk | BB9: Drive Alone | BC9: Carpool | BD9: Bus | BE9: Light Rail | BF9: Commuter Rail | BG9: Automobile Fuel Efficiency | BH9: Bus fuel efficiency | BI9: Light rail fuel efficiency | BJ9: Commuter rail fuel efficiency - diesel | BK9: Commuter rail fuel efficiency - electric | BL9: Biking | BN9: Walking | BP9: Automobile Commuting | BR9: Bus Commuting | BT9: Light Rail Commuting | BV9: Commuter Rail Commuting | BY9: Staff Commuters | BZ9: One-Way Trips / Week | CA9: Total Commuter Trips / Week | CB9: Weeks / Year | CC9: Bike | CD9: Walk | CE9: Drive Alone | CF9: Carpool | CG9: Bus | CH9: Light Rail | CI9: Commuter Rail | CJ9: Total | CK9: Bike | CL9: Walk | CM9: Drive Alone | CN9: Carpool | CO9: Bus | CP9: Light Rail | CQ9: Commuter Rail | CR9: Automobile Fuel Efficiency | CS9: Bus fuel efficiency | CT9: Light rail fuel efficiency | CU9: Commuter rail fuel efficiency - diesel | CV9: Commuter rail fuel efficiency - electric | CW9: Biking | CY9: Walking | DA9: Automobile Commuting | DC9: Bus Commuting | DE9: Light Rail Commuting | DG9: Commuter Rail Commuting | DJ9: Biking | DL9: Walking | DN9: Automobile Commuting | DP9: Bus Commuting | DR9: Light Rail Commuting | DT9: Commuter Rail Commuting
C10: # | D10: # | E10: # | F10: # | G10: % | H10: % | I10: % | J10: % | K10: % | L10: % | M10: % | N10: % | O10: Passenger Miles | P10: Passenger Miles | Q10: Vehicle Miles | R10: Vehicle Miles | S10: Passenger Miles | T10: Passenger Miles | U10: Passenger Miles | V10: MPG | W10: MPG / Passenger | X10: Passenger Miles / kWh | Y10: Passenger Miles / Gallon | Z10: Passenger Miles / kWh | AA10: Total Miles | AB10: Fuel Consumed | AC10: Total Miles | AD10: Fuel Consumed | AE10: Total Miles | AF10: Gallons Gasoline | AG10: Total Miles | AH10: Gallons Diesel | AI10: Total Miles | AJ10: kWh | AK10: Total Miles | AL10: Gallons Diesel | AM10: kWh | AN10: # | AO10: # | AP10: # | AQ10: # | AR10: % | AS10: % | AT10: % | AU10: % | AV10: % | AW10: % | AX10: % | AY10: % | AZ10: Passenger Miles | BA10: Passenger Miles | BB10: Vehicle Miles | BC10: Vehicle Miles | BD10: Passenger Miles | BE10: Passenger Miles | BF10: Passenger Miles | BG10: MPG | BH10: MPG / Passenger | BI10: Passenger Miles / kWh | BJ10: Passenger Miles / Gallon | BK10: Passenger Miles / kWh | BL10: Total Miles | BM10: Fuel Consumed | BN10: Total Miles | BO10: Fuel Consumed | BP10: Total Miles | BQ10: Gallons Gasoline | BR10: Total Miles | BS10: Gallons Diesel | BT10: Total Miles | BU10: kWh | BV10: Total Miles | BW10: Gallons Diesel | BX10: kWh | BY10: # | BZ10: # | CA10: # | CB10: # | CC10: % | CD10: % | CE10: % | CF10: % | CG10: % | CH10: % | CI10: % | CJ10: % | CK10: Passenger Miles | CL10: Passenger Miles | CM10: Vehicle Miles | CN10: Vehicle Miles | CO10: Passenger Miles | CP10: Passenger Miles | CQ10: Passenger Miles | CR10: MPG | CS10: MPG / Passenger | CT10: Passenger Miles / kWh | CU10: Passenger Miles / Gallon | CV10: Passenger Miles / kWh | CW10: Total Miles | CX10: Fuel Consumed | CY10: Total Miles | CZ10: Fuel Consumed | DA10: Total Miles | DB10: Gallons Gasoline | DC10: Total Miles | DD10: Gallons Diesel | DE10: Total Miles | DF10: kWh | DG10: Total Miles | DH10: Gallons Diesel | DI10: kWh | DJ10: Total Miles | DK10: Fuel Consumed | DL10: Total Miles | DM10: Fuel Consumed | DN10: Total Miles | DO10: Gallons Gasoline | DP10: Total Miles | DQ10: Gallons Diesel | DR10: Total Miles | DS10: kWh | DT10: Total Miles | DU10: Gallons Diesel | DV10: kWh
B11: =Input!C11 -> 1990 | E11: =C11*D11 -> 0 | N11: =SUM(G11:M11) -> 0 | V11: 20.92461348 | W11: 37.25643744 | X11: 3.483678683 | Y11: 134.4317686 | Z11: 5.776508972 | AA11: =E11*F11*G11*O11 -> 0 | AB11: =0 -> 0 | AC11: =E11*F11*H11*P11 -> 0 | AD11: =0 -> 0 | AE11: =((E11*F11*I11*Q11)+(E11*F11*J11*R11)/2) -> 0 | AF11: =AE11/V11 -> 0 | AG11: =E11*F11*K11*S11 -> 0 | AH11: =AG11/W11 -> 0 | AI11: =E11*F11*L11*T11 -> 0 | AJ11: =AI11/X11 -> 0 | AK11: =E11*F11*M11*U11 -> 0 | AL11: =AK11/Y11 -> 0 | AM11: =AK11/Z11 -> 0 | AP11: =AN11*AO11 -> 0 | AY11: =SUM(AR11:AX11) -> 0 | BG11: 20.92461348 | BH11: 37.25643744 | BI11: 3.483678683 | BJ11: 134.4317686 | BK11: 5.776508972 | BL11: =AP11*AQ11*AR11*AZ11 -> 0 | BM11: =0 -> 0 | BN11: =AP11*AQ11*AS11*BA11 -> 0 | BO11: =0 -> 0 | BP11: =((AP11*AQ11*AT11*BB11)+(AP11*AQ11*AU11*BC11)/2) -> 0 | BQ11: =BP11/BG11 -> 0 | BR11: =AP11*AQ11*AV11*BD11 -> 0 | BS11: =BR11/BH11 -> 0 | BT11: =AP11*AQ11*AW11*BE11 -> 0 | BU11: =BT11/BI11 -> 0 | BV11: =AP11*AQ11*AX11*BF11 -> 0 | BW11: =BV11/BJ11 -> 0 | BX11: =BV11/BK11 -> 0 | CA11: =BY11*BZ11 -> 0 | CJ11: =SUM(CC11:CI11) -> 0 | CR11: 20.92461348 | CS11: 37.25643744 | CT11: 3.483678683 | CU11: 134.4317686 | CV11: 5.776508972 | CW11: =CA11*CB11*CC11*CK11 -> 0 | CX11: =0 -> 0 | CY11: =CA11*CB11*CD11*CL11 -> 0 | CZ11: =0 -> 0 | DA11: =((CA11*CB11*CE11*CM11)+(CA11*CB11*CF11*CN11)/2) -> 0 | DB11: =DA11/CR11 -> 0 | DC11: =CA11*CB11*CG11*CO11 -> 0 | DD11: =DC11/CS11 -> 0 | DE11: =CA11*CB11*CH11*CP11 -> 0 | DF11: =DE11/CT11 -> 0 | DG11: =CA11*CB11*CI11*CQ11 -> 0 | DH11: =DG11/CU11 -> 0 | DI11: =DG11/CV11 -> 0 | DJ11: =BL11+CW11 -> 0 | DK11: =BM11+CX11 -> 0 | DL11: 0 | DM11: 0 | DN11: 0 | DO11: 0 | DP11: 0 | DQ11: 0 | DR11: 0 | DS11: 0 | DT11: 0 | DU11: 0 | DV11: 0
B12: =Input!C12 -> 1991 | E12: =C12*D12 -> 0 | N12: =SUM(G12:M12) -> 0 | V12: 21.76462651 | W12: 36.81521346 | X12: 3.293583191 | Y12: 135.2112676 | Z12: 5.927360775 | AA12: =E12*F12*G12*O12 -> 0 | AB12: =0 -> 0 | AC12: =E12*F12*H12*P12 -> 0 | AD12: =0 -> 0 | AE12: =((E12*F12*I12*Q12)+(E12*F12*J12*R12)/2) -> 0 | AF12: =AE12/V12 -> 0 | AG12: =E12*F12*K12*S12 -> 0 | AH12: =AG12/W12 -> 0 | AI12: =E12*F12*L12*T12 -> 0 | AJ12: =AI12/X12 -> 0 | AK12: =E12*F12*M12*U12 -> 0 | AL12: =AK12/Y12 -> 0 | AM12: =AK12/Z12 -> 0 | AP12: =AN12*AO12 -> 0 | AY12: =SUM(AR12:AX12) -> 0 | BG12: 21.76462651 | BH12: 36.81521346 | BI12: 3.293583191 | BJ12: 135.2112676 | BK12: 5.927360775 | BL12: =AP12*AQ12*AR12*AZ12 -> 0 | BM12: =0 -> 0 | BN12: =AP12*AQ12*AS12*BA12 -> 0 | BO12: =0 -> 0 | BP12: =((AP12*AQ12*AT12*BB12)+(AP12*AQ12*AU12*BC12)/2) -> 0 | BQ12: =BP12/BG12 -> 0 | BR12: =AP12*AQ12*AV12*BD12 -> 0 | BS12: =BR12/BH12 -> 0 | BT12: =AP12*AQ12*AW12*BE12 -> 0 | BU12: =BT12/BI12 -> 0 | BV12: =AP12*AQ12*AX12*BF12 -> 0 | BW12: =BV12/BJ12 -> 0 | BX12: =BV12/BK12 -> 0 | CA12: =BY12*BZ12 -> 0 | CJ12: =SUM(CC12:CI12) -> 0 | CR12: 21.76462651 | CS12: 36.81521346 | CT12: 3.293583191 | CU12: 135.2112676 | CV12: 5.927360775 | CW12: =CA12*CB12*CC12*CK12 -> 0 | CX12: =0 -> 0 | CY12: =CA12*CB12*CD12*CL12 -> 0 | CZ12: =0 -> 0 | DA12: =((CA12*CB12*CE12*CM12)+(CA12*CB12*CF12*CN12)/2) -> 0 | DB12: =DA12/CR12 -> 0 | DC12: =CA12*CB12*CG12*CO12 -> 0 | DD12: =DC12/CS12 -> 0 | DE12: =CA12*CB12*CH12*CP12 -> 0 | DF12: =DE12/CT12 -> 0 | DG12: =CA12*CB12*CI12*CQ12 -> 0 | DH12: =DG12/CU12 -> 0 | DI12: =DG12/CV12 -> 0 | DJ12: =BL12+CW12 -> 0 | DK12: =BM12+CX12 -> 0 | DL12: =BN12+CY12 -> 0 | DM12: =BO12+CZ12 -> 0 | DN12: =BP12+DA12 -> 0 | DO12: =BQ12+DB12 -> 0 | DP12: =BR12+DC12 -> 0 | DQ12: =BS12+DD12 -> 0 | DR12: =BT12+DE12 -> 0 | DS12: =BU12+DF12 -> 0 | DT12: =BV12+DG12 -> 0 | DU12: =BW12+DH12 -> 0 | DV12: =BX12+DI12 -> 0
B13: =Input!C13 -> 1992 | E13: 0 | N13: 0 | V13: 21.60137675 | W13: 34.34850832 | X13: 3.227507163 | Y13: 133.2095867 | Z13: 6.512455516 | AA13: 0 | AB13: =0 -> 0 | AC13: 0 | AD13: =0 -> 0 | AE13: 0 | AF13: 0 | AG13: 0 | AH13: 0 | AI13: 0 | AJ13: 0 | AK13: 0 | AL13: 0 | AM13: 0 | AP13: 0 | AY13: 0 | BG13: 21.60137675 | BH13: 34.34850832 | BI13: 3.227507163 | BJ13: 133.2095867 | BK13: 6.512455516 | BL13: 0 | BM13: =0 -> 0 | BN13: 0 | BO13: =0 -> 0 | BP13: 0 | BQ13: 0 | BR13: 0 | BS13: 0 | BT13: 0 | BU13: 0 | BV13: 0 | BW13: 0 | BX13: 0 | CA13: 0 | CJ13: 0 | CR13: 21.60137675 | CS13: 34.34850832 | CT13: 3.227507163 | CU13: 133.2095867 | CV13: 6.512455516 | CW13: 0 | CX13: =0 -> 0 | CY13: 0 | CZ13: =0 -> 0 | DA13: 0 | DB13: 0 | DC13: 0 | DD13: 0 | DE13: 0 | DF13: 0 | DG13: 0 | DH13: 0 | DI13: 0 | DJ13: 0 | DK13: 0 | DL13: 0 | DM13: 0 | DN13: 0 | DO13: 0 | DP13: 0 | DQ13: 0 | DR13: 0 | DS13: 0 | DT13: 0 | DU13: 0 | DV13: 0
B14: =Input!C14 -> 1993 | E14: 0 | N14: 0 | V14: 21.12095737 | W14: 35.16691562 | X14: 3.122757848 | Y14: 116.1195328 | Z14: 5.802675585 | AA14: 0 | AB14: =0 -> 0 | AC14: 0 | AD14: =0 -> 0 | AE14: 0 | AF14: 0 | AG14: 0 | AH14: 0 | AI14: 0 | AJ14: 0 | AK14: 0 | AL14: 0 | AM14: 0 | AP14: 0 | AY14: 0 | BG14: 21.12095737 | BH14: 35.16691562 | BI14: 3.122757848 | BJ14: 116.1195328 | BK14: 5.802675585 | BL14: 0 | BM14: =0 -> 0 | BN14: 0 | BO14: =0 -> 0 | BP14: 0 | BQ14: 0 | BR14: 0 | BS14: 0 | BT14: 0 | BU14: 0 | BV14: 0 | BW14: 0 | BX14: 0 | CA14: 0 | CJ14: 0 | CR14: 21.12095737 | CS14: 35.16691562 | CT14: 3.122757848 | CU14: 116.1195328 | CV14: 5.802675585 | CW14: 0 | CX14: =0 -> 0 | CY14: 0 | CZ14: =0 -> 0 | DA14: 0 | DB14: 0 | DC14: 0 | DD14: 0 | DE14: 0 | DF14: 0 | DG14: 0 | DH14: 0 | DI14: 0 | DJ14: 0 | DK14: 0 | DL14: 0 | DM14: 0 | DN14: 0 | DO14: 0 | DP14: 0 | DQ14: 0 | DR14: 0 | DS14: 0 | DT14: 0 | DU14: 0 | DV14: 0
B15: =Input!C15 -> 1994 | E15: 0 | N15: 0 | V15: 21.27562814 | W15: 33.32719834 | X15: 2.930514409 | Y15: 129.1760905 | Z15: 6.427652733 | AA15: 0 | AB15: =0 -> 0 | AC15: 0 | AD15: =0 -> 0 | AE15: 0 | AF15: 0 | AG15: 0 | AH15: 0 | AI15: 0 | AJ15: 0 | AK15: 0 | AL15: 0 | AM15: 0 | AP15: 0 | AY15: 0 | BG15: 21.27562814 | BH15: 33.32719834 | BI15: 2.930514409 | BJ15: 129.1760905 | BK15: 6.427652733 | BL15: 0 | BM15: =0 -> 0 | BN15: 0 | BO15: =0 -> 0 | BP15: 0 | BQ15: 0 | BR15: 0 | BS15: 0 | BT15: 0 | BU15: 0 | BV15: 0 | BW15: 0 | BX15: 0 | CA15: 0 | CJ15: 0 | CR15: 21.27562814 | CS15: 33.32719834 | CT15: 2.930514409 | CU15: 129.1760905 | CV15: 6.427652733 | CW15: 0 | CX15: =0 -> 0 | CY15: 0 | CZ15: =0 -> 0 | DA15: 0 | DB15: 0 | DC15: 0 | DD15: 0 | DE15: 0 | DF15: 0 | DG15: 0 | DH15: 0 | DI15: 0 | DJ15: 0 | DK15: 0 | DL15: 0 | DM15: 0 | DN15: 0 | DO15: 0 | DP15: 0 | DQ15: 0 | DR15: 0 | DS15: 0 | DT15: 0 | DU15: 0 | DV15: 0
B16: =Input!C16 -> 1995 | E16: 0 | N16: 0 | V16: 21.69297396 | W16: 32.57022294 | X16: 2.825426945 | Y16: 130.7243435 | Z16: 6.579409417 | AA16: 0 | AB16: =0 -> 0 | AC16: 0 | AD16: =0 -> 0 | AE16: 0 | AF16: 0 | AG16: 0 | AH16: 0 | AI16: 0 | AJ16: 0 | AK16: 0 | AL16: 0 | AM16: 0 | AP16: 0 | AY16: 0 | BG16: 21.69297396 | BH16: 32.57022294 | BI16: 2.825426945 | BJ16: 130.7243435 | BK16: 6.579409417 | BL16: 0 | BM16: =0 -> 0 | BN16: 0 | BO16: =0 -> 0 | BP16: 0 | BQ16: 0 | BR16: 0 | BS16: 0 | BT16: 0 | BU16: 0 | BV16: 0 | BW16: 0 | BX16: 0 | CA16: 0 | CJ16: 0 | CR16: 21.69297396 | CS16: 32.57022294 | CT16: 2.825426945 | CU16: 130.7243435 | CV16: 6.579409417 | CW16: 0 | CX16: =0 -> 0 | CY16: 0 | CZ16: =0 -> 0 | DA16: 0 | DB16: 0 | DC16: 0 | DD16: 0 | DE16: 0 | DF16: 0 | DG16: 0 | DH16: 0 | DI16: 0 | DJ16: 0 | DK16: 0 | DL16: 0 | DM16: 0 | DN16: 0 | DO16: 0 | DP16: 0 | DQ16: 0 | DR16: 0 | DS16: 0 | DT16: 0 | DU16: 0 | DV16: 0
B17: =Input!C17 -> 1996 | E17: 0 | N17: 0 | V17: 21.78355296 | W17: 32.25170712 | X17: 2.776612682 | Y17: 134.9373061 | Z17: 6.654183267 | AA17: 0 | AB17: =0 -> 0 | AC17: 0 | AD17: =0 -> 0 | AE17: 0 | AF17: 0 | AG17: 0 | AH17: 0 | AI17: 0 | AJ17: 0 | AK17: 0 | AL17: 0 | AM17: 0 | AP17: 0 | AY17: 0 | BG17: 21.78355296 | BH17: 32.25170712 | BI17: 2.776612682 | BJ17: 134.9373061 | BK17: 6.654183267 | BL17: 0 | BM17: =0 -> 0 | BN17: 0 | BO17: =0 -> 0 | BP17: 0 | BQ17: 0 | BR17: 0 | BS17: 0 | BT17: 0 | BU17: 0 | BV17: 0 | BW17: 0 | BX17: 0 | CA17: 0 | CJ17: 0 | CR17: 21.78355296 | CS17: 32.25170712 | CT17: 2.776612682 | CU17: 134.9373061 | CV17: 6.654183267 | CW17: 0 | CX17: =0 -> 0 | CY17: 0 | CZ17: =0 -> 0 | DA17: 0 | DB17: 0 | DC17: 0 | DD17: 0 | DE17: 0 | DF17: 0 | DG17: 0 | DH17: 0 | DI17: 0 | DJ17: 0 | DK17: 0 | DL17: 0 | DM17: 0 | DN17: 0 | DO17: 0 | DP17: 0 | DQ17: 0 | DR17: 0 | DS17: 0 | DT17: 0 | DU17: 0 | DV17: 0
B18: =Input!C18 -> 1997 | E18: 0 | N18: 0 | V18: 22.03327038 | W18: 33.37826643 | X18: 2.785121681 | Y18: 127.1936071 | Z18: 6.329133858 | AA18: 0 | AB18: =0 -> 0 | AC18: 0 | AD18: =0 -> 0 | AE18: 0 | AF18: 0 | AG18: 0 | AH18: 0 | AI18: 0 | AJ18: 0 | AK18: 0 | AL18: 0 | AM18: 0 | AP18: 0 | AY18: 0 | BG18: 22.03327038 | BH18: 33.37826643 | BI18: 2.785121681 | BJ18: 127.1936071 | BK18: 6.329133858 | BL18: 0 | BM18: =0 -> 0 | BN18: 0 | BO18: =0 -> 0 | BP18: 0 | BQ18: 0 | BR18: 0 | BS18: 0 | BT18: 0 | BU18: 0 | BV18: 0 | BW18: 0 | BX18: 0 | CA18: 0 | CJ18: 0 | CR18: 22.03327038 | CS18: 33.37826643 | CT18: 2.785121681 | CU18: 127.1936071 | CV18: 6.329133858 | CW18: 0 | CX18: =0 -> 0 | CY18: 0 | CZ18: =0 -> 0 | DA18: 0 | DB18: 0 | DC18: 0 | DD18: 0 | DE18: 0 | DF18: 0 | DG18: 0 | DH18: 0 | DI18: 0 | DJ18: 0 | DK18: 0 | DL18: 0 | DM18: 0 | DN18: 0 | DO18: 0 | DP18: 0 | DQ18: 0 | DR18: 0 | DS18: 0 | DT18: 0 | DU18: 0 | DV18: 0
B19: =Input!C19 -> 1998 | E19: 0 | N19: 0 | V19: 22.14525422 | W19: 33.59502302 | X19: 2.927908247 | Y19: 125.7803468 | Z19: 6.700538876 | AA19: 0 | AB19: =0 -> 0 | AC19: 0 | AD19: =0 -> 0 | AE19: 0 | AF19: 0 | AG19: 0 | AH19: 0 | AI19: 0 | AJ19: 0 | AK19: 0 | AL19: 0 | AM19: 0 | AP19: 0 | AY19: 0 | BG19: 22.14525422 | BH19: 33.59502302 | BI19: 2.927908247 | BJ19: 125.7803468 | BK19: 6.700538876 | BL19: 0 | BM19: =0 -> 0 | BN19: 0 | BO19: =0 -> 0 | BP19: 0 | BQ19: 0 | BR19: 0 | BS19: 0 | BT19: 0 | BU19: 0 | BV19: 0 | BW19: 0 | BX19: 0 | CA19: 0 | CJ19: 0 | CR19: 22.14525422 | CS19: 33.59502302 | CT19: 2.927908247 | CU19: 125.7803468 | CV19: 6.700538876 | CW19: 0 | CX19: =0 -> 0 | CY19: 0 | CZ19: =0 -> 0 | DA19: 0 | DB19: 0 | DC19: 0 | DD19: 0 | DE19: 0 | DF19: 0 | DG19: 0 | DH19: 0 | DI19: 0 | DJ19: 0 | DK19: 0 | DL19: 0 | DM19: 0 | DN19: 0 | DO19: 0 | DP19: 0 | DQ19: 0 | DR19: 0 | DS19: 0 | DT19: 0 | DU19: 0 | DV19: 0
B20: =Input!C20 -> 1999 | E20: 0 | N20: 0 | V20: 21.97165263 | W20: 33.91345028 | X20: 2.937911076 | Y20: 120.0739675 | Z20: 6.63086233 | AA20: 0 | AB20: =0 -> 0 | AC20: 0 | AD20: =0 -> 0 | AE20: 0 | AF20: 0 | AG20: 0 | AH20: 0 | AI20: 0 | AJ20: 0 | AK20: 0 | AL20: 0 | AM20: 0 | AP20: 0 | AY20: 0 | BG20: 21.97165263 | BH20: 33.91345028 | BI20: 2.937911076 | BJ20: 120.0739675 | BK20: 6.63086233 | BL20: 0 | BM20: =0 -> 0 | BN20: 0 | BO20: =0 -> 0 | BP20: 0 | BQ20: 0 | BR20: 0 | BS20: 0 | BT20: 0 | BU20: 0 | BV20: 0 | BW20: 0 | BX20: 0 | CA20: 0 | CJ20: 0 | CR20: 21.97165263 | CS20: 33.91345028 | CT20: 2.937911076 | CU20: 120.0739675 | CV20: 6.63086233 | CW20: 0 | CX20: =0 -> 0 | CY20: 0 | CZ20: =0 -> 0 | DA20: 0 | DB20: 0 | DC20: 0 | DD20: 0 | DE20: 0 | DF20: 0 | DG20: 0 | DH20: 0 | DI20: 0 | DJ20: 0 | DK20: 0 | DL20: 0 | DM20: 0 | DN20: 0 | DO20: 0 | DP20: 0 | DQ20: 0 | DR20: 0 | DS20: 0 | DT20: 0 | DU20: 0 | DV20: 0
B21: =Input!C21 -> 2000 | E21: 0 | N21: 0 | V21: 22.46478155 | W21: 32.50418059 | X21: 2.660262646 | Y21: 132.7628569 | Z21: 6.862773723 | AA21: 0 | AB21: =0 -> 0 | AC21: 0 | AD21: =0 -> 0 | AE21: 0 | AF21: 0 | AG21: 0 | AH21: 0 | AI21: 0 | AJ21: 0 | AK21: 0 | AL21: 0 | AM21: 0 | AP21: 0 | AY21: 0 | BG21: 22.46478155 | BH21: 32.50418059 | BI21: 2.660262646 | BJ21: 132.7628569 | BK21: 6.862773723 | BL21: 0 | BM21: =0 -> 0 | BN21: 0 | BO21: =0 -> 0 | BP21: 0 | BQ21: 0 | BR21: 0 | BS21: 0 | BT21: 0 | BU21: 0 | BV21: 0 | BW21: 0 | BX21: 0 | CA21: 0 | CJ21: 0 | CR21: 22.46478155 | CS21: 32.50418059 | CT21: 2.660262646 | CU21: 132.7628569 | CV21: 6.862773723 | CW21: 0 | CX21: =0 -> 0 | CY21: 0 | CZ21: =0 -> 0 | DA21: 0 | DB21: 0 | DC21: 0 | DD21: 0 | DE21: 0 | DF21: 0 | DG21: 0 | DH21: 0 | DI21: 0 | DJ21: 0 | DK21: 0 | DL21: 0 | DM21: 0 | DN21: 0 | DO21: 0 | DP21: 0 | DQ21: 0 | DR21: 0 | DS21: 0 | DT21: 0 | DU21: 0 | DV21: 0
B22: =Input!C22 -> 2001 | E22: 0 | N22: 0 | V22: 22.73780493 | W22: 33.07125779 | X22: 2.501771793 | Y22: 132.2364412 | Z22: 7.051698671 | AA22: 0 | AB22: =0 -> 0 | AC22: 0 | AD22: =0 -> 0 | AE22: 0 | AF22: 0 | AG22: 0 | AH22: 0 | AI22: 0 | AJ22: 0 | AK22: 0 | AL22: 0 | AM22: 0 | AP22: 0 | AY22: 0 | BG22: 22.73780493 | BH22: 33.07125779 | BI22: 2.501771793 | BJ22: 132.2364412 | BK22: 7.051698671 | BL22: 0 | BM22: =0 -> 0 | BN22: 0 | BO22: =0 -> 0 | BP22: 0 | BQ22: 0 | BR22: 0 | BS22: 0 | BT22: 0 | BU22: 0 | BV22: 0 | BW22: 0 | BX22: 0 | CA22: 0 | CJ22: 0 | CR22: 22.73780493 | CS22: 33.07125779 | CT22: 2.501771793 | CU22: 132.2364412 | CV22: 7.051698671 | CW22: 0 | CX22: =0 -> 0 | CY22: 0 | CZ22: =0 -> 0 | DA22: 0 | DB22: 0 | DC22: 0 | DD22: 0 | DE22: 0 | DF22: 0 | DG22: 0 | DH22: 0 | DI22: 0 | DJ22: 0 | DK22: 0 | DL22: 0 | DM22: 0 | DN22: 0 | DO22: 0 | DP22: 0 | DQ22: 0 | DR22: 0 | DS22: 0 | DT22: 0 | DU22: 0 | DV22: 0
B23: =Input!C23 -> 2002 | E23: 0 | N23: 0 | V23: 22.59562355 | W23: 32.79685221 | X23: 2.487002146 | Y23: 130.4652216 | Z23: 7.124437781 | AA23: 0 | AB23: =0 -> 0 | AC23: 0 | AD23: =0 -> 0 | AE23: 0 | AF23: 0 | AG23: 0 | AH23: 0 | AI23: 0 | AJ23: 0 | AK23: 0 | AL23: 0 | AM23: 0 | AP23: 0 | AY23: 0 | BG23: 22.59562355 | BH23: 32.79685221 | BI23: 2.487002146 | BJ23: 130.4652216 | BK23: 7.124437781 | BL23: 0 | BM23: =0 -> 0 | BN23: 0 | BO23: =0 -> 0 | BP23: 0 | BQ23: 0 | BR23: 0 | BS23: 0 | BT23: 0 | BU23: 0 | BV23: 0 | BW23: 0 | BX23: 0 | CA23: 0 | CJ23: 0 | CR23: 22.59562355 | CS23: 32.79685221 | CT23: 2.487002146 | CU23: 130.4652216 | CV23: 7.124437781 | CW23: 0 | CX23: =0 -> 0 | CY23: 0 | CZ23: =0 -> 0 | DA23: 0 | DB23: 0 | DC23: 0 | DD23: 0 | DE23: 0 | DF23: 0 | DG23: 0 | DH23: 0 | DI23: 0 | DJ23: 0 | DK23: 0 | DL23: 0 | DM23: 0 | DN23: 0 | DO23: 0 | DP23: 0 | DQ23: 0 | DR23: 0 | DS23: 0 | DT23: 0 | DU23: 0 | DV23: 0
B24: =Input!C24 -> 2003 | E24: 0 | N24: 0 | V24: 22.815093 | W24: 31.86516792 | X24: 2.595698405 | Y24: 132.2788664 | Z24: 6.911785973 | AA24: 0 | AB24: =0 -> 0 | AC24: 0 | AD24: =0 -> 0 | AE24: 0 | AF24: 0 | AG24: 0 | AH24: 0 | AI24: 0 | AJ24: 0 | AK24: 0 | AL24: 0 | AM24: 0 | AP24: 0 | AY24: 0 | BG24: 22.815093 | BH24: 31.86516792 | BI24: 2.595698405 | BJ24: 132.2788664 | BK24: 6.911785973 | BL24: 0 | BM24: =0 -> 0 | BN24: 0 | BO24: =0 -> 0 | BP24: 0 | BQ24: 0 | BR24: 0 | BS24: 0 | BT24: 0 | BU24: 0 | BV24: 0 | BW24: 0 | BX24: 0 | CA24: 0 | CJ24: 0 | CR24: 22.815093 | CS24: 31.86516792 | CT24: 2.595698405 | CU24: 132.2788664 | CV24: 6.911785973 | CW24: 0 | CX24: =0 -> 0 | CY24: 0 | CZ24: =0 -> 0 | DA24: 0 | DB24: 0 | DC24: 0 | DD24: 0 | DE24: 0 | DF24: 0 | DG24: 0 | DH24: 0 | DI24: 0 | DJ24: 0 | DK24: 0 | DL24: 0 | DM24: 0 | DN24: 0 | DO24: 0 | DP24: 0 | DQ24: 0 | DR24: 0 | DS24: 0 | DT24: 0 | DU24: 0 | DV24: 0
B25: =Input!C25 -> 2004 | E25: 0 | N25: 0 | V25: 23.22098642 | W25: 30.62680126 | X25: 2.485485013 | Y25: 134.9879859 | Z25: 6.707384403 | AA25: 0 | AB25: =0 -> 0 | AC25: 0 | AD25: =0 -> 0 | AE25: 0 | AF25: 0 | AG25: 0 | AH25: 0 | AI25: 0 | AJ25: 0 | AK25: 0 | AL25: 0 | AM25: 0 | AP25: 0 | AY25: 0 | BG25: 23.22098642 | BH25: 30.62680126 | BI25: 2.485485013 | BJ25: 134.9879859 | BK25: 6.707384403 | BL25: 0 | BM25: =0 -> 0 | BN25: 0 | BO25: =0 -> 0 | BP25: 0 | BQ25: 0 | BR25: 0 | BS25: 0 | BT25: 0 | BU25: 0 | BV25: 0 | BW25: 0 | BX25: 0 | CA25: 0 | CJ25: 0 | CR25: 23.22098642 | CS25: 30.62680126 | CT25: 2.485485013 | CU25: 134.9879859 | CV25: 6.707384403 | CW25: 0 | CX25: =0 -> 0 | CY25: 0 | CZ25: =0 -> 0 | DA25: 0 | DB25: 0 | DC25: 0 | DD25: 0 | DE25: 0 | DF25: 0 | DG25: 0 | DH25: 0 | DI25: 0 | DJ25: 0 | DK25: 0 | DL25: 0 | DM25: 0 | DN25: 0 | DO25: 0 | DP25: 0 | DQ25: 0 | DR25: 0 | DS25: 0 | DT25: 0 | DU25: 0 | DV25: 0
B26: =Input!C26 -> 2005 | E26: 0 | N26: 0 | V26: 22.93683805 | W26: 31.68905879 | X26: 2.483752017 | Y26: 123.4846312 | Z26: 6.383423181 | AA26: 0 | AB26: =0 -> 0 | AC26: 0 | AD26: =0 -> 0 | AE26: 0 | AF26: 0 | AG26: 0 | AH26: 0 | AI26: 0 | AJ26: 0 | AK26: 0 | AL26: 0 | AM26: 0 | AP26: 0 | AY26: 0 | BG26: 22.93683805 | BH26: 31.68905879 | BI26: 2.483752017 | BJ26: 123.4846312 | BK26: 6.383423181 | BL26: 0 | BM26: =0 -> 0 | BN26: 0 | BO26: =0 -> 0 | BP26: 0 | BQ26: 0 | BR26: 0 | BS26: 0 | BT26: 0 | BU26: 0 | BV26: 0 | BW26: 0 | BX26: 0 | CA26: 0 | CJ26: 0 | CR26: 22.93683805 | CS26: 31.68905879 | CT26: 2.483752017 | CU26: 123.4846312 | CV26: 6.383423181 | CW26: 0 | CX26: =0 -> 0 | CY26: 0 | CZ26: =0 -> 0 | DA26: 0 | DB26: 0 | DC26: 0 | DD26: 0 | DE26: 0 | DF26: 0 | DG26: 0 | DH26: 0 | DI26: 0 | DJ26: 0 | DK26: 0 | DL26: 0 | DM26: 0 | DN26: 0 | DO26: 0 | DP26: 0 | DQ26: 0 | DR26: 0 | DS26: 0 | DT26: 0 | DU26: 0 | DV26: 0
B27: =Input!C27 -> 2006 | E27: 0 | N27: 0 | V27: 23.4232268 | W27: 30.88782124 | X27: 2.536956021 | Y27: 131.8193384 | Z27: 7.01014885 | AA27: 0 | AB27: =0 -> 0 | AC27: 0 | AD27: =0 -> 0 | AE27: 0 | AF27: 0 | AG27: 0 | AH27: 0 | AI27: 0 | AJ27: 0 | AK27: 0 | AL27: 0 | AM27: 0 | AP27: 0 | AY27: 0 | BG27: 23.4232268 | BH27: 30.88782124 | BI27: 2.536956021 | BJ27: 131.8193384 | BK27: 7.01014885 | BL27: 0 | BM27: =0 -> 0 | BN27: 0 | BO27: =0 -> 0 | BP27: 0 | BQ27: 0 | BR27: 0 | BS27: 0 | BT27: 0 | BU27: 0 | BV27: 0 | BW27: 0 | BX27: 0 | CA27: 0 | CJ27: 0 | CR27: 23.4232268 | CS27: 30.88782124 | CT27: 2.536956021 | CU27: 131.8193384 | CV27: 7.01014885 | CW27: 0 | CX27: =0 -> 0 | CY27: 0 | CZ27: =0 -> 0 | DA27: 0 | DB27: 0 | DC27: 0 | DD27: 0 | DE27: 0 | DF27: 0 | DG27: 0 | DH27: 0 | DI27: 0 | DJ27: 0 | DK27: 0 | DL27: 0 | DM27: 0 | DN27: 0 | DO27: 0 | DP27: 0 | DQ27: 0 | DR27: 0 | DS27: 0 | DT27: 0 | DU27: 0 | DV27: 0
B28: =Input!C28 -> 2007 | E28: 0 | N28: 0 | V28: 24.12665033 | W28: 31.76012373 | X28: 2.575582686 | Y28: 138.2032218 | Z28: 6.32614861 | AA28: 0 | AB28: =0 -> 0 | AC28: 0 | AD28: =0 -> 0 | AE28: 0 | AF28: 0 | AG28: 0 | AH28: 0 | AI28: 0 | AJ28: 0 | AK28: 0 | AL28: 0 | AM28: 0 | AP28: 0 | AY28: 0 | BG28: 24.12665033 | BH28: 31.76012373 | BI28: 2.575582686 | BJ28: 138.2032218 | BK28: 6.32614861 | BL28: 0 | BM28: =0 -> 0 | BN28: 0 | BO28: =0 -> 0 | BP28: 0 | BQ28: 0 | BR28: 0 | BS28: 0 | BT28: 0 | BU28: 0 | BV28: 0 | BW28: 0 | BX28: 0 | CA28: 0 | CJ28: 0 | CR28: 24.12665033 | CS28: 31.76012373 | CT28: 2.575582686 | CU28: 138.2032218 | CV28: 6.32614861 | CW28: 0 | CX28: =0 -> 0 | CY28: 0 | CZ28: =0 -> 0 | DA28: 0 | DB28: 0 | DC28: 0 | DD28: 0 | DE28: 0 | DF28: 0 | DG28: 0 | DH28: 0 | DI28: 0 | DJ28: 0 | DK28: 0 | DL28: 0 | DM28: 0 | DN28: 0 | DO28: 0 | DP28: 0 | DQ28: 0 | DR28: 0 | DS28: 0 | DT28: 0 | DU28: 0 | DV28: 0
B29: =Input!C29 -> 2008 | E29: 0 | N29: 0 | V29: 24.25558847 | W29: 32.35577301 | X29: 2.562459407 | Y29: 132.3233533 | Z29: 6.431315483 | AA29: 0 | AB29: =0 -> 0 | AC29: 0 | AD29: =0 -> 0 | AE29: 0 | AF29: 0 | AG29: 0 | AH29: 0 | AI29: 0 | AJ29: 0 | AK29: 0 | AL29: 0 | AM29: 0 | AP29: 0 | AY29: 0 | BG29: 24.25558847 | BH29: 32.35577301 | BI29: 2.562459407 | BJ29: 132.3233533 | BK29: 6.431315483 | BL29: 0 | BM29: =0 -> 0 | BN29: 0 | BO29: =0 -> 0 | BP29: 0 | BQ29: 0 | BR29: 0 | BS29: 0 | BT29: 0 | BU29: 0 | BV29: 0 | BW29: 0 | BX29: 0 | CA29: 0 | CJ29: 0 | CR29: 24.25558847 | CS29: 32.35577301 | CT29: 2.562459407 | CU29: 132.3233533 | CV29: 6.431315483 | CW29: 0 | CX29: =0 -> 0 | CY29: 0 | CZ29: =0 -> 0 | DA29: 0 | DB29: 0 | DC29: 0 | DD29: 0 | DE29: 0 | DF29: 0 | DG29: 0 | DH29: 0 | DI29: 0 | DJ29: 0 | DK29: 0 | DL29: 0 | DM29: 0 | DN29: 0 | DO29: 0 | DP29: 0 | DQ29: 0 | DR29: 0 | DS29: 0 | DT29: 0 | DU29: 0 | DV29: 0
B30: =Input!C30 -> 2009 | E30: 0 | N30: 0 | V30: 24.17477492 | W30: 31.93189992 | X30: 2.711721453 | Y30: 118.2315789 | Z30: 6.31011236 | AA30: 0 | AB30: =0 -> 0 | AC30: 0 | AD30: =0 -> 0 | AE30: 0 | AF30: 0 | AG30: 0 | AH30: 0 | AI30: 0 | AJ30: 0 | AK30: 0 | AL30: 0 | AM30: 0 | AP30: 0 | AY30: 0 | BG30: 24.17477492 | BH30: 31.93189992 | BI30: 2.711721453 | BJ30: 118.2315789 | BK30: 6.31011236 | BL30: 0 | BM30: =0 -> 0 | BN30: 0 | BO30: =0 -> 0 | BP30: 0 | BQ30: 0 | BR30: 0 | BS30: 0 | BT30: 0 | BU30: 0 | BV30: 0 | BW30: 0 | BX30: 0 | CA30: 0 | CJ30: 0 | CR30: 24.17477492 | CS30: 31.93189992 | CT30: 2.711721453 | CU30: 118.2315789 | CV30: 6.31011236 | CW30: 0 | CX30: =0 -> 0 | CY30: 0 | CZ30: =0 -> 0 | DA30: 0 | DB30: 0 | DC30: 0 | DD30: 0 | DE30: 0 | DF30: 0 | DG30: 0 | DH30: 0 | DI30: 0 | DJ30: 0 | DK30: 0 | DL30: 0 | DM30: 0 | DN30: 0 | DO30: 0 | DP30: 0 | DQ30: 0 | DR30: 0 | DS30: 0 | DT30: 0 | DU30: 0 | DV30: 0
B31: =Input!C31 -> 2010 | E31: 0 | N31: 0 | V31: 24.17016964 | W31: 31.93189992 | X31: 2.659748289 | Y31: 116.6738197 | Z31: 6.051196439 | AA31: 0 | AB31: =0 -> 0 | AC31: 0 | AD31: =0 -> 0 | AE31: 0 | AF31: 0 | AG31: 0 | AH31: 0 | AI31: 0 | AJ31: 0 | AK31: 0 | AL31: 0 | AM31: 0 | AP31: 0 | AY31: 0 | BG31: 24.17016964 | BH31: 31.93189992 | BI31: 2.659748289 | BJ31: 116.6738197 | BK31: 6.051196439 | BL31: 0 | BM31: =0 -> 0 | BN31: 0 | BO31: =0 -> 0 | BP31: 0 | BQ31: 0 | BR31: 0 | BS31: 0 | BT31: 0 | BU31: 0 | BV31: 0 | BW31: 0 | BX31: 0 | CA31: 0 | CJ31: 0 | CR31: 24.17016964 | CS31: 31.93189992 | CT31: 2.659748289 | CU31: 116.6738197 | CV31: 6.051196439 | CW31: 0 | CX31: =0 -> 0 | CY31: 0 | CZ31: =0 -> 0 | DA31: 0 | DB31: 0 | DC31: 0 | DD31: 0 | DE31: 0 | DF31: 0 | DG31: 0 | DH31: 0 | DI31: 0 | DJ31: 0 | DK31: 0 | DL31: 0 | DM31: 0 | DN31: 0 | DO31: 0 | DP31: 0 | DQ31: 0 | DR31: 0 | DS31: 0 | DT31: 0 | DU31: 0 | DV31: 0
B32: =Input!C32 -> 2011 | E32: 0 | N32: 0 | V32: 24.17016964 | W32: 31.93189992 | X32: 2.659748289 | Y32: 116.6738197 | Z32: 6.051196439 | AA32: 0 | AB32: =0 -> 0 | AC32: 0 | AD32: =0 -> 0 | AE32: 0 | AF32: 0 | AG32: 0 | AH32: 0 | AI32: 0 | AJ32: 0 | AK32: 0 | AL32: 0 | AM32: 0 | AP32: 0 | AY32: 0 | BG32: 24.17016964 | BH32: 31.93189992 | BI32: 2.659748289 | BJ32: 116.6738197 | BK32: 6.051196439 | BL32: 0 | BM32: =0 -> 0 | BN32: 0 | BO32: =0 -> 0 | BP32: 0 | BQ32: 0 | BR32: 0 | BS32: 0 | BT32: 0 | BU32: 0 | BV32: 0 | BW32: 0 | BX32: 0 | CA32: 0 | CJ32: 0 | CR32: 24.17016964 | CS32: 31.93189992 | CT32: 2.659748289 | CU32: 116.6738197 | CV32: 6.051196439 | CW32: 0 | CX32: =0 -> 0 | CY32: 0 | CZ32: =0 -> 0 | DA32: 0 | DB32: 0 | DC32: 0 | DD32: 0 | DE32: 0 | DF32: 0 | DG32: 0 | DH32: 0 | DI32: 0 | DJ32: 0 | DK32: 0 | DL32: 0 | DM32: 0 | DN32: 0 | DO32: 0 | DP32: 0 | DQ32: 0 | DR32: 0 | DS32: 0 | DT32: 0 | DU32: 0 | DV32: 0
B33: =Input!C33 -> 2012 | E33: 0 | N33: 0 | V33: 24.1968469 | W33: 31.93189992 | X33: 2.659748289 | Y33: 116.6738197 | Z33: 6.051196439 | AA33: 0 | AB33: =0 -> 0 | AC33: 0 | AD33: =0 -> 0 | AE33: 0 | AF33: 0 | AG33: 0 | AH33: 0 | AI33: 0 | AJ33: 0 | AK33: 0 | AL33: 0 | AM33: 0 | AP33: 0 | AY33: 0 | BG33: 24.1968469 | BH33: 31.93189992 | BI33: 2.659748289 | BJ33: 116.6738197 | BK33: 6.051196439 | BL33: 0 | BM33: =0 -> 0 | BN33: 0 | BO33: =0 -> 0 | BP33: 0 | BQ33: 0 | BR33: 0 | BS33: 0 | BT33: 0 | BU33: 0 | BV33: 0 | BW33: 0 | BX33: 0 | CA33: 0 | CJ33: 0 | CR33: 24.1968469 | CS33: 31.93189992 | CT33: 2.659748289 | CU33: 116.6738197 | CV33: 6.051196439 | CW33: 0 | CX33: =0 -> 0 | CY33: 0 | CZ33: =0 -> 0 | DA33: 0 | DB33: 0 | DC33: 0 | DD33: 0 | DE33: 0 | DF33: 0 | DG33: 0 | DH33: 0 | DI33: 0 | DJ33: 0 | DK33: 0 | DL33: 0 | DM33: 0 | DN33: 0 | DO33: 0 | DP33: 0 | DQ33: 0 | DR33: 0 | DS33: 0 | DT33: 0 | DU33: 0 | DV33: 0
B34: =Input!C34 -> 2013 | E34: 0 | N34: 0 | V34: 24.1968469 | W34: 31.93189992 | X34: 2.659748289 | Y34: 116.6738197 | Z34: 6.051196439 | AA34: 0 | AB34: =0 -> 0 | AC34: 0 | AD34: =0 -> 0 | AE34: 0 | AF34: 0 | AG34: 0 | AH34: 0 | AI34: 0 | AJ34: 0 | AK34: 0 | AL34: 0 | AM34: 0 | AP34: 0 | AY34: 0 | BG34: 24.1968469 | BH34: 31.93189992 | BI34: 2.659748289 | BJ34: 116.6738197 | BK34: 6.051196439 | BL34: 0 | BM34: =0 -> 0 | BN34: 0 | BO34: =0 -> 0 | BP34: 0 | BQ34: 0 | BR34: 0 | BS34: 0 | BT34: 0 | BU34: 0 | BV34: 0 | BW34: 0 | BX34: 0 | CA34: 0 | CJ34: 0 | CR34: 24.1968469 | CS34: 31.93189992 | CT34: 2.659748289 | CU34: 116.6738197 | CV34: 6.051196439 | CW34: 0 | CX34: =0 -> 0 | CY34: 0 | CZ34: =0 -> 0 | DA34: 0 | DB34: 0 | DC34: 0 | DD34: 0 | DE34: 0 | DF34: 0 | DG34: 0 | DH34: 0 | DI34: 0 | DJ34: 0 | DK34: 0 | DL34: 0 | DM34: 0 | DN34: 0 | DO34: 0 | DP34: 0 | DQ34: 0 | DR34: 0 | DS34: 0 | DT34: 0 | DU34: 0 | DV34: 0
B35: =Input!C35 -> 2014 | E35: 0 | N35: 0 | V35: 24.1968469 | W35: 31.93189992 | X35: 2.659748289 | Y35: 116.6738197 | Z35: 6.051196439 | AA35: 0 | AB35: =0 -> 0 | AC35: 0 | AD35: =0 -> 0 | AE35: 0 | AF35: 0 | AG35: 0 | AH35: 0 | AI35: 0 | AJ35: 0 | AK35: 0 | AL35: 0 | AM35: 0 | AP35: 0 | AY35: 0 | BG35: 24.1968469 | BH35: 31.93189992 | BI35: 2.659748289 | BJ35: 116.6738197 | BK35: 6.051196439 | BL35: 0 | BM35: =0 -> 0 | BN35: 0 | BO35: =0 -> 0 | BP35: 0 | BQ35: 0 | BR35: 0 | BS35: 0 | BT35: 0 | BU35: 0 | BV35: 0 | BW35: 0 | BX35: 0 | CA35: 0 | CJ35: 0 | CR35: 24.1968469 | CS35: 31.93189992 | CT35: 2.659748289 | CU35: 116.6738197 | CV35: 6.051196439 | CW35: 0 | CX35: =0 -> 0 | CY35: 0 | CZ35: =0 -> 0 | DA35: 0 | DB35: 0 | DC35: 0 | DD35: 0 | DE35: 0 | DF35: 0 | DG35: 0 | DH35: 0 | DI35: 0 | DJ35: 0 | DK35: 0 | DL35: 0 | DM35: 0 | DN35: 0 | DO35: 0 | DP35: 0 | DQ35: 0 | DR35: 0 | DS35: 0 | DT35: 0 | DU35: 0 | DV35: 0
B36: =Input!C36 -> 2015 | E36: 0 | N36: 0 | V36: 24.1968469 | W36: 31.93189992 | X36: 2.659748289 | Y36: 116.6738197 | Z36: 6.051196439 | AA36: 0 | AB36: =0 -> 0 | AC36: 0 | AD36: =0 -> 0 | AE36: 0 | AF36: 0 | AG36: 0 | AH36: 0 | AI36: 0 | AJ36: 0 | AK36: 0 | AL36: 0 | AM36: 0 | AP36: 0 | AY36: 0 | BG36: 24.1968469 | BH36: 31.93189992 | BI36: 2.659748289 | BJ36: 116.6738197 | BK36: 6.051196439 | BL36: 0 | BM36: =0 -> 0 | BN36: 0 | BO36: =0 -> 0 | BP36: 0 | BQ36: 0 | BR36: 0 | BS36: 0 | BT36: 0 | BU36: 0 | BV36: 0 | BW36: 0 | BX36: 0 | CA36: 0 | CJ36: 0 | CR36: 24.1968469 | CS36: 31.93189992 | CT36: 2.659748289 | CU36: 116.6738197 | CV36: 6.051196439 | CW36: 0 | CX36: =0 -> 0 | CY36: 0 | CZ36: =0 -> 0 | DA36: 0 | DB36: 0 | DC36: 0 | DD36: 0 | DE36: 0 | DF36: 0 | DG36: 0 | DH36: 0 | DI36: 0 | DJ36: 0 | DK36: 0 | DL36: 0 | DM36: 0 | DN36: 0 | DO36: 0 | DP36: 0 | DQ36: 0 | DR36: 0 | DS36: 0 | DT36: 0 | DU36: 0 | DV36: 0
B37: =Input!C37 -> 2016 | E37: 0 | N37: 0 | V37: 24.1968469 | W37: 31.93189992 | X37: 2.659748289 | Y37: 116.6738197 | Z37: 6.051196439 | AA37: 0 | AB37: =0 -> 0 | AC37: 0 | AD37: =0 -> 0 | AE37: 0 | AF37: 0 | AG37: 0 | AH37: 0 | AI37: 0 | AJ37: 0 | AK37: 0 | AL37: 0 | AM37: 0 | AP37: 0 | AY37: 0 | BG37: 24.1968469 | BH37: 31.93189992 | BI37: 2.659748289 | BJ37: 116.6738197 | BK37: 6.051196439 | BL37: 0 | BM37: =0 -> 0 | BN37: 0 | BO37: =0 -> 0 | BP37: 0 | BQ37: 0 | BR37: 0 | BS37: 0 | BT37: 0 | BU37: 0 | BV37: 0 | BW37: 0 | BX37: 0 | CA37: 0 | CJ37: 0 | CR37: 24.1968469 | CS37: 31.93189992 | CT37: 2.659748289 | CU37: 116.6738197 | CV37: 6.051196439 | CW37: 0 | CX37: =0 -> 0 | CY37: 0 | CZ37: =0 -> 0 | DA37: 0 | DB37: 0 | DC37: 0 | DD37: 0 | DE37: 0 | DF37: 0 | DG37: 0 | DH37: 0 | DI37: 0 | DJ37: 0 | DK37: 0 | DL37: 0 | DM37: 0 | DN37: 0 | DO37: 0 | DP37: 0 | DQ37: 0 | DR37: 0 | DS37: 0 | DT37: 0 | DU37: 0 | DV37: 0
B38: ='Linear Projection'!B11 -> 2017 | E38: 0 | N38: 0 | V38: 24.1968469 | W38: 31.93189992 | X38: 2.659748289 | Y38: 116.6738197 | Z38: 6.051196439 | AA38: 0 | AB38: =0 -> 0 | AC38: 0 | AD38: =0 -> 0 | AE38: 0 | AF38: 0 | AG38: 0 | AH38: 0 | AI38: 0 | AJ38: 0 | AK38: 0 | AL38: 0 | AM38: 0 | AP38: 0 | AY38: 0 | BG38: 24.1968469 | BH38: 31.93189992 | BI38: 2.659748289 | BJ38: 116.6738197 | BK38: 6.051196439 | BL38: 0 | BM38: =0 -> 0 | BN38: 0 | BO38: =0 -> 0 | BP38: 0 | BQ38: 0 | BR38: 0 | BS38: 0 | BT38: 0 | BU38: 0 | BV38: 0 | BW38: 0 | BX38: 0 | CA38: 0 | CJ38: 0 | CR38: 24.1968469 | CS38: 31.93189992 | CT38: 2.659748289 | CU38: 116.6738197 | CV38: 6.051196439 | CW38: 0 | CX38: =0 -> 0 | CY38: 0 | CZ38: =0 -> 0 | DA38: 0 | DB38: 0 | DC38: 0 | DD38: 0 | DE38: 0 | DF38: 0 | DG38: 0 | DH38: 0 | DI38: 0 | DJ38: 0 | DK38: 0 | DL38: 0 | DM38: 0 | DN38: 0 | DO38: 0 | DP38: 0 | DQ38: 0 | DR38: 0 | DS38: 0 | DT38: 0 | DU38: 0 | DV38: 0
B39: ='Linear Projection'!B12 -> 2018 | E39: 0 | N39: 0 | V39: 24.1968469 | W39: 31.93189992 | X39: 2.659748289 | Y39: 116.6738197 | Z39: 6.051196439 | AA39: 0 | AB39: =0 -> 0 | AC39: 0 | AD39: =0 -> 0 | AE39: 0 | AF39: 0 | AG39: 0 | AH39: 0 | AI39: 0 | AJ39: 0 | AK39: 0 | AL39: 0 | AM39: 0 | AP39: 0 | AY39: 0 | BG39: 24.1968469 | BH39: 31.93189992 | BI39: 2.659748289 | BJ39: 116.6738197 | BK39: 6.051196439 | BL39: 0 | BM39: =0 -> 0 | BN39: 0 | BO39: =0 -> 0 | BP39: 0 | BQ39: 0 | BR39: 0 | BS39: 0 | BT39: 0 | BU39: 0 | BV39: 0 | BW39: 0 | BX39: 0 | CA39: 0 | CJ39: 0 | CR39: 24.1968469 | CS39: 31.93189992 | CT39: 2.659748289 | CU39: 116.6738197 | CV39: 6.051196439 | CW39: 0 | CX39: =0 -> 0 | CY39: 0 | CZ39: =0 -> 0 | DA39: 0 | DB39: 0 | DC39: 0 | DD39: 0 | DE39: 0 | DF39: 0 | DG39: 0 | DH39: 0 | DI39: 0 | DJ39: 0 | DK39: 0 | DL39: 0 | DM39: 0 | DN39: 0 | DO39: 0 | DP39: 0 | DQ39: 0 | DR39: 0 | DS39: 0 | DT39: 0 | DU39: 0 | DV39: 0
B40: ='Linear Projection'!B13 -> 2019 | E40: 0 | N40: 0 | V40: 24.1968469 | W40: 31.93189992 | X40: 2.659748289 | Y40: 116.6738197 | Z40: 6.051196439 | AA40: 0 | AB40: =0 -> 0 | AC40: 0 | AD40: =0 -> 0 | AE40: 0 | AF40: 0 | AG40: 0 | AH40: 0 | AI40: 0 | AJ40: 0 | AK40: 0 | AL40: 0 | AM40: 0 | AP40: 0 | AY40: 0 | BG40: 24.1968469 | BH40: 31.93189992 | BI40: 2.659748289 | BJ40: 116.6738197 | BK40: 6.051196439 | BL40: 0 | BM40: =0 -> 0 | BN40: 0 | BO40: =0 -> 0 | BP40: 0 | BQ40: 0 | BR40: 0 | BS40: 0 | BT40: 0 | BU40: 0 | BV40: 0 | BW40: 0 | BX40: 0 | CA40: 0 | CJ40: 0 | CR40: 24.1968469 | CS40: 31.93189992 | CT40: 2.659748289 | CU40: 116.6738197 | CV40: 6.051196439 | CW40: 0 | CX40: =0 -> 0 | CY40: 0 | CZ40: =0 -> 0 | DA40: 0 | DB40: 0 | DC40: 0 | DD40: 0 | DE40: 0 | DF40: 0 | DG40: 0 | DH40: 0 | DI40: 0 | DJ40: 0 | DK40: 0 | DL40: 0 | DM40: 0 | DN40: 0 | DO40: 0 | DP40: 0 | DQ40: 0 | DR40: 0 | DS40: 0 | DT40: 0 | DU40: 0 | DV40: 0
B41: ='Linear Projection'!B14 -> 2020 | E41: 0 | N41: 0 | V41: 24.1968469 | W41: 31.93189992 | X41: 2.659748289 | Y41: 116.6738197 | Z41: 6.051196439 | AA41: 0 | AB41: =0 -> 0 | AC41: 0 | AD41: =0 -> 0 | AE41: 0 | AF41: 0 | AG41: 0 | AH41: 0 | AI41: 0 | AJ41: 0 | AK41: 0 | AL41: 0 | AM41: 0 | AP41: 0 | AY41: 0 | BG41: 24.1968469 | BH41: 31.93189992 | BI41: 2.659748289 | BJ41: 116.6738197 | BK41: 6.051196439 | BL41: 0 | BM41: =0 -> 0 | BN41: 0 | BO41: =0 -> 0 | BP41: 0 | BQ41: 0 | BR41: 0 | BS41: 0 | BT41: 0 | BU41: 0 | BV41: 0 | BW41: 0 | BX41: 0 | CA41: 0 | CJ41: 0 | CR41: 24.1968469 | CS41: 31.93189992 | CT41: 2.659748289 | CU41: 116.6738197 | CV41: 6.051196439 | CW41: 0 | CX41: =0 -> 0 | CY41: 0 | CZ41: =0 -> 0 | DA41: 0 | DB41: 0 | DC41: 0 | DD41: 0 | DE41: 0 | DF41: 0 | DG41: 0 | DH41: 0 | DI41: 0 | DJ41: 0 | DK41: 0 | DL41: 0 | DM41: 0 | DN41: 0 | DO41: 0 | DP41: 0 | DQ41: 0 | DR41: 0 | DS41: 0 | DT41: 0 | DU41: 0 | DV41: 0
B42: ='Linear Projection'!B15 -> 2021 | E42: 0 | N42: 0 | V42: 24.1968469 | W42: 31.93189992 | X42: 2.659748289 | Y42: 116.6738197 | Z42: 6.051196439 | AA42: 0 | AB42: =0 -> 0 | AC42: 0 | AD42: =0 -> 0 | AE42: 0 | AF42: 0 | AG42: 0 | AH42: 0 | AI42: 0 | AJ42: 0 | AK42: 0 | AL42: 0 | AM42: 0 | AP42: 0 | AY42: 0 | BG42: 24.1968469 | BH42: 31.93189992 | BI42: 2.659748289 | BJ42: 116.6738197 | BK42: 6.051196439 | BL42: 0 | BM42: =0 -> 0 | BN42: 0 | BO42: =0 -> 0 | BP42: 0 | BQ42: 0 | BR42: 0 | BS42: 0 | BT42: 0 | BU42: 0 | BV42: 0 | BW42: 0 | BX42: 0 | CA42: 0 | CJ42: 0 | CR42: 24.1968469 | CS42: 31.93189992 | CT42: 2.659748289 | CU42: 116.6738197 | CV42: 6.051196439 | CW42: 0 | CX42: =0 -> 0 | CY42: 0 | CZ42: =0 -> 0 | DA42: 0 | DB42: 0 | DC42: 0 | DD42: 0 | DE42: 0 | DF42: 0 | DG42: 0 | DH42: 0 | DI42: 0 | DJ42: 0 | DK42: 0 | DL42: 0 | DM42: 0 | DN42: 0 | DO42: 0 | DP42: 0 | DQ42: 0 | DR42: 0 | DS42: 0 | DT42: 0 | DU42: 0 | DV42: 0
B43: ='Linear Projection'!B16 -> 2022 | E43: 0 | N43: 0 | V43: 24.1968469 | W43: 31.93189992 | X43: 2.659748289 | Y43: 116.6738197 | Z43: 6.051196439 | AA43: 0 | AB43: =0 -> 0 | AC43: 0 | AD43: =0 -> 0 | AE43: 0 | AF43: 0 | AG43: 0 | AH43: 0 | AI43: 0 | AJ43: 0 | AK43: 0 | AL43: 0 | AM43: 0 | AP43: 0 | AY43: 0 | BG43: 24.1968469 | BH43: 31.93189992 | BI43: 2.659748289 | BJ43: 116.6738197 | BK43: 6.051196439 | BL43: 0 | BM43: =0 -> 0 | BN43: 0 | BO43: =0 -> 0 | BP43: 0 | BQ43: 0 | BR43: 0 | BS43: 0 | BT43: 0 | BU43: 0 | BV43: 0 | BW43: 0 | BX43: 0 | CA43: 0 | CJ43: 0 | CR43: 24.1968469 | CS43: 31.93189992 | CT43: 2.659748289 | CU43: 116.6738197 | CV43: 6.051196439 | CW43: 0 | CX43: =0 -> 0 | CY43: 0 | CZ43: =0 -> 0 | DA43: 0 | DB43: 0 | DC43: 0 | DD43: 0 | DE43: 0 | DF43: 0 | DG43: 0 | DH43: 0 | DI43: 0 | DJ43: 0 | DK43: 0 | DL43: 0 | DM43: 0 | DN43: 0 | DO43: 0 | DP43: 0 | DQ43: 0 | DR43: 0 | DS43: 0 | DT43: 0 | DU43: 0 | DV43: 0
B44: ='Linear Projection'!B17 -> 2023 | E44: 0 | N44: 0 | V44: 24.1968469 | W44: 31.93189992 | X44: 2.659748289 | Y44: 116.6738197 | Z44: 6.051196439 | AA44: 0 | AB44: =0 -> 0 | AC44: 0 | AD44: =0 -> 0 | AE44: 0 | AF44: 0 | AG44: 0 | AH44: 0 | AI44: 0 | AJ44: 0 | AK44: 0 | AL44: 0 | AM44: 0 | AP44: 0 | AY44: 0 | BG44: 24.1968469 | BH44: 31.93189992 | BI44: 2.659748289 | BJ44: 116.6738197 | BK44: 6.051196439 | BL44: 0 | BM44: =0 -> 0 | BN44: 0 | BO44: =0 -> 0 | BP44: 0 | BQ44: 0 | BR44: 0 | BS44: 0 | BT44: 0 | BU44: 0 | BV44: 0 | BW44: 0 | BX44: 0 | CA44: 0 | CJ44: 0 | CR44: 24.1968469 | CS44: 31.93189992 | CT44: 2.659748289 | CU44: 116.6738197 | CV44: 6.051196439 | CW44: 0 | CX44: =0 -> 0 | CY44: 0 | CZ44: =0 -> 0 | DA44: 0 | DB44: 0 | DC44: 0 | DD44: 0 | DE44: 0 | DF44: 0 | DG44: 0 | DH44: 0 | DI44: 0 | DJ44: 0 | DK44: 0 | DL44: 0 | DM44: 0 | DN44: 0 | DO44: 0 | DP44: 0 | DQ44: 0 | DR44: 0 | DS44: 0 | DT44: 0 | DU44: 0 | DV44: 0
B45: ='Linear Projection'!B18 -> 2024 | E45: 0 | N45: 0 | V45: 24.1968469 | W45: 31.93189992 | X45: 2.659748289 | Y45: 116.6738197 | Z45: 6.051196439 | AA45: 0 | AB45: =0 -> 0 | AC45: 0 | AD45: =0 -> 0 | AE45: 0 | AF45: 0 | AG45: 0 | AH45: 0 | AI45: 0 | AJ45: 0 | AK45: 0 | AL45: 0 | AM45: 0 | AP45: 0 | AY45: 0 | BG45: 24.1968469 | BH45: 31.93189992 | BI45: 2.659748289 | BJ45: 116.6738197 | BK45: 6.051196439 | BL45: 0 | BM45: =0 -> 0 | BN45: 0 | BO45: =0 -> 0 | BP45: 0 | BQ45: 0 | BR45: 0 | BS45: 0 | BT45: 0 | BU45: 0 | BV45: 0 | BW45: 0 | BX45: 0 | CA45: 0 | CJ45: 0 | CR45: 24.1968469 | CS45: 31.93189992 | CT45: 2.659748289 | CU45: 116.6738197 | CV45: 6.051196439 | CW45: 0 | CX45: =0 -> 0 | CY45: 0 | CZ45: =0 -> 0 | DA45: 0 | DB45: 0 | DC45: 0 | DD45: 0 | DE45: 0 | DF45: 0 | DG45: 0 | DH45: 0 | DI45: 0 | DJ45: 0 | DK45: 0 | DL45: 0 | DM45: 0 | DN45: 0 | DO45: 0 | DP45: 0 | DQ45: 0 | DR45: 0 | DS45: 0 | DT45: 0 | DU45: 0 | DV45: 0
B46: ='Linear Projection'!B19 -> 2025 | E46: 0 | N46: 0 | V46: 24.1968469 | W46: 31.93189992 | X46: 2.659748289 | Y46: 116.6738197 | Z46: 6.051196439 | AA46: 0 | AB46: =0 -> 0 | AC46: 0 | AD46: =0 -> 0 | AE46: 0 | AF46: 0 | AG46: 0 | AH46: 0 | AI46: 0 | AJ46: 0 | AK46: 0 | AL46: 0 | AM46: 0 | AP46: 0 | AY46: 0 | BG46: 24.1968469 | BH46: 31.93189992 | BI46: 2.659748289 | BJ46: 116.6738197 | BK46: 6.051196439 | BL46: 0 | BM46: =0 -> 0 | BN46: 0 | BO46: =0 -> 0 | BP46: 0 | BQ46: 0 | BR46: 0 | BS46: 0 | BT46: 0 | BU46: 0 | BV46: 0 | BW46: 0 | BX46: 0 | CA46: 0 | CJ46: 0 | CR46: 24.1968469 | CS46: 31.93189992 | CT46: 2.659748289 | CU46: 116.6738197 | CV46: 6.051196439 | CW46: 0 | CX46: =0 -> 0 | CY46: 0 | CZ46: =0 -> 0 | DA46: 0 | DB46: 0 | DC46: 0 | DD46: 0 | DE46: 0 | DF46: 0 | DG46: 0 | DH46: 0 | DI46: 0 | DJ46: 0 | DK46: 0 | DL46: 0 | DM46: 0 | DN46: 0 | DO46: 0 | DP46: 0 | DQ46: 0 | DR46: 0 | DS46: 0 | DT46: 0 | DU46: 0 | DV46: 0
B47: ='Linear Projection'!B20 -> 2026 | E47: 0 | N47: 0 | V47: 24.1968469 | W47: 31.93189992 | X47: 2.659748289 | Y47: 116.6738197 | Z47: 6.051196439 | AA47: 0 | AB47: =0 -> 0 | AC47: 0 | AD47: =0 -> 0 | AE47: 0 | AF47: 0 | AG47: 0 | AH47: 0 | AI47: 0 | AJ47: 0 | AK47: 0 | AL47: 0 | AM47: 0 | AP47: 0 | AY47: 0 | BG47: 24.1968469 | BH47: 31.93189992 | BI47: 2.659748289 | BJ47: 116.6738197 | BK47: 6.051196439 | BL47: 0 | BM47: =0 -> 0 | BN47: 0 | BO47: =0 -> 0 | BP47: 0 | BQ47: 0 | BR47: 0 | BS47: 0 | BT47: 0 | BU47: 0 | BV47: 0 | BW47: 0 | BX47: 0 | CA47: 0 | CJ47: 0 | CR47: 24.1968469 | CS47: 31.93189992 | CT47: 2.659748289 | CU47: 116.6738197 | CV47: 6.051196439 | CW47: 0 | CX47: =0 -> 0 | CY47: 0 | CZ47: =0 -> 0 | DA47: 0 | DB47: 0 | DC47: 0 | DD47: 0 | DE47: 0 | DF47: 0 | DG47: 0 | DH47: 0 | DI47: 0 | DJ47: 0 | DK47: 0 | DL47: 0 | DM47: 0 | DN47: 0 | DO47: 0 | DP47: 0 | DQ47: 0 | DR47: 0 | DS47: 0 | DT47: 0 | DU47: 0 | DV47: 0
B48: ='Linear Projection'!B21 -> 2027 | E48: 0 | N48: 0 | V48: 24.1968469 | W48: 31.93189992 | X48: 2.659748289 | Y48: 116.6738197 | Z48: 6.051196439 | AA48: 0 | AB48: =0 -> 0 | AC48: 0 | AD48: =0 -> 0 | AE48: 0 | AF48: 0 | AG48: 0 | AH48: 0 | AI48: 0 | AJ48: 0 | AK48: 0 | AL48: 0 | AM48: 0 | AP48: 0 | AY48: 0 | BG48: 24.1968469 | BH48: 31.93189992 | BI48: 2.659748289 | BJ48: 116.6738197 | BK48: 6.051196439 | BL48: 0 | BM48: =0 -> 0 | BN48: 0 | BO48: =0 -> 0 | BP48: 0 | BQ48: 0 | BR48: 0 | BS48: 0 | BT48: 0 | BU48: 0 | BV48: 0 | BW48: 0 | BX48: 0 | CA48: 0 | CJ48: 0 | CR48: 24.1968469 | CS48: 31.93189992 | CT48: 2.659748289 | CU48: 116.6738197 | CV48: 6.051196439 | CW48: 0 | CX48: =0 -> 0 | CY48: 0 | CZ48: =0 -> 0 | DA48: 0 | DB48: 0 | DC48: 0 | DD48: 0 | DE48: 0 | DF48: 0 | DG48: 0 | DH48: 0 | DI48: 0 | DJ48: 0 | DK48: 0 | DL48: 0 | DM48: 0 | DN48: 0 | DO48: 0 | DP48: 0 | DQ48: 0 | DR48: 0 | DS48: 0 | DT48: 0 | DU48: 0 | DV48: 0
B49: ='Linear Projection'!B22 -> 2028 | E49: 0 | N49: 0 | V49: 24.1968469 | W49: 31.93189992 | X49: 2.659748289 | Y49: 116.6738197 | Z49: 6.051196439 | AA49: 0 | AB49: =0 -> 0 | AC49: 0 | AD49: =0 -> 0 | AE49: 0 | AF49: 0 | AG49: 0 | AH49: 0 | AI49: 0 | AJ49: 0 | AK49: 0 | AL49: 0 | AM49: 0 | AP49: 0 | AY49: 0 | BG49: 24.1968469 | BH49: 31.93189992 | BI49: 2.659748289 | BJ49: 116.6738197 | BK49: 6.051196439 | BL49: 0 | BM49: =0 -> 0 | BN49: 0 | BO49: =0 -> 0 | BP49: 0 | BQ49: 0 | BR49: 0 | BS49: 0 | BT49: 0 | BU49: 0 | BV49: 0 | BW49: 0 | BX49: 0 | CA49: 0 | CJ49: 0 | CR49: 24.1968469 | CS49: 31.93189992 | CT49: 2.659748289 | CU49: 116.6738197 | CV49: 6.051196439 | CW49: 0 | CX49: =0 -> 0 | CY49: 0 | CZ49: =0 -> 0 | DA49: 0 | DB49: 0 | DC49: 0 | DD49: 0 | DE49: 0 | DF49: 0 | DG49: 0 | DH49: 0 | DI49: 0 | DJ49: 0 | DK49: 0 | DL49: 0 | DM49: 0 | DN49: 0 | DO49: 0 | DP49: 0 | DQ49: 0 | DR49: 0 | DS49: 0 | DT49: 0 | DU49: 0 | DV49: 0
B50: ='Linear Projection'!B23 -> 2029 | E50: 0 | N50: 0 | V50: 24.1968469 | W50: 31.93189992 | X50: 2.659748289 | Y50: 116.6738197 | Z50: 6.051196439 | AA50: 0 | AB50: =0 -> 0 | AC50: 0 | AD50: =0 -> 0 | AE50: 0 | AF50: 0 | AG50: 0 | AH50: 0 | AI50: 0 | AJ50: 0 | AK50: 0 | AL50: 0 | AM50: 0 | AP50: 0 | AY50: 0 | BG50: 24.1968469 | BH50: 31.93189992 | BI50: 2.659748289 | BJ50: 116.6738197 | BK50: 6.051196439 | BL50: 0 | BM50: =0 -> 0 | BN50: 0 | BO50: =0 -> 0 | BP50: 0 | BQ50: 0 | BR50: 0 | BS50: 0 | BT50: 0 | BU50: 0 | BV50: 0 | BW50: 0 | BX50: 0 | CA50: 0 | CJ50: 0 | CR50: 24.1968469 | CS50: 31.93189992 | CT50: 2.659748289 | CU50: 116.6738197 | CV50: 6.051196439 | CW50: 0 | CX50: =0 -> 0 | CY50: 0 | CZ50: =0 -> 0 | DA50: 0 | DB50: 0 | DC50: 0 | DD50: 0 | DE50: 0 | DF50: 0 | DG50: 0 | DH50: 0 | DI50: 0 | DJ50: 0 | DK50: 0 | DL50: 0 | DM50: 0 | DN50: 0 | DO50: 0 | DP50: 0 | DQ50: 0 | DR50: 0 | DS50: 0 | DT50: 0 | DU50: 0 | DV50: 0
B51: ='Linear Projection'!B24 -> 2030 | E51: 0 | N51: 0 | V51: 24.1968469 | W51: 31.93189992 | X51: 2.659748289 | Y51: 116.6738197 | Z51: 6.051196439 | AA51: 0 | AB51: =0 -> 0 | AC51: 0 | AD51: =0 -> 0 | AE51: 0 | AF51: 0 | AG51: 0 | AH51: 0 | AI51: 0 | AJ51: 0 | AK51: 0 | AL51: 0 | AM51: 0 | AP51: 0 | AY51: 0 | BG51: 24.1968469 | BH51: 31.93189992 | BI51: 2.659748289 | BJ51: 116.6738197 | BK51: 6.051196439 | BL51: 0 | BM51: =0 -> 0 | BN51: 0 | BO51: =0 -> 0 | BP51: 0 | BQ51: 0 | BR51: 0 | BS51: 0 | BT51: 0 | BU51: 0 | BV51: 0 | BW51: 0 | BX51: 0 | CA51: 0 | CJ51: 0 | CR51: 24.1968469 | CS51: 31.93189992 | CT51: 2.659748289 | CU51: 116.6738197 | CV51: 6.051196439 | CW51: 0 | CX51: =0 -> 0 | CY51: 0 | CZ51: =0 -> 0 | DA51: 0 | DB51: 0 | DC51: 0 | DD51: 0 | DE51: 0 | DF51: 0 | DG51: 0 | DH51: 0 | DI51: 0 | DJ51: 0 | DK51: 0 | DL51: 0 | DM51: 0 | DN51: 0 | DO51: 0 | DP51: 0 | DQ51: 0 | DR51: 0 | DS51: 0 | DT51: 0 | DU51: 0 | DV51: 0
B52: ='Linear Projection'!B25 -> 2031 | E52: 0 | N52: 0 | V52: 24.1968469 | W52: 31.93189992 | X52: 2.659748289 | Y52: 116.6738197 | Z52: 6.051196439 | AA52: 0 | AB52: =0 -> 0 | AC52: 0 | AD52: =0 -> 0 | AE52: 0 | AF52: 0 | AG52: 0 | AH52: 0 | AI52: 0 | AJ52: 0 | AK52: 0 | AL52: 0 | AM52: 0 | AP52: 0 | AY52: 0 | BG52: 24.1968469 | BH52: 31.93189992 | BI52: 2.659748289 | BJ52: 116.6738197 | BK52: 6.051196439 | BL52: 0 | BM52: =0 -> 0 | BN52: 0 | BO52: =0 -> 0 | BP52: 0 | BQ52: 0 | BR52: 0 | BS52: 0 | BT52: 0 | BU52: 0 | BV52: 0 | BW52: 0 | BX52: 0 | CA52: 0 | CJ52: 0 | CR52: 24.1968469 | CS52: 31.93189992 | CT52: 2.659748289 | CU52: 116.6738197 | CV52: 6.051196439 | CW52: 0 | CX52: =0 -> 0 | CY52: 0 | CZ52: =0 -> 0 | DA52: 0 | DB52: 0 | DC52: 0 | DD52: 0 | DE52: 0 | DF52: 0 | DG52: 0 | DH52: 0 | DI52: 0 | DJ52: 0 | DK52: 0 | DL52: 0 | DM52: 0 | DN52: 0 | DO52: 0 | DP52: 0 | DQ52: 0 | DR52: 0 | DS52: 0 | DT52: 0 | DU52: 0 | DV52: 0
B53: ='Linear Projection'!B26 -> 2032 | E53: 0 | N53: 0 | V53: 24.1968469 | W53: 31.93189992 | X53: 2.659748289 | Y53: 116.6738197 | Z53: 6.051196439 | AA53: 0 | AB53: =0 -> 0 | AC53: 0 | AD53: =0 -> 0 | AE53: 0 | AF53: 0 | AG53: 0 | AH53: 0 | AI53: 0 | AJ53: 0 | AK53: 0 | AL53: 0 | AM53: 0 | AP53: 0 | AY53: 0 | BG53: 24.1968469 | BH53: 31.93189992 | BI53: 2.659748289 | BJ53: 116.6738197 | BK53: 6.051196439 | BL53: 0 | BM53: =0 -> 0 | BN53: 0 | BO53: =0 -> 0 | BP53: 0 | BQ53: 0 | BR53: 0 | BS53: 0 | BT53: 0 | BU53: 0 | BV53: 0 | BW53: 0 | BX53: 0 | CA53: 0 | CJ53: 0 | CR53: 24.1968469 | CS53: 31.93189992 | CT53: 2.659748289 | CU53: 116.6738197 | CV53: 6.051196439 | CW53: 0 | CX53: =0 -> 0 | CY53: 0 | CZ53: =0 -> 0 | DA53: 0 | DB53: 0 | DC53: 0 | DD53: 0 | DE53: 0 | DF53: 0 | DG53: 0 | DH53: 0 | DI53: 0 | DJ53: 0 | DK53: 0 | DL53: 0 | DM53: 0 | DN53: 0 | DO53: 0 | DP53: 0 | DQ53: 0 | DR53: 0 | DS53: 0 | DT53: 0 | DU53: 0 | DV53: 0
B54: ='Linear Projection'!B27 -> 2033 | E54: 0 | N54: 0 | V54: 24.1968469 | W54: 31.93189992 | X54: 2.659748289 | Y54: 116.6738197 | Z54: 6.051196439 | AA54: 0 | AB54: =0 -> 0 | AC54: 0 | AD54: =0 -> 0 | AE54: 0 | AF54: 0 | AG54: 0 | AH54: 0 | AI54: 0 | AJ54: 0 | AK54: 0 | AL54: 0 | AM54: 0 | AP54: 0 | AY54: 0 | BG54: 24.1968469 | BH54: 31.93189992 | BI54: 2.659748289 | BJ54: 116.6738197 | BK54: 6.051196439 | BL54: 0 | BM54: =0 -> 0 | BN54: 0 | BO54: =0 -> 0 | BP54: 0 | BQ54: 0 | BR54: 0 | BS54: 0 | BT54: 0 | BU54: 0 | BV54: 0 | BW54: 0 | BX54: 0 | CA54: 0 | CJ54: 0 | CR54: 24.1968469 | CS54: 31.93189992 | CT54: 2.659748289 | CU54: 116.6738197 | CV54: 6.051196439 | CW54: 0 | CX54: =0 -> 0 | CY54: 0 | CZ54: =0 -> 0 | DA54: 0 | DB54: 0 | DC54: 0 | DD54: 0 | DE54: 0 | DF54: 0 | DG54: 0 | DH54: 0 | DI54: 0 | DJ54: 0 | DK54: 0 | DL54: 0 | DM54: 0 | DN54: 0 | DO54: 0 | DP54: 0 | DQ54: 0 | DR54: 0 | DS54: 0 | DT54: 0 | DU54: 0 | DV54: 0
B55: ='Linear Projection'!B28 -> 2034 | E55: 0 | N55: 0 | V55: 24.1968469 | W55: 31.93189992 | X55: 2.659748289 | Y55: 116.6738197 | Z55: 6.051196439 | AA55: 0 | AB55: =0 -> 0 | AC55: 0 | AD55: =0 -> 0 | AE55: 0 | AF55: 0 | AG55: 0 | AH55: 0 | AI55: 0 | AJ55: 0 | AK55: 0 | AL55: 0 | AM55: 0 | AP55: 0 | AY55: 0 | BG55: 24.1968469 | BH55: 31.93189992 | BI55: 2.659748289 | BJ55: 116.6738197 | BK55: 6.051196439 | BL55: 0 | BM55: =0 -> 0 | BN55: 0 | BO55: =0 -> 0 | BP55: 0 | BQ55: 0 | BR55: 0 | BS55: 0 | BT55: 0 | BU55: 0 | BV55: 0 | BW55: 0 | BX55: 0 | CA55: 0 | CJ55: 0 | CR55: 24.1968469 | CS55: 31.93189992 | CT55: 2.659748289 | CU55: 116.6738197 | CV55: 6.051196439 | CW55: 0 | CX55: =0 -> 0 | CY55: 0 | CZ55: =0 -> 0 | DA55: 0 | DB55: 0 | DC55: 0 | DD55: 0 | DE55: 0 | DF55: 0 | DG55: 0 | DH55: 0 | DI55: 0 | DJ55: 0 | DK55: 0 | DL55: 0 | DM55: 0 | DN55: 0 | DO55: 0 | DP55: 0 | DQ55: 0 | DR55: 0 | DS55: 0 | DT55: 0 | DU55: 0 | DV55: 0
B56: ='Linear Projection'!B29 -> 2035 | E56: 0 | N56: 0 | V56: 24.1968469 | W56: 31.93189992 | X56: 2.659748289 | Y56: 116.6738197 | Z56: 6.051196439 | AA56: 0 | AB56: =0 -> 0 | AC56: 0 | AD56: =0 -> 0 | AE56: 0 | AF56: 0 | AG56: 0 | AH56: 0 | AI56: 0 | AJ56: 0 | AK56: 0 | AL56: 0 | AM56: 0 | AP56: 0 | AY56: 0 | BG56: 24.1968469 | BH56: 31.93189992 | BI56: 2.659748289 | BJ56: 116.6738197 | BK56: 6.051196439 | BL56: 0 | BM56: =0 -> 0 | BN56: 0 | BO56: =0 -> 0 | BP56: 0 | BQ56: 0 | BR56: 0 | BS56: 0 | BT56: 0 | BU56: 0 | BV56: 0 | BW56: 0 | BX56: 0 | CA56: 0 | CJ56: 0 | CR56: 24.1968469 | CS56: 31.93189992 | CT56: 2.659748289 | CU56: 116.6738197 | CV56: 6.051196439 | CW56: 0 | CX56: =0 -> 0 | CY56: 0 | CZ56: =0 -> 0 | DA56: 0 | DB56: 0 | DC56: 0 | DD56: 0 | DE56: 0 | DF56: 0 | DG56: 0 | DH56: 0 | DI56: 0 | DJ56: 0 | DK56: 0 | DL56: 0 | DM56: 0 | DN56: 0 | DO56: 0 | DP56: 0 | DQ56: 0 | DR56: 0 | DS56: 0 | DT56: 0 | DU56: 0 | DV56: 0
B57: ='Linear Projection'!B30 -> 2036 | E57: 0 | N57: 0 | V57: 24.1968469 | W57: 31.93189992 | X57: 2.659748289 | Y57: 116.6738197 | Z57: 6.051196439 | AA57: 0 | AB57: =0 -> 0 | AC57: 0 | AD57: =0 -> 0 | AE57: 0 | AF57: 0 | AG57: 0 | AH57: 0 | AI57: 0 | AJ57: 0 | AK57: 0 | AL57: 0 | AM57: 0 | AP57: 0 | AY57: 0 | BG57: 24.1968469 | BH57: 31.93189992 | BI57: 2.659748289 | BJ57: 116.6738197 | BK57: 6.051196439 | BL57: 0 | BM57: =0 -> 0 | BN57: 0 | BO57: =0 -> 0 | BP57: 0 | BQ57: 0 | BR57: 0 | BS57: 0 | BT57: 0 | BU57: 0 | BV57: 0 | BW57: 0 | BX57: 0 | CA57: 0 | CJ57: 0 | CR57: 24.1968469 | CS57: 31.93189992 | CT57: 2.659748289 | CU57: 116.6738197 | CV57: 6.051196439 | CW57: 0 | CX57: =0 -> 0 | CY57: 0 | CZ57: =0 -> 0 | DA57: 0 | DB57: 0 | DC57: 0 | DD57: 0 | DE57: 0 | DF57: 0 | DG57: 0 | DH57: 0 | DI57: 0 | DJ57: 0 | DK57: 0 | DL57: 0 | DM57: 0 | DN57: 0 | DO57: 0 | DP57: 0 | DQ57: 0 | DR57: 0 | DS57: 0 | DT57: 0 | DU57: 0 | DV57: 0
B58: ='Linear Projection'!B31 -> 2037 | E58: 0 | N58: 0 | V58: 24.1968469 | W58: 31.93189992 | X58: 2.659748289 | Y58: 116.6738197 | Z58: 6.051196439 | AA58: 0 | AB58: =0 -> 0 | AC58: 0 | AD58: =0 -> 0 | AE58: 0 | AF58: 0 | AG58: 0 | AH58: 0 | AI58: 0 | AJ58: 0 | AK58: 0 | AL58: 0 | AM58: 0 | AP58: 0 | AY58: 0 | BG58: 24.1968469 | BH58: 31.93189992 | BI58: 2.659748289 | BJ58: 116.6738197 | BK58: 6.051196439 | BL58: 0 | BM58: =0 -> 0 | BN58: 0 | BO58: =0 -> 0 | BP58: 0 | BQ58: 0 | BR58: 0 | BS58: 0 | BT58: 0 | BU58: 0 | BV58: 0 | BW58: 0 | BX58: 0 | CA58: 0 | CJ58: 0 | CR58: 24.1968469 | CS58: 31.93189992 | CT58: 2.659748289 | CU58: 116.6738197 | CV58: 6.051196439 | CW58: 0 | CX58: =0 -> 0 | CY58: 0 | CZ58: =0 -> 0 | DA58: 0 | DB58: 0 | DC58: 0 | DD58: 0 | DE58: 0 | DF58: 0 | DG58: 0 | DH58: 0 | DI58: 0 | DJ58: 0 | DK58: 0 | DL58: 0 | DM58: 0 | DN58: 0 | DO58: 0 | DP58: 0 | DQ58: 0 | DR58: 0 | DS58: 0 | DT58: 0 | DU58: 0 | DV58: 0
B59: ='Linear Projection'!B32 -> 2038 | E59: 0 | N59: 0 | V59: 24.1968469 | W59: 31.93189992 | X59: 2.659748289 | Y59: 116.6738197 | Z59: 6.051196439 | AA59: 0 | AB59: =0 -> 0 | AC59: 0 | AD59: =0 -> 0 | AE59: 0 | AF59: 0 | AG59: 0 | AH59: 0 | AI59: 0 | AJ59: 0 | AK59: 0 | AL59: 0 | AM59: 0 | AP59: 0 | AY59: 0 | BG59: 24.1968469 | BH59: 31.93189992 | BI59: 2.659748289 | BJ59: 116.6738197 | BK59: 6.051196439 | BL59: 0 | BM59: =0 -> 0 | BN59: 0 | BO59: =0 -> 0 | BP59: 0 | BQ59: 0 | BR59: 0 | BS59: 0 | BT59: 0 | BU59: 0 | BV59: 0 | BW59: 0 | BX59: 0 | CA59: 0 | CJ59: 0 | CR59: 24.1968469 | CS59: 31.93189992 | CT59: 2.659748289 | CU59: 116.6738197 | CV59: 6.051196439 | CW59: 0 | CX59: =0 -> 0 | CY59: 0 | CZ59: =0 -> 0 | DA59: 0 | DB59: 0 | DC59: 0 | DD59: 0 | DE59: 0 | DF59: 0 | DG59: 0 | DH59: 0 | DI59: 0 | DJ59: 0 | DK59: 0 | DL59: 0 | DM59: 0 | DN59: 0 | DO59: 0 | DP59: 0 | DQ59: 0 | DR59: 0 | DS59: 0 | DT59: 0 | DU59: 0 | DV59: 0
B60: ='Linear Projection'!B33 -> 2039 | E60: 0 | N60: 0 | V60: 24.1968469 | W60: 31.93189992 | X60: 2.659748289 | Y60: 116.6738197 | Z60: 6.051196439 | AA60: 0 | AB60: =0 -> 0 | AC60: 0 | AD60: =0 -> 0 | AE60: 0 | AF60: 0 | AG60: 0 | AH60: 0 | AI60: 0 | AJ60: 0 | AK60: 0 | AL60: 0 | AM60: 0 | AP60: 0 | AY60: 0 | BG60: 24.1968469 | BH60: 31.93189992 | BI60: 2.659748289 | BJ60: 116.6738197 | BK60: 6.051196439 | BL60: 0 | BM60: =0 -> 0 | BN60: 0 | BO60: =0 -> 0 | BP60: 0 | BQ60: 0 | BR60: 0 | BS60: 0 | BT60: 0 | BU60: 0 | BV60: 0 | BW60: 0 | BX60: 0 | CA60: 0 | CJ60: 0 | CR60: 24.1968469 | CS60: 31.93189992 | CT60: 2.659748289 | CU60: 116.6738197 | CV60: 6.051196439 | CW60: 0 | CX60: =0 -> 0 | CY60: 0 | CZ60: =0 -> 0 | DA60: 0 | DB60: 0 | DC60: 0 | DD60: 0 | DE60: 0 | DF60: 0 | DG60: 0 | DH60: 0 | DI60: 0 | DJ60: 0 | DK60: 0 | DL60: 0 | DM60: 0 | DN60: 0 | DO60: 0 | DP60: 0 | DQ60: 0 | DR60: 0 | DS60: 0 | DT60: 0 | DU60: 0 | DV60: 0
B61: ='Linear Projection'!B34 -> 2040 | E61: 0 | N61: 0 | V61: 24.1968469 | W61: 31.93189992 | X61: 2.659748289 | Y61: 116.6738197 | Z61: 6.051196439 | AA61: 0 | AB61: =0 -> 0 | AC61: 0 | AD61: =0 -> 0 | AE61: 0 | AF61: 0 | AG61: 0 | AH61: 0 | AI61: 0 | AJ61: 0 | AK61: 0 | AL61: 0 | AM61: 0 | AP61: 0 | AY61: 0 | BG61: 24.1968469 | BH61: 31.93189992 | BI61: 2.659748289 | BJ61: 116.6738197 | BK61: 6.051196439 | BL61: 0 | BM61: =0 -> 0 | BN61: 0 | BO61: =0 -> 0 | BP61: 0 | BQ61: 0 | BR61: 0 | BS61: 0 | BT61: 0 | BU61: 0 | BV61: 0 | BW61: 0 | BX61: 0 | CA61: 0 | CJ61: 0 | CR61: 24.1968469 | CS61: 31.93189992 | CT61: 2.659748289 | CU61: 116.6738197 | CV61: 6.051196439 | CW61: 0 | CX61: =0 -> 0 | CY61: 0 | CZ61: =0 -> 0 | DA61: 0 | DB61: 0 | DC61: 0 | DD61: 0 | DE61: 0 | DF61: 0 | DG61: 0 | DH61: 0 | DI61: 0 | DJ61: 0 | DK61: 0 | DL61: 0 | DM61: 0 | DN61: 0 | DO61: 0 | DP61: 0 | DQ61: 0 | DR61: 0 | DS61: 0 | DT61: 0 | DU61: 0 | DV61: 0
B62: ='Linear Projection'!B35 -> 2041 | E62: 0 | N62: 0 | V62: 24.1968469 | W62: 31.93189992 | X62: 2.659748289 | Y62: 116.6738197 | Z62: 6.051196439 | AA62: 0 | AB62: =0 -> 0 | AC62: 0 | AD62: =0 -> 0 | AE62: 0 | AF62: 0 | AG62: 0 | AH62: 0 | AI62: 0 | AJ62: 0 | AK62: 0 | AL62: 0 | AM62: 0 | AP62: 0 | AY62: 0 | BG62: 24.1968469 | BH62: 31.93189992 | BI62: 2.659748289 | BJ62: 116.6738197 | BK62: 6.051196439 | BL62: 0 | BM62: =0 -> 0 | BN62: 0 | BO62: =0 -> 0 | BP62: 0 | BQ62: 0 | BR62: 0 | BS62: 0 | BT62: 0 | BU62: 0 | BV62: 0 | BW62: 0 | BX62: 0 | CA62: 0 | CJ62: 0 | CR62: 24.1968469 | CS62: 31.93189992 | CT62: 2.659748289 | CU62: 116.6738197 | CV62: 6.051196439 | CW62: 0 | CX62: =0 -> 0 | CY62: 0 | CZ62: =0 -> 0 | DA62: 0 | DB62: 0 | DC62: 0 | DD62: 0 | DE62: 0 | DF62: 0 | DG62: 0 | DH62: 0 | DI62: 0 | DJ62: 0 | DK62: 0 | DL62: 0 | DM62: 0 | DN62: 0 | DO62: 0 | DP62: 0 | DQ62: 0 | DR62: 0 | DS62: 0 | DT62: 0 | DU62: 0 | DV62: 0
B63: ='Linear Projection'!B36 -> 2042 | E63: 0 | N63: 0 | V63: 24.1968469 | W63: 31.93189992 | X63: 2.659748289 | Y63: 116.6738197 | Z63: 6.051196439 | AA63: 0 | AB63: =0 -> 0 | AC63: 0 | AD63: =0 -> 0 | AE63: 0 | AF63: 0 | AG63: 0 | AH63: 0 | AI63: 0 | AJ63: 0 | AK63: 0 | AL63: 0 | AM63: 0 | AP63: 0 | AY63: 0 | BG63: 24.1968469 | BH63: 31.93189992 | BI63: 2.659748289 | BJ63: 116.6738197 | BK63: 6.051196439 | BL63: 0 | BM63: =0 -> 0 | BN63: 0 | BO63: =0 -> 0 | BP63: 0 | BQ63: 0 | BR63: 0 | BS63: 0 | BT63: 0 | BU63: 0 | BV63: 0 | BW63: 0 | BX63: 0 | CA63: 0 | CJ63: 0 | CR63: 24.1968469 | CS63: 31.93189992 | CT63: 2.659748289 | CU63: 116.6738197 | CV63: 6.051196439 | CW63: 0 | CX63: =0 -> 0 | CY63: 0 | CZ63: =0 -> 0 | DA63: 0 | DB63: 0 | DC63: 0 | DD63: 0 | DE63: 0 | DF63: 0 | DG63: 0 | DH63: 0 | DI63: 0 | DJ63: 0 | DK63: 0 | DL63: 0 | DM63: 0 | DN63: 0 | DO63: 0 | DP63: 0 | DQ63: 0 | DR63: 0 | DS63: 0 | DT63: 0 | DU63: 0 | DV63: 0
B64: ='Linear Projection'!B37 -> 2043 | E64: 0 | N64: 0 | V64: 24.1968469 | W64: 31.93189992 | X64: 2.659748289 | Y64: 116.6738197 | Z64: 6.051196439 | AA64: 0 | AB64: =0 -> 0 | AC64: 0 | AD64: =0 -> 0 | AE64: 0 | AF64: 0 | AG64: 0 | AH64: 0 | AI64: 0 | AJ64: 0 | AK64: 0 | AL64: 0 | AM64: 0 | AP64: 0 | AY64: 0 | BG64: 24.1968469 | BH64: 31.93189992 | BI64: 2.659748289 | BJ64: 116.6738197 | BK64: 6.051196439 | BL64: 0 | BM64: =0 -> 0 | BN64: 0 | BO64: =0 -> 0 | BP64: 0 | BQ64: 0 | BR64: 0 | BS64: 0 | BT64: 0 | BU64: 0 | BV64: 0 | BW64: 0 | BX64: 0 | CA64: 0 | CJ64: 0 | CR64: 24.1968469 | CS64: 31.93189992 | CT64: 2.659748289 | CU64: 116.6738197 | CV64: 6.051196439 | CW64: 0 | CX64: =0 -> 0 | CY64: 0 | CZ64: =0 -> 0 | DA64: 0 | DB64: 0 | DC64: 0 | DD64: 0 | DE64: 0 | DF64: 0 | DG64: 0 | DH64: 0 | DI64: 0 | DJ64: 0 | DK64: 0 | DL64: 0 | DM64: 0 | DN64: 0 | DO64: 0 | DP64: 0 | DQ64: 0 | DR64: 0 | DS64: 0 | DT64: 0 | DU64: 0 | DV64: 0
B65: ='Linear Projection'!B38 -> 2044 | E65: 0 | N65: 0 | V65: 24.1968469 | W65: 31.93189992 | X65: 2.659748289 | Y65: 116.6738197 | Z65: 6.051196439 | AA65: 0 | AB65: =0 -> 0 | AC65: 0 | AD65: =0 -> 0 | AE65: 0 | AF65: 0 | AG65: 0 | AH65: 0 | AI65: 0 | AJ65: 0 | AK65: 0 | AL65: 0 | AM65: 0 | AP65: 0 | AY65: 0 | BG65: 24.1968469 | BH65: 31.93189992 | BI65: 2.659748289 | BJ65: 116.6738197 | BK65: 6.051196439 | BL65: 0 | BM65: =0 -> 0 | BN65: 0 | BO65: =0 -> 0 | BP65: 0 | BQ65: 0 | BR65: 0 | BS65: 0 | BT65: 0 | BU65: 0 | BV65: 0 | BW65: 0 | BX65: 0 | CA65: 0 | CJ65: 0 | CR65: 24.1968469 | CS65: 31.93189992 | CT65: 2.659748289 | CU65: 116.6738197 | CV65: 6.051196439 | CW65: 0 | CX65: =0 -> 0 | CY65: 0 | CZ65: =0 -> 0 | DA65: 0 | DB65: 0 | DC65: 0 | DD65: 0 | DE65: 0 | DF65: 0 | DG65: 0 | DH65: 0 | DI65: 0 | DJ65: 0 | DK65: 0 | DL65: 0 | DM65: 0 | DN65: 0 | DO65: 0 | DP65: 0 | DQ65: 0 | DR65: 0 | DS65: 0 | DT65: 0 | DU65: 0 | DV65: 0
B66: ='Linear Projection'!B39 -> 2045 | E66: 0 | N66: 0 | V66: 24.1968469 | W66: 31.93189992 | X66: 2.659748289 | Y66: 116.6738197 | Z66: 6.051196439 | AA66: 0 | AB66: =0 -> 0 | AC66: 0 | AD66: =0 -> 0 | AE66: 0 | AF66: 0 | AG66: 0 | AH66: 0 | AI66: 0 | AJ66: 0 | AK66: 0 | AL66: 0 | AM66: 0 | AP66: 0 | AY66: 0 | BG66: 24.1968469 | BH66: 31.93189992 | BI66: 2.659748289 | BJ66: 116.6738197 | BK66: 6.051196439 | BL66: 0 | BM66: =0 -> 0 | BN66: 0 | BO66: =0 -> 0 | BP66: 0 | BQ66: 0 | BR66: 0 | BS66: 0 | BT66: 0 | BU66: 0 | BV66: 0 | BW66: 0 | BX66: 0 | CA66: 0 | CJ66: 0 | CR66: 24.1968469 | CS66: 31.93189992 | CT66: 2.659748289 | CU66: 116.6738197 | CV66: 6.051196439 | CW66: 0 | CX66: =0 -> 0 | CY66: 0 | CZ66: =0 -> 0 | DA66: 0 | DB66: 0 | DC66: 0 | DD66: 0 | DE66: 0 | DF66: 0 | DG66: 0 | DH66: 0 | DI66: 0 | DJ66: 0 | DK66: 0 | DL66: 0 | DM66: 0 | DN66: 0 | DO66: 0 | DP66: 0 | DQ66: 0 | DR66: 0 | DS66: 0 | DT66: 0 | DU66: 0 | DV66: 0
B67: ='Linear Projection'!B40 -> 2046 | E67: 0 | N67: 0 | V67: 24.1968469 | W67: 31.93189992 | X67: 2.659748289 | Y67: 116.6738197 | Z67: 6.051196439 | AA67: 0 | AB67: =0 -> 0 | AC67: 0 | AD67: =0 -> 0 | AE67: 0 | AF67: 0 | AG67: 0 | AH67: 0 | AI67: 0 | AJ67: 0 | AK67: 0 | AL67: 0 | AM67: 0 | AP67: 0 | AY67: 0 | BG67: 24.1968469 | BH67: 31.93189992 | BI67: 2.659748289 | BJ67: 116.6738197 | BK67: 6.051196439 | BL67: 0 | BM67: =0 -> 0 | BN67: 0 | BO67: =0 -> 0 | BP67: 0 | BQ67: 0 | BR67: 0 | BS67: 0 | BT67: 0 | BU67: 0 | BV67: 0 | BW67: 0 | BX67: 0 | CA67: 0 | CJ67: 0 | CR67: 24.1968469 | CS67: 31.93189992 | CT67: 2.659748289 | CU67: 116.6738197 | CV67: 6.051196439 | CW67: 0 | CX67: =0 -> 0 | CY67: 0 | CZ67: =0 -> 0 | DA67: 0 | DB67: 0 | DC67: 0 | DD67: 0 | DE67: 0 | DF67: 0 | DG67: 0 | DH67: 0 | DI67: 0 | DJ67: 0 | DK67: 0 | DL67: 0 | DM67: 0 | DN67: 0 | DO67: 0 | DP67: 0 | DQ67: 0 | DR67: 0 | DS67: 0 | DT67: 0 | DU67: 0 | DV67: 0
B68: ='Linear Projection'!B41 -> 2047 | E68: 0 | N68: 0 | V68: 24.1968469 | W68: 31.93189992 | X68: 2.659748289 | Y68: 116.6738197 | Z68: 6.051196439 | AA68: 0 | AB68: =0 -> 0 | AC68: 0 | AD68: =0 -> 0 | AE68: 0 | AF68: 0 | AG68: 0 | AH68: 0 | AI68: 0 | AJ68: 0 | AK68: 0 | AL68: 0 | AM68: 0 | AP68: 0 | AY68: 0 | BG68: 24.1968469 | BH68: 31.93189992 | BI68: 2.659748289 | BJ68: 116.6738197 | BK68: 6.051196439 | BL68: 0 | BM68: =0 -> 0 | BN68: 0 | BO68: =0 -> 0 | BP68: 0 | BQ68: 0 | BR68: 0 | BS68: 0 | BT68: 0 | BU68: 0 | BV68: 0 | BW68: 0 | BX68: 0 | CA68: 0 | CJ68: 0 | CR68: 24.1968469 | CS68: 31.93189992 | CT68: 2.659748289 | CU68: 116.6738197 | CV68: 6.051196439 | CW68: 0 | CX68: =0 -> 0 | CY68: 0 | CZ68: =0 -> 0 | DA68: 0 | DB68: 0 | DC68: 0 | DD68: 0 | DE68: 0 | DF68: 0 | DG68: 0 | DH68: 0 | DI68: 0 | DJ68: 0 | DK68: 0 | DL68: 0 | DM68: 0 | DN68: 0 | DO68: 0 | DP68: 0 | DQ68: 0 | DR68: 0 | DS68: 0 | DT68: 0 | DU68: 0 | DV68: 0
B69: ='Linear Projection'!B42 -> 2048 | E69: 0 | N69: 0 | V69: 24.1968469 | W69: 31.93189992 | X69: 2.659748289 | Y69: 116.6738197 | Z69: 6.051196439 | AA69: 0 | AB69: =0 -> 0 | AC69: 0 | AD69: =0 -> 0 | AE69: 0 | AF69: 0 | AG69: 0 | AH69: 0 | AI69: 0 | AJ69: 0 | AK69: 0 | AL69: 0 | AM69: 0 | AP69: 0 | AY69: 0 | BG69: 24.1968469 | BH69: 31.93189992 | BI69: 2.659748289 | BJ69: 116.6738197 | BK69: 6.051196439 | BL69: 0 | BM69: =0 -> 0 | BN69: 0 | BO69: =0 -> 0 | BP69: 0 | BQ69: 0 | BR69: 0 | BS69: 0 | BT69: 0 | BU69: 0 | BV69: 0 | BW69: 0 | BX69: 0 | CA69: 0 | CJ69: 0 | CR69: 24.1968469 | CS69: 31.93189992 | CT69: 2.659748289 | CU69: 116.6738197 | CV69: 6.051196439 | CW69: 0 | CX69: =0 -> 0 | CY69: 0 | CZ69: =0 -> 0 | DA69: 0 | DB69: 0 | DC69: 0 | DD69: 0 | DE69: 0 | DF69: 0 | DG69: 0 | DH69: 0 | DI69: 0 | DJ69: 0 | DK69: 0 | DL69: 0 | DM69: 0 | DN69: 0 | DO69: 0 | DP69: 0 | DQ69: 0 | DR69: 0 | DS69: 0 | DT69: 0 | DU69: 0 | DV69: 0
B70: ='Linear Projection'!B43 -> 2049 | E70: 0 | N70: 0 | V70: 24.1968469 | W70: 31.93189992 | X70: 2.659748289 | Y70: 116.6738197 | Z70: 6.051196439 | AA70: 0 | AB70: =0 -> 0 | AC70: 0 | AD70: =0 -> 0 | AE70: 0 | AF70: 0 | AG70: 0 | AH70: 0 | AI70: 0 | AJ70: 0 | AK70: 0 | AL70: 0 | AM70: 0 | AP70: 0 | AY70: 0 | BG70: 24.1968469 | BH70: 31.93189992 | BI70: 2.659748289 | BJ70: 116.6738197 | BK70: 6.051196439 | BL70: 0 | BM70: =0 -> 0 | BN70: 0 | BO70: =0 -> 0 | BP70: 0 | BQ70: 0 | BR70: 0 | BS70: 0 | BT70: 0 | BU70: 0 | BV70: 0 | BW70: 0 | BX70: 0 | CA70: 0 | CJ70: 0 | CR70: 24.1968469 | CS70: 31.93189992 | CT70: 2.659748289 | CU70: 116.6738197 | CV70: 6.051196439 | CW70: 0 | CX70: =0 -> 0 | CY70: 0 | CZ70: =0 -> 0 | DA70: 0 | DB70: 0 | DC70: 0 | DD70: 0 | DE70: 0 | DF70: 0 | DG70: 0 | DH70: 0 | DI70: 0 | DJ70: 0 | DK70: 0 | DL70: 0 | DM70: 0 | DN70: 0 | DO70: 0 | DP70: 0 | DQ70: 0 | DR70: 0 | DS70: 0 | DT70: 0 | DU70: 0 | DV70: 0
B71: ='Linear Projection'!B44 -> 2050 | E71: 0 | N71: 0 | V71: 24.1968469 | W71: 31.93189992 | X71: 2.659748289 | Y71: 116.6738197 | Z71: 6.051196439 | AA71: 0 | AB71: =0 -> 0 | AC71: 0 | AD71: =0 -> 0 | AE71: 0 | AF71: 0 | AG71: 0 | AH71: 0 | AI71: 0 | AJ71: 0 | AK71: 0 | AL71: 0 | AM71: 0 | AP71: 0 | AY71: 0 | BG71: 24.1968469 | BH71: 31.93189992 | BI71: 2.659748289 | BJ71: 116.6738197 | BK71: 6.051196439 | BL71: 0 | BM71: =0 -> 0 | BN71: 0 | BO71: =0 -> 0 | BP71: 0 | BQ71: 0 | BR71: 0 | BS71: 0 | BT71: 0 | BU71: 0 | BV71: 0 | BW71: 0 | BX71: 0 | CA71: 0 | CJ71: 0 | CR71: 24.1968469 | CS71: 31.93189992 | CT71: 2.659748289 | CU71: 116.6738197 | CV71: 6.051196439 | CW71: 0 | CX71: =0 -> 0 | CY71: 0 | CZ71: =0 -> 0 | DA71: 0 | DB71: 0 | DC71: 0 | DD71: 0 | DE71: 0 | DF71: 0 | DG71: 0 | DH71: 0 | DI71: 0 | DJ71: 0 | DK71: 0 | DL71: 0 | DM71: 0 | DN71: 0 | DO71: 0 | DP71: 0 | DQ71: 0 | DR71: 0 | DS71: 0 | DT71: 0 | DU71: 0 | DV71: 0
B72: ='Linear Projection'!B45 -> 2051 | E72: 0 | N72: 0 | V72: 24.1968469 | W72: 31.93189992 | X72: 2.659748289 | Y72: 116.6738197 | Z72: 6.051196439 | AA72: 0 | AB72: =0 -> 0 | AC72: 0 | AD72: =0 -> 0 | AE72: 0 | AF72: 0 | AG72: 0 | AH72: 0 | AI72: 0 | AJ72: 0 | AK72: 0 | AL72: 0 | AM72: 0 | AP72: 0 | AY72: 0 | BG72: 24.1968469 | BH72: 31.93189992 | BI72: 2.659748289 | BJ72: 116.6738197 | BK72: 6.051196439 | BL72: 0 | BM72: =0 -> 0 | BN72: 0 | BO72: =0 -> 0 | BP72: 0 | BQ72: 0 | BR72: 0 | BS72: 0 | BT72: 0 | BU72: 0 | BV72: 0 | BW72: 0 | BX72: 0 | CA72: 0 | CJ72: 0 | CR72: 24.1968469 | CS72: 31.93189992 | CT72: 2.659748289 | CU72: 116.6738197 | CV72: 6.051196439 | CW72: 0 | CX72: =0 -> 0 | CY72: 0 | CZ72: =0 -> 0 | DA72: 0 | DB72: 0 | DC72: 0 | DD72: 0 | DE72: 0 | DF72: 0 | DG72: 0 | DH72: 0 | DI72: 0 | DJ72: 0 | DK72: 0 | DL72: 0 | DM72: 0 | DN72: 0 | DO72: 0 | DP72: 0 | DQ72: 0 | DR72: 0 | DS72: 0 | DT72: 0 | DU72: 0 | DV72: 0
B73: ='Linear Projection'!B46 -> 2052 | E73: 0 | N73: 0 | V73: 24.1968469 | W73: 31.93189992 | X73: 2.659748289 | Y73: 116.6738197 | Z73: 6.051196439 | AA73: 0 | AB73: =0 -> 0 | AC73: 0 | AD73: =0 -> 0 | AE73: 0 | AF73: 0 | AG73: 0 | AH73: 0 | AI73: 0 | AJ73: 0 | AK73: 0 | AL73: 0 | AM73: 0 | AP73: 0 | AY73: 0 | BG73: 24.1968469 | BH73: 31.93189992 | BI73: 2.659748289 | BJ73: 116.6738197 | BK73: 6.051196439 | BL73: 0 | BM73: =0 -> 0 | BN73: 0 | BO73: =0 -> 0 | BP73: 0 | BQ73: 0 | BR73: 0 | BS73: 0 | BT73: 0 | BU73: 0 | BV73: 0 | BW73: 0 | BX73: 0 | CA73: 0 | CJ73: 0 | CR73: 24.1968469 | CS73: 31.93189992 | CT73: 2.659748289 | CU73: 116.6738197 | CV73: 6.051196439 | CW73: 0 | CX73: =0 -> 0 | CY73: 0 | CZ73: =0 -> 0 | DA73: 0 | DB73: 0 | DC73: 0 | DD73: 0 | DE73: 0 | DF73: 0 | DG73: 0 | DH73: 0 | DI73: 0 | DJ73: 0 | DK73: 0 | DL73: 0 | DM73: 0 | DN73: 0 | DO73: 0 | DP73: 0 | DQ73: 0 | DR73: 0 | DS73: 0 | DT73: 0 | DU73: 0 | DV73: 0
B74: ='Linear Projection'!B47 -> 2053 | E74: 0 | N74: 0 | V74: 24.1968469 | W74: 31.93189992 | X74: 2.659748289 | Y74: 116.6738197 | Z74: 6.051196439 | AA74: 0 | AB74: =0 -> 0 | AC74: 0 | AD74: =0 -> 0 | AE74: 0 | AF74: 0 | AG74: 0 | AH74: 0 | AI74: 0 | AJ74: 0 | AK74: 0 | AL74: 0 | AM74: 0 | AP74: 0 | AY74: 0 | BG74: 24.1968469 | BH74: 31.93189992 | BI74: 2.659748289 | BJ74: 116.6738197 | BK74: 6.051196439 | BL74: 0 | BM74: =0 -> 0 | BN74: 0 | BO74: =0 -> 0 | BP74: 0 | BQ74: 0 | BR74: 0 | BS74: 0 | BT74: 0 | BU74: 0 | BV74: 0 | BW74: 0 | BX74: 0 | CA74: 0 | CJ74: 0 | CR74: 24.1968469 | CS74: 31.93189992 | CT74: 2.659748289 | CU74: 116.6738197 | CV74: 6.051196439 | CW74: 0 | CX74: =0 -> 0 | CY74: 0 | CZ74: =0 -> 0 | DA74: 0 | DB74: 0 | DC74: 0 | DD74: 0 | DE74: 0 | DF74: 0 | DG74: 0 | DH74: 0 | DI74: 0 | DJ74: 0 | DK74: 0 | DL74: 0 | DM74: 0 | DN74: 0 | DO74: 0 | DP74: 0 | DQ74: 0 | DR74: 0 | DS74: 0 | DT74: 0 | DU74: 0 | DV74: 0
B75: ='Linear Projection'!B48 -> 2054 | E75: 0 | N75: 0 | V75: 24.1968469 | W75: 31.93189992 | X75: 2.659748289 | Y75: 116.6738197 | Z75: 6.051196439 | AA75: 0 | AB75: =0 -> 0 | AC75: 0 | AD75: =0 -> 0 | AE75: 0 | AF75: 0 | AG75: 0 | AH75: 0 | AI75: 0 | AJ75: 0 | AK75: 0 | AL75: 0 | AM75: 0 | AP75: 0 | AY75: 0 | BG75: 24.1968469 | BH75: 31.93189992 | BI75: 2.659748289 | BJ75: 116.6738197 | BK75: 6.051196439 | BL75: 0 | BM75: =0 -> 0 | BN75: 0 | BO75: =0 -> 0 | BP75: 0 | BQ75: 0 | BR75: 0 | BS75: 0 | BT75: 0 | BU75: 0 | BV75: 0 | BW75: 0 | BX75: 0 | CA75: 0 | CJ75: 0 | CR75: 24.1968469 | CS75: 31.93189992 | CT75: 2.659748289 | CU75: 116.6738197 | CV75: 6.051196439 | CW75: 0 | CX75: =0 -> 0 | CY75: 0 | CZ75: =0 -> 0 | DA75: 0 | DB75: 0 | DC75: 0 | DD75: 0 | DE75: 0 | DF75: 0 | DG75: 0 | DH75: 0 | DI75: 0 | DJ75: 0 | DK75: 0 | DL75: 0 | DM75: 0 | DN75: 0 | DO75: 0 | DP75: 0 | DQ75: 0 | DR75: 0 | DS75: 0 | DT75: 0 | DU75: 0 | DV75: 0
B76: ='Linear Projection'!B49 -> 2055 | E76: =C76*D76 -> 0 | N76: =SUM(G76:M76) -> 0 | V76: 24.1968469 | W76: 31.93189992 | X76: 2.659748289 | Y76: 116.6738197 | Z76: 6.051196439 | AA76: =E76*F76*G76*O76 -> 0 | AB76: =0 -> 0 | AC76: =E76*F76*H76*P76 -> 0 | AD76: =0 -> 0 | AE76: =((E76*F76*I76*Q76)+(E76*F76*J76*R76)/2) -> 0 | AF76: =AE76/V76 -> 0 | AG76: =E76*F76*K76*S76 -> 0 | AH76: =AG76/W76 -> 0 | AI76: =E76*F76*L76*T76 -> 0 | AJ76: =AI76/X76 -> 0 | AK76: =E76*F76*M76*U76 -> 0 | AL76: =AK76/Y76 -> 0 | AM76: =AK76/Z76 -> 0 | AP76: =AN76*AO76 -> 0 | AY76: =SUM(AR76:AX76) -> 0 | BG76: 24.1968469 | BH76: 31.93189992 | BI76: 2.659748289 | BJ76: 116.6738197 | BK76: 6.051196439 | BL76: =AP76*AQ76*AR76*AZ76 -> 0 | BM76: =0 -> 0 | BN76: =AP76*AQ76*AS76*BA76 -> 0 | BO76: =0 -> 0 | BP76: =((AP76*AQ76*AT76*BB76)+(AP76*AQ76*AU76*BC76)/2) -> 0 | BQ76: =BP76/BG76 -> 0 | BR76: =AP76*AQ76*AV76*BD76 -> 0 | BS76: =BR76/BH76 -> 0 | BT76: =AP76*AQ76*AW76*BE76 -> 0 | BU76: =BT76/BI76 -> 0 | BV76: =AP76*AQ76*AX76*BF76 -> 0 | BW76: =BV76/BJ76 -> 0 | BX76: =BV76/BK76 -> 0 | CA76: =BY76*BZ76 -> 0 | CJ76: =SUM(CC76:CI76) -> 0 | CR76: 24.1968469 | CS76: 31.93189992 | CT76: 2.659748289 | CU76: 116.6738197 | CV76: 6.051196439 | CW76: =CA76*CB76*CC76*CK76 -> 0 | CX76: =0 -> 0 | CY76: =CA76*CB76*CD76*CL76 -> 0 | CZ76: =0 -> 0 | DA76: =((CA76*CB76*CE76*CM76)+(CA76*CB76*CF76*CN76)/2) -> 0 | DB76: =DA76/CR76 -> 0 | DC76: =CA76*CB76*CG76*CO76 -> 0 | DD76: =DC76/CS76 -> 0 | DE76: =CA76*CB76*CH76*CP76 -> 0 | DF76: =DE76/CT76 -> 0 | DG76: =CA76*CB76*CI76*CQ76 -> 0 | DH76: =DG76/CU76 -> 0 | DI76: =DG76/CV76 -> 0 | DJ76: =BL76+CW76 -> 0 | DK76: =BM76+CX76 -> 0 | DL76: =BN76+CY76 -> 0 | DM76: =BO76+CZ76 -> 0 | DN76: =BP76+DA76 -> 0 | DO76: =BQ76+DB76 -> 0 | DP76: =BR76+DC76 -> 0 | DQ76: =BS76+DD76 -> 0 | DR76: =BT76+DE76 -> 0 | DS76: =BU76+DF76 -> 0 | DT76: =BV76+DG76 -> 0 | DU76: =BW76+DH76 -> 0 | DV76: =BX76+DI76 -> 0
B77: ='Linear Projection'!B50 -> 2056 | E77: 0 | N77: 0 | V77: 24.1968469 | W77: 31.93189992 | X77: 2.659748289 | Y77: 116.6738197 | Z77: 6.051196439 | AA77: 0 | AB77: =0 -> 0 | AC77: 0 | AD77: =0 -> 0 | AE77: 0 | AF77: 0 | AG77: 0 | AH77: 0 | AI77: 0 | AJ77: 0 | AK77: 0 | AL77: 0 | AM77: 0 | AP77: 0 | AY77: 0 | BG77: 24.1968469 | BH77: 31.93189992 | BI77: 2.659748289 | BJ77: 116.6738197 | BK77: 6.051196439 | BL77: 0 | BM77: =0 -> 0 | BN77: 0 | BO77: =0 -> 0 | BP77: 0 | BQ77: 0 | BR77: 0 | BS77: 0 | BT77: 0 | BU77: 0 | BV77: 0 | BW77: 0 | BX77: 0 | CA77: 0 | CJ77: 0 | CR77: 24.1968469 | CS77: 31.93189992 | CT77: 2.659748289 | CU77: 116.6738197 | CV77: 6.051196439 | CW77: 0 | CX77: =0 -> 0 | CY77: 0 | CZ77: =0 -> 0 | DA77: 0 | DB77: 0 | DC77: 0 | DD77: 0 | DE77: 0 | DF77: 0 | DG77: 0 | DH77: 0 | DI77: 0 | DJ77: 0 | DK77: 0 | DL77: 0 | DM77: 0 | DN77: 0 | DO77: 0 | DP77: 0 | DQ77: 0 | DR77: 0 | DS77: 0 | DT77: 0 | DU77: 0 | DV77: 0
B78: ='Linear Projection'!B51 -> 2057 | E78: 0 | N78: 0 | V78: 24.1968469 | W78: 31.93189992 | X78: 2.659748289 | Y78: 116.6738197 | Z78: 6.051196439 | AA78: 0 | AB78: =0 -> 0 | AC78: 0 | AD78: =0 -> 0 | AE78: 0 | AF78: 0 | AG78: 0 | AH78: 0 | AI78: 0 | AJ78: 0 | AK78: 0 | AL78: 0 | AM78: 0 | AP78: 0 | AY78: 0 | BG78: 24.1968469 | BH78: 31.93189992 | BI78: 2.659748289 | BJ78: 116.6738197 | BK78: 6.051196439 | BL78: 0 | BM78: =0 -> 0 | BN78: 0 | BO78: =0 -> 0 | BP78: 0 | BQ78: 0 | BR78: 0 | BS78: 0 | BT78: 0 | BU78: 0 | BV78: 0 | BW78: 0 | BX78: 0 | CA78: 0 | CJ78: 0 | CR78: 24.1968469 | CS78: 31.93189992 | CT78: 2.659748289 | CU78: 116.6738197 | CV78: 6.051196439 | CW78: 0 | CX78: =0 -> 0 | CY78: 0 | CZ78: =0 -> 0 | DA78: 0 | DB78: 0 | DC78: 0 | DD78: 0 | DE78: 0 | DF78: 0 | DG78: 0 | DH78: 0 | DI78: 0 | DJ78: 0 | DK78: 0 | DL78: 0 | DM78: 0 | DN78: 0 | DO78: 0 | DP78: 0 | DQ78: 0 | DR78: 0 | DS78: 0 | DT78: 0 | DU78: 0 | DV78: 0
B79: ='Linear Projection'!B52 -> 2058 | E79: 0 | N79: 0 | V79: 24.1968469 | W79: 31.93189992 | X79: 2.659748289 | Y79: 116.6738197 | Z79: 6.051196439 | AA79: 0 | AB79: =0 -> 0 | AC79: 0 | AD79: =0 -> 0 | AE79: 0 | AF79: 0 | AG79: 0 | AH79: 0 | AI79: 0 | AJ79: 0 | AK79: 0 | AL79: 0 | AM79: 0 | AP79: 0 | AY79: 0 | BG79: 24.1968469 | BH79: 31.93189992 | BI79: 2.659748289 | BJ79: 116.6738197 | BK79: 6.051196439 | BL79: 0 | BM79: =0 -> 0 | BN79: 0 | BO79: =0 -> 0 | BP79: 0 | BQ79: 0 | BR79: 0 | BS79: 0 | BT79: 0 | BU79: 0 | BV79: 0 | BW79: 0 | BX79: 0 | CA79: 0 | CJ79: 0 | CR79: 24.1968469 | CS79: 31.93189992 | CT79: 2.659748289 | CU79: 116.6738197 | CV79: 6.051196439 | CW79: 0 | CX79: =0 -> 0 | CY79: 0 | CZ79: =0 -> 0 | DA79: 0 | DB79: 0 | DC79: 0 | DD79: 0 | DE79: 0 | DF79: 0 | DG79: 0 | DH79: 0 | DI79: 0 | DJ79: 0 | DK79: 0 | DL79: 0 | DM79: 0 | DN79: 0 | DO79: 0 | DP79: 0 | DQ79: 0 | DR79: 0 | DS79: 0 | DT79: 0 | DU79: 0 | DV79: 0
B80: ='Linear Projection'!B53 -> 2059 | E80: 0 | N80: 0 | V80: 24.1968469 | W80: 31.93189992 | X80: 2.659748289 | Y80: 116.6738197 | Z80: 6.051196439 | AA80: 0 | AB80: =0 -> 0 | AC80: 0 | AD80: =0 -> 0 | AE80: 0 | AF80: 0 | AG80: 0 | AH80: 0 | AI80: 0 | AJ80: 0 | AK80: 0 | AL80: 0 | AM80: 0 | AP80: 0 | AY80: 0 | BG80: 24.1968469 | BH80: 31.93189992 | BI80: 2.659748289 | BJ80: 116.6738197 | BK80: 6.051196439 | BL80: 0 | BM80: =0 -> 0 | BN80: 0 | BO80: =0 -> 0 | BP80: 0 | BQ80: 0 | BR80: 0 | BS80: 0 | BT80: 0 | BU80: 0 | BV80: 0 | BW80: 0 | BX80: 0 | CA80: 0 | CJ80: 0 | CR80: 24.1968469 | CS80: 31.93189992 | CT80: 2.659748289 | CU80: 116.6738197 | CV80: 6.051196439 | CW80: 0 | CX80: =0 -> 0 | CY80: 0 | CZ80: =0 -> 0 | DA80: 0 | DB80: 0 | DC80: 0 | DD80: 0 | DE80: 0 | DF80: 0 | DG80: 0 | DH80: 0 | DI80: 0 | DJ80: 0 | DK80: 0 | DL80: 0 | DM80: 0 | DN80: 0 | DO80: 0 | DP80: 0 | DQ80: 0 | DR80: 0 | DS80: 0 | DT80: 0 | DU80: 0 | DV80: 0
B81: ='Linear Projection'!B54 -> 2060 | E81: 0 | N81: 0 | V81: 24.1968469 | W81: 31.93189992 | X81: 2.659748289 | Y81: 116.6738197 | Z81: 6.051196439 | AA81: 0 | AB81: =0 -> 0 | AC81: 0 | AD81: =0 -> 0 | AE81: 0 | AF81: 0 | AG81: 0 | AH81: 0 | AI81: 0 | AJ81: 0 | AK81: 0 | AL81: 0 | AM81: 0 | AP81: 0 | AY81: 0 | BG81: 24.1968469 | BH81: 31.93189992 | BI81: 2.659748289 | BJ81: 116.6738197 | BK81: 6.051196439 | BL81: 0 | BM81: =0 -> 0 | BN81: 0 | BO81: =0 -> 0 | BP81: 0 | BQ81: 0 | BR81: 0 | BS81: 0 | BT81: 0 | BU81: 0 | BV81: 0 | BW81: 0 | BX81: 0 | CA81: 0 | CJ81: 0 | CR81: 24.1968469 | CS81: 31.93189992 | CT81: 2.659748289 | CU81: 116.6738197 | CV81: 6.051196439 | CW81: 0 | CX81: =0 -> 0 | CY81: 0 | CZ81: =0 -> 0 | DA81: 0 | DB81: 0 | DC81: 0 | DD81: 0 | DE81: 0 | DF81: 0 | DG81: 0 | DH81: 0 | DI81: 0 | DJ81: 0 | DK81: 0 | DL81: 0 | DM81: 0 | DN81: 0 | DO81: 0 | DP81: 0 | DQ81: 0 | DR81: 0 | DS81: 0 | DT81: 0 | DU81: 0 | DV81: 0
E82: Total Commuter Trips / Week = Number of Commuters * One-Way Trips / Week | N82: Total % Mode Splits = Sum of all % Trips Made by Each Mode | V82: 3 | W82: 3 | X82: 35 | Y82: 35 | Z82: 35 | AA82: Total Distance = Total Trips / Week * Weeks / Year * % Trips by Bike * Miles / Trip | AB82: Assuming bikers do not use any fuel. | AC82: Total Distance = Total Trips / Week * Weeks / Year * % Trips by Foot * Miles / Trip | AD82: Assuming pedestrians do not use any fuel. | AE82: Total Distance = ((Total Trips / Week * Weeks / Year * % Trips Driven Alone * Miles / Trip) + (Total Trips / Week * Weeks / Year * % Carpool * Miles / Trip % Carpool)/2) | AF82: Fuel Consumption = Total Distance / Fuel Efficiency | AG82: Total Distance = Total Trips / Week * Weeks / Year * % Trips by Bus * Miles / Trip | AH82: Fuel Consumption = Total Distance / Fuel Efficiency | AI82: Total Distance = Total Trips / Week * Weeks / Year * % Trips by Light Rail * Miles / Trip | AJ82: Fuel Consumption = Total Distance / Fuel Efficiency | AK82: Total Distance = Total Trips / Week * Weeks / Year * % Trips by Commuter Rail * Miles / Trip | AL82: Fuel Consumption = Total Distance / Fuel Efficiency | AM82: Fuel Consumption = Total Distance / Fuel Efficiency | AP82: Total Commuter Trips / Week = Number of Commuters * One-Way Trips / Week | BG82: 3 | BH82: 3 | BI82: 35 | BJ82: 35 | BK82: 35 | BL82: Total Distance = Total Trips / Week * Weeks / Year * % Trips by Bike * Miles / Trip | BM82: Assuming bikers do not use any fuel. | BN82: Total Distance = Total Trips / Week * Weeks / Year * % Trips by Foot * Miles / Trip | BO82: Assuming pedestrians do not use any fuel. | BP82: Total Distance = ((Total Trips / Week * Weeks / Year * % Trips Driven Alone * Miles / Trip) + (Total Trips / Week * Weeks / Year * % Carpool * Miles / Trip % Carpool)/2) | BQ82: Fuel Consumption = Total Distance / Fuel Efficiency | BR82: Total Distance = Total Trips / Week * Weeks / Year * % Trips by Bus * Miles / Trip | BS82: Fuel Consumption = Total Distance / Fuel Efficiency | BT82: Total Distance = Total Trips / Week * Weeks / Year * % Trips by Light Rail * Miles / Trip | BU82: Fuel Consumption = Total Distance / Fuel Efficiency | BV82: Total Distance = Total Trips / Week * Weeks / Year * % Trips by Commuter Rail * Miles / Trip | BW82: Fuel Consumption = Total Distance / Fuel Efficiency | BX82: Fuel Consumption = Total Distance / Fuel Efficiency | CA82: Total Commuter Trips / Week = Number of Commuters * One-Way Trips / Week | CR82: 3 | CS82: 3 | CT82: 35 | CU82: 35 | CV82: 35 | CW82: Total Distance = Total Trips / Week * Weeks / Year * % Trips by Bike * Miles / Trip | CX82: Assuming bikers do not use any fuel. | CY82: Total Distance = Total Trips / Week * Weeks / Year * % Trips by Foot * Miles / Trip | CZ82: Assuming pedestrians do not use any fuel. | DA82: Total Distance = ((Total Trips / Week * Weeks / Year * % Trips Driven Alone * Miles / Trip) + (Total Trips / Week * Weeks / Year * % Carpool * Miles / Trip % Carpool)/2) | DB82: Fuel Consumption = Total Distance / Fuel Efficiency | DC82: Total Distance = Total Trips / Week * Weeks / Year * % Trips by Bus * Miles / Trip | DD82: Fuel Consumption = Total Distance / Fuel Efficiency | DE82: Total Distance = Total Trips / Week * Weeks / Year * % Trips by Light Rail * Miles / Trip | DF82: Fuel Consumption = Total Distance / Fuel Efficiency | DG82: Total Distance = Total Trips / Week * Weeks / Year * % Trips by Commuter Rail * Miles / Trip | DH82: Fuel Consumption = Total Distance / Fuel Efficiency | DI82: Fuel Consumption = Total Distance / Fuel Efficiency
B84: ©2001-2016 University of New Hampshire. All rights reserved.
B85: UNH, Campus Carbon Calculator, and the UNH logo are trademarks of the University of New Hampshire.

Sheet S_CO2
B2: On this Worksheet: CO2 emissions from all sources. These numbers are the product of the emission factor and the input data. Some sources have no formulas because they have no CO2 emissions, but are included to keep formatting consistent.
B3: MODULE | C3: Summary
B4: WORKSHEET | C4: CO2
B5: UNIVERSITY | C5: =IF((ISBLANK(Introduction!$G$10)),"Please enter university name on 'Introduction' sheet",Introduction!$G$10) -> Please enter university name on 'Introduction' sheet
C6: --- Scope 1 Emissions Sources --- | BG6: --- Scope 2 Emissions Sources --- | BJ6: --- Scope 3 Emissions Sources --- | CV6: --- Offsets ---
C7: On-Campus Stationary Sources | AG7: Direct Transportation Sources | AQ7: Refrigerants & Chemicals | AW7: Agriculture Sources | BG7: Electricity, Steam, and Chilled Water | BJ7: Commuting | BT7: Directly Financed Outsourced Travel | CA7: Study Abroad Travel | CB7: Student Travel to/from Home (OPTIONAL) | CG7: Solid Waste | CL7: Wastewater | CP7: Paper | CU7: Misc
B8: Fiscal Year | C8: On-Campus Cogeneration Plant(s) | R8: Other On-Campus Stationary Sources | AG8: University Fleet | AQ8: Refrigerants & Chemicals | AW8: Fertilizer | AY8: Animal Husbandry | BG8: Electricity | BH8: Steam | BI8: Chilled Water | BJ8: Faculty / Staff Commuting | BO8: Student Commuting | BT8: Air Travel | BV8: Other | CG8: Incinerated Waste | CI8: Landfilled Waste | CL8: Septic System | CM8: Central Treatment System | CP8: =Input!$DG$8 -> Uncoated Freesheet | CQ8: =Input!$DH$8 -> Uncoated Freesheet | CR8: =Input!$DI$8 -> Uncoated Freesheet | CS8: =Input!$DJ$8 -> Uncoated Freesheet | CT8: =Input!$DK$8 -> Uncoated Freesheet | CU8: Scope 2 | CV8: Offsets with Additionality | DA8: Non-Additional Renewable Energy Certificates (RECs)
C9: Residual Oil (#5-6) | D9: Distillate Oil (#1-4) | E9: Natural Gas | F9: LPG (Propane) | G9: Coal (Steam Coal) | H9: Incinerated Waste | I9: Wood Chips | J9: Wood Pellets | K9: Grass Pellets | L9: Residual BioHeat | M9: Distillate BioHeat | N9: Attributable Solar - Electric | O9: Attributable Solar - Thermal | P9: Attributable Wind | Q9: Other Biogenic | R9: Residual Oil (#5-6) | S9: Distillate Oil (#1-4) | T9: Natural Gas | U9: LPG (Propane) | V9: Coal (Steam Coal) | W9: Incinerated Waste | X9: Wood Chips | Y9: Wood Pellets | Z9: Grass Pellets | AA9: Residual BioHeat | AB9: Distillate BioHeat | AC9: Attributable Solar - Electric | AD9: Attributable Solar - Thermal | AE9: Attributable Wind | AF9: Other Biogenic | AG9: Gasoline Fleet | AH9: Diesel Fleet | AI9: Natural Gas Fleet | AJ9: E85 Fleet | AK9: B5 Fleet | AL9: B20 Fleet | AM9: B100 | AN9: Hydrogen | AO9: Other Fleet Fuel | AP9: Electric Fleet | AQ9: =Input!$BF$9 -> HFC-134a | AR9: =Input!$BG$9 -> R-404a | AS9: =Input!$BH$9 -> HCFC-22 | AT9: =Input!$BI$9 -> HCFE-235da2 | AU9: =Input!$BJ$9 -> HG-10 | AV9: =Input!$BK$9 -> Other | AW9: Synthetic | AX9: Organic | AY9: Dairy Cows | AZ9: Beef Cows | BA9: Swine | BB9: Goats | BC9: Sheep | BD9: Horses | BE9: Poultry | BF9: Other | BJ9: Carbon-free Modes | BK9: Automobile | BL9: Bus | BM9: Light Rail | BN9: Commuter Rail | BO9: Carbon-free Modes | BP9: Automobile | BQ9: Bus | BR9: Light Rail | BS9: Commuter Rail | BT9: Faculty / Staff | BU9: Students | BV9: Train | BW9: Taxi / Ferry / Rental Car | BX9: Bus | BY9: Alternative Fuel Bus | BZ9: Personal Mileage Reimbursement | CA9: Air | CB9: Automobile | CC9: Carpool | CD9: Bus | CE9: Train | CF9: Air | CG9: Mass Burn | CH9: Refuse Derived Fuel (RDF) | CI9: No CH4 Recovery | CJ9: CH4 Recovery and Flaring | CK9: CH4 Recovery and Electric Generation | CM9: Aerobic | CN9: Anaerobic | CO9: Anaerobic Digestion | CP9: =Input!$DG$9 -> 0 | CQ9: =Input!$DH$9 -> 0.25 | CR9: =Input!$DI$9 -> 0.5 | CS9: =Input!$DJ$9 -> 0.75 | CT9: =Input!$DK$9 -> 1 | CU9: Transportation & Distribution Losses | CV9: On-campus Composting | CW9: Forest Preservation | CX9: Retail Offsets (High End) | CY9: Retail Offsets (Low End) | CZ9: Other | DA9: Green Power Certificates | DB9: Retail Offsets (High End) | DC9: Retail Offsets (Low End) | DD9: Other
C10: kg CO2 | D10: kg CO2 | E10: kg CO2 | F10: kg CO2 | G10: kg CO2 | H10: kg CO2 | I10: kg CO2 | J10: kg CO2 | K10: kg CO2 | L10: kg CO2 | M10: kg CO2 | N10: kWh | O10: MMBtu | P10: kWh | Q10: kg CO2 | R10: kg CO2 | S10: kg CO2 | T10: kg CO2 | U10: kg CO2 | V10: kg CO2 | W10: kg CO2 | X10: kg CO2 | Y10: kg CO2 | Z10: kg CO2 | AA10: kg CO2 | AB10: kg CO2 | AC10: kWh | AD10: MMBtu | AE10: kWh | AF10: kg CO2 | AG10: kg CO2 | AH10: kg CO2 | AI10: kg CO2 | AJ10: kg CO2 | AK10: kg CO2 | AL10: kg CO2 | AM10: kg CO2 | AN10: kg CO2 | AO10: kg CO2 | AP10: kg CO2 | AQ10: kg CO2 | AR10: kg CO2 | AS10: kg CO2 | AT10: kg CO2 | AU10: kg CO2 | AV10: kg CO2 | AW10: kg CO2 | AX10: kg CO2 | AY10: kg CO2 | AZ10: kg CO2 | BA10: kg CO2 | BB10: kg CO2 | BC10: kg CO2 | BD10: kg CO2 | BE10: kg CO2 | BF10: kg CO2 | BG10: kg CO2 | BH10: kg CO2 | BI10: kg CO2 | BJ10: kg CO2 | BK10: kg CO2 | BL10: kg CO2 | BM10: kg CO2 | BN10: kg CO2 | BO10: kg CO2 | BP10: kg CO2 | BQ10: kg CO2 | BR10: kg CO2 | BS10: kg CO2 | BT10: kg CO2 | BU10: kg CO2 | BV10: kg CO2 | BW10: kg CO2 | BX10: kg CO2 | BY10: kg CO2 | BZ10: kg CO2 | CA10: kg CO2 | CB10: kg CO2 | CC10: kg CO2 | CD10: kg CO2 | CE10: kg CO2 | CF10: kg CO2 | CG10: kg CO2 | CH10: kg CO2 | CI10: kg CO2 | CJ10: kg CO2 | CK10: kg CO2 | CL10: kg CO2 | CM10: kg CO2 | CN10: kg CO2 | CO10: kg CO2 | CP10: kg CO2 | CQ10: kg CO2 | CR10: kg CO2 | CS10: kg CO2 | CT10: kg CO2 | CU10: kg CO2 | CV10: kg CO2 | CW10: kg CO2 | CX10: kg CO2 | CY10: kg CO2 | CZ10: kg CO2 | DA10: kg CO2 | DB10: kg CO2 | DC10: kg CO2 | DD10: kg CO2
B11: =Input!C11 -> 1990 | C11: =Input!N11*EF_CO2!C11 -> 0 | D11: =Input!O11*EF_CO2!D11 -> 0 | E11: =Input!P11*EF_CO2!E11 -> 0 | F11: =Input!Q11*EF_CO2!F11 -> 0 | G11: =Input!R11*EF_CO2!G11 -> 0 | H11: =Input!S11*EF_CO2!H11 -> 0 | I11: =Input!T11*EF_CO2!I11 -> 0 | J11: =Input!U11*EF_CO2!J11 -> 0 | K11: =Input!V11*EF_CO2!K11 -> 0 | L11: =Input!W11*EF_CO2!L11 -> 0 | M11: =Input!X11*EF_CO2!M11 -> 0 | Q11: =Input!AB11*EF_CO2!N11 -> 0 | R11: =Input!AG11*EF_CO2!C11 -> 0 | S11: =Input!AH11*EF_CO2!D11 -> 5128.542659 | T11: =Input!AI11*EF_CO2!E11 -> 3512795 | U11: =Input!AJ11*EF_CO2!F11 -> 0 | V11: =Input!AK11*EF_CO2!G11 -> 7434912.991 | W11: =Input!AL11*EF_CO2!H11 -> 0 | X11: =Input!AM11*EF_CO2!I11 -> 0 | Y11: =Input!AN11*EF_CO2!J11 -> 0 | Z11: =Input!AO11*EF_CO2!K11 -> 0 | AA11: =Input!AP11*EF_CO2!L11 -> 0 | AB11: =Input!AQ11*EF_CO2!M11 -> 0 | AF11: =Input!AU11*EF_CO2!N11 -> 0 | AG11: =Input!AV11*EF_CO2!O11 -> 292425.8676 | AH11: =Input!AW11*EF_CO2!P11 -> 0 | AI11: =Input!AX11*EF_CO2!Q11 -> 0 | AJ11: =Input!AY11*EF_CO2!R11 -> 0 | AK11: =Input!AZ11*EF_CO2!S11 -> 0 | AL11: =Input!BA11*EF_CO2!T11 -> 0 | AM11: =Input!BB11*EF_CO2!U11 -> 0 | AN11: =Input!BC11*EF_CO2!V11 -> 0 | AO11: =Input!BD11*EF_CO2!W11 -> 0 | AP11: =Input!BE11*EF_CO2!AN11 -> 0 | BG11: =Input!BX11*EF_CO2!AN11 -> 8218147.189 | BH11: =Input!BY11*EF_CO2!AO11 -> 0 | BI11: =Input!BZ11*EF_CO2!AP11 -> 0 | BK11: =Input!CB11*EF_CO2!AQ11 -> 477217.9886 | BL11: =Input!CC11*EF_CO2!AR11 -> 0 | BM11: =Input!CD11*EF_CO2!AS11 -> 0 | BN11: =Input!CE11*EF_CO2!AT11 -> 0 | BP11: =Input!CG11*EF_CO2!AU11 -> 2986042.389 | BQ11: =Input!CH11*EF_CO2!AV11 -> 0 | BR11: =Input!CI11*EF_CO2!AW11 -> 0 | BS11: =Input!CJ11*EF_CO2!AX11 -> 0 | BT11: =Input!CK11*EF_CO2!AY11 -> 0 | BU11: =Input!CL11*EF_CO2!AZ11 -> 0 | BV11: =Input!CM11*EF_CO2!BA11 -> 0 | BW11: =Input!CN11*EF_CO2!BB11 -> 0 | BX11: =Input!CO11*EF_CO2!BC11 -> 0 | BY11: =Input!CP11*EF_CO2!BD11 -> 0 | BZ11: =Input!CQ11*EF_CO2!BE11 -> 0 | CA11: =Input!CR11*EF_CO2!BF11 -> 130106.0384 | CB11: =Input!CS11*EF_CO2!BE11 -> 0 | CC11: =Input!CT11*EF_CO2!BE11/2 -> 0 | CD11: =Input!CU11*EF_CO2!BC11 -> 0 | CE11: =Input!CV11*EF_CO2!BA11 -> 0 | CF11: =Input!CW11*EF_CO2!AZ11 -> 0 | CG11: =Input!CX11*EF_CO2!BG11 -> 0 | CH11: =Input!CY11*EF_CO2!BH11 -> 0 | CU11: =((EF_Electric!H12*BG11)/(1-EF_Electric!H12))+((EF_Steam!C9*BH11)/(1-EF_Steam!C9))+((EF_Water!C9*BI11)/(1-EF_Water!C9)) -> 812783.7879
B12: =Input!C12 -> 1991 | C12: =Input!N12*EF_CO2!C12 -> 0 | D12: =Input!O12*EF_CO2!D12 -> 0 | E12: =Input!P12*EF_CO2!E12 -> 0 | F12: =Input!Q12*EF_CO2!F12 -> 0 | G12: =Input!R12*EF_CO2!G12 -> 0 | H12: =Input!S12*EF_CO2!H12 -> 0 | I12: =Input!T12*EF_CO2!I12 -> 0 | J12: =Input!U12*EF_CO2!J12 -> 0 | K12: =Input!V12*EF_CO2!K12 -> 0 | L12: =Input!W12*EF_CO2!L12 -> 0 | M12: =Input!X12*EF_CO2!M12 -> 0 | Q12: =Input!AB12*EF_CO2!N12 -> 0 | R12: =Input!AG12*EF_CO2!C12 -> 0 | S12: =Input!AH12*EF_CO2!D12 -> 71799.59722 | T12: =Input!AI12*EF_CO2!E12 -> 4376423.333 | U12: =Input!AJ12*EF_CO2!F12 -> 0 | V12: =Input!AK12*EF_CO2!G12 -> 6950117.841 | W12: =Input!AL12*EF_CO2!H12 -> 0 | X12: =Input!AM12*EF_CO2!I12 -> 0 | Y12: =Input!AN12*EF_CO2!J12 -> 0 | Z12: =Input!AO12*EF_CO2!K12 -> 0 | AA12: =Input!AP12*EF_CO2!L12 -> 0 | AB12: =Input!AQ12*EF_CO2!M12 -> 0 | AF12: =Input!AU12*EF_CO2!N12 -> 0 | AG12: =Input!AV12*EF_CO2!O12 -> 292425.8676 | AH12: =Input!AW12*EF_CO2!P12 -> 0 | AI12: =Input!AX12*EF_CO2!Q12 -> 0 | AJ12: =Input!AY12*EF_CO2!R12 -> 0 | AK12: =Input!AZ12*EF_CO2!S12 -> 0 | AL12: =Input!BA12*EF_CO2!T12 -> 0 | AM12: =Input!BB12*EF_CO2!U12 -> 0 | AN12: =Input!BC12*EF_CO2!V12 -> 0 | AO12: =Input!BD12*EF_CO2!W12 -> 0 | AP12: =Input!BE12*EF_CO2!AN12 -> 0 | BG12: =Input!BX12*EF_CO2!AN12 -> 8339883.354 | BH12: =Input!BY12*EF_CO2!AO12 -> 0 | BI12: =Input!BZ12*EF_CO2!AP12 -> 0 | BK12: =Input!CB12*EF_CO2!AQ12 -> 458799.6011 | BL12: =Input!CC12*EF_CO2!AR12 -> 0 | BM12: =Input!CD12*EF_CO2!AS12 -> 0 | BN12: =Input!CE12*EF_CO2!AT12 -> 0 | BP12: =Input!CG12*EF_CO2!AU12 -> 2764597.999 | BQ12: =Input!CH12*EF_CO2!AV12 -> 0 | BR12: =Input!CI12*EF_CO2!AW12 -> 0 | BS12: =Input!CJ12*EF_CO2!AX12 -> 0 | BT12: =Input!CK12*EF_CO2!AY12 -> 0 | BU12: =Input!CL12*EF_CO2!AZ12 -> 0 | BV12: =Input!CM12*EF_CO2!BA12 -> 0 | BW12: =Input!CN12*EF_CO2!BB12 -> 0 | BX12: =Input!CO12*EF_CO2!BC12 -> 0 | BY12: =Input!CP12*EF_CO2!BD12 -> 0 | BZ12: =Input!CQ12*EF_CO2!BE12 -> 0 | CA12: =Input!CR12*EF_CO2!BF12 -> 175949.6677 | CB12: =Input!CS12*EF_CO2!BE12 -> 0 | CC12: =Input!CT12*EF_CO2!BE12/2 -> 0 | CD12: =Input!CU12*EF_CO2!BC12 -> 0 | CE12: =Input!CV12*EF_CO2!BA12 -> 0 | CF12: =Input!CW12*EF_CO2!AZ12 -> 0 | CG12: =Input!CX12*EF_CO2!BG12 -> 0 | CH12: =Input!CY12*EF_CO2!BH12 -> 0 | CU12: =((EF_Electric!H13*BG12)/(1-EF_Electric!H13))+((EF_Steam!C10*BH12)/(1-EF_Steam!C10))+((EF_Water!C10*BI12)/(1-EF_Water!C10)) -> 824823.6285
B13: =Input!C13 -> 1992 | C13: =Input!N13*EF_CO2!C13 -> 0 | D13: =Input!O13*EF_CO2!D13 -> 0 | E13: =Input!P13*EF_CO2!E13 -> 0 | F13: =Input!Q13*EF_CO2!F13 -> 0 | G13: =Input!R13*EF_CO2!G13 -> 0 | H13: =Input!S13*EF_CO2!H13 -> 0 | I13: =Input!T13*EF_CO2!I13 -> 0 | J13: =Input!U13*EF_CO2!J13 -> 0 | K13: =Input!V13*EF_CO2!K13 -> 0 | L13: =Input!W13*EF_CO2!L13 -> 0 | M13: =Input!X13*EF_CO2!M13 -> 0 | Q13: =Input!AB13*EF_CO2!N13 -> 0 | R13: =Input!AG13*EF_CO2!C13 -> 0 | S13: =Input!AH13*EF_CO2!D13 -> 0 | T13: =Input!AI13*EF_CO2!E13 -> 4927450 | U13: =Input!AJ13*EF_CO2!F13 -> 0 | V13: =Input!AK13*EF_CO2!G13 -> 5016341.953 | W13: =Input!AL13*EF_CO2!H13 -> 0 | X13: =Input!AM13*EF_CO2!I13 -> 0 | Y13: =Input!AN13*EF_CO2!J13 -> 0 | Z13: =Input!AO13*EF_CO2!K13 -> 0 | AA13: =Input!AP13*EF_CO2!L13 -> 0 | AB13: =Input!AQ13*EF_CO2!M13 -> 0 | AF13: =Input!AU13*EF_CO2!N13 -> 0 | AG13: =Input!AV13*EF_CO2!O13 -> 292425.8676 | AH13: =Input!AW13*EF_CO2!P13 -> 0 | AI13: =Input!AX13*EF_CO2!Q13 -> 0 | AJ13: =Input!AY13*EF_CO2!R13 -> 0 | AK13: =Input!AZ13*EF_CO2!S13 -> 0 | AL13: =Input!BA13*EF_CO2!T13 -> 0 | AM13: =Input!BB13*EF_CO2!U13 -> 0 | AN13: =Input!BC13*EF_CO2!V13 -> 0 | AO13: =Input!BD13*EF_CO2!W13 -> 0 | AP13: =Input!BE13*EF_CO2!AN13 -> 0 | BG13: =Input!BX13*EF_CO2!AN13 -> 8576344.701 | BH13: =Input!BY13*EF_CO2!AO13 -> 0 | BI13: =Input!BZ13*EF_CO2!AP13 -> 0 | BK13: =Input!CB13*EF_CO2!AQ13 -> 462266.9228 | BL13: =Input!CC13*EF_CO2!AR13 -> 0 | BM13: =Input!CD13*EF_CO2!AS13 -> 0 | BN13: =Input!CE13*EF_CO2!AT13 -> 0 | BP13: =Input!CG13*EF_CO2!AU13 -> 2678491.451 | BQ13: =Input!CH13*EF_CO2!AV13 -> 0 | BR13: =Input!CI13*EF_CO2!AW13 -> 0 | BS13: =Input!CJ13*EF_CO2!AX13 -> 0 | BT13: =Input!CK13*EF_CO2!AY13 -> 0 | BU13: =Input!CL13*EF_CO2!AZ13 -> 0 | BV13: =Input!CM13*EF_CO2!BA13 -> 0 | BW13: =Input!CN13*EF_CO2!BB13 -> 0 | BX13: =Input!CO13*EF_CO2!BC13 -> 0 | BY13: =Input!CP13*EF_CO2!BD13 -> 0 | BZ13: =Input!CQ13*EF_CO2!BE13 -> 0 | CA13: =Input!CR13*EF_CO2!BF13 -> 164847.481 | CB13: =Input!CS13*EF_CO2!BE13 -> 0 | CC13: =Input!CT13*EF_CO2!BE13/2 -> 0 | CD13: =Input!CU13*EF_CO2!BC13 -> 0 | CE13: =Input!CV13*EF_CO2!BA13 -> 0 | CF13: =Input!CW13*EF_CO2!AZ13 -> 0 | CG13: =Input!CX13*EF_CO2!BG13 -> 0 | CH13: =Input!CY13*EF_CO2!BH13 -> 0 | CU13: =((EF_Electric!H14*BG13)/(1-EF_Electric!H14))+((EF_Steam!C11*BH13)/(1-EF_Steam!C11))+((EF_Water!C11*BI13)/(1-EF_Water!C11)) -> 848209.9155
B14: =Input!C14 -> 1993 | C14: =Input!N14*EF_CO2!C14 -> 0 | D14: =Input!O14*EF_CO2!D14 -> 0 | E14: =Input!P14*EF_CO2!E14 -> 0 | F14: =Input!Q14*EF_CO2!F14 -> 0 | G14: =Input!R14*EF_CO2!G14 -> 0 | H14: =Input!S14*EF_CO2!H14 -> 0 | I14: =Input!T14*EF_CO2!I14 -> 0 | J14: =Input!U14*EF_CO2!J14 -> 0 | K14: =Input!V14*EF_CO2!K14 -> 0 | L14: =Input!W14*EF_CO2!L14 -> 0 | M14: =Input!X14*EF_CO2!M14 -> 0 | Q14: =Input!AB14*EF_CO2!N14 -> 0 | R14: =Input!AG14*EF_CO2!C14 -> 0 | S14: =Input!AH14*EF_CO2!D14 -> 0 | T14: =Input!AI14*EF_CO2!E14 -> 3968451.667 | U14: =Input!AJ14*EF_CO2!F14 -> 0 | V14: =Input!AK14*EF_CO2!G14 -> 7161438.378 | W14: =Input!AL14*EF_CO2!H14 -> 0 | X14: =Input!AM14*EF_CO2!I14 -> 0 | Y14: =Input!AN14*EF_CO2!J14 -> 0 | Z14: =Input!AO14*EF_CO2!K14 -> 0 | AA14: =Input!AP14*EF_CO2!L14 -> 0 | AB14: =Input!AQ14*EF_CO2!M14 -> 0 | AF14: =Input!AU14*EF_CO2!N14 -> 0 | AG14: =Input!AV14*EF_CO2!O14 -> 291256.8321 | AH14: =Input!AW14*EF_CO2!P14 -> 0 | AI14: =Input!AX14*EF_CO2!Q14 -> 0 | AJ14: =Input!AY14*EF_CO2!R14 -> 0 | AK14: =Input!AZ14*EF_CO2!S14 -> 0 | AL14: =Input!BA14*EF_CO2!T14 -> 0 | AM14: =Input!BB14*EF_CO2!U14 -> 0 | AN14: =Input!BC14*EF_CO2!V14 -> 0 | AO14: =Input!BD14*EF_CO2!W14 -> 0 | AP14: =Input!BE14*EF_CO2!AN14 -> 0 | BG14: =Input!BX14*EF_CO2!AN14 -> 8531729.353 | BH14: =Input!BY14*EF_CO2!AO14 -> 0 | BI14: =Input!BZ14*EF_CO2!AP14 -> 0 | BK14: =Input!CB14*EF_CO2!AQ14 -> 470891.6451 | BL14: =Input!CC14*EF_CO2!AR14 -> 0 | BM14: =Input!CD14*EF_CO2!AS14 -> 0 | BN14: =Input!CE14*EF_CO2!AT14 -> 0 | BP14: =Input!CG14*EF_CO2!AU14 -> 2802827.029 | BQ14: =Input!CH14*EF_CO2!AV14 -> 0 | BR14: =Input!CI14*EF_CO2!AW14 -> 0 | BS14: =Input!CJ14*EF_CO2!AX14 -> 0 | BT14: =Input!CK14*EF_CO2!AY14 -> 0 | BU14: =Input!CL14*EF_CO2!AZ14 -> 0 | BV14: =Input!CM14*EF_CO2!BA14 -> 0 | BW14: =Input!CN14*EF_CO2!BB14 -> 0 | BX14: =Input!CO14*EF_CO2!BC14 -> 0 | BY14: =Input!CP14*EF_CO2!BD14 -> 0 | BZ14: =Input!CQ14*EF_CO2!BE14 -> 0 | CA14: =Input!CR14*EF_CO2!BF14 -> 185703.4288 | CB14: =Input!CS14*EF_CO2!BE14 -> 0 | CC14: =Input!CT14*EF_CO2!BE14/2 -> 0 | CD14: =Input!CU14*EF_CO2!BC14 -> 0 | CE14: =Input!CV14*EF_CO2!BA14 -> 0 | CF14: =Input!CW14*EF_CO2!AZ14 -> 0 | CG14: =Input!CX14*EF_CO2!BG14 -> 0 | CH14: =Input!CY14*EF_CO2!BH14 -> 0 | CU14: =((EF_Electric!H15*BG14)/(1-EF_Electric!H15))+((EF_Steam!C12*BH14)/(1-EF_Steam!C12))+((EF_Water!C12*BI14)/(1-EF_Water!C12)) -> 843797.4085
B15: =Input!C15 -> 1994 | C15: =Input!N15*EF_CO2!C15 -> 0 | D15: =Input!O15*EF_CO2!D15 -> 0 | E15: =Input!P15*EF_CO2!E15 -> 0 | F15: =Input!Q15*EF_CO2!F15 -> 0 | G15: =Input!R15*EF_CO2!G15 -> 0 | H15: =Input!S15*EF_CO2!H15 -> 0 | I15: =Input!T15*EF_CO2!I15 -> 0 | J15: =Input!U15*EF_CO2!J15 -> 0 | K15: =Input!V15*EF_CO2!K15 -> 0 | L15: =Input!W15*EF_CO2!L15 -> 0 | M15: =Input!X15*EF_CO2!M15 -> 0 | Q15: =Input!AB15*EF_CO2!N15 -> 0 | R15: =Input!AG15*EF_CO2!C15 -> 0 | S15: =Input!AH15*EF_CO2!D15 -> 37918.63952 | T15: =Input!AI15*EF_CO2!E15 -> 4461196.667 | U15: =Input!AJ15*EF_CO2!F15 -> 0 | V15: =Input!AK15*EF_CO2!G15 -> 5250992.472 | W15: =Input!AL15*EF_CO2!H15 -> 0 | X15: =Input!AM15*EF_CO2!I15 -> 0 | Y15: =Input!AN15*EF_CO2!J15 -> 0 | Z15: =Input!AO15*EF_CO2!K15 -> 0 | AA15: =Input!AP15*EF_CO2!L15 -> 0 | AB15: =Input!AQ15*EF_CO2!M15 -> 0 | AF15: =Input!AU15*EF_CO2!N15 -> 0 | AG15: =Input!AV15*EF_CO2!O15 -> 291201.1638 | AH15: =Input!AW15*EF_CO2!P15 -> 0 | AI15: =Input!AX15*EF_CO2!Q15 -> 0 | AJ15: =Input!AY15*EF_CO2!R15 -> 0 | AK15: =Input!AZ15*EF_CO2!S15 -> 0 | AL15: =Input!BA15*EF_CO2!T15 -> 0 | AM15: =Input!BB15*EF_CO2!U15 -> 0 | AN15: =Input!BC15*EF_CO2!V15 -> 0 | AO15: =Input!BD15*EF_CO2!W15 -> 0 | AP15: =Input!BE15*EF_CO2!AN15 -> 0 | BG15: =Input!BX15*EF_CO2!AN15 -> 8994454.253 | BH15: =Input!BY15*EF_CO2!AO15 -> 0 | BI15: =Input!BZ15*EF_CO2!AP15 -> 0 | BK15: =Input!CB15*EF_CO2!AQ15 -> 467378.9824 | BL15: =Input!CC15*EF_CO2!AR15 -> 0 | BM15: =Input!CD15*EF_CO2!AS15 -> 0 | BN15: =Input!CE15*EF_CO2!AT15 -> 0 | BP15: =Input!CG15*EF_CO2!AU15 -> 2738443.68 | BQ15: =Input!CH15*EF_CO2!AV15 -> 0 | BR15: =Input!CI15*EF_CO2!AW15 -> 0 | BS15: =Input!CJ15*EF_CO2!AX15 -> 0 | BT15: =Input!CK15*EF_CO2!AY15 -> 0 | BU15: =Input!CL15*EF_CO2!AZ15 -> 0 | BV15: =Input!CM15*EF_CO2!BA15 -> 0 | BW15: =Input!CN15*EF_CO2!BB15 -> 0 | BX15: =Input!CO15*EF_CO2!BC15 -> 0 | BY15: =Input!CP15*EF_CO2!BD15 -> 0 | BZ15: =Input!CQ15*EF_CO2!BE15 -> 0 | CA15: =Input!CR15*EF_CO2!BF15 -> 149803.5727 | CB15: =Input!CS15*EF_CO2!BE15 -> 0 | CC15: =Input!CT15*EF_CO2!BE15/2 -> 0 | CD15: =Input!CU15*EF_CO2!BC15 -> 0 | CE15: =Input!CV15*EF_CO2!BA15 -> 0 | CF15: =Input!CW15*EF_CO2!AZ15 -> 0 | CG15: =Input!CX15*EF_CO2!BG15 -> 0 | CH15: =Input!CY15*EF_CO2!BH15 -> 0 | CU15: =((EF_Electric!H16*BG15)/(1-EF_Electric!H16))+((EF_Steam!C13*BH15)/(1-EF_Steam!C13))+((EF_Water!C13*BI15)/(1-EF_Water!C13)) -> 889561.4096
B16: =Input!C16 -> 1995 | C16: =Input!N16*EF_CO2!C16 -> 0 | D16: =Input!O16*EF_CO2!D16 -> 0 | E16: =Input!P16*EF_CO2!E16 -> 0 | F16: =Input!Q16*EF_CO2!F16 -> 0 | G16: =Input!R16*EF_CO2!G16 -> 0 | H16: =Input!S16*EF_CO2!H16 -> 0 | I16: =Input!T16*EF_CO2!I16 -> 0 | J16: =Input!U16*EF_CO2!J16 -> 0 | K16: =Input!V16*EF_CO2!K16 -> 0 | L16: =Input!W16*EF_CO2!L16 -> 0 | M16: =Input!X16*EF_CO2!M16 -> 0 | Q16: =Input!AB16*EF_CO2!N16 -> 0 | R16: =Input!AG16*EF_CO2!C16 -> 0 | S16: =Input!AH16*EF_CO2!D16 -> 106582.1219 | T16: =Input!AI16*EF_CO2!E16 -> 8483200 | U16: =Input!AJ16*EF_CO2!F16 -> 0 | V16: =Input!AK16*EF_CO2!G16 -> 0 | W16: =Input!AL16*EF_CO2!H16 -> 0 | X16: =Input!AM16*EF_CO2!I16 -> 0 | Y16: =Input!AN16*EF_CO2!J16 -> 0 | Z16: =Input!AO16*EF_CO2!K16 -> 0 | AA16: =Input!AP16*EF_CO2!L16 -> 0 | AB16: =Input!AQ16*EF_CO2!M16 -> 0 | AF16: =Input!AU16*EF_CO2!N16 -> 0 | AG16: =Input!AV16*EF_CO2!O16 -> 289580.0164 | AH16: =Input!AW16*EF_CO2!P16 -> 0 | AI16: =Input!AX16*EF_CO2!Q16 -> 0 | AJ16: =Input!AY16*EF_CO2!R16 -> 0 | AK16: =Input!AZ16*EF_CO2!S16 -> 0 | AL16: =Input!BA16*EF_CO2!T16 -> 0 | AM16: =Input!BB16*EF_CO2!U16 -> 0 | AN16: =Input!BC16*EF_CO2!V16 -> 0 | AO16: =Input!BD16*EF_CO2!W16 -> 0 | AP16: =Input!BE16*EF_CO2!AN16 -> 0 | BG16: =Input!BX16*EF_CO2!AN16 -> 8994454.253 | BH16: =Input!BY16*EF_CO2!AO16 -> 0 | BI16: =Input!BZ16*EF_CO2!AP16 -> 0 | BK16: =Input!CB16*EF_CO2!AQ16 -> 454230.2491 | BL16: =Input!CC16*EF_CO2!AR16 -> 0 | BM16: =Input!CD16*EF_CO2!AS16 -> 0 | BN16: =Input!CE16*EF_CO2!AT16 -> 0 | BP16: =Input!CG16*EF_CO2!AU16 -> 2640238.936 | BQ16: =Input!CH16*EF_CO2!AV16 -> 0 | BR16: =Input!CI16*EF_CO2!AW16 -> 0 | BS16: =Input!CJ16*EF_CO2!AX16 -> 0 | BT16: =Input!CK16*EF_CO2!AY16 -> 0 | BU16: =Input!CL16*EF_CO2!AZ16 -> 0 | BV16: =Input!CM16*EF_CO2!BA16 -> 0 | BW16: =Input!CN16*EF_CO2!BB16 -> 0 | BX16: =Input!CO16*EF_CO2!BC16 -> 0 | BY16: =Input!CP16*EF_CO2!BD16 -> 0 | BZ16: =Input!CQ16*EF_CO2!BE16 -> 0 | CA16: =Input!CR16*EF_CO2!BF16 -> 177846.7631 | CB16: =Input!CS16*EF_CO2!BE16 -> 0 | CC16: =Input!CT16*EF_CO2!BE16/2 -> 0 | CD16: =Input!CU16*EF_CO2!BC16 -> 0 | CE16: =Input!CV16*EF_CO2!BA16 -> 0 | CF16: =Input!CW16*EF_CO2!AZ16 -> 0 | CG16: =Input!CX16*EF_CO2!BG16 -> 0 | CH16: =Input!CY16*EF_CO2!BH16 -> 0 | CU16: =((EF_Electric!H17*BG16)/(1-EF_Electric!H17))+((EF_Steam!C14*BH16)/(1-EF_Steam!C14))+((EF_Water!C14*BI16)/(1-EF_Water!C14)) -> 889561.4096
B17: =Input!C17 -> 1996 | C17: =Input!N17*EF_CO2!C17 -> 0 | D17: =Input!O17*EF_CO2!D17 -> 0 | E17: =Input!P17*EF_CO2!E17 -> 0 | F17: =Input!Q17*EF_CO2!F17 -> 0 | G17: =Input!R17*EF_CO2!G17 -> 0 | H17: =Input!S17*EF_CO2!H17 -> 0 | I17: =Input!T17*EF_CO2!I17 -> 0 | J17: =Input!U17*EF_CO2!J17 -> 0 | K17: =Input!V17*EF_CO2!K17 -> 0 | L17: =Input!W17*EF_CO2!L17 -> 0 | M17: =Input!X17*EF_CO2!M17 -> 0 | Q17: =Input!AB17*EF_CO2!N17 -> 0 | R17: =Input!AG17*EF_CO2!C17 -> 0 | S17: =Input!AH17*EF_CO2!D17 -> 252107.7114 | T17: =Input!AI17*EF_CO2!E17 -> 6632802 | U17: =Input!AJ17*EF_CO2!F17 -> 0 | V17: =Input!AK17*EF_CO2!G17 -> 3420869.566 | W17: =Input!AL17*EF_CO2!H17 -> 0 | X17: =Input!AM17*EF_CO2!I17 -> 0 | Y17: =Input!AN17*EF_CO2!J17 -> 0 | Z17: =Input!AO17*EF_CO2!K17 -> 0 | AA17: =Input!AP17*EF_CO2!L17 -> 0 | AB17: =Input!AQ17*EF_CO2!M17 -> 0 | AF17: =Input!AU17*EF_CO2!N17 -> 0 | AG17: =Input!AV17*EF_CO2!O17 -> 289430.44 | AH17: =Input!AW17*EF_CO2!P17 -> 0 | AI17: =Input!AX17*EF_CO2!Q17 -> 0 | AJ17: =Input!AY17*EF_CO2!R17 -> 0 | AK17: =Input!AZ17*EF_CO2!S17 -> 0 | AL17: =Input!BA17*EF_CO2!T17 -> 0 | AM17: =Input!BB17*EF_CO2!U17 -> 0 | AN17: =Input!BC17*EF_CO2!V17 -> 0 | AO17: =Input!BD17*EF_CO2!W17 -> 0 | AP17: =Input!BE17*EF_CO2!AN17 -> 0 | BG17: =Input!BX17*EF_CO2!AN17 -> 9369223.18 | BH17: =Input!BY17*EF_CO2!AO17 -> 0 | BI17: =Input!BZ17*EF_CO2!AP17 -> 0 | BK17: =Input!CB17*EF_CO2!AQ17 -> 444120.0788 | BL17: =Input!CC17*EF_CO2!AR17 -> 0 | BM17: =Input!CD17*EF_CO2!AS17 -> 0 | BN17: =Input!CE17*EF_CO2!AT17 -> 0 | BP17: =Input!CG17*EF_CO2!AU17 -> 2663726.25 | BQ17: =Input!CH17*EF_CO2!AV17 -> 0 | BR17: =Input!CI17*EF_CO2!AW17 -> 0 | BS17: =Input!CJ17*EF_CO2!AX17 -> 0 | BT17: =Input!CK17*EF_CO2!AY17 -> 0 | BU17: =Input!CL17*EF_CO2!AZ17 -> 0 | BV17: =Input!CM17*EF_CO2!BA17 -> 0 | BW17: =Input!CN17*EF_CO2!BB17 -> 0 | BX17: =Input!CO17*EF_CO2!BC17 -> 0 | BY17: =Input!CP17*EF_CO2!BD17 -> 0 | BZ17: =Input!CQ17*EF_CO2!BE17 -> 0 | CA17: =Input!CR17*EF_CO2!BF17 -> 167305.2203 | CB17: =Input!CS17*EF_CO2!BE17 -> 0 | CC17: =Input!CT17*EF_CO2!BE17/2 -> 0 | CD17: =Input!CU17*EF_CO2!BC17 -> 0 | CE17: =Input!CV17*EF_CO2!BA17 -> 0 | CF17: =Input!CW17*EF_CO2!AZ17 -> 0 | CG17: =Input!CX17*EF_CO2!BG17 -> 0 | CH17: =Input!CY17*EF_CO2!BH17 -> 0 | CU17: =((EF_Electric!H18*BG17)/(1-EF_Electric!H18))+((EF_Steam!C15*BH17)/(1-EF_Steam!C15))+((EF_Water!C15*BI17)/(1-EF_Water!C15)) -> 926626.4683
B18: =Input!C18 -> 1997 | C18: =Input!N18*EF_CO2!C18 -> 0 | D18: =Input!O18*EF_CO2!D18 -> 0 | E18: =Input!P18*EF_CO2!E18 -> 0 | F18: =Input!Q18*EF_CO2!F18 -> 0 | G18: =Input!R18*EF_CO2!G18 -> 0 | H18: =Input!S18*EF_CO2!H18 -> 0 | I18: =Input!T18*EF_CO2!I18 -> 0 | J18: =Input!U18*EF_CO2!J18 -> 0 | K18: =Input!V18*EF_CO2!K18 -> 0 | L18: =Input!W18*EF_CO2!L18 -> 0 | M18: =Input!X18*EF_CO2!M18 -> 0 | Q18: =Input!AB18*EF_CO2!N18 -> 0 | R18: =Input!AG18*EF_CO2!C18 -> 0 | S18: =Input!AH18*EF_CO2!D18 -> 451949.19 | T18: =Input!AI18*EF_CO2!E18 -> 4220392 | U18: =Input!AJ18*EF_CO2!F18 -> 0 | V18: =Input!AK18*EF_CO2!G18 -> 6654201.323 | W18: =Input!AL18*EF_CO2!H18 -> 0 | X18: =Input!AM18*EF_CO2!I18 -> 0 | Y18: =Input!AN18*EF_CO2!J18 -> 0 | Z18: =Input!AO18*EF_CO2!K18 -> 0 | AA18: =Input!AP18*EF_CO2!L18 -> 0 | AB18: =Input!AQ18*EF_CO2!M18 -> 0 | AF18: =Input!AU18*EF_CO2!N18 -> 0 | AG18: =Input!AV18*EF_CO2!O18 -> 289413.5273 | AH18: =Input!AW18*EF_CO2!P18 -> 0 | AI18: =Input!AX18*EF_CO2!Q18 -> 0 | AJ18: =Input!AY18*EF_CO2!R18 -> 0 | AK18: =Input!AZ18*EF_CO2!S18 -> 0 | AL18: =Input!BA18*EF_CO2!T18 -> 0 | AM18: =Input!BB18*EF_CO2!U18 -> 0 | AN18: =Input!BC18*EF_CO2!V18 -> 0 | AO18: =Input!BD18*EF_CO2!W18 -> 0 | AP18: =Input!BE18*EF_CO2!AN18 -> 0 | BG18: =Input!BX18*EF_CO2!AN18 -> 9922453.501 | BH18: =Input!BY18*EF_CO2!AO18 -> 0 | BI18: =Input!BZ18*EF_CO2!AP18 -> 0 | BK18: =Input!CB18*EF_CO2!AQ18 -> 439060.9187 | BL18: =Input!CC18*EF_CO2!AR18 -> 0 | BM18: =Input!CD18*EF_CO2!AS18 -> 0 | BN18: =Input!CE18*EF_CO2!AT18 -> 0 | BP18: =Input!CG18*EF_CO2!AU18 -> 2725075.562 | BQ18: =Input!CH18*EF_CO2!AV18 -> 0 | BR18: =Input!CI18*EF_CO2!AW18 -> 0 | BS18: =Input!CJ18*EF_CO2!AX18 -> 0 | BT18: =Input!CK18*EF_CO2!AY18 -> 0 | BU18: =Input!CL18*EF_CO2!AZ18 -> 0 | BV18: =Input!CM18*EF_CO2!BA18 -> 0 | BW18: =Input!CN18*EF_CO2!BB18 -> 0 | BX18: =Input!CO18*EF_CO2!BC18 -> 0 | BY18: =Input!CP18*EF_CO2!BD18 -> 0 | BZ18: =Input!CQ18*EF_CO2!BE18 -> 0 | CA18: =Input!CR18*EF_CO2!BF18 -> 202922.1147 | CB18: =Input!CS18*EF_CO2!BE18 -> 0 | CC18: =Input!CT18*EF_CO2!BE18/2 -> 0 | CD18: =Input!CU18*EF_CO2!BC18 -> 0 | CE18: =Input!CV18*EF_CO2!BA18 -> 0 | CF18: =Input!CW18*EF_CO2!AZ18 -> 0 | CG18: =Input!CX18*EF_CO2!BG18 -> 0 | CH18: =Input!CY18*EF_CO2!BH18 -> 0 | CU18: =((EF_Electric!H19*BG18)/(1-EF_Electric!H19))+((EF_Steam!C16*BH18)/(1-EF_Steam!C16))+((EF_Water!C16*BI18)/(1-EF_Water!C16)) -> 981341.555
B19: =Input!C19 -> 1998 | C19: =Input!N19*EF_CO2!C19 -> 0 | D19: =Input!O19*EF_CO2!D19 -> 0 | E19: =Input!P19*EF_CO2!E19 -> 0 | F19: =Input!Q19*EF_CO2!F19 -> 0 | G19: =Input!R19*EF_CO2!G19 -> 0 | H19: =Input!S19*EF_CO2!H19 -> 0 | I19: =Input!T19*EF_CO2!I19 -> 0 | J19: =Input!U19*EF_CO2!J19 -> 0 | K19: =Input!V19*EF_CO2!K19 -> 0 | L19: =Input!W19*EF_CO2!L19 -> 0 | M19: =Input!X19*EF_CO2!M19 -> 0 | Q19: =Input!AB19*EF_CO2!N19 -> 0 | R19: =Input!AG19*EF_CO2!C19 -> 0 | S19: =Input!AH19*EF_CO2!D19 -> 392441.719 | T19: =Input!AI19*EF_CO2!E19 -> 4643422.667 | U19: =Input!AJ19*EF_CO2!F19 -> 0 | V19: =Input!AK19*EF_CO2!G19 -> 4685108.699 | W19: =Input!AL19*EF_CO2!H19 -> 0 | X19: =Input!AM19*EF_CO2!I19 -> 0 | Y19: =Input!AN19*EF_CO2!J19 -> 0 | Z19: =Input!AO19*EF_CO2!K19 -> 0 | AA19: =Input!AP19*EF_CO2!L19 -> 0 | AB19: =Input!AQ19*EF_CO2!M19 -> 0 | AF19: =Input!AU19*EF_CO2!N19 -> 0 | AG19: =Input!AV19*EF_CO2!O19 -> 289563.0178 | AH19: =Input!AW19*EF_CO2!P19 -> 0 | AI19: =Input!AX19*EF_CO2!Q19 -> 0 | AJ19: =Input!AY19*EF_CO2!R19 -> 0 | AK19: =Input!AZ19*EF_CO2!S19 -> 0 | AL19: =Input!BA19*EF_CO2!T19 -> 0 | AM19: =Input!BB19*EF_CO2!U19 -> 0 | AN19: =Input!BC19*EF_CO2!V19 -> 0 | AO19: =Input!BD19*EF_CO2!W19 -> 0 | AP19: =Input!BE19*EF_CO2!AN19 -> 0 | BG19: =Input!BX19*EF_CO2!AN19 -> 9897596.378 | BH19: =Input!BY19*EF_CO2!AO19 -> 0 | BI19: =Input!BZ19*EF_CO2!AP19 -> 0 | BK19: =Input!CB19*EF_CO2!AQ19 -> 455146.4035 | BL19: =Input!CC19*EF_CO2!AR19 -> 0 | BM19: =Input!CD19*EF_CO2!AS19 -> 0 | BN19: =Input!CE19*EF_CO2!AT19 -> 0 | BP19: =Input!CG19*EF_CO2!AU19 -> 2786103.37 | BQ19: =Input!CH19*EF_CO2!AV19 -> 0 | BR19: =Input!CI19*EF_CO2!AW19 -> 0 | BS19: =Input!CJ19*EF_CO2!AX19 -> 0 | BT19: =Input!CK19*EF_CO2!AY19 -> 0 | BU19: =Input!CL19*EF_CO2!AZ19 -> 0 | BV19: =Input!CM19*EF_CO2!BA19 -> 0 | BW19: =Input!CN19*EF_CO2!BB19 -> 0 | BX19: =Input!CO19*EF_CO2!BC19 -> 0 | BY19: =Input!CP19*EF_CO2!BD19 -> 0 | BZ19: =Input!CQ19*EF_CO2!BE19 -> 0 | CA19: =Input!CR19*EF_CO2!BF19 -> 186833.6141 | CB19: =Input!CS19*EF_CO2!BE19 -> 0 | CC19: =Input!CT19*EF_CO2!BE19/2 -> 0 | CD19: =Input!CU19*EF_CO2!BC19 -> 0 | CE19: =Input!CV19*EF_CO2!BA19 -> 0 | CF19: =Input!CW19*EF_CO2!AZ19 -> 0 | CG19: =Input!CX19*EF_CO2!BG19 -> 0 | CH19: =Input!CY19*EF_CO2!BH19 -> 0 | CU19: =((EF_Electric!H20*BG19)/(1-EF_Electric!H20))+((EF_Steam!C17*BH19)/(1-EF_Steam!C17))+((EF_Water!C17*BI19)/(1-EF_Water!C17)) -> 978883.1583
B20: =Input!C20 -> 1999 | C20: =Input!N20*EF_CO2!C20 -> 0 | D20: =Input!O20*EF_CO2!D20 -> 0 | E20: =Input!P20*EF_CO2!E20 -> 0 | F20: =Input!Q20*EF_CO2!F20 -> 0 | G20: =Input!R20*EF_CO2!G20 -> 0 | H20: =Input!S20*EF_CO2!H20 -> 0 | I20: =Input!T20*EF_CO2!I20 -> 0 | J20: =Input!U20*EF_CO2!J20 -> 0 | K20: =Input!V20*EF_CO2!K20 -> 0 | L20: =Input!W20*EF_CO2!L20 -> 0 | M20: =Input!X20*EF_CO2!M20 -> 0 | Q20: =Input!AB20*EF_CO2!N20 -> 0 | R20: =Input!AG20*EF_CO2!C20 -> 0 | S20: =Input!AH20*EF_CO2!D20 -> 48158.64437 | T20: =Input!AI20*EF_CO2!E20 -> 7300854 | U20: =Input!AJ20*EF_CO2!F20 -> 0 | V20: =Input!AK20*EF_CO2!G20 -> 1917663.818 | W20: =Input!AL20*EF_CO2!H20 -> 0 | X20: =Input!AM20*EF_CO2!I20 -> 0 | Y20: =Input!AN20*EF_CO2!J20 -> 0 | Z20: =Input!AO20*EF_CO2!K20 -> 0 | AA20: =Input!AP20*EF_CO2!L20 -> 0 | AB20: =Input!AQ20*EF_CO2!M20 -> 0 | AF20: =Input!AU20*EF_CO2!N20 -> 0 | AG20: =Input!AV20*EF_CO2!O20 -> 288704.8021 | AH20: =Input!AW20*EF_CO2!P20 -> 0 | AI20: =Input!AX20*EF_CO2!Q20 -> 0 | AJ20: =Input!AY20*EF_CO2!R20 -> 0 | AK20: =Input!AZ20*EF_CO2!S20 -> 0 | AL20: =Input!BA20*EF_CO2!T20 -> 0 | AM20: =Input!BB20*EF_CO2!U20 -> 0 | AN20: =Input!BC20*EF_CO2!V20 -> 0 | AO20: =Input!BD20*EF_CO2!W20 -> 0 | AP20: =Input!BE20*EF_CO2!AN20 -> 0 | BG20: =Input!BX20*EF_CO2!AN20 -> 10114299.5 | BH20: =Input!BY20*EF_CO2!AO20 -> 0 | BI20: =Input!BZ20*EF_CO2!AP20 -> 0 | BK20: =Input!CB20*EF_CO2!AQ20 -> 462122.6734 | BL20: =Input!CC20*EF_CO2!AR20 -> 0 | BM20: =Input!CD20*EF_CO2!AS20 -> 0 | BN20: =Input!CE20*EF_CO2!AT20 -> 0 | BP20: =Input!CG20*EF_CO2!AU20 -> 2862885.258 | BQ20: =Input!CH20*EF_CO2!AV20 -> 0 | BR20: =Input!CI20*EF_CO2!AW20 -> 0 | BS20: =Input!CJ20*EF_CO2!AX20 -> 0 | BT20: =Input!CK20*EF_CO2!AY20 -> 0 | BU20: =Input!CL20*EF_CO2!AZ20 -> 0 | BV20: =Input!CM20*EF_CO2!BA20 -> 0 | BW20: =Input!CN20*EF_CO2!BB20 -> 0 | BX20: =Input!CO20*EF_CO2!BC20 -> 0 | BY20: =Input!CP20*EF_CO2!BD20 -> 0 | BZ20: =Input!CQ20*EF_CO2!BE20 -> 0 | CA20: =Input!CR20*EF_CO2!BF20 -> 204702.295 | CB20: =Input!CS20*EF_CO2!BE20 -> 0 | CC20: =Input!CT20*EF_CO2!BE20/2 -> 0 | CD20: =Input!CU20*EF_CO2!BC20 -> 0 | CE20: =Input!CV20*EF_CO2!BA20 -> 0 | CF20: =Input!CW20*EF_CO2!AZ20 -> 0 | CG20: =Input!CX20*EF_CO2!BG20 -> 0 | CH20: =Input!CY20*EF_CO2!BH20 -> 0 | CU20: =((EF_Electric!H21*BG20)/(1-EF_Electric!H21))+((EF_Steam!C18*BH20)/(1-EF_Steam!C18))+((EF_Water!C18*BI20)/(1-EF_Water!C18)) -> 1000315.335
B21: =Input!C21 -> 2000 | C21: =Input!N21*EF_CO2!C21 -> 0 | D21: =Input!O21*EF_CO2!D21 -> 0 | E21: =Input!P21*EF_CO2!E21 -> 0 | F21: =Input!Q21*EF_CO2!F21 -> 0 | G21: =Input!R21*EF_CO2!G21 -> 0 | H21: =Input!S21*EF_CO2!H21 -> 0 | I21: =Input!T21*EF_CO2!I21 -> 0 | J21: =Input!U21*EF_CO2!J21 -> 0 | K21: =Input!V21*EF_CO2!K21 -> 0 | L21: =Input!W21*EF_CO2!L21 -> 0 | M21: =Input!X21*EF_CO2!M21 -> 0 | Q21: =Input!AB21*EF_CO2!N21 -> 0 | R21: =Input!AG21*EF_CO2!C21 -> 0 | S21: =Input!AH21*EF_CO2!D21 -> 11271.17209 | T21: =Input!AI21*EF_CO2!E21 -> 5056300.333 | U21: =Input!AJ21*EF_CO2!F21 -> 0 | V21: =Input!AK21*EF_CO2!G21 -> 6492734.285 | W21: =Input!AL21*EF_CO2!H21 -> 0 | X21: =Input!AM21*EF_CO2!I21 -> 0 | Y21: =Input!AN21*EF_CO2!J21 -> 0 | Z21: =Input!AO21*EF_CO2!K21 -> 0 | AA21: =Input!AP21*EF_CO2!L21 -> 0 | AB21: =Input!AQ21*EF_CO2!M21 -> 0 | AF21: =Input!AU21*EF_CO2!N21 -> 0 | AG21: =Input!AV21*EF_CO2!O21 -> 303779.6715 | AH21: =Input!AW21*EF_CO2!P21 -> 31764.21225 | AI21: =Input!AX21*EF_CO2!Q21 -> 0 | AJ21: =Input!AY21*EF_CO2!R21 -> 0 | AK21: =Input!AZ21*EF_CO2!S21 -> 0 | AL21: =Input!BA21*EF_CO2!T21 -> 0 | AM21: =Input!BB21*EF_CO2!U21 -> 0 | AN21: =Input!BC21*EF_CO2!V21 -> 0 | AO21: =Input!BD21*EF_CO2!W21 -> 0 | AP21: =Input!BE21*EF_CO2!AN21 -> 0 | BG21: =Input!BX21*EF_CO2!AN21 -> 10331639.98 | BH21: =Input!BY21*EF_CO2!AO21 -> 0 | BI21: =Input!BZ21*EF_CO2!AP21 -> 0 | BK21: =Input!CB21*EF_CO2!AQ21 -> 466216.1155 | BL21: =Input!CC21*EF_CO2!AR21 -> 0 | BM21: =Input!CD21*EF_CO2!AS21 -> 0 | BN21: =Input!CE21*EF_CO2!AT21 -> 0 | BP21: =Input!CG21*EF_CO2!AU21 -> 2814162.297 | BQ21: =Input!CH21*EF_CO2!AV21 -> 0 | BR21: =Input!CI21*EF_CO2!AW21 -> 0 | BS21: =Input!CJ21*EF_CO2!AX21 -> 0 | BT21: =Input!CK21*EF_CO2!AY21 -> 0 | BU21: =Input!CL21*EF_CO2!AZ21 -> 0 | BV21: =Input!CM21*EF_CO2!BA21 -> 0 | BW21: =Input!CN21*EF_CO2!BB21 -> 0 | BX21: =Input!CO21*EF_CO2!BC21 -> 0 | BY21: =Input!CP21*EF_CO2!BD21 -> 0 | BZ21: =Input!CQ21*EF_CO2!BE21 -> 0 | CA21: =Input!CR21*EF_CO2!BF21 -> 176020.7379 | CB21: =Input!CS21*EF_CO2!BE21 -> 0 | CC21: =Input!CT21*EF_CO2!BE21/2 -> 0 | CD21: =Input!CU21*EF_CO2!BC21 -> 0 | CE21: =Input!CV21*EF_CO2!BA21 -> 0 | CF21: =Input!CW21*EF_CO2!AZ21 -> 0 | CG21: =Input!CX21*EF_CO2!BG21 -> 0 | CH21: =Input!CY21*EF_CO2!BH21 -> 0 | CU21: =((EF_Electric!H22*BG21)/(1-EF_Electric!H22))+((EF_Steam!C19*BH21)/(1-EF_Steam!C19))+((EF_Water!C19*BI21)/(1-EF_Water!C19)) -> 1021810.548
B22: =Input!C22 -> 2001 | C22: =Input!N22*EF_CO2!C22 -> 0 | D22: =Input!O22*EF_CO2!D22 -> 0 | E22: =Input!P22*EF_CO2!E22 -> 0 | F22: =Input!Q22*EF_CO2!F22 -> 0 | G22: =Input!R22*EF_CO2!G22 -> 0 | H22: =Input!S22*EF_CO2!H22 -> 0 | I22: =Input!T22*EF_CO2!I22 -> 0 | J22: =Input!U22*EF_CO2!J22 -> 0 | K22: =Input!V22*EF_CO2!K22 -> 0 | L22: =Input!W22*EF_CO2!L22 -> 0 | M22: =Input!X22*EF_CO2!M22 -> 0 | Q22: =Input!AB22*EF_CO2!N22 -> 0 | R22: =Input!AG22*EF_CO2!C22 -> 0 | S22: =Input!AH22*EF_CO2!D22 -> 38936.7763 | T22: =Input!AI22*EF_CO2!E22 -> 3177753.7 | U22: =Input!AJ22*EF_CO2!F22 -> 0 | V22: =Input!AK22*EF_CO2!G22 -> 8042966.646 | W22: =Input!AL22*EF_CO2!H22 -> 0 | X22: =Input!AM22*EF_CO2!I22 -> 0 | Y22: =Input!AN22*EF_CO2!J22 -> 0 | Z22: =Input!AO22*EF_CO2!K22 -> 0 | AA22: =Input!AP22*EF_CO2!L22 -> 0 | AB22: =Input!AQ22*EF_CO2!M22 -> 0 | AF22: =Input!AU22*EF_CO2!N22 -> 0 | AG22: =Input!AV22*EF_CO2!O22 -> 296295.4889 | AH22: =Input!AW22*EF_CO2!P22 -> 32942.56206 | AI22: =Input!AX22*EF_CO2!Q22 -> 0 | AJ22: =Input!AY22*EF_CO2!R22 -> 0 | AK22: =Input!AZ22*EF_CO2!S22 -> 0 | AL22: =Input!BA22*EF_CO2!T22 -> 0 | AM22: =Input!BB22*EF_CO2!U22 -> 0 | AN22: =Input!BC22*EF_CO2!V22 -> 0 | AO22: =Input!BD22*EF_CO2!W22 -> 0 | AP22: =Input!BE22*EF_CO2!AN22 -> 0 | BG22: =Input!BX22*EF_CO2!AN22 -> 9731244.865 | BH22: =Input!BY22*EF_CO2!AO22 -> 0 | BI22: =Input!BZ22*EF_CO2!AP22 -> 0 | BK22: =Input!CB22*EF_CO2!AQ22 -> 460856.334 | BL22: =Input!CC22*EF_CO2!AR22 -> 0 | BM22: =Input!CD22*EF_CO2!AS22 -> 0 | BN22: =Input!CE22*EF_CO2!AT22 -> 0 | BP22: =Input!CG22*EF_CO2!AU22 -> 2644917.529 | BQ22: =Input!CH22*EF_CO2!AV22 -> 0 | BR22: =Input!CI22*EF_CO2!AW22 -> 0 | BS22: =Input!CJ22*EF_CO2!AX22 -> 0 | BT22: =Input!CK22*EF_CO2!AY22 -> 0 | BU22: =Input!CL22*EF_CO2!AZ22 -> 0 | BV22: =Input!CM22*EF_CO2!BA22 -> 0 | BW22: =Input!CN22*EF_CO2!BB22 -> 0 | BX22: =Input!CO22*EF_CO2!BC22 -> 0 | BY22: =Input!CP22*EF_CO2!BD22 -> 0 | BZ22: =Input!CQ22*EF_CO2!BE22 -> 0 | CA22: =Input!CR22*EF_CO2!BF22 -> 224553.196 | CB22: =Input!CS22*EF_CO2!BE22 -> 0 | CC22: =Input!CT22*EF_CO2!BE22/2 -> 0 | CD22: =Input!CU22*EF_CO2!BC22 -> 0 | CE22: =Input!CV22*EF_CO2!BA22 -> 0 | CF22: =Input!CW22*EF_CO2!AZ22 -> 0 | CG22: =Input!CX22*EF_CO2!BG22 -> 0 | CH22: =Input!CY22*EF_CO2!BH22 -> 0 | CU22: =((EF_Electric!H23*BG22)/(1-EF_Electric!H23))+((EF_Steam!C20*BH22)/(1-EF_Steam!C20))+((EF_Water!C20*BI22)/(1-EF_Water!C20)) -> 962430.8108
B23: =Input!C23 -> 2002 | C23: =Input!N23*EF_CO2!C23 -> 0 | D23: =Input!O23*EF_CO2!D23 -> 0 | E23: =Input!P23*EF_CO2!E23 -> 0 | F23: =Input!Q23*EF_CO2!F23 -> 0 | G23: =Input!R23*EF_CO2!G23 -> 0 | H23: =Input!S23*EF_CO2!H23 -> 0 | I23: =Input!T23*EF_CO2!I23 -> 0 | J23: =Input!U23*EF_CO2!J23 -> 0 | K23: =Input!V23*EF_CO2!K23 -> 0 | L23: =Input!W23*EF_CO2!L23 -> 0 | M23: =Input!X23*EF_CO2!M23 -> 0 | Q23: =Input!AB23*EF_CO2!N23 -> 0 | R23: =Input!AG23*EF_CO2!C23 -> 0 | S23: =Input!AH23*EF_CO2!D23 -> 6147.912048 | T23: =Input!AI23*EF_CO2!E23 -> 2657627.5 | U23: =Input!AJ23*EF_CO2!F23 -> 0 | V23: =Input!AK23*EF_CO2!G23 -> 9466894.599 | W23: =Input!AL23*EF_CO2!H23 -> 0 | X23: =Input!AM23*EF_CO2!I23 -> 0 | Y23: =Input!AN23*EF_CO2!J23 -> 0 | Z23: =Input!AO23*EF_CO2!K23 -> 0 | AA23: =Input!AP23*EF_CO2!L23 -> 0 | AB23: =Input!AQ23*EF_CO2!M23 -> 0 | AF23: =Input!AU23*EF_CO2!N23 -> 0 | AG23: =Input!AV23*EF_CO2!O23 -> 293272.5787 | AH23: =Input!AW23*EF_CO2!P23 -> 23546.50314 | AI23: =Input!AX23*EF_CO2!Q23 -> 0 | AJ23: =Input!AY23*EF_CO2!R23 -> 0 | AK23: =Input!AZ23*EF_CO2!S23 -> 0 | AL23: =Input!BA23*EF_CO2!T23 -> 0 | AM23: =Input!BB23*EF_CO2!U23 -> 0 | AN23: =Input!BC23*EF_CO2!V23 -> 0 | AO23: =Input!BD23*EF_CO2!W23 -> 0 | AP23: =Input!BE23*EF_CO2!AN23 -> 0 | BG23: =Input!BX23*EF_CO2!AN23 -> 10028255.61 | BH23: =Input!BY23*EF_CO2!AO23 -> 0 | BI23: =Input!BZ23*EF_CO2!AP23 -> 0 | BK23: =Input!CB23*EF_CO2!AQ23 -> 460596.8754 | BL23: =Input!CC23*EF_CO2!AR23 -> 0 | BM23: =Input!CD23*EF_CO2!AS23 -> 0 | BN23: =Input!CE23*EF_CO2!AT23 -> 0 | BP23: =Input!CG23*EF_CO2!AU23 -> 2857746.343 | BQ23: =Input!CH23*EF_CO2!AV23 -> 0 | BR23: =Input!CI23*EF_CO2!AW23 -> 0 | BS23: =Input!CJ23*EF_CO2!AX23 -> 0 | BT23: =Input!CK23*EF_CO2!AY23 -> 0 | BU23: =Input!CL23*EF_CO2!AZ23 -> 0 | BV23: =Input!CM23*EF_CO2!BA23 -> 0 | BW23: =Input!CN23*EF_CO2!BB23 -> 0 | BX23: =Input!CO23*EF_CO2!BC23 -> 0 | BY23: =Input!CP23*EF_CO2!BD23 -> 0 | BZ23: =Input!CQ23*EF_CO2!BE23 -> 0 | CA23: =Input!CR23*EF_CO2!BF23 -> 226320.0872 | CB23: =Input!CS23*EF_CO2!BE23 -> 0 | CC23: =Input!CT23*EF_CO2!BE23/2 -> 0 | CD23: =Input!CU23*EF_CO2!BC23 -> 0 | CE23: =Input!CV23*EF_CO2!BA23 -> 0 | CF23: =Input!CW23*EF_CO2!AZ23 -> 0 | CG23: =Input!CX23*EF_CO2!BG23 -> 0 | CH23: =Input!CY23*EF_CO2!BH23 -> 0 | CU23: =((EF_Electric!H24*BG23)/(1-EF_Electric!H24))+((EF_Steam!C21*BH23)/(1-EF_Steam!C21))+((EF_Water!C21*BI23)/(1-EF_Water!C21)) -> 991805.5002
B24: =Input!C24 -> 2003 | C24: =Input!N24*EF_CO2!C24 -> 0 | D24: =Input!O24*EF_CO2!D24 -> 0 | E24: =Input!P24*EF_CO2!E24 -> 0 | F24: =Input!Q24*EF_CO2!F24 -> 0 | G24: =Input!R24*EF_CO2!G24 -> 0 | H24: =Input!S24*EF_CO2!H24 -> 0 | I24: =Input!T24*EF_CO2!I24 -> 0 | J24: =Input!U24*EF_CO2!J24 -> 0 | K24: =Input!V24*EF_CO2!K24 -> 0 | L24: =Input!W24*EF_CO2!L24 -> 0 | M24: =Input!X24*EF_CO2!M24 -> 0 | Q24: =Input!AB24*EF_CO2!N24 -> 0 | R24: =Input!AG24*EF_CO2!C24 -> 0 | S24: =Input!AH24*EF_CO2!D24 -> 10246.52008 | T24: =Input!AI24*EF_CO2!E24 -> 3035273.56 | U24: =Input!AJ24*EF_CO2!F24 -> 0 | V24: =Input!AK24*EF_CO2!G24 -> 8585982.285 | W24: =Input!AL24*EF_CO2!H24 -> 0 | X24: =Input!AM24*EF_CO2!I24 -> 0 | Y24: =Input!AN24*EF_CO2!J24 -> 0 | Z24: =Input!AO24*EF_CO2!K24 -> 0 | AA24: =Input!AP24*EF_CO2!L24 -> 0 | AB24: =Input!AQ24*EF_CO2!M24 -> 0 | AF24: =Input!AU24*EF_CO2!N24 -> 0 | AG24: =Input!AV24*EF_CO2!O24 -> 282433.5538 | AH24: =Input!AW24*EF_CO2!P24 -> 28946.41922 | AI24: =Input!AX24*EF_CO2!Q24 -> 0 | AJ24: =Input!AY24*EF_CO2!R24 -> 0 | AK24: =Input!AZ24*EF_CO2!S24 -> 0 | AL24: =Input!BA24*EF_CO2!T24 -> 0 | AM24: =Input!BB24*EF_CO2!U24 -> 0 | AN24: =Input!BC24*EF_CO2!V24 -> 0 | AO24: =Input!BD24*EF_CO2!W24 -> 0 | AP24: =Input!BE24*EF_CO2!AN24 -> 0 | BG24: =Input!BX24*EF_CO2!AN24 -> 10051838.01 | BH24: =Input!BY24*EF_CO2!AO24 -> 0 | BI24: =Input!BZ24*EF_CO2!AP24 -> 0 | BK24: =Input!CB24*EF_CO2!AQ24 -> 465647.897 | BL24: =Input!CC24*EF_CO2!AR24 -> 0 | BM24: =Input!CD24*EF_CO2!AS24 -> 0 | BN24: =Input!CE24*EF_CO2!AT24 -> 0 | BP24: =Input!CG24*EF_CO2!AU24 -> 2806606.03 | BQ24: =Input!CH24*EF_CO2!AV24 -> 0 | BR24: =Input!CI24*EF_CO2!AW24 -> 0 | BS24: =Input!CJ24*EF_CO2!AX24 -> 0 | BT24: =Input!CK24*EF_CO2!AY24 -> 0 | BU24: =Input!CL24*EF_CO2!AZ24 -> 0 | BV24: =Input!CM24*EF_CO2!BA24 -> 0 | BW24: =Input!CN24*EF_CO2!BB24 -> 0 | BX24: =Input!CO24*EF_CO2!BC24 -> 0 | BY24: =Input!CP24*EF_CO2!BD24 -> 0 | BZ24: =Input!CQ24*EF_CO2!BE24 -> 0 | CA24: =Input!CR24*EF_CO2!BF24 -> 280258.3003 | CB24: =Input!CS24*EF_CO2!BE24 -> 0 | CC24: =Input!CT24*EF_CO2!BE24/2 -> 0 | CD24: =Input!CU24*EF_CO2!BC24 -> 0 | CE24: =Input!CV24*EF_CO2!BA24 -> 0 | CF24: =Input!CW24*EF_CO2!AZ24 -> 0 | CG24: =Input!CX24*EF_CO2!BG24 -> 0 | CH24: =Input!CY24*EF_CO2!BH24 -> 0 | CU24: =((EF_Electric!H25*BG24)/(1-EF_Electric!H25))+((EF_Steam!C22*BH24)/(1-EF_Steam!C22))+((EF_Water!C22*BI24)/(1-EF_Water!C22)) -> 994137.8253
B25: =Input!C25 -> 2004 | C25: =Input!N25*EF_CO2!C25 -> 0 | D25: =Input!O25*EF_CO2!D25 -> 0 | E25: =Input!P25*EF_CO2!E25 -> 0 | F25: =Input!Q25*EF_CO2!F25 -> 0 | G25: =Input!R25*EF_CO2!G25 -> 0 | H25: =Input!S25*EF_CO2!H25 -> 0 | I25: =Input!T25*EF_CO2!I25 -> 0 | J25: =Input!U25*EF_CO2!J25 -> 0 | K25: =Input!V25*EF_CO2!K25 -> 0 | L25: =Input!W25*EF_CO2!L25 -> 0 | M25: =Input!X25*EF_CO2!M25 -> 0 | Q25: =Input!AB25*EF_CO2!N25 -> 0 | R25: =Input!AG25*EF_CO2!C25 -> 0 | S25: =Input!AH25*EF_CO2!D25 -> 34832.1813 | T25: =Input!AI25*EF_CO2!E25 -> 3321384.88 | U25: =Input!AJ25*EF_CO2!F25 -> 0 | V25: =Input!AK25*EF_CO2!G25 -> 7660526.141 | W25: =Input!AL25*EF_CO2!H25 -> 0 | X25: =Input!AM25*EF_CO2!I25 -> 0 | Y25: =Input!AN25*EF_CO2!J25 -> 0 | Z25: =Input!AO25*EF_CO2!K25 -> 0 | AA25: =Input!AP25*EF_CO2!L25 -> 0 | AB25: =Input!AQ25*EF_CO2!M25 -> 0 | AF25: =Input!AU25*EF_CO2!N25 -> 0 | AG25: =Input!AV25*EF_CO2!O25 -> 304228.4556 | AH25: =Input!AW25*EF_CO2!P25 -> 27937.45836 | AI25: =Input!AX25*EF_CO2!Q25 -> 0 | AJ25: =Input!AY25*EF_CO2!R25 -> 0 | AK25: =Input!AZ25*EF_CO2!S25 -> 0 | AL25: =Input!BA25*EF_CO2!T25 -> 0 | AM25: =Input!BB25*EF_CO2!U25 -> 0 | AN25: =Input!BC25*EF_CO2!V25 -> 0 | AO25: =Input!BD25*EF_CO2!W25 -> 0 | AP25: =Input!BE25*EF_CO2!AN25 -> 0 | BG25: =Input!BX25*EF_CO2!AN25 -> 10110475.33 | BH25: =Input!BY25*EF_CO2!AO25 -> 0 | BI25: =Input!BZ25*EF_CO2!AP25 -> 0 | BK25: =Input!CB25*EF_CO2!AQ25 -> 448080.5295 | BL25: =Input!CC25*EF_CO2!AR25 -> 0 | BM25: =Input!CD25*EF_CO2!AS25 -> 0 | BN25: =Input!CE25*EF_CO2!AT25 -> 0 | BP25: =Input!CG25*EF_CO2!AU25 -> 2879321.865 | BQ25: =Input!CH25*EF_CO2!AV25 -> 0 | BR25: =Input!CI25*EF_CO2!AW25 -> 0 | BS25: =Input!CJ25*EF_CO2!AX25 -> 0 | BT25: =Input!CK25*EF_CO2!AY25 -> 0 | BU25: =Input!CL25*EF_CO2!AZ25 -> 0 | BV25: =Input!CM25*EF_CO2!BA25 -> 0 | BW25: =Input!CN25*EF_CO2!BB25 -> 0 | BX25: =Input!CO25*EF_CO2!BC25 -> 0 | BY25: =Input!CP25*EF_CO2!BD25 -> 0 | BZ25: =Input!CQ25*EF_CO2!BE25 -> 0 | CA25: =Input!CR25*EF_CO2!BF25 -> 472375.162 | CB25: =Input!CS25*EF_CO2!BE25 -> 0 | CC25: =Input!CT25*EF_CO2!BE25/2 -> 0 | CD25: =Input!CU25*EF_CO2!BC25 -> 0 | CE25: =Input!CV25*EF_CO2!BA25 -> 0 | CF25: =Input!CW25*EF_CO2!AZ25 -> 0 | CG25: =Input!CX25*EF_CO2!BG25 -> 0 | CH25: =Input!CY25*EF_CO2!BH25 -> 0 | CU25: =((EF_Electric!H26*BG25)/(1-EF_Electric!H26))+((EF_Steam!C23*BH25)/(1-EF_Steam!C23))+((EF_Water!C23*BI25)/(1-EF_Water!C23)) -> 999937.1202
B26: =Input!C26 -> 2005 | C26: =Input!N26*EF_CO2!C26 -> 0 | D26: =Input!O26*EF_CO2!D26 -> 0 | E26: =Input!P26*EF_CO2!E26 -> 0 | F26: =Input!Q26*EF_CO2!F26 -> 0 | G26: =Input!R26*EF_CO2!G26 -> 0 | H26: =Input!S26*EF_CO2!H26 -> 0 | I26: =Input!T26*EF_CO2!I26 -> 0 | J26: =Input!U26*EF_CO2!J26 -> 0 | K26: =Input!V26*EF_CO2!K26 -> 0 | L26: =Input!W26*EF_CO2!L26 -> 0 | M26: =Input!X26*EF_CO2!M26 -> 0 | Q26: =Input!AB26*EF_CO2!N26 -> 0 | R26: =Input!AG26*EF_CO2!C26 -> 0 | S26: =Input!AH26*EF_CO2!D26 -> 0 | T26: =Input!AI26*EF_CO2!E26 -> 3236817.98 | U26: =Input!AJ26*EF_CO2!F26 -> 0 | V26: =Input!AK26*EF_CO2!G26 -> 7559666.154 | W26: =Input!AL26*EF_CO2!H26 -> 0 | X26: =Input!AM26*EF_CO2!I26 -> 0 | Y26: =Input!AN26*EF_CO2!J26 -> 0 | Z26: =Input!AO26*EF_CO2!K26 -> 0 | AA26: =Input!AP26*EF_CO2!L26 -> 0 | AB26: =Input!AQ26*EF_CO2!M26 -> 0 | AF26: =Input!AU26*EF_CO2!N26 -> 0 | AG26: =Input!AV26*EF_CO2!O26 -> 276890.8726 | AH26: =Input!AW26*EF_CO2!P26 -> 30426.93484 | AI26: =Input!AX26*EF_CO2!Q26 -> 0 | AJ26: =Input!AY26*EF_CO2!R26 -> 0 | AK26: =Input!AZ26*EF_CO2!S26 -> 0 | AL26: =Input!BA26*EF_CO2!T26 -> 0 | AM26: =Input!BB26*EF_CO2!U26 -> 0 | AN26: =Input!BC26*EF_CO2!V26 -> 0 | AO26: =Input!BD26*EF_CO2!W26 -> 0 | AP26: =Input!BE26*EF_CO2!AN26 -> 0 | BG26: =Input!BX26*EF_CO2!AN26 -> 10281288.38 | BH26: =Input!BY26*EF_CO2!AO26 -> 0 | BI26: =Input!BZ26*EF_CO2!AP26 -> 0 | BK26: =Input!CB26*EF_CO2!AQ26 -> 519438.4637 | BL26: =Input!CC26*EF_CO2!AR26 -> 0 | BM26: =Input!CD26*EF_CO2!AS26 -> 0 | BN26: =Input!CE26*EF_CO2!AT26 -> 0 | BP26: =Input!CG26*EF_CO2!AU26 -> 2824072.62 | BQ26: =Input!CH26*EF_CO2!AV26 -> 0 | BR26: =Input!CI26*EF_CO2!AW26 -> 0 | BS26: =Input!CJ26*EF_CO2!AX26 -> 0 | BT26: =Input!CK26*EF_CO2!AY26 -> 0 | BU26: =Input!CL26*EF_CO2!AZ26 -> 0 | BV26: =Input!CM26*EF_CO2!BA26 -> 0 | BW26: =Input!CN26*EF_CO2!BB26 -> 0 | BX26: =Input!CO26*EF_CO2!BC26 -> 0 | BY26: =Input!CP26*EF_CO2!BD26 -> 0 | BZ26: =Input!CQ26*EF_CO2!BE26 -> 0 | CA26: =Input!CR26*EF_CO2!BF26 -> 1207412.943 | CB26: =Input!CS26*EF_CO2!BE26 -> 0 | CC26: =Input!CT26*EF_CO2!BE26/2 -> 0 | CD26: =Input!CU26*EF_CO2!BC26 -> 0 | CE26: =Input!CV26*EF_CO2!BA26 -> 0 | CF26: =Input!CW26*EF_CO2!AZ26 -> 0 | CG26: =Input!CX26*EF_CO2!BG26 -> 0 | CH26: =Input!CY26*EF_CO2!BH26 -> 0 | CU26: =((EF_Electric!H27*BG26)/(1-EF_Electric!H27))+((EF_Steam!C24*BH26)/(1-EF_Steam!C24))+((EF_Water!C24*BI26)/(1-EF_Water!C24)) -> 1016830.718
B27: =Input!C27 -> 2006 | C27: =Input!N27*EF_CO2!C27 -> 0 | D27: =Input!O27*EF_CO2!D27 -> 0 | E27: =Input!P27*EF_CO2!E27 -> 0 | F27: =Input!Q27*EF_CO2!F27 -> 0 | G27: =Input!R27*EF_CO2!G27 -> 0 | H27: =Input!S27*EF_CO2!H27 -> 0 | I27: =Input!T27*EF_CO2!I27 -> 0 | J27: =Input!U27*EF_CO2!J27 -> 0 | K27: =Input!V27*EF_CO2!K27 -> 0 | L27: =Input!W27*EF_CO2!L27 -> 0 | M27: =Input!X27*EF_CO2!M27 -> 0 | Q27: =Input!AB27*EF_CO2!N27 -> 0 | R27: =Input!AG27*EF_CO2!C27 -> 0 | S27: =Input!AH27*EF_CO2!D27 -> 0 | T27: =Input!AI27*EF_CO2!E27 -> 3370905.56 | U27: =Input!AJ27*EF_CO2!F27 -> 0 | V27: =Input!AK27*EF_CO2!G27 -> 7191687.391 | W27: =Input!AL27*EF_CO2!H27 -> 0 | X27: =Input!AM27*EF_CO2!I27 -> 0 | Y27: =Input!AN27*EF_CO2!J27 -> 0 | Z27: =Input!AO27*EF_CO2!K27 -> 0 | AA27: =Input!AP27*EF_CO2!L27 -> 0 | AB27: =Input!AQ27*EF_CO2!M27 -> 0 | AF27: =Input!AU27*EF_CO2!N27 -> 0 | AG27: =Input!AV27*EF_CO2!O27 -> 266133.1912 | AH27: =Input!AW27*EF_CO2!P27 -> 36377.31216 | AI27: =Input!AX27*EF_CO2!Q27 -> 0 | AJ27: =Input!AY27*EF_CO2!R27 -> 0 | AK27: =Input!AZ27*EF_CO2!S27 -> 0 | AL27: =Input!BA27*EF_CO2!T27 -> 0 | AM27: =Input!BB27*EF_CO2!U27 -> 0 | AN27: =Input!BC27*EF_CO2!V27 -> 0 | AO27: =Input!BD27*EF_CO2!W27 -> 0 | AP27: =Input!BE27*EF_CO2!AN27 -> 0 | BG27: =Input!BX27*EF_CO2!AN27 -> 10398563.01 | BH27: =Input!BY27*EF_CO2!AO27 -> 0 | BI27: =Input!BZ27*EF_CO2!AP27 -> 0 | BK27: =Input!CB27*EF_CO2!AQ27 -> 519985.5071 | BL27: =Input!CC27*EF_CO2!AR27 -> 0 | BM27: =Input!CD27*EF_CO2!AS27 -> 0 | BN27: =Input!CE27*EF_CO2!AT27 -> 0 | BP27: =Input!CG27*EF_CO2!AU27 -> 2778122.835 | BQ27: =Input!CH27*EF_CO2!AV27 -> 0 | BR27: =Input!CI27*EF_CO2!AW27 -> 0 | BS27: =Input!CJ27*EF_CO2!AX27 -> 0 | BT27: =Input!CK27*EF_CO2!AY27 -> 0 | BU27: =Input!CL27*EF_CO2!AZ27 -> 0 | BV27: =Input!CM27*EF_CO2!BA27 -> 0 | BW27: =Input!CN27*EF_CO2!BB27 -> 0 | BX27: =Input!CO27*EF_CO2!BC27 -> 0 | BY27: =Input!CP27*EF_CO2!BD27 -> 0 | BZ27: =Input!CQ27*EF_CO2!BE27 -> 0 | CA27: =Input!CR27*EF_CO2!BF27 -> 1190251.346 | CB27: =Input!CS27*EF_CO2!BE27 -> 0 | CC27: =Input!CT27*EF_CO2!BE27/2 -> 0 | CD27: =Input!CU27*EF_CO2!BC27 -> 0 | CE27: =Input!CV27*EF_CO2!BA27 -> 0 | CF27: =Input!CW27*EF_CO2!AZ27 -> 0 | CG27: =Input!CX27*EF_CO2!BG27 -> 0 | CH27: =Input!CY27*EF_CO2!BH27 -> 0 | CU27: =((EF_Electric!H28*BG27)/(1-EF_Electric!H28))+((EF_Steam!C25*BH27)/(1-EF_Steam!C25))+((EF_Water!C25*BI27)/(1-EF_Water!C25)) -> 1028429.308
B28: =Input!C28 -> 2007 | C28: =Input!N28*EF_CO2!C28 -> 0 | D28: =Input!O28*EF_CO2!D28 -> 0 | E28: =Input!P28*EF_CO2!E28 -> 0 | F28: =Input!Q28*EF_CO2!F28 -> 0 | G28: =Input!R28*EF_CO2!G28 -> 0 | H28: =Input!S28*EF_CO2!H28 -> 0 | I28: =Input!T28*EF_CO2!I28 -> 0 | J28: =Input!U28*EF_CO2!J28 -> 0 | K28: =Input!V28*EF_CO2!K28 -> 0 | L28: =Input!W28*EF_CO2!L28 -> 0 | M28: =Input!X28*EF_CO2!M28 -> 0 | Q28: =Input!AB28*EF_CO2!N28 -> 0 | R28: =Input!AG28*EF_CO2!C28 -> 0 | S28: =Input!AH28*EF_CO2!D28 -> 1222.398048 | T28: =Input!AI28*EF_CO2!E28 -> 2971930.06 | U28: =Input!AJ28*EF_CO2!F28 -> 0 | V28: =Input!AK28*EF_CO2!G28 -> 8142238.819 | W28: =Input!AL28*EF_CO2!H28 -> 0 | X28: =Input!AM28*EF_CO2!I28 -> 0 | Y28: =Input!AN28*EF_CO2!J28 -> 0 | Z28: =Input!AO28*EF_CO2!K28 -> 0 | AA28: =Input!AP28*EF_CO2!L28 -> 0 | AB28: =Input!AQ28*EF_CO2!M28 -> 0 | AF28: =Input!AU28*EF_CO2!N28 -> 0 | AG28: =Input!AV28*EF_CO2!O28 -> 269532.2042 | AH28: =Input!AW28*EF_CO2!P28 -> 28084.59514 | AI28: =Input!AX28*EF_CO2!Q28 -> 0 | AJ28: =Input!AY28*EF_CO2!R28 -> 0 | AK28: =Input!AZ28*EF_CO2!S28 -> 0 | AL28: =Input!BA28*EF_CO2!T28 -> 0 | AM28: =Input!BB28*EF_CO2!U28 -> 0 | AN28: =Input!BC28*EF_CO2!V28 -> 0 | AO28: =Input!BD28*EF_CO2!W28 -> 0 | AP28: =Input!BE28*EF_CO2!AN28 -> 0 | BG28: =Input!BX28*EF_CO2!AN28 -> 9957299.109 | BH28: =Input!BY28*EF_CO2!AO28 -> 0 | BI28: =Input!BZ28*EF_CO2!AP28 -> 0 | BK28: =Input!CB28*EF_CO2!AQ28 -> 522885.2598 | BL28: =Input!CC28*EF_CO2!AR28 -> 0 | BM28: =Input!CD28*EF_CO2!AS28 -> 0 | BN28: =Input!CE28*EF_CO2!AT28 -> 0 | BP28: =Input!CG28*EF_CO2!AU28 -> 2833254.822 | BQ28: =Input!CH28*EF_CO2!AV28 -> 0 | BR28: =Input!CI28*EF_CO2!AW28 -> 0 | BS28: =Input!CJ28*EF_CO2!AX28 -> 0 | BT28: =Input!CK28*EF_CO2!AY28 -> 0 | BU28: =Input!CL28*EF_CO2!AZ28 -> 0 | BV28: =Input!CM28*EF_CO2!BA28 -> 0 | BW28: =Input!CN28*EF_CO2!BB28 -> 0 | BX28: =Input!CO28*EF_CO2!BC28 -> 0 | BY28: =Input!CP28*EF_CO2!BD28 -> 0 | BZ28: =Input!CQ28*EF_CO2!BE28 -> 0 | CA28: =Input!CR28*EF_CO2!BF28 -> 1454840.29 | CB28: =Input!CS28*EF_CO2!BE28 -> 0 | CC28: =Input!CT28*EF_CO2!BE28/2 -> 0 | CD28: =Input!CU28*EF_CO2!BC28 -> 0 | CE28: =Input!CV28*EF_CO2!BA28 -> 0 | CF28: =Input!CW28*EF_CO2!AZ28 -> 0 | CG28: =Input!CX28*EF_CO2!BG28 -> 0 | CH28: =Input!CY28*EF_CO2!BH28 -> 0 | CU28: =((EF_Electric!H29*BG28)/(1-EF_Electric!H29))+((EF_Steam!C26*BH28)/(1-EF_Steam!C26))+((EF_Water!C26*BI28)/(1-EF_Water!C26)) -> 984787.824
B29: =Input!C29 -> 2008 | C29: =Input!N29*EF_CO2!C29 -> 0 | D29: =Input!O29*EF_CO2!D29 -> 0 | E29: =Input!P29*EF_CO2!E29 -> 0 | F29: =Input!Q29*EF_CO2!F29 -> 0 | G29: =Input!R29*EF_CO2!G29 -> 0 | H29: =Input!S29*EF_CO2!H29 -> 0 | I29: =Input!T29*EF_CO2!I29 -> 0 | J29: =Input!U29*EF_CO2!J29 -> 0 | K29: =Input!V29*EF_CO2!K29 -> 0 | L29: =Input!W29*EF_CO2!L29 -> 0 | M29: =Input!X29*EF_CO2!M29 -> 0 | Q29: =Input!AB29*EF_CO2!N29 -> 0 | R29: =Input!AG29*EF_CO2!C29 -> 0 | S29: =Input!AH29*EF_CO2!D29 -> 0 | T29: =Input!AI29*EF_CO2!E29 -> 4657913.04 | U29: =Input!AJ29*EF_CO2!F29 -> 0 | V29: =Input!AK29*EF_CO2!G29 -> 5764825.247 | W29: =Input!AL29*EF_CO2!H29 -> 0 | X29: =Input!AM29*EF_CO2!I29 -> 0 | Y29: =Input!AN29*EF_CO2!J29 -> 0 | Z29: =Input!AO29*EF_CO2!K29 -> 0 | AA29: =Input!AP29*EF_CO2!L29 -> 0 | AB29: =Input!AQ29*EF_CO2!M29 -> 0 | AF29: =Input!AU29*EF_CO2!N29 -> 0 | AG29: =Input!AV29*EF_CO2!O29 -> 265896.7662 | AH29: =Input!AW29*EF_CO2!P29 -> 24213.09571 | AI29: =Input!AX29*EF_CO2!Q29 -> 0 | AJ29: =Input!AY29*EF_CO2!R29 -> 0 | AK29: =Input!AZ29*EF_CO2!S29 -> 0 | AL29: =Input!BA29*EF_CO2!T29 -> 0 | AM29: =Input!BB29*EF_CO2!U29 -> 0 | AN29: =Input!BC29*EF_CO2!V29 -> 0 | AO29: =Input!BD29*EF_CO2!W29 -> 0 | AP29: =Input!BE29*EF_CO2!AN29 -> 0 | BG29: =Input!BX29*EF_CO2!AN29 -> 9298054.001 | BH29: =Input!BY29*EF_CO2!AO29 -> 0 | BI29: =Input!BZ29*EF_CO2!AP29 -> 0 | BK29: =Input!CB29*EF_CO2!AQ29 -> 518788.0833 | BL29: =Input!CC29*EF_CO2!AR29 -> 0 | BM29: =Input!CD29*EF_CO2!AS29 -> 0 | BN29: =Input!CE29*EF_CO2!AT29 -> 0 | BP29: =Input!CG29*EF_CO2!AU29 -> 2832520.789 | BQ29: =Input!CH29*EF_CO2!AV29 -> 0 | BR29: =Input!CI29*EF_CO2!AW29 -> 0 | BS29: =Input!CJ29*EF_CO2!AX29 -> 0 | BT29: =Input!CK29*EF_CO2!AY29 -> 0 | BU29: =Input!CL29*EF_CO2!AZ29 -> 0 | BV29: =Input!CM29*EF_CO2!BA29 -> 0 | BW29: =Input!CN29*EF_CO2!BB29 -> 0 | BX29: =Input!CO29*EF_CO2!BC29 -> 0 | BY29: =Input!CP29*EF_CO2!BD29 -> 0 | BZ29: =Input!CQ29*EF_CO2!BE29 -> 0 | CA29: =Input!CR29*EF_CO2!BF29 -> 1701781.002 | CB29: =Input!CS29*EF_CO2!BE29 -> 0 | CC29: =Input!CT29*EF_CO2!BE29/2 -> 0 | CD29: =Input!CU29*EF_CO2!BC29 -> 0 | CE29: =Input!CV29*EF_CO2!BA29 -> 0 | CF29: =Input!CW29*EF_CO2!AZ29 -> 0 | CG29: =Input!CX29*EF_CO2!BG29 -> 0 | CH29: =Input!CY29*EF_CO2!BH29 -> 0 | CU29: =((EF_Electric!H30*BG29)/(1-EF_Electric!H30))+((EF_Steam!C27*BH29)/(1-EF_Steam!C27))+((EF_Water!C27*BI29)/(1-EF_Water!C27)) -> 919587.7583
B30: =Input!C30 -> 2009 | C30: =Input!N30*EF_CO2!C30 -> 0 | D30: =Input!O30*EF_CO2!D30 -> 0 | E30: =Input!P30*EF_CO2!E30 -> 0 | F30: =Input!Q30*EF_CO2!F30 -> 0 | G30: =Input!R30*EF_CO2!G30 -> 0 | H30: =Input!S30*EF_CO2!H30 -> 0 | I30: =Input!T30*EF_CO2!I30 -> 0 | J30: =Input!U30*EF_CO2!J30 -> 0 | K30: =Input!V30*EF_CO2!K30 -> 0 | L30: =Input!W30*EF_CO2!L30 -> 0 | M30: =Input!X30*EF_CO2!M30 -> 0 | Q30: =Input!AB30*EF_CO2!N30 -> 0 | R30: =Input!AG30*EF_CO2!C30 -> 0 | S30: =Input!AH30*EF_CO2!D30 -> 14343.06613 | T30: =Input!AI30*EF_CO2!E30 -> 6543092.16 | U30: =Input!AJ30*EF_CO2!F30 -> 0 | V30: =Input!AK30*EF_CO2!G30 -> 2039991.393 | W30: =Input!AL30*EF_CO2!H30 -> 0 | X30: =Input!AM30*EF_CO2!I30 -> 0 | Y30: =Input!AN30*EF_CO2!J30 -> 0 | Z30: =Input!AO30*EF_CO2!K30 -> 0 | AA30: =Input!AP30*EF_CO2!L30 -> 0 | AB30: =Input!AQ30*EF_CO2!M30 -> 0 | AF30: =Input!AU30*EF_CO2!N30 -> 0 | AG30: =Input!AV30*EF_CO2!O30 -> 256280.5709 | AH30: =Input!AW30*EF_CO2!P30 -> 27749.60842 | AI30: =Input!AX30*EF_CO2!Q30 -> 0 | AJ30: =Input!AY30*EF_CO2!R30 -> 0 | AK30: =Input!AZ30*EF_CO2!S30 -> 0 | AL30: =Input!BA30*EF_CO2!T30 -> 0 | AM30: =Input!BB30*EF_CO2!U30 -> 0 | AN30: =Input!BC30*EF_CO2!V30 -> 0 | AO30: =Input!BD30*EF_CO2!W30 -> 0 | AP30: =Input!BE30*EF_CO2!AN30 -> 0 | BG30: =Input!BX30*EF_CO2!AN30 -> 8284668.561 | BH30: =Input!BY30*EF_CO2!AO30 -> 0 | BI30: =Input!BZ30*EF_CO2!AP30 -> 0 | BK30: =Input!CB30*EF_CO2!AQ30 -> 532136.2554 | BL30: =Input!CC30*EF_CO2!AR30 -> 0 | BM30: =Input!CD30*EF_CO2!AS30 -> 0 | BN30: =Input!CE30*EF_CO2!AT30 -> 0 | BP30: =Input!CG30*EF_CO2!AU30 -> 2902769.096 | BQ30: =Input!CH30*EF_CO2!AV30 -> 0 | BR30: =Input!CI30*EF_CO2!AW30 -> 0 | BS30: =Input!CJ30*EF_CO2!AX30 -> 0 | BT30: =Input!CK30*EF_CO2!AY30 -> 0 | BU30: =Input!CL30*EF_CO2!AZ30 -> 0 | BV30: =Input!CM30*EF_CO2!BA30 -> 0 | BW30: =Input!CN30*EF_CO2!BB30 -> 2872.811948 | BX30: =Input!CO30*EF_CO2!BC30 -> 0 | BY30: =Input!CP30*EF_CO2!BD30 -> 0 | BZ30: =Input!CQ30*EF_CO2!BE30 -> 0 | CA30: =Input!CR30*EF_CO2!BF30 -> 1848981.957 | CB30: =Input!CS30*EF_CO2!BE30 -> 0 | CC30: =Input!CT30*EF_CO2!BE30/2 -> 0 | CD30: =Input!CU30*EF_CO2!BC30 -> 0 | CE30: =Input!CV30*EF_CO2!BA30 -> 0 | CF30: =Input!CW30*EF_CO2!AZ30 -> 0 | CG30: =Input!CX30*EF_CO2!BG30 -> 0 | CH30: =Input!CY30*EF_CO2!BH30 -> 0 | CU30: =((EF_Electric!H31*BG30)/(1-EF_Electric!H31))+((EF_Steam!C28*BH30)/(1-EF_Steam!C28))+((EF_Water!C28*BI30)/(1-EF_Water!C28)) -> 819362.8247
B31: =Input!C31 -> 2010 | C31: =Input!N31*EF_CO2!C31 -> 0 | D31: =Input!O31*EF_CO2!D31 -> 0 | E31: =Input!P31*EF_CO2!E31 -> 0 | F31: =Input!Q31*EF_CO2!F31 -> 0 | G31: =Input!R31*EF_CO2!G31 -> 0 | H31: =Input!S31*EF_CO2!H31 -> 0 | I31: =Input!T31*EF_CO2!I31 -> 0 | J31: =Input!U31*EF_CO2!J31 -> 0 | K31: =Input!V31*EF_CO2!K31 -> 0 | L31: =Input!W31*EF_CO2!L31 -> 0 | M31: =Input!X31*EF_CO2!M31 -> 0 | Q31: =Input!AB31*EF_CO2!N31 -> 0 | R31: =Input!AG31*EF_CO2!C31 -> 0 | S31: =Input!AH31*EF_CO2!D31 -> 32405.22285 | T31: =Input!AI31*EF_CO2!E31 -> 3401816.22 | U31: =Input!AJ31*EF_CO2!F31 -> 0 | V31: =Input!AK31*EF_CO2!G31 -> 5816493.126 | W31: =Input!AL31*EF_CO2!H31 -> 0 | X31: =Input!AM31*EF_CO2!I31 -> 50824.73147 | Y31: =Input!AN31*EF_CO2!J31 -> 0 | Z31: =Input!AO31*EF_CO2!K31 -> 0 | AA31: =Input!AP31*EF_CO2!L31 -> 0 | AB31: =Input!AQ31*EF_CO2!M31 -> 0 | AF31: =Input!AU31*EF_CO2!N31 -> 0 | AG31: =Input!AV31*EF_CO2!O31 -> 230382.9075 | AH31: =Input!AW31*EF_CO2!P31 -> 30665.4134 | AI31: =Input!AX31*EF_CO2!Q31 -> 0 | AJ31: =Input!AY31*EF_CO2!R31 -> 0 | AK31: =Input!AZ31*EF_CO2!S31 -> 0 | AL31: =Input!BA31*EF_CO2!T31 -> 0 | AM31: =Input!BB31*EF_CO2!U31 -> 0 | AN31: =Input!BC31*EF_CO2!V31 -> 0 | AO31: =Input!BD31*EF_CO2!W31 -> 0 | AP31: =Input!BE31*EF_CO2!AN31 -> 0 | BG31: =Input!BX31*EF_CO2!AN31 -> 8269617.539 | BH31: =Input!BY31*EF_CO2!AO31 -> 0 | BI31: =Input!BZ31*EF_CO2!AP31 -> 0 | BK31: =Input!CB31*EF_CO2!AQ31 -> 1039243.083 | BL31: =Input!CC31*EF_CO2!AR31 -> 0 | BM31: =Input!CD31*EF_CO2!AS31 -> 0 | BN31: =Input!CE31*EF_CO2!AT31 -> 0 | BP31: =Input!CG31*EF_CO2!AU31 -> 3780081.145 | BQ31: =Input!CH31*EF_CO2!AV31 -> 0 | BR31: =Input!CI31*EF_CO2!AW31 -> 0 | BS31: =Input!CJ31*EF_CO2!AX31 -> 0 | BT31: =Input!CK31*EF_CO2!AY31 -> 0 | BU31: =Input!CL31*EF_CO2!AZ31 -> 0 | BV31: =Input!CM31*EF_CO2!BA31 -> 0 | BW31: =Input!CN31*EF_CO2!BB31 -> 4533.671849 | BX31: =Input!CO31*EF_CO2!BC31 -> 11853.19504 | BY31: =Input!CP31*EF_CO2!BD31 -> 0 | BZ31: =Input!CQ31*EF_CO2!BE31 -> 0 | CA31: =Input!CR31*EF_CO2!BF31 -> 1520947.518 | CB31: =Input!CS31*EF_CO2!BE31 -> 0 | CC31: =Input!CT31*EF_CO2!BE31/2 -> 0 | CD31: =Input!CU31*EF_CO2!BC31 -> 0 | CE31: =Input!CV31*EF_CO2!BA31 -> 0 | CF31: =Input!CW31*EF_CO2!AZ31 -> 0 | CG31: =Input!CX31*EF_CO2!BG31 -> 0 | CH31: =Input!CY31*EF_CO2!BH31 -> 0 | CU31: =((EF_Electric!H32*BG31)/(1-EF_Electric!H32))+((EF_Steam!C29*BH31)/(1-EF_Steam!C29))+((EF_Water!C29*BI31)/(1-EF_Water!C29)) -> 544726.4591
B32: =Input!C32 -> 2011 | C32: =Input!N32*EF_CO2!C32 -> 0 | D32: =Input!O32*EF_CO2!D32 -> 0 | E32: =Input!P32*EF_CO2!E32 -> 0 | F32: =Input!Q32*EF_CO2!F32 -> 0 | G32: =Input!R32*EF_CO2!G32 -> 0 | H32: =Input!S32*EF_CO2!H32 -> 0 | I32: =Input!T32*EF_CO2!I32 -> 0 | J32: =Input!U32*EF_CO2!J32 -> 0 | K32: =Input!V32*EF_CO2!K32 -> 0 | L32: =Input!W32*EF_CO2!L32 -> 0 | M32: =Input!X32*EF_CO2!M32 -> 0 | Q32: =Input!AB32*EF_CO2!N32 -> 0 | R32: =Input!AG32*EF_CO2!C32 -> 0 | S32: =Input!AH32*EF_CO2!D32 -> 0 | T32: =Input!AI32*EF_CO2!E32 -> 6548606.24 | U32: =Input!AJ32*EF_CO2!F32 -> 0 | V32: =Input!AK32*EF_CO2!G32 -> 1931193.821 | W32: =Input!AL32*EF_CO2!H32 -> 0 | X32: =Input!AM32*EF_CO2!I32 -> 0 | Y32: =Input!AN32*EF_CO2!J32 -> 0 | Z32: =Input!AO32*EF_CO2!K32 -> 0 | AA32: =Input!AP32*EF_CO2!L32 -> 0 | AB32: =Input!AQ32*EF_CO2!M32 -> 0 | AF32: =Input!AU32*EF_CO2!N32 -> 0 | AG32: =Input!AV32*EF_CO2!O32 -> 231909.512 | AH32: =Input!AW32*EF_CO2!P32 -> 30858.21491 | AI32: =Input!AX32*EF_CO2!Q32 -> 0 | AJ32: =Input!AY32*EF_CO2!R32 -> 0 | AK32: =Input!AZ32*EF_CO2!S32 -> 0 | AL32: =Input!BA32*EF_CO2!T32 -> 0 | AM32: =Input!BB32*EF_CO2!U32 -> 0 | AN32: =Input!BC32*EF_CO2!V32 -> 0 | AO32: =Input!BD32*EF_CO2!W32 -> 0 | AP32: =Input!BE32*EF_CO2!AN32 -> 0 | BG32: =Input!BX32*EF_CO2!AN32 -> 8193595.639 | BH32: =Input!BY32*EF_CO2!AO32 -> 0 | BI32: =Input!BZ32*EF_CO2!AP32 -> 0 | BK32: =Input!CB32*EF_CO2!AQ32 -> 1039540.47 | BL32: =Input!CC32*EF_CO2!AR32 -> 0 | BM32: =Input!CD32*EF_CO2!AS32 -> 0 | BN32: =Input!CE32*EF_CO2!AT32 -> 0 | BP32: =Input!CG32*EF_CO2!AU32 -> 4011541.587 | BQ32: =Input!CH32*EF_CO2!AV32 -> 0 | BR32: =Input!CI32*EF_CO2!AW32 -> 0 | BS32: =Input!CJ32*EF_CO2!AX32 -> 0 | BT32: =Input!CK32*EF_CO2!AY32 -> 0 | BU32: =Input!CL32*EF_CO2!AZ32 -> 0 | BV32: =Input!CM32*EF_CO2!BA32 -> 0 | BW32: =Input!CN32*EF_CO2!BB32 -> 4072.34065 | BX32: =Input!CO32*EF_CO2!BC32 -> 8669.352723 | BY32: =Input!CP32*EF_CO2!BD32 -> 0 | BZ32: =Input!CQ32*EF_CO2!BE32 -> 0 | CA32: =Input!CR32*EF_CO2!BF32 -> 1415600.356 | CB32: =Input!CS32*EF_CO2!BE32 -> 0 | CC32: =Input!CT32*EF_CO2!BE32/2 -> 0 | CD32: =Input!CU32*EF_CO2!BC32 -> 0 | CE32: =Input!CV32*EF_CO2!BA32 -> 0 | CF32: =Input!CW32*EF_CO2!AZ32 -> 0 | CG32: =Input!CX32*EF_CO2!BG32 -> 0 | CH32: =Input!CY32*EF_CO2!BH32 -> 0 | CU32: =((EF_Electric!H33*BG32)/(1-EF_Electric!H33))+((EF_Steam!C30*BH32)/(1-EF_Steam!C30))+((EF_Water!C30*BI32)/(1-EF_Water!C30)) -> 539718.8345
B33: =Input!C33 -> 2012 | C33: =Input!N33*EF_CO2!C33 -> 0 | D33: =Input!O33*EF_CO2!D33 -> 0 | E33: =Input!P33*EF_CO2!E33 -> 0 | F33: =Input!Q33*EF_CO2!F33 -> 0 | G33: =Input!R33*EF_CO2!G33 -> 0 | H33: =Input!S33*EF_CO2!H33 -> 0 | I33: =Input!T33*EF_CO2!I33 -> 0 | J33: =Input!U33*EF_CO2!J33 -> 0 | K33: =Input!V33*EF_CO2!K33 -> 0 | L33: =Input!W33*EF_CO2!L33 -> 0 | M33: =Input!X33*EF_CO2!M33 -> 0 | Q33: =Input!AB33*EF_CO2!N33 -> 0 | R33: =Input!AG33*EF_CO2!C33 -> 0 | S33: =Input!AH33*EF_CO2!D33 -> 10858.65589 | T33: =Input!AI33*EF_CO2!E33 -> 6580630.32 | U33: =Input!AJ33*EF_CO2!F33 -> 0 | V33: =Input!AK33*EF_CO2!G33 -> 696758.997 | W33: =Input!AL33*EF_CO2!H33 -> 0 | X33: =Input!AM33*EF_CO2!I33 -> 0 | Y33: =Input!AN33*EF_CO2!J33 -> 0 | Z33: =Input!AO33*EF_CO2!K33 -> 0 | AA33: =Input!AP33*EF_CO2!L33 -> 0 | AB33: =Input!AQ33*EF_CO2!M33 -> 0 | AF33: =Input!AU33*EF_CO2!N33 -> 0 | AG33: =Input!AV33*EF_CO2!O33 -> 211346.8286 | AH33: =Input!AW33*EF_CO2!P33 -> 28224.37148 | AI33: =Input!AX33*EF_CO2!Q33 -> 0 | AJ33: =Input!AY33*EF_CO2!R33 -> 0 | AK33: =Input!AZ33*EF_CO2!S33 -> 0 | AL33: =Input!BA33*EF_CO2!T33 -> 0 | AM33: =Input!BB33*EF_CO2!U33 -> 0 | AN33: =Input!BC33*EF_CO2!V33 -> 0 | AO33: =Input!BD33*EF_CO2!W33 -> 0 | AP33: =Input!BE33*EF_CO2!AN33 -> 0 | BG33: =Input!BX33*EF_CO2!AN33 -> 8342285.531 | BH33: =Input!BY33*EF_CO2!AO33 -> 0 | BI33: =Input!BZ33*EF_CO2!AP33 -> 0 | BK33: =Input!CB33*EF_CO2!AQ33 -> 1101974.685 | BL33: =Input!CC33*EF_CO2!AR33 -> 0 | BM33: =Input!CD33*EF_CO2!AS33 -> 0 | BN33: =Input!CE33*EF_CO2!AT33 -> 0 | BP33: =Input!CG33*EF_CO2!AU33 -> 3502877.274 | BQ33: =Input!CH33*EF_CO2!AV33 -> 0 | BR33: =Input!CI33*EF_CO2!AW33 -> 0 | BS33: =Input!CJ33*EF_CO2!AX33 -> 0 | BT33: =Input!CK33*EF_CO2!AY33 -> 0 | BU33: =Input!CL33*EF_CO2!AZ33 -> 0 | BV33: =Input!CM33*EF_CO2!BA33 -> 0 | BW33: =Input!CN33*EF_CO2!BB33 -> 3169.096576 | BX33: =Input!CO33*EF_CO2!BC33 -> 0 | BY33: =Input!CP33*EF_CO2!BD33 -> 0 | BZ33: =Input!CQ33*EF_CO2!BE33 -> 0 | CA33: =Input!CR33*EF_CO2!BF33 -> 1276016.377 | CB33: =Input!CS33*EF_CO2!BE33 -> 0 | CC33: =Input!CT33*EF_CO2!BE33/2 -> 0 | CD33: =Input!CU33*EF_CO2!BC33 -> 0 | CE33: =Input!CV33*EF_CO2!BA33 -> 0 | CF33: =Input!CW33*EF_CO2!AZ33 -> 0 | CG33: =Input!CX33*EF_CO2!BG33 -> 0 | CH33: =Input!CY33*EF_CO2!BH33 -> 0 | CU33: =((EF_Electric!H34*BG33)/(1-EF_Electric!H34))+((EF_Steam!C31*BH33)/(1-EF_Steam!C31))+((EF_Water!C31*BI33)/(1-EF_Water!C31)) -> 758317.1841
B34: =Input!C34 -> 2013 | C34: =Input!N34*EF_CO2!C34 -> 0 | D34: =Input!O34*EF_CO2!D34 -> 0 | E34: =Input!P34*EF_CO2!E34 -> 0 | F34: =Input!Q34*EF_CO2!F34 -> 0 | G34: =Input!R34*EF_CO2!G34 -> 0 | H34: =Input!S34*EF_CO2!H34 -> 0 | I34: =Input!T34*EF_CO2!I34 -> 0 | J34: =Input!U34*EF_CO2!J34 -> 0 | K34: =Input!V34*EF_CO2!K34 -> 0 | L34: =Input!W34*EF_CO2!L34 -> 0 | M34: =Input!X34*EF_CO2!M34 -> 0 | Q34: =Input!AB34*EF_CO2!N34 -> 0 | R34: =Input!AG34*EF_CO2!C34 -> 0 | S34: =Input!AH34*EF_CO2!D34 -> 7859.308053 | T34: =Input!AI34*EF_CO2!E34 -> 8055540.68 | U34: =Input!AJ34*EF_CO2!F34 -> 0 | V34: =Input!AK34*EF_CO2!G34 -> 346282.8394 | W34: =Input!AL34*EF_CO2!H34 -> 0 | X34: =Input!AM34*EF_CO2!I34 -> 0 | Y34: =Input!AN34*EF_CO2!J34 -> 0 | Z34: =Input!AO34*EF_CO2!K34 -> 0 | AA34: =Input!AP34*EF_CO2!L34 -> 0 | AB34: =Input!AQ34*EF_CO2!M34 -> 0 | AF34: =Input!AU34*EF_CO2!N34 -> 0 | AG34: =Input!AV34*EF_CO2!O34 -> 231204.9658 | AH34: =Input!AW34*EF_CO2!P34 -> 41075.81441 | AI34: =Input!AX34*EF_CO2!Q34 -> 0 | AJ34: =Input!AY34*EF_CO2!R34 -> 0 | AK34: =Input!AZ34*EF_CO2!S34 -> 0 | AL34: =Input!BA34*EF_CO2!T34 -> 0 | AM34: =Input!BB34*EF_CO2!U34 -> 0 | AN34: =Input!BC34*EF_CO2!V34 -> 0 | AO34: =Input!BD34*EF_CO2!W34 -> 0 | AP34: =Input!BE34*EF_CO2!AN34 -> 0 | BG34: =Input!BX34*EF_CO2!AN34 -> 8238314.404 | BH34: =Input!BY34*EF_CO2!AO34 -> 0 | BI34: =Input!BZ34*EF_CO2!AP34 -> 0 | BK34: =Input!CB34*EF_CO2!AQ34 -> 1031219.021 | BL34: =Input!CC34*EF_CO2!AR34 -> 0 | BM34: =Input!CD34*EF_CO2!AS34 -> 0 | BN34: =Input!CE34*EF_CO2!AT34 -> 0 | BP34: =Input!CG34*EF_CO2!AU34 -> 4929473.929 | BQ34: =Input!CH34*EF_CO2!AV34 -> 0 | BR34: =Input!CI34*EF_CO2!AW34 -> 0 | BS34: =Input!CJ34*EF_CO2!AX34 -> 0 | BT34: =Input!CK34*EF_CO2!AY34 -> 0 | BU34: =Input!CL34*EF_CO2!AZ34 -> 0 | BV34: =Input!CM34*EF_CO2!BA34 -> 0 | BW34: =Input!CN34*EF_CO2!BB34 -> 0 | BX34: =Input!CO34*EF_CO2!BC34 -> 11816.33284 | BY34: =Input!CP34*EF_CO2!BD34 -> 0 | BZ34: =Input!CQ34*EF_CO2!BE34 -> 0 | CA34: =Input!CR34*EF_CO2!BF34 -> 1586963.076 | CB34: =Input!CS34*EF_CO2!BE34 -> 0 | CC34: =Input!CT34*EF_CO2!BE34/2 -> 0 | CD34: =Input!CU34*EF_CO2!BC34 -> 0 | CE34: =Input!CV34*EF_CO2!BA34 -> 0 | CF34: =Input!CW34*EF_CO2!AZ34 -> 0 | CG34: =Input!CX34*EF_CO2!BG34 -> 0 | CH34: =Input!CY34*EF_CO2!BH34 -> 0 | CU34: =((EF_Electric!H35*BG34)/(1-EF_Electric!H35))+((EF_Steam!C32*BH34)/(1-EF_Steam!C32))+((EF_Water!C32*BI34)/(1-EF_Water!C32)) -> 748866.1659
B35: =Input!C35 -> 2014 | C35: =Input!N35*EF_CO2!C35 -> 0 | D35: =Input!O35*EF_CO2!D35 -> 0 | E35: =Input!P35*EF_CO2!E35 -> 0 | F35: =Input!Q35*EF_CO2!F35 -> 0 | G35: =Input!R35*EF_CO2!G35 -> 0 | H35: =Input!S35*EF_CO2!H35 -> 0 | I35: =Input!T35*EF_CO2!I35 -> 0 | J35: =Input!U35*EF_CO2!J35 -> 0 | K35: =Input!V35*EF_CO2!K35 -> 0 | L35: =Input!W35*EF_CO2!L35 -> 0 | M35: =Input!X35*EF_CO2!M35 -> 0 | Q35: =Input!AB35*EF_CO2!N35 -> 0 | R35: =Input!AG35*EF_CO2!C35 -> 0 | S35: =Input!AH35*EF_CO2!D35 -> 0 | T35: =Input!AI35*EF_CO2!E35 -> 0 | U35: =Input!AJ35*EF_CO2!F35 -> 0 | V35: =Input!AK35*EF_CO2!G35 -> 0 | W35: =Input!AL35*EF_CO2!H35 -> 0 | X35: =Input!AM35*EF_CO2!I35 -> 0 | Y35: =Input!AN35*EF_CO2!J35 -> 0 | Z35: =Input!AO35*EF_CO2!K35 -> 0 | AA35: =Input!AP35*EF_CO2!L35 -> 0 | AB35: =Input!AQ35*EF_CO2!M35 -> 0 | AF35: =Input!AU35*EF_CO2!N35 -> 0 | AG35: =Input!AV35*EF_CO2!O35 -> 0 | AH35: =Input!AW35*EF_CO2!P35 -> 0 | AI35: =Input!AX35*EF_CO2!Q35 -> 0 | AJ35: =Input!AY35*EF_CO2!R35 -> 0 | AK35: =Input!AZ35*EF_CO2!S35 -> 0 | AL35: =Input!BA35*EF_CO2!T35 -> 0 | AM35: =Input!BB35*EF_CO2!U35 -> 0 | AN35: =Input!BC35*EF_CO2!V35 -> 0 | AO35: =Input!BD35*EF_CO2!W35 -> 0 | AP35: =Input!BE35*EF_CO2!AN35 -> 0 | BG35: =Input!BX35*EF_CO2!AN35 -> 0 | BH35: =Input!BY35*EF_CO2!AO35 -> 0 | BI35: =Input!BZ35*EF_CO2!AP35 -> 0 | BK35: =Input!CB35*EF_CO2!AQ35 -> 0 | BL35: =Input!CC35*EF_CO2!AR35 -> 0 | BM35: =Input!CD35*EF_CO2!AS35 -> 0 | BN35: =Input!CE35*EF_CO2!AT35 -> 0 | BP35: =Input!CG35*EF_CO2!AU35 -> 0 | BQ35: =Input!CH35*EF_CO2!AV35 -> 0 | BR35: =Input!CI35*EF_CO2!AW35 -> 0 | BS35: =Input!CJ35*EF_CO2!AX35 -> 0 | BT35: =Input!CK35*EF_CO2!AY35 -> 0 | BU35: =Input!CL35*EF_CO2!AZ35 -> 0 | BV35: =Input!CM35*EF_CO2!BA35 -> 0 | BW35: =Input!CN35*EF_CO2!BB35 -> 0 | BX35: =Input!CO35*EF_CO2!BC35 -> 0 | BY35: =Input!CP35*EF_CO2!BD35 -> 0 | BZ35: =Input!CQ35*EF_CO2!BE35 -> 0 | CA35: =Input!CR35*EF_CO2!BF35 -> 0 | CB35: =Input!CS35*EF_CO2!BE35 -> 0 | CC35: =Input!CT35*EF_CO2!BE35/2 -> 0 | CD35: =Input!CU35*EF_CO2!BC35 -> 0 | CE35: =Input!CV35*EF_CO2!BA35 -> 0 | CF35: =Input!CW35*EF_CO2!AZ35 -> 0 | CG35: =Input!CX35*EF_CO2!BG35 -> 0 | CH35: =Input!CY35*EF_CO2!BH35 -> 0 | CU35: =((EF_Electric!H36*BG35)/(1-EF_Electric!H36))+((EF_Steam!C33*BH35)/(1-EF_Steam!C33))+((EF_Water!C33*BI35)/(1-EF_Water!C33)) -> 0
B36: =Input!C36 -> 2015 | C36: =Input!N36*EF_CO2!C36 -> 0 | D36: =Input!O36*EF_CO2!D36 -> 0 | E36: =Input!P36*EF_CO2!E36 -> 0 | F36: =Input!Q36*EF_CO2!F36 -> 0 | G36: =Input!R36*EF_CO2!G36 -> 0 | H36: =Input!S36*EF_CO2!H36 -> 0 | I36: =Input!T36*EF_CO2!I36 -> 0 | J36: =Input!U36*EF_CO2!J36 -> 0 | K36: =Input!V36*EF_CO2!K36 -> 0 | L36: =Input!W36*EF_CO2!L36 -> 0 | M36: =Input!X36*EF_CO2!M36 -> 0 | Q36: =Input!AB36*EF_CO2!N36 -> 0 | R36: =Input!AG36*EF_CO2!C36 -> 0 | S36: =Input!AH36*EF_CO2!D36 -> 0 | T36: =Input!AI36*EF_CO2!E36 -> 0 | U36: =Input!AJ36*EF_CO2!F36 -> 0 | V36: =Input!AK36*EF_CO2!G36 -> 0 | W36: =Input!AL36*EF_CO2!H36 -> 0 | X36: =Input!AM36*EF_CO2!I36 -> 0 | Y36: =Input!AN36*EF_CO2!J36 -> 0 | Z36: =Input!AO36*EF_CO2!K36 -> 0 | AA36: =Input!AP36*EF_CO2!L36 -> 0 | AB36: =Input!AQ36*EF_CO2!M36 -> 0 | AF36: =Input!AU36*EF_CO2!N36 -> 0 | AG36: =Input!AV36*EF_CO2!O36 -> 0 | AH36: =Input!AW36*EF_CO2!P36 -> 0 | AI36: =Input!AX36*EF_CO2!Q36 -> 0 | AJ36: =Input!AY36*EF_CO2!R36 -> 0 | AK36: =Input!AZ36*EF_CO2!S36 -> 0 | AL36: =Input!BA36*EF_CO2!T36 -> 0 | AM36: =Input!BB36*EF_CO2!U36 -> 0 | AN36: =Input!BC36*EF_CO2!V36 -> 0 | AO36: =Input!BD36*EF_CO2!W36 -> 0 | AP36: =Input!BE36*EF_CO2!AN36 -> 0 | BG36: =Input!BX36*EF_CO2!AN36 -> 0 | BH36: =Input!BY36*EF_CO2!AO36 -> 0 | BI36: =Input!BZ36*EF_CO2!AP36 -> 0 | BK36: =Input!CB36*EF_CO2!AQ36 -> 0 | BL36: =Input!CC36*EF_CO2!AR36 -> 0 | BM36: =Input!CD36*EF_CO2!AS36 -> 0 | BN36: =Input!CE36*EF_CO2!AT36 -> 0 | BP36: =Input!CG36*EF_CO2!AU36 -> 0 | BQ36: =Input!CH36*EF_CO2!AV36 -> 0 | BR36: =Input!CI36*EF_CO2!AW36 -> 0 | BS36: =Input!CJ36*EF_CO2!AX36 -> 0 | BT36: =Input!CK36*EF_CO2!AY36 -> 0 | BU36: =Input!CL36*EF_CO2!AZ36 -> 0 | BV36: =Input!CM36*EF_CO2!BA36 -> 0 | BW36: =Input!CN36*EF_CO2!BB36 -> 0 | BX36: =Input!CO36*EF_CO2!BC36 -> 0 | BY36: =Input!CP36*EF_CO2!BD36 -> 0 | BZ36: =Input!CQ36*EF_CO2!BE36 -> 0 | CA36: =Input!CR36*EF_CO2!BF36 -> 0 | CB36: =Input!CS36*EF_CO2!BE36 -> 0 | CC36: =Input!CT36*EF_CO2!BE36/2 -> 0 | CD36: =Input!CU36*EF_CO2!BC36 -> 0 | CE36: =Input!CV36*EF_CO2!BA36 -> 0 | CF36: =Input!CW36*EF_CO2!AZ36 -> 0 | CG36: =Input!CX36*EF_CO2!BG36 -> 0 | CH36: =Input!CY36*EF_CO2!BH36 -> 0 | CU36: =((EF_Electric!H37*BG36)/(1-EF_Electric!H37))+((EF_Steam!C34*BH36)/(1-EF_Steam!C34))+((EF_Water!C34*BI36)/(1-EF_Water!C34)) -> 0
B37: =Input!C37 -> 2016 | C37: =Input!N37*EF_CO2!C37 -> 0 | D37: =Input!O37*EF_CO2!D37 -> 0 | E37: =Input!P37*EF_CO2!E37 -> 0 | F37: =Input!Q37*EF_CO2!F37 -> 0 | G37: =Input!R37*EF_CO2!G37 -> 0 | H37: =Input!S37*EF_CO2!H37 -> 0 | I37: =Input!T37*EF_CO2!I37 -> 0 | J37: =Input!U37*EF_CO2!J37 -> 0 | K37: =Input!V37*EF_CO2!K37 -> 0 | L37: =Input!W37*EF_CO2!L37 -> 0 | M37: =Input!X37*EF_CO2!M37 -> 0 | Q37: =Input!AB37*EF_CO2!N37 -> 0 | R37: =Input!AG37*EF_CO2!C37 -> 0 | S37: =Input!AH37*EF_CO2!D37 -> 4340.677006 | T37: =Input!AI37*EF_CO2!E37 -> 6545212.96 | U37: =Input!AJ37*EF_CO2!F37 -> 0 | V37: =Input!AK37*EF_CO2!G37 -> 1314881.542 | W37: =Input!AL37*EF_CO2!H37 -> 0 | X37: =Input!AM37*EF_CO2!I37 -> 0 | Y37: =Input!AN37*EF_CO2!J37 -> 0 | Z37: =Input!AO37*EF_CO2!K37 -> 0 | AA37: =Input!AP37*EF_CO2!L37 -> 0 | AB37: =Input!AQ37*EF_CO2!M37 -> 0 | AF37: =Input!AU37*EF_CO2!N37 -> 0 | AG37: =Input!AV37*EF_CO2!O37 -> 183372.304 | AH37: =Input!AW37*EF_CO2!P37 -> 47971.08851 | AI37: =Input!AX37*EF_CO2!Q37 -> 0 | AJ37: =Input!AY37*EF_CO2!R37 -> 0 | AK37: =Input!AZ37*EF_CO2!S37 -> 0 | AL37: =Input!BA37*EF_CO2!T37 -> 0 | AM37: =Input!BB37*EF_CO2!U37 -> 0 | AN37: =Input!BC37*EF_CO2!V37 -> 0 | AO37: =Input!BD37*EF_CO2!W37 -> 0 | AP37: =Input!BE37*EF_CO2!AN37 -> 0 | BG37: =Input!BX37*EF_CO2!AN37 -> 8322721.072 | BH37: =Input!BY37*EF_CO2!AO37 -> 0 | BI37: =Input!BZ37*EF_CO2!AP37 -> 0 | BK37: =Input!CB37*EF_CO2!AQ37 -> 946538.4998 | BL37: =Input!CC37*EF_CO2!AR37 -> 0 | BM37: =Input!CD37*EF_CO2!AS37 -> 0 | BN37: =Input!CE37*EF_CO2!AT37 -> 0 | BP37: =Input!CG37*EF_CO2!AU37 -> 4938204.614 | BQ37: =Input!CH37*EF_CO2!AV37 -> 0 | BR37: =Input!CI37*EF_CO2!AW37 -> 0 | BS37: =Input!CJ37*EF_CO2!AX37 -> 0 | BT37: =Input!CK37*EF_CO2!AY37 -> 0 | BU37: =Input!CL37*EF_CO2!AZ37 -> 0 | BV37: =Input!CM37*EF_CO2!BA37 -> 0 | BW37: =Input!CN37*EF_CO2!BB37 -> 17165.98322 | BX37: =Input!CO37*EF_CO2!BC37 -> 12111.87993 | BY37: =Input!CP37*EF_CO2!BD37 -> 0 | BZ37: =Input!CQ37*EF_CO2!BE37 -> 0 | CA37: =Input!CR37*EF_CO2!BF37 -> 1242802.362 | CB37: =Input!CS37*EF_CO2!BE37 -> 0 | CC37: =Input!CT37*EF_CO2!BE37/2 -> 0 | CD37: =Input!CU37*EF_CO2!BC37 -> 0 | CE37: =Input!CV37*EF_CO2!BA37 -> 0 | CF37: =Input!CW37*EF_CO2!AZ37 -> 0 | CG37: =Input!CX37*EF_CO2!BG37 -> 0 | CH37: =Input!CY37*EF_CO2!BH37 -> 0 | CU37: =((EF_Electric!H38*BG37)/(1-EF_Electric!H38))+((EF_Steam!C35*BH37)/(1-EF_Steam!C35))+((EF_Water!C35*BI37)/(1-EF_Water!C35)) -> 756538.7667
B38: ='Linear Projection'!B11 -> 2017 | C38: ='Detailed Projection'!M23*EF_CO2!C38 -> 0 | D38: ='Detailed Projection'!N23*EF_CO2!D38 -> 0 | E38: ='Detailed Projection'!O23*EF_CO2!E38 -> 0 | F38: ='Detailed Projection'!P23*EF_CO2!F38 -> 0 | G38: ='Detailed Projection'!Q23*EF_CO2!G38 -> 0 | H38: ='Detailed Projection'!R23*EF_CO2!H38 -> 0 | I38: ='Detailed Projection'!S23*EF_CO2!I38 -> 0 | J38: ='Detailed Projection'!T23*EF_CO2!J38 -> 0 | K38: ='Detailed Projection'!U23*EF_CO2!K38 -> 0 | L38: ='Detailed Projection'!V23*EF_CO2!L38 -> 0 | M38: ='Detailed Projection'!W23*EF_CO2!M38 -> 0 | Q38: ='Detailed Projection'!AA23*EF_CO2!N38 -> 0 | R38: ='Detailed Projection'!AF23*EF_CO2!C38 -> 0 | S38: ='Detailed Projection'!AG23*EF_CO2!D38 -> -17425.31926 | T38: ='Detailed Projection'!AH23*EF_CO2!E38 -> 5262839.597 | U38: ='Detailed Projection'!AI23*EF_CO2!F38 -> 0 | V38: ='Detailed Projection'!AJ23*EF_CO2!G38 -> 3649346.794 | W38: ='Detailed Projection'!AK23*EF_CO2!H38 -> 0 | X38: ='Detailed Projection'!AL23*EF_CO2!I38 -> -71154.62405 | Y38: ='Detailed Projection'!AM23*EF_CO2!J38 -> 0 | Z38: ='Detailed Projection'!AN23*EF_CO2!K38 -> 0 | AA38: ='Detailed Projection'!AO23*EF_CO2!L38 -> 0 | AB38: ='Detailed Projection'!AP23*EF_CO2!M38 -> 0 | AF38: ='Detailed Projection'!AT23*EF_CO2!N38 -> 0 | AG38: ='Detailed Projection'!AU23*EF_CO2!O38 -> 239013.9775 | AH38: ='Detailed Projection'!AV23*EF_CO2!P38 -> 33366.65923 | AI38: ='Detailed Projection'!AW23*EF_CO2!Q38 -> 0 | AJ38: ='Detailed Projection'!AX23*EF_CO2!R38 -> 0 | AK38: ='Detailed Projection'!AY23*EF_CO2!S38 -> 0 | AL38: ='Detailed Projection'!AZ23*EF_CO2!T38 -> 0 | AM38: ='Detailed Projection'!BA23*EF_CO2!U38 -> 0 | AN38: ='Detailed Projection'!BB23*EF_CO2!V38 -> 0 | AO38: ='Detailed Projection'!BC23*EF_CO2!W38 -> 0 | AP38: ='Detailed Projection'!BD23*EF_CO2!AN38 -> 0 | BG38: ='Detailed Projection'!BW23*EF_CO2!AN38 -> 9157384.58 | BH38: ='Detailed Projection'!BX23*EF_CO2!AO38 -> 0 | BI38: ='Detailed Projection'!BY23*EF_CO2!AP38 -> 0 | BK38: ='Detailed Projection'!CA23*EF_CO2!AQ38 -> 893072.9521 | BL38: ='Detailed Projection'!CB23*EF_CO2!AR38 -> 0 | BM38: ='Detailed Projection'!CC23*EF_CO2!AS38 -> 0 | BN38: ='Detailed Projection'!CD23*EF_CO2!AT38 -> 0 | BP38: ='Detailed Projection'!CF23*EF_CO2!AU38 -> 3959746.75 | BQ38: ='Detailed Projection'!CG23*EF_CO2!AV38 -> 0 | BR38: ='Detailed Projection'!CH23*EF_CO2!AW38 -> 0 | BS38: ='Detailed Projection'!CI23*EF_CO2!AX38 -> 0 | BT38: ='Detailed Projection'!CJ23*EF_CO2!AY38 -> 0 | BU38: ='Detailed Projection'!CK23*EF_CO2!AZ38 -> 0 | BV38: ='Detailed Projection'!CL23*EF_CO2!BA38 -> 0 | BW38: ='Detailed Projection'!CM23*EF_CO2!BB38 -> 4103.013365 | BX38: ='Detailed Projection'!CN23*EF_CO2!BC38 -> 12110.51954 | BY38: ='Detailed Projection'!CO23*EF_CO2!BD38 -> 0 | BZ38: ='Detailed Projection'!CP23*EF_CO2!BE38 -> 0 | CA38: ='Detailed Projection'!CQ23*EF_CO2!BF38 -> 1717288.309 | CB38: ='Detailed Projection'!CR23*EF_CO2!BE38 -> 0 | CC38: ='Detailed Projection'!CS23*EF_CO2!BE38/2 -> 0 | CD38: ='Detailed Projection'!CT23*EF_CO2!BC38 -> 0 | CE38: ='Detailed Projection'!CU23*EF_CO2!BA38 -> 0 | CF38: ='Detailed Projection'!CV23*EF_CO2!AZ38 -> 0 | CG38: ='Detailed Projection'!CW23*EF_CO2!BG38 -> 0 | CH38: ='Detailed Projection'!CX23*EF_CO2!BH38 -> 0 | CU38: =((EF_Electric!H39*BG38)/(1-EF_Electric!H39))+((EF_Steam!C36*BH38)/(1-EF_Steam!C36))+((EF_Water!C36*BI38)/(1-EF_Water!C36)) -> 832410.0227
B39: ='Linear Projection'!B12 -> 2018 | C39: ='Detailed Projection'!M24*EF_CO2!C39 -> 0 | D39: ='Detailed Projection'!N24*EF_CO2!D39 -> 0 | E39: ='Detailed Projection'!O24*EF_CO2!E39 -> 0 | F39: ='Detailed Projection'!P24*EF_CO2!F39 -> 0 | G39: ='Detailed Projection'!Q24*EF_CO2!G39 -> 0 | H39: ='Detailed Projection'!R24*EF_CO2!H39 -> 0 | I39: ='Detailed Projection'!S24*EF_CO2!I39 -> 0 | J39: ='Detailed Projection'!T24*EF_CO2!J39 -> 0 | K39: ='Detailed Projection'!U24*EF_CO2!K39 -> 0 | L39: ='Detailed Projection'!V24*EF_CO2!L39 -> 0 | M39: ='Detailed Projection'!W24*EF_CO2!M39 -> 0 | Q39: ='Detailed Projection'!AA24*EF_CO2!N39 -> 0 | R39: ='Detailed Projection'!AF24*EF_CO2!C39 -> 0 | S39: ='Detailed Projection'!AG24*EF_CO2!D39 -> -22678.69956 | T39: ='Detailed Projection'!AH24*EF_CO2!E39 -> 5292795.851 | U39: ='Detailed Projection'!AI24*EF_CO2!F39 -> 0 | V39: ='Detailed Projection'!AJ24*EF_CO2!G39 -> 3570933.741 | W39: ='Detailed Projection'!AK24*EF_CO2!H39 -> 0 | X39: ='Detailed Projection'!AL24*EF_CO2!I39 -> -86402.04349 | Y39: ='Detailed Projection'!AM24*EF_CO2!J39 -> 0 | Z39: ='Detailed Projection'!AN24*EF_CO2!K39 -> 0 | AA39: ='Detailed Projection'!AO24*EF_CO2!L39 -> 0 | AB39: ='Detailed Projection'!AP24*EF_CO2!M39 -> 0 | AF39: ='Detailed Projection'!AT24*EF_CO2!N39 -> 0 | AG39: ='Detailed Projection'!AU24*EF_CO2!O39 -> 236462.4799 | AH39: ='Detailed Projection'!AV24*EF_CO2!P39 -> 33654.24085 | AI39: ='Detailed Projection'!AW24*EF_CO2!Q39 -> 0 | AJ39: ='Detailed Projection'!AX24*EF_CO2!R39 -> 0 | AK39: ='Detailed Projection'!AY24*EF_CO2!S39 -> 0 | AL39: ='Detailed Projection'!AZ24*EF_CO2!T39 -> 0 | AM39: ='Detailed Projection'!BA24*EF_CO2!U39 -> 0 | AN39: ='Detailed Projection'!BB24*EF_CO2!V39 -> 0 | AO39: ='Detailed Projection'!BC24*EF_CO2!W39 -> 0 | AP39: ='Detailed Projection'!BD24*EF_CO2!AN39 -> 0 | BG39: ='Detailed Projection'!BW24*EF_CO2!AN39 -> 9205780.733 | BH39: ='Detailed Projection'!BX24*EF_CO2!AO39 -> 0 | BI39: ='Detailed Projection'!BY24*EF_CO2!AP39 -> 0 | BK39: ='Detailed Projection'!CA24*EF_CO2!AQ39 -> 916030.8753 | BL39: ='Detailed Projection'!CB24*EF_CO2!AR39 -> 0 | BM39: ='Detailed Projection'!CC24*EF_CO2!AS39 -> 0 | BN39: ='Detailed Projection'!CD24*EF_CO2!AT39 -> 0 | BP39: ='Detailed Projection'!CF24*EF_CO2!AU39 -> 4029988.08 | BQ39: ='Detailed Projection'!CG24*EF_CO2!AV39 -> 0 | BR39: ='Detailed Projection'!CH24*EF_CO2!AW39 -> 0 | BS39: ='Detailed Projection'!CI24*EF_CO2!AX39 -> 0 | BT39: ='Detailed Projection'!CJ24*EF_CO2!AY39 -> 0 | BU39: ='Detailed Projection'!CK24*EF_CO2!AZ39 -> 0 | BV39: ='Detailed Projection'!CL24*EF_CO2!BA39 -> 0 | BW39: ='Detailed Projection'!CM24*EF_CO2!BB39 -> 4155.523083 | BX39: ='Detailed Projection'!CN24*EF_CO2!BC39 -> 12329.24572 | BY39: ='Detailed Projection'!CO24*EF_CO2!BD39 -> 0 | BZ39: ='Detailed Projection'!CP24*EF_CO2!BE39 -> 0 | CA39: ='Detailed Projection'!CQ24*EF_CO2!BF39 -> 1791495.282 | CB39: ='Detailed Projection'!CR24*EF_CO2!BE39 -> 0 | CC39: ='Detailed Projection'!CS24*EF_CO2!BE39/2 -> 0 | CD39: ='Detailed Projection'!CT24*EF_CO2!BC39 -> 0 | CE39: ='Detailed Projection'!CU24*EF_CO2!BA39 -> 0 | CF39: ='Detailed Projection'!CV24*EF_CO2!AZ39 -> 0 | CG39: ='Detailed Projection'!CW24*EF_CO2!BG39 -> 0 | CH39: ='Detailed Projection'!CX24*EF_CO2!BH39 -> 0 | CU39: =((EF_Electric!H40*BG39)/(1-EF_Electric!H40))+((EF_Steam!C37*BH39)/(1-EF_Steam!C37))+((EF_Water!C37*BI39)/(1-EF_Water!C37)) -> 836809.253
B40: ='Linear Projection'!B13 -> 2019 | C40: ='Detailed Projection'!M25*EF_CO2!C40 -> 0 | D40: ='Detailed Projection'!N25*EF_CO2!D40 -> 0 | E40: ='Detailed Projection'!O25*EF_CO2!E40 -> 0 | F40: ='Detailed Projection'!P25*EF_CO2!F40 -> 0 | G40: ='Detailed Projection'!Q25*EF_CO2!G40 -> 0 | H40: ='Detailed Projection'!R25*EF_CO2!H40 -> 0 | I40: ='Detailed Projection'!S25*EF_CO2!I40 -> 0 | J40: ='Detailed Projection'!T25*EF_CO2!J40 -> 0 | K40: ='Detailed Projection'!U25*EF_CO2!K40 -> 0 | L40: ='Detailed Projection'!V25*EF_CO2!L40 -> 0 | M40: ='Detailed Projection'!W25*EF_CO2!M40 -> 0 | Q40: ='Detailed Projection'!AA25*EF_CO2!N40 -> 0 | R40: ='Detailed Projection'!AF25*EF_CO2!C40 -> 0 | S40: ='Detailed Projection'!AG25*EF_CO2!D40 -> -27932.07987 | T40: ='Detailed Projection'!AH25*EF_CO2!E40 -> 5322752.105 | U40: ='Detailed Projection'!AI25*EF_CO2!F40 -> 0 | V40: ='Detailed Projection'!AJ25*EF_CO2!G40 -> 3492520.689 | W40: ='Detailed Projection'!AK25*EF_CO2!H40 -> 0 | X40: ='Detailed Projection'!AL25*EF_CO2!I40 -> -101649.4629 | Y40: ='Detailed Projection'!AM25*EF_CO2!J40 -> 0 | Z40: ='Detailed Projection'!AN25*EF_CO2!K40 -> 0 | AA40: ='Detailed Projection'!AO25*EF_CO2!L40 -> 0 | AB40: ='Detailed Projection'!AP25*EF_CO2!M40 -> 0 | AF40: ='Detailed Projection'!AT25*EF_CO2!N40 -> 0 | AG40: ='Detailed Projection'!AU25*EF_CO2!O40 -> 233910.9823 | AH40: ='Detailed Projection'!AV25*EF_CO2!P40 -> 33941.82247 | AI40: ='Detailed Projection'!AW25*EF_CO2!Q40 -> 0 | AJ40: ='Detailed Projection'!AX25*EF_CO2!R40 -> 0 | AK40: ='Detailed Projection'!AY25*EF_CO2!S40 -> 0 | AL40: ='Detailed Projection'!AZ25*EF_CO2!T40 -> 0 | AM40: ='Detailed Projection'!BA25*EF_CO2!U40 -> 0 | AN40: ='Detailed Projection'!BB25*EF_CO2!V40 -> 0 | AO40: ='Detailed Projection'!BC25*EF_CO2!W40 -> 0 | AP40: ='Detailed Projection'!BD25*EF_CO2!AN40 -> 0 | BG40: ='Detailed Projection'!BW25*EF_CO2!AN40 -> 9254176.887 | BH40: ='Detailed Projection'!BX25*EF_CO2!AO40 -> 0 | BI40: ='Detailed Projection'!BY25*EF_CO2!AP40 -> 0 | BK40: ='Detailed Projection'!CA25*EF_CO2!AQ40 -> 938988.7986 | BL40: ='Detailed Projection'!CB25*EF_CO2!AR40 -> 0 | BM40: ='Detailed Projection'!CC25*EF_CO2!AS40 -> 0 | BN40: ='Detailed Projection'!CD25*EF_CO2!AT40 -> 0 | BP40: ='Detailed Projection'!CF25*EF_CO2!AU40 -> 4100229.41 | BQ40: ='Detailed Projection'!CG25*EF_CO2!AV40 -> 0 | BR40: ='Detailed Projection'!CH25*EF_CO2!AW40 -> 0 | BS40: ='Detailed Projection'!CI25*EF_CO2!AX40 -> 0 | BT40: ='Detailed Projection'!CJ25*EF_CO2!AY40 -> 0 | BU40: ='Detailed Projection'!CK25*EF_CO2!AZ40 -> 0 | BV40: ='Detailed Projection'!CL25*EF_CO2!BA40 -> 0 | BW40: ='Detailed Projection'!CM25*EF_CO2!BB40 -> 4208.032801 | BX40: ='Detailed Projection'!CN25*EF_CO2!BC40 -> 12547.9719 | BY40: ='Detailed Projection'!CO25*EF_CO2!BD40 -> 0 | BZ40: ='Detailed Projection'!CP25*EF_CO2!BE40 -> 0 | CA40: ='Detailed Projection'!CQ25*EF_CO2!BF40 -> 1865702.255 | CB40: ='Detailed Projection'!CR25*EF_CO2!BE40 -> 0 | CC40: ='Detailed Projection'!CS25*EF_CO2!BE40/2 -> 0 | CD40: ='Detailed Projection'!CT25*EF_CO2!BC40 -> 0 | CE40: ='Detailed Projection'!CU25*EF_CO2!BA40 -> 0 | CF40: ='Detailed Projection'!CV25*EF_CO2!AZ40 -> 0 | CG40: ='Detailed Projection'!CW25*EF_CO2!BG40 -> 0 | CH40: ='Detailed Projection'!CX25*EF_CO2!BH40 -> 0 | CU40: =((EF_Electric!H41*BG40)/(1-EF_Electric!H41))+((EF_Steam!C38*BH40)/(1-EF_Steam!C38))+((EF_Water!C38*BI40)/(1-EF_Water!C38)) -> 841208.4833
B41: ='Linear Projection'!B14 -> 2020 | C41: ='Detailed Projection'!M26*EF_CO2!C41 -> 0 | D41: ='Detailed Projection'!N26*EF_CO2!D41 -> 0 | E41: ='Detailed Projection'!O26*EF_CO2!E41 -> 0 | F41: ='Detailed Projection'!P26*EF_CO2!F41 -> 0 | G41: ='Detailed Projection'!Q26*EF_CO2!G41 -> 0 | H41: ='Detailed Projection'!R26*EF_CO2!H41 -> 0 | I41: ='Detailed Projection'!S26*EF_CO2!I41 -> 0 | J41: ='Detailed Projection'!T26*EF_CO2!J41 -> 0 | K41: ='Detailed Projection'!U26*EF_CO2!K41 -> 0 | L41: ='Detailed Projection'!V26*EF_CO2!L41 -> 0 | M41: ='Detailed Projection'!W26*EF_CO2!M41 -> 0 | Q41: ='Detailed Projection'!AA26*EF_CO2!N41 -> 0 | R41: ='Detailed Projection'!AF26*EF_CO2!C41 -> 0 | S41: ='Detailed Projection'!AG26*EF_CO2!D41 -> -33185.46018 | T41: ='Detailed Projection'!AH26*EF_CO2!E41 -> 5352708.359 | U41: ='Detailed Projection'!AI26*EF_CO2!F41 -> 0 | V41: ='Detailed Projection'!AJ26*EF_CO2!G41 -> 3414107.636 | W41: ='Detailed Projection'!AK26*EF_CO2!H41 -> 0 | X41: ='Detailed Projection'!AL26*EF_CO2!I41 -> -116896.8824 | Y41: ='Detailed Projection'!AM26*EF_CO2!J41 -> 0 | Z41: ='Detailed Projection'!AN26*EF_CO2!K41 -> 0 | AA41: ='Detailed Projection'!AO26*EF_CO2!L41 -> 0 | AB41: ='Detailed Projection'!AP26*EF_CO2!M41 -> 0 | AF41: ='Detailed Projection'!AT26*EF_CO2!N41 -> 0 | AG41: ='Detailed Projection'!AU26*EF_CO2!O41 -> 231359.4847 | AH41: ='Detailed Projection'!AV26*EF_CO2!P41 -> 34229.40409 | AI41: ='Detailed Projection'!AW26*EF_CO2!Q41 -> 0 | AJ41: ='Detailed Projection'!AX26*EF_CO2!R41 -> 0 | AK41: ='Detailed Projection'!AY26*EF_CO2!S41 -> 0 | AL41: ='Detailed Projection'!AZ26*EF_CO2!T41 -> 0 | AM41: ='Detailed Projection'!BA26*EF_CO2!U41 -> 0 | AN41: ='Detailed Projection'!BB26*EF_CO2!V41 -> 0 | AO41: ='Detailed Projection'!BC26*EF_CO2!W41 -> 0 | AP41: ='Detailed Projection'!BD26*EF_CO2!AN41 -> 0 | BG41: ='Detailed Projection'!BW26*EF_CO2!AN41 -> 9302573.041 | BH41: ='Detailed Projection'!BX26*EF_CO2!AO41 -> 0 | BI41: ='Detailed Projection'!BY26*EF_CO2!AP41 -> 0 | BK41: ='Detailed Projection'!CA26*EF_CO2!AQ41 -> 961946.7219 | BL41: ='Detailed Projection'!CB26*EF_CO2!AR41 -> 0 | BM41: ='Detailed Projection'!CC26*EF_CO2!AS41 -> 0 | BN41: ='Detailed Projection'!CD26*EF_CO2!AT41 -> 0 | BP41: ='Detailed Projection'!CF26*EF_CO2!AU41 -> 4170470.74 | BQ41: ='Detailed Projection'!CG26*EF_CO2!AV41 -> 0 | BR41: ='Detailed Projection'!CH26*EF_CO2!AW41 -> 0 | BS41: ='Detailed Projection'!CI26*EF_CO2!AX41 -> 0 | BT41: ='Detailed Projection'!CJ26*EF_CO2!AY41 -> 0 | BU41: ='Detailed Projection'!CK26*EF_CO2!AZ41 -> 0 | BV41: ='Detailed Projection'!CL26*EF_CO2!BA41 -> 0 | BW41: ='Detailed Projection'!CM26*EF_CO2!BB41 -> 4260.542519 | BX41: ='Detailed Projection'!CN26*EF_CO2!BC41 -> 12766.69808 | BY41: ='Detailed Projection'!CO26*EF_CO2!BD41 -> 0 | BZ41: ='Detailed Projection'!CP26*EF_CO2!BE41 -> 0 | CA41: ='Detailed Projection'!CQ26*EF_CO2!BF41 -> 1939909.227 | CB41: ='Detailed Projection'!CR26*EF_CO2!BE41 -> 0 | CC41: ='Detailed Projection'!CS26*EF_CO2!BE41/2 -> 0 | CD41: ='Detailed Projection'!CT26*EF_CO2!BC41 -> 0 | CE41: ='Detailed Projection'!CU26*EF_CO2!BA41 -> 0 | CF41: ='Detailed Projection'!CV26*EF_CO2!AZ41 -> 0 | CG41: ='Detailed Projection'!CW26*EF_CO2!BG41 -> 0 | CH41: ='Detailed Projection'!CX26*EF_CO2!BH41 -> 0 | CU41: =((EF_Electric!H42*BG41)/(1-EF_Electric!H42))+((EF_Steam!C39*BH41)/(1-EF_Steam!C39))+((EF_Water!C39*BI41)/(1-EF_Water!C39)) -> 845607.7135
B42: ='Linear Projection'!B15 -> 2021 | C42: ='Detailed Projection'!M27*EF_CO2!C42 -> 0 | D42: ='Detailed Projection'!N27*EF_CO2!D42 -> 0 | E42: ='Detailed Projection'!O27*EF_CO2!E42 -> 0 | F42: ='Detailed Projection'!P27*EF_CO2!F42 -> 0 | G42: ='Detailed Projection'!Q27*EF_CO2!G42 -> 0 | H42: ='Detailed Projection'!R27*EF_CO2!H42 -> 0 | I42: ='Detailed Projection'!S27*EF_CO2!I42 -> 0 | J42: ='Detailed Projection'!T27*EF_CO2!J42 -> 0 | K42: ='Detailed Projection'!U27*EF_CO2!K42 -> 0 | L42: ='Detailed Projection'!V27*EF_CO2!L42 -> 0 | M42: ='Detailed Projection'!W27*EF_CO2!M42 -> 0 | Q42: ='Detailed Projection'!AA27*EF_CO2!N42 -> 0 | R42: ='Detailed Projection'!AF27*EF_CO2!C42 -> 0 | S42: ='Detailed Projection'!AG27*EF_CO2!D42 -> -38438.84048 | T42: ='Detailed Projection'!AH27*EF_CO2!E42 -> 5382664.613 | U42: ='Detailed Projection'!AI27*EF_CO2!F42 -> 0 | V42: ='Detailed Projection'!AJ27*EF_CO2!G42 -> 3335694.583 | W42: ='Detailed Projection'!AK27*EF_CO2!H42 -> 0 | X42: ='Detailed Projection'!AL27*EF_CO2!I42 -> -132144.3018 | Y42: ='Detailed Projection'!AM27*EF_CO2!J42 -> 0 | Z42: ='Detailed Projection'!AN27*EF_CO2!K42 -> 0 | AA42: ='Detailed Projection'!AO27*EF_CO2!L42 -> 0 | AB42: ='Detailed Projection'!AP27*EF_CO2!M42 -> 0 | AF42: ='Detailed Projection'!AT27*EF_CO2!N42 -> 0 | AG42: ='Detailed Projection'!AU27*EF_CO2!O42 -> 228807.9871 | AH42: ='Detailed Projection'!AV27*EF_CO2!P42 -> 34516.98571 | AI42: ='Detailed Projection'!AW27*EF_CO2!Q42 -> 0 | AJ42: ='Detailed Projection'!AX27*EF_CO2!R42 -> 0 | AK42: ='Detailed Projection'!AY27*EF_CO2!S42 -> 0 | AL42: ='Detailed Projection'!AZ27*EF_CO2!T42 -> 0 | AM42: ='Detailed Projection'!BA27*EF_CO2!U42 -> 0 | AN42: ='Detailed Projection'!BB27*EF_CO2!V42 -> 0 | AO42: ='Detailed Projection'!BC27*EF_CO2!W42 -> 0 | AP42: ='Detailed Projection'!BD27*EF_CO2!AN42 -> 0 | BG42: ='Detailed Projection'!BW27*EF_CO2!AN42 -> 9350969.195 | BH42: ='Detailed Projection'!BX27*EF_CO2!AO42 -> 0 | BI42: ='Detailed Projection'!BY27*EF_CO2!AP42 -> 0 | BK42: ='Detailed Projection'!CA27*EF_CO2!AQ42 -> 984904.6451 | BL42: ='Detailed Projection'!CB27*EF_CO2!AR42 -> 0 | BM42: ='Detailed Projection'!CC27*EF_CO2!AS42 -> 0 | BN42: ='Detailed Projection'!CD27*EF_CO2!AT42 -> 0 | BP42: ='Detailed Projection'!CF27*EF_CO2!AU42 -> 4240712.07 | BQ42: ='Detailed Projection'!CG27*EF_CO2!AV42 -> 0 | BR42: ='Detailed Projection'!CH27*EF_CO2!AW42 -> 0 | BS42: ='Detailed Projection'!CI27*EF_CO2!AX42 -> 0 | BT42: ='Detailed Projection'!CJ27*EF_CO2!AY42 -> 0 | BU42: ='Detailed Projection'!CK27*EF_CO2!AZ42 -> 0 | BV42: ='Detailed Projection'!CL27*EF_CO2!BA42 -> 0 | BW42: ='Detailed Projection'!CM27*EF_CO2!BB42 -> 4313.052238 | BX42: ='Detailed Projection'!CN27*EF_CO2!BC42 -> 12985.42426 | BY42: ='Detailed Projection'!CO27*EF_CO2!BD42 -> 0 | BZ42: ='Detailed Projection'!CP27*EF_CO2!BE42 -> 0 | CA42: ='Detailed Projection'!CQ27*EF_CO2!BF42 -> 2014116.2 | CB42: ='Detailed Projection'!CR27*EF_CO2!BE42 -> 0 | CC42: ='Detailed Projection'!CS27*EF_CO2!BE42/2 -> 0 | CD42: ='Detailed Projection'!CT27*EF_CO2!BC42 -> 0 | CE42: ='Detailed Projection'!CU27*EF_CO2!BA42 -> 0 | CF42: ='Detailed Projection'!CV27*EF_CO2!AZ42 -> 0 | CG42: ='Detailed Projection'!CW27*EF_CO2!BG42 -> 0 | CH42: ='Detailed Projection'!CX27*EF_CO2!BH42 -> 0 | CU42: =((EF_Electric!H43*BG42)/(1-EF_Electric!H43))+((EF_Steam!C40*BH42)/(1-EF_Steam!C40))+((EF_Water!C40*BI42)/(1-EF_Water!C40)) -> 850006.9438
B43: ='Linear Projection'!B16 -> 2022 | C43: ='Detailed Projection'!M28*EF_CO2!C43 -> 0 | D43: ='Detailed Projection'!N28*EF_CO2!D43 -> 0 | E43: ='Detailed Projection'!O28*EF_CO2!E43 -> 0 | F43: ='Detailed Projection'!P28*EF_CO2!F43 -> 0 | G43: ='Detailed Projection'!Q28*EF_CO2!G43 -> 0 | H43: ='Detailed Projection'!R28*EF_CO2!H43 -> 0 | I43: ='Detailed Projection'!S28*EF_CO2!I43 -> 0 | J43: ='Detailed Projection'!T28*EF_CO2!J43 -> 0 | K43: ='Detailed Projection'!U28*EF_CO2!K43 -> 0 | L43: ='Detailed Projection'!V28*EF_CO2!L43 -> 0 | M43: ='Detailed Projection'!W28*EF_CO2!M43 -> 0 | Q43: ='Detailed Projection'!AA28*EF_CO2!N43 -> 0 | R43: ='Detailed Projection'!AF28*EF_CO2!C43 -> 0 | S43: ='Detailed Projection'!AG28*EF_CO2!D43 -> -43692.22079 | T43: ='Detailed Projection'!AH28*EF_CO2!E43 -> 5412620.867 | U43: ='Detailed Projection'!AI28*EF_CO2!F43 -> 0 | V43: ='Detailed Projection'!AJ28*EF_CO2!G43 -> 3257281.531 | W43: ='Detailed Projection'!AK28*EF_CO2!H43 -> 0 | X43: ='Detailed Projection'!AL28*EF_CO2!I43 -> -147391.7213 | Y43: ='Detailed Projection'!AM28*EF_CO2!J43 -> 0 | Z43: ='Detailed Projection'!AN28*EF_CO2!K43 -> 0 | AA43: ='Detailed Projection'!AO28*EF_CO2!L43 -> 0 | AB43: ='Detailed Projection'!AP28*EF_CO2!M43 -> 0 | AF43: ='Detailed Projection'!AT28*EF_CO2!N43 -> 0 | AG43: ='Detailed Projection'!AU28*EF_CO2!O43 -> 226256.4894 | AH43: ='Detailed Projection'!AV28*EF_CO2!P43 -> 34804.56733 | AI43: ='Detailed Projection'!AW28*EF_CO2!Q43 -> 0 | AJ43: ='Detailed Projection'!AX28*EF_CO2!R43 -> 0 | AK43: ='Detailed Projection'!AY28*EF_CO2!S43 -> 0 | AL43: ='Detailed Projection'!AZ28*EF_CO2!T43 -> 0 | AM43: ='Detailed Projection'!BA28*EF_CO2!U43 -> 0 | AN43: ='Detailed Projection'!BB28*EF_CO2!V43 -> 0 | AO43: ='Detailed Projection'!BC28*EF_CO2!W43 -> 0 | AP43: ='Detailed Projection'!BD28*EF_CO2!AN43 -> 0 | BG43: ='Detailed Projection'!BW28*EF_CO2!AN43 -> 9399365.349 | BH43: ='Detailed Projection'!BX28*EF_CO2!AO43 -> 0 | BI43: ='Detailed Projection'!BY28*EF_CO2!AP43 -> 0 | BK43: ='Detailed Projection'!CA28*EF_CO2!AQ43 -> 1007862.568 | BL43: ='Detailed Projection'!CB28*EF_CO2!AR43 -> 0 | BM43: ='Detailed Projection'!CC28*EF_CO2!AS43 -> 0 | BN43: ='Detailed Projection'!CD28*EF_CO2!AT43 -> 0 | BP43: ='Detailed Projection'!CF28*EF_CO2!AU43 -> 4310953.4 | BQ43: ='Detailed Projection'!CG28*EF_CO2!AV43 -> 0 | BR43: ='Detailed Projection'!CH28*EF_CO2!AW43 -> 0 | BS43: ='Detailed Projection'!CI28*EF_CO2!AX43 -> 0 | BT43: ='Detailed Projection'!CJ28*EF_CO2!AY43 -> 0 | BU43: ='Detailed Projection'!CK28*EF_CO2!AZ43 -> 0 | BV43: ='Detailed Projection'!CL28*EF_CO2!BA43 -> 0 | BW43: ='Detailed Projection'!CM28*EF_CO2!BB43 -> 4365.561956 | BX43: ='Detailed Projection'!CN28*EF_CO2!BC43 -> 13204.15044 | BY43: ='Detailed Projection'!CO28*EF_CO2!BD43 -> 0 | BZ43: ='Detailed Projection'!CP28*EF_CO2!BE43 -> 0 | CA43: ='Detailed Projection'!CQ28*EF_CO2!BF43 -> 2088323.173 | CB43: ='Detailed Projection'!CR28*EF_CO2!BE43 -> 0 | CC43: ='Detailed Projection'!CS28*EF_CO2!BE43/2 -> 0 | CD43: ='Detailed Projection'!CT28*EF_CO2!BC43 -> 0 | CE43: ='Detailed Projection'!CU28*EF_CO2!BA43 -> 0 | CF43: ='Detailed Projection'!CV28*EF_CO2!AZ43 -> 0 | CG43: ='Detailed Projection'!CW28*EF_CO2!BG43 -> 0 | CH43: ='Detailed Projection'!CX28*EF_CO2!BH43 -> 0 | CU43: =((EF_Electric!H44*BG43)/(1-EF_Electric!H44))+((EF_Steam!C41*BH43)/(1-EF_Steam!C41))+((EF_Water!C41*BI43)/(1-EF_Water!C41)) -> 854406.1741
B44: ='Linear Projection'!B17 -> 2023 | C44: ='Detailed Projection'!M29*EF_CO2!C44 -> 0 | D44: ='Detailed Projection'!N29*EF_CO2!D44 -> 0 | E44: ='Detailed Projection'!O29*EF_CO2!E44 -> 0 | F44: ='Detailed Projection'!P29*EF_CO2!F44 -> 0 | G44: ='Detailed Projection'!Q29*EF_CO2!G44 -> 0 | H44: ='Detailed Projection'!R29*EF_CO2!H44 -> 0 | I44: ='Detailed Projection'!S29*EF_CO2!I44 -> 0 | J44: ='Detailed Projection'!T29*EF_CO2!J44 -> 0 | K44: ='Detailed Projection'!U29*EF_CO2!K44 -> 0 | L44: ='Detailed Projection'!V29*EF_CO2!L44 -> 0 | M44: ='Detailed Projection'!W29*EF_CO2!M44 -> 0 | Q44: ='Detailed Projection'!AA29*EF_CO2!N44 -> 0 | R44: ='Detailed Projection'!AF29*EF_CO2!C44 -> 0 | S44: ='Detailed Projection'!AG29*EF_CO2!D44 -> -48945.6011 | T44: ='Detailed Projection'!AH29*EF_CO2!E44 -> 5442577.12 | U44: ='Detailed Projection'!AI29*EF_CO2!F44 -> 0 | V44: ='Detailed Projection'!AJ29*EF_CO2!G44 -> 3178868.478 | W44: ='Detailed Projection'!AK29*EF_CO2!H44 -> 0 | X44: ='Detailed Projection'!AL29*EF_CO2!I44 -> -162639.1407 | Y44: ='Detailed Projection'!AM29*EF_CO2!J44 -> 0 | Z44: ='Detailed Projection'!AN29*EF_CO2!K44 -> 0 | AA44: ='Detailed Projection'!AO29*EF_CO2!L44 -> 0 | AB44: ='Detailed Projection'!AP29*EF_CO2!M44 -> 0 | AF44: ='Detailed Projection'!AT29*EF_CO2!N44 -> 0 | AG44: ='Detailed Projection'!AU29*EF_CO2!O44 -> 223704.9918 | AH44: ='Detailed Projection'!AV29*EF_CO2!P44 -> 35092.14895 | AI44: ='Detailed Projection'!AW29*EF_CO2!Q44 -> 0 | AJ44: ='Detailed Projection'!AX29*EF_CO2!R44 -> 0 | AK44: ='Detailed Projection'!AY29*EF_CO2!S44 -> 0 | AL44: ='Detailed Projection'!AZ29*EF_CO2!T44 -> 0 | AM44: ='Detailed Projection'!BA29*EF_CO2!U44 -> 0 | AN44: ='Detailed Projection'!BB29*EF_CO2!V44 -> 0 | AO44: ='Detailed Projection'!BC29*EF_CO2!W44 -> 0 | AP44: ='Detailed Projection'!BD29*EF_CO2!AN44 -> 0 | BG44: ='Detailed Projection'!BW29*EF_CO2!AN44 -> 9447761.503 | BH44: ='Detailed Projection'!BX29*EF_CO2!AO44 -> 0 | BI44: ='Detailed Projection'!BY29*EF_CO2!AP44 -> 0 | BK44: ='Detailed Projection'!CA29*EF_CO2!AQ44 -> 1030820.492 | BL44: ='Detailed Projection'!CB29*EF_CO2!AR44 -> 0 | BM44: ='Detailed Projection'!CC29*EF_CO2!AS44 -> 0 | BN44: ='Detailed Projection'!CD29*EF_CO2!AT44 -> 0 | BP44: ='Detailed Projection'!CF29*EF_CO2!AU44 -> 4381194.73 | BQ44: ='Detailed Projection'!CG29*EF_CO2!AV44 -> 0 | BR44: ='Detailed Projection'!CH29*EF_CO2!AW44 -> 0 | BS44: ='Detailed Projection'!CI29*EF_CO2!AX44 -> 0 | BT44: ='Detailed Projection'!CJ29*EF_CO2!AY44 -> 0 | BU44: ='Detailed Projection'!CK29*EF_CO2!AZ44 -> 0 | BV44: ='Detailed Projection'!CL29*EF_CO2!BA44 -> 0 | BW44: ='Detailed Projection'!CM29*EF_CO2!BB44 -> 4418.071674 | BX44: ='Detailed Projection'!CN29*EF_CO2!BC44 -> 13422.87661 | BY44: ='Detailed Projection'!CO29*EF_CO2!BD44 -> 0 | BZ44: ='Detailed Projection'!CP29*EF_CO2!BE44 -> 0 | CA44: ='Detailed Projection'!CQ29*EF_CO2!BF44 -> 2162530.145 | CB44: ='Detailed Projection'!CR29*EF_CO2!BE44 -> 0 | CC44: ='Detailed Projection'!CS29*EF_CO2!BE44/2 -> 0 | CD44: ='Detailed Projection'!CT29*EF_CO2!BC44 -> 0 | CE44: ='Detailed Projection'!CU29*EF_CO2!BA44 -> 0 | CF44: ='Detailed Projection'!CV29*EF_CO2!AZ44 -> 0 | CG44: ='Detailed Projection'!CW29*EF_CO2!BG44 -> 0 | CH44: ='Detailed Projection'!CX29*EF_CO2!BH44 -> 0 | CU44: =((EF_Electric!H45*BG44)/(1-EF_Electric!H45))+((EF_Steam!C42*BH44)/(1-EF_Steam!C42))+((EF_Water!C42*BI44)/(1-EF_Water!C42)) -> 858805.4044
B45: ='Linear Projection'!B18 -> 2024 | C45: ='Detailed Projection'!M30*EF_CO2!C45 -> 0 | D45: ='Detailed Projection'!N30*EF_CO2!D45 -> 0 | E45: ='Detailed Projection'!O30*EF_CO2!E45 -> 0 | F45: ='Detailed Projection'!P30*EF_CO2!F45 -> 0 | G45: ='Detailed Projection'!Q30*EF_CO2!G45 -> 0 | H45: ='Detailed Projection'!R30*EF_CO2!H45 -> 0 | I45: ='Detailed Projection'!S30*EF_CO2!I45 -> 0 | J45: ='Detailed Projection'!T30*EF_CO2!J45 -> 0 | K45: ='Detailed Projection'!U30*EF_CO2!K45 -> 0 | L45: ='Detailed Projection'!V30*EF_CO2!L45 -> 0 | M45: ='Detailed Projection'!W30*EF_CO2!M45 -> 0 | Q45: ='Detailed Projection'!AA30*EF_CO2!N45 -> 0 | R45: ='Detailed Projection'!AF30*EF_CO2!C45 -> 0 | S45: ='Detailed Projection'!AG30*EF_CO2!D45 -> -54198.9814 | T45: ='Detailed Projection'!AH30*EF_CO2!E45 -> 5472533.374 | U45: ='Detailed Projection'!AI30*EF_CO2!F45 -> 0 | V45: ='Detailed Projection'!AJ30*EF_CO2!G45 -> 3100455.425 | W45: ='Detailed Projection'!AK30*EF_CO2!H45 -> 0 | X45: ='Detailed Projection'!AL30*EF_CO2!I45 -> -177886.5601 | Y45: ='Detailed Projection'!AM30*EF_CO2!J45 -> 0 | Z45: ='Detailed Projection'!AN30*EF_CO2!K45 -> 0 | AA45: ='Detailed Projection'!AO30*EF_CO2!L45 -> 0 | AB45: ='Detailed Projection'!AP30*EF_CO2!M45 -> 0 | AF45: ='Detailed Projection'!AT30*EF_CO2!N45 -> 0 | AG45: ='Detailed Projection'!AU30*EF_CO2!O45 -> 221153.4942 | AH45: ='Detailed Projection'!AV30*EF_CO2!P45 -> 35379.73057 | AI45: ='Detailed Projection'!AW30*EF_CO2!Q45 -> 0 | AJ45: ='Detailed Projection'!AX30*EF_CO2!R45 -> 0 | AK45: ='Detailed Projection'!AY30*EF_CO2!S45 -> 0 | AL45: ='Detailed Projection'!AZ30*EF_CO2!T45 -> 0 | AM45: ='Detailed Projection'!BA30*EF_CO2!U45 -> 0 | AN45: ='Detailed Projection'!BB30*EF_CO2!V45 -> 0 | AO45: ='Detailed Projection'!BC30*EF_CO2!W45 -> 0 | AP45: ='Detailed Projection'!BD30*EF_CO2!AN45 -> 0 | BG45: ='Detailed Projection'!BW30*EF_CO2!AN45 -> 9496157.657 | BH45: ='Detailed Projection'!BX30*EF_CO2!AO45 -> 0 | BI45: ='Detailed Projection'!BY30*EF_CO2!AP45 -> 0 | BK45: ='Detailed Projection'!CA30*EF_CO2!AQ45 -> 1053778.415 | BL45: ='Detailed Projection'!CB30*EF_CO2!AR45 -> 0 | BM45: ='Detailed Projection'!CC30*EF_CO2!AS45 -> 0 | BN45: ='Detailed Projection'!CD30*EF_CO2!AT45 -> 0 | BP45: ='Detailed Projection'!CF30*EF_CO2!AU45 -> 4451436.059 | BQ45: ='Detailed Projection'!CG30*EF_CO2!AV45 -> 0 | BR45: ='Detailed Projection'!CH30*EF_CO2!AW45 -> 0 | BS45: ='Detailed Projection'!CI30*EF_CO2!AX45 -> 0 | BT45: ='Detailed Projection'!CJ30*EF_CO2!AY45 -> 0 | BU45: ='Detailed Projection'!CK30*EF_CO2!AZ45 -> 0 | BV45: ='Detailed Projection'!CL30*EF_CO2!BA45 -> 0 | BW45: ='Detailed Projection'!CM30*EF_CO2!BB45 -> 4470.581392 | BX45: ='Detailed Projection'!CN30*EF_CO2!BC45 -> 13641.60279 | BY45: ='Detailed Projection'!CO30*EF_CO2!BD45 -> 0 | BZ45: ='Detailed Projection'!CP30*EF_CO2!BE45 -> 0 | CA45: ='Detailed Projection'!CQ30*EF_CO2!BF45 -> 2236737.118 | CB45: ='Detailed Projection'!CR30*EF_CO2!BE45 -> 0 | CC45: ='Detailed Projection'!CS30*EF_CO2!BE45/2 -> 0 | CD45: ='Detailed Projection'!CT30*EF_CO2!BC45 -> 0 | CE45: ='Detailed Projection'!CU30*EF_CO2!BA45 -> 0 | CF45: ='Detailed Projection'!CV30*EF_CO2!AZ45 -> 0 | CG45: ='Detailed Projection'!CW30*EF_CO2!BG45 -> 0 | CH45: ='Detailed Projection'!CX30*EF_CO2!BH45 -> 0 | CU45: =((EF_Electric!H46*BG45)/(1-EF_Electric!H46))+((EF_Steam!C43*BH45)/(1-EF_Steam!C43))+((EF_Water!C43*BI45)/(1-EF_Water!C43)) -> 863204.6347
B46: ='Linear Projection'!B19 -> 2025 | C46: ='Detailed Projection'!M31*EF_CO2!C46 -> 0 | D46: ='Detailed Projection'!N31*EF_CO2!D46 -> 0 | E46: ='Detailed Projection'!O31*EF_CO2!E46 -> 0 | F46: ='Detailed Projection'!P31*EF_CO2!F46 -> 0 | G46: ='Detailed Projection'!Q31*EF_CO2!G46 -> 0 | H46: ='Detailed Projection'!R31*EF_CO2!H46 -> 0 | I46: ='Detailed Projection'!S31*EF_CO2!I46 -> 0 | J46: ='Detailed Projection'!T31*EF_CO2!J46 -> 0 | K46: ='Detailed Projection'!U31*EF_CO2!K46 -> 0 | L46: ='Detailed Projection'!V31*EF_CO2!L46 -> 0 | M46: ='Detailed Projection'!W31*EF_CO2!M46 -> 0 | Q46: ='Detailed Projection'!AA31*EF_CO2!N46 -> 0 | R46: ='Detailed Projection'!AF31*EF_CO2!C46 -> 0 | S46: ='Detailed Projection'!AG31*EF_CO2!D46 -> -59452.36171 | T46: ='Detailed Projection'!AH31*EF_CO2!E46 -> 5502489.628 | U46: ='Detailed Projection'!AI31*EF_CO2!F46 -> 0 | V46: ='Detailed Projection'!AJ31*EF_CO2!G46 -> 3022042.373 | W46: ='Detailed Projection'!AK31*EF_CO2!H46 -> 0 | X46: ='Detailed Projection'!AL31*EF_CO2!I46 -> -193133.9796 | Y46: ='Detailed Projection'!AM31*EF_CO2!J46 -> 0 | Z46: ='Detailed Projection'!AN31*EF_CO2!K46 -> 0 | AA46: ='Detailed Projection'!AO31*EF_CO2!L46 -> 0 | AB46: ='Detailed Projection'!AP31*EF_CO2!M46 -> 0 | AF46: ='Detailed Projection'!AT31*EF_CO2!N46 -> 0 | AG46: ='Detailed Projection'!AU31*EF_CO2!O46 -> 218601.9966 | AH46: ='Detailed Projection'!AV31*EF_CO2!P46 -> 35667.31219 | AI46: ='Detailed Projection'!AW31*EF_CO2!Q46 -> 0 | AJ46: ='Detailed Projection'!AX31*EF_CO2!R46 -> 0 | AK46: ='Detailed Projection'!AY31*EF_CO2!S46 -> 0 | AL46: ='Detailed Projection'!AZ31*EF_CO2!T46 -> 0 | AM46: ='Detailed Projection'!BA31*EF_CO2!U46 -> 0 | AN46: ='Detailed Projection'!BB31*EF_CO2!V46 -> 0 | AO46: ='Detailed Projection'!BC31*EF_CO2!W46 -> 0 | AP46: ='Detailed Projection'!BD31*EF_CO2!AN46 -> 0 | BG46: ='Detailed Projection'!BW31*EF_CO2!AN46 -> 9544553.81 | BH46: ='Detailed Projection'!BX31*EF_CO2!AO46 -> 0 | BI46: ='Detailed Projection'!BY31*EF_CO2!AP46 -> 0 | BK46: ='Detailed Projection'!CA31*EF_CO2!AQ46 -> 1076736.338 | BL46: ='Detailed Projection'!CB31*EF_CO2!AR46 -> 0 | BM46: ='Detailed Projection'!CC31*EF_CO2!AS46 -> 0 | BN46: ='Detailed Projection'!CD31*EF_CO2!AT46 -> 0 | BP46: ='Detailed Projection'!CF31*EF_CO2!AU46 -> 4521677.389 | BQ46: ='Detailed Projection'!CG31*EF_CO2!AV46 -> 0 | BR46: ='Detailed Projection'!CH31*EF_CO2!AW46 -> 0 | BS46: ='Detailed Projection'!CI31*EF_CO2!AX46 -> 0 | BT46: ='Detailed Projection'!CJ31*EF_CO2!AY46 -> 0 | BU46: ='Detailed Projection'!CK31*EF_CO2!AZ46 -> 0 | BV46: ='Detailed Projection'!CL31*EF_CO2!BA46 -> 0 | BW46: ='Detailed Projection'!CM31*EF_CO2!BB46 -> 4523.09111 | BX46: ='Detailed Projection'!CN31*EF_CO2!BC46 -> 13860.32897 | BY46: ='Detailed Projection'!CO31*EF_CO2!BD46 -> 0 | BZ46: ='Detailed Projection'!CP31*EF_CO2!BE46 -> 0 | CA46: ='Detailed Projection'!CQ31*EF_CO2!BF46 -> 2310944.091 | CB46: ='Detailed Projection'!CR31*EF_CO2!BE46 -> 0 | CC46: ='Detailed Projection'!CS31*EF_CO2!BE46/2 -> 0 | CD46: ='Detailed Projection'!CT31*EF_CO2!BC46 -> 0 | CE46: ='Detailed Projection'!CU31*EF_CO2!BA46 -> 0 | CF46: ='Detailed Projection'!CV31*EF_CO2!AZ46 -> 0 | CG46: ='Detailed Projection'!CW31*EF_CO2!BG46 -> 0 | CH46: ='Detailed Projection'!CX31*EF_CO2!BH46 -> 0 | CU46: =((EF_Electric!H47*BG46)/(1-EF_Electric!H47))+((EF_Steam!C44*BH46)/(1-EF_Steam!C44))+((EF_Water!C44*BI46)/(1-EF_Water!C44)) -> 867603.8649
B47: ='Linear Projection'!B20 -> 2026 | C47: ='Detailed Projection'!M32*EF_CO2!C47 -> 0 | D47: ='Detailed Projection'!N32*EF_CO2!D47 -> 0 | E47: ='Detailed Projection'!O32*EF_CO2!E47 -> 0 | F47: ='Detailed Projection'!P32*EF_CO2!F47 -> 0 | G47: ='Detailed Projection'!Q32*EF_CO2!G47 -> 0 | H47: ='Detailed Projection'!R32*EF_CO2!H47 -> 0 | I47: ='Detailed Projection'!S32*EF_CO2!I47 -> 0 | J47: ='Detailed Projection'!T32*EF_CO2!J47 -> 0 | K47: ='Detailed Projection'!U32*EF_CO2!K47 -> 0 | L47: ='Detailed Projection'!V32*EF_CO2!L47 -> 0 | M47: ='Detailed Projection'!W32*EF_CO2!M47 -> 0 | Q47: ='Detailed Projection'!AA32*EF_CO2!N47 -> 0 | R47: ='Detailed Projection'!AF32*EF_CO2!C47 -> 0 | S47: ='Detailed Projection'!AG32*EF_CO2!D47 -> -64705.74201 | T47: ='Detailed Projection'!AH32*EF_CO2!E47 -> 5532445.882 | U47: ='Detailed Projection'!AI32*EF_CO2!F47 -> 0 | V47: ='Detailed Projection'!AJ32*EF_CO2!G47 -> 2943629.32 | W47: ='Detailed Projection'!AK32*EF_CO2!H47 -> 0 | X47: ='Detailed Projection'!AL32*EF_CO2!I47 -> -208381.399 | Y47: ='Detailed Projection'!AM32*EF_CO2!J47 -> 0 | Z47: ='Detailed Projection'!AN32*EF_CO2!K47 -> 0 | AA47: ='Detailed Projection'!AO32*EF_CO2!L47 -> 0 | AB47: ='Detailed Projection'!AP32*EF_CO2!M47 -> 0 | AF47: ='Detailed Projection'!AT32*EF_CO2!N47 -> 0 | AG47: ='Detailed Projection'!AU32*EF_CO2!O47 -> 216050.499 | AH47: ='Detailed Projection'!AV32*EF_CO2!P47 -> 35954.89381 | AI47: ='Detailed Projection'!AW32*EF_CO2!Q47 -> 0 | AJ47: ='Detailed Projection'!AX32*EF_CO2!R47 -> 0 | AK47: ='Detailed Projection'!AY32*EF_CO2!S47 -> 0 | AL47: ='Detailed Projection'!AZ32*EF_CO2!T47 -> 0 | AM47: ='Detailed Projection'!BA32*EF_CO2!U47 -> 0 | AN47: ='Detailed Projection'!BB32*EF_CO2!V47 -> 0 | AO47: ='Detailed Projection'!BC32*EF_CO2!W47 -> 0 | AP47: ='Detailed Projection'!BD32*EF_CO2!AN47 -> 0 | BG47: ='Detailed Projection'!BW32*EF_CO2!AN47 -> 9592949.964 | BH47: ='Detailed Projection'!BX32*EF_CO2!AO47 -> 0 | BI47: ='Detailed Projection'!BY32*EF_CO2!AP47 -> 0 | BK47: ='Detailed Projection'!CA32*EF_CO2!AQ47 -> 1099694.261 | BL47: ='Detailed Projection'!CB32*EF_CO2!AR47 -> 0 | BM47: ='Detailed Projection'!CC32*EF_CO2!AS47 -> 0 | BN47: ='Detailed Projection'!CD32*EF_CO2!AT47 -> 0 | BP47: ='Detailed Projection'!CF32*EF_CO2!AU47 -> 4591918.719 | BQ47: ='Detailed Projection'!CG32*EF_CO2!AV47 -> 0 | BR47: ='Detailed Projection'!CH32*EF_CO2!AW47 -> 0 | BS47: ='Detailed Projection'!CI32*EF_CO2!AX47 -> 0 | BT47: ='Detailed Projection'!CJ32*EF_CO2!AY47 -> 0 | BU47: ='Detailed Projection'!CK32*EF_CO2!AZ47 -> 0 | BV47: ='Detailed Projection'!CL32*EF_CO2!BA47 -> 0 | BW47: ='Detailed Projection'!CM32*EF_CO2!BB47 -> 4575.600828 | BX47: ='Detailed Projection'!CN32*EF_CO2!BC47 -> 14079.05515 | BY47: ='Detailed Projection'!CO32*EF_CO2!BD47 -> 0 | BZ47: ='Detailed Projection'!CP32*EF_CO2!BE47 -> 0 | CA47: ='Detailed Projection'!CQ32*EF_CO2!BF47 -> 2385151.063 | CB47: ='Detailed Projection'!CR32*EF_CO2!BE47 -> 0 | CC47: ='Detailed Projection'!CS32*EF_CO2!BE47/2 -> 0 | CD47: ='Detailed Projection'!CT32*EF_CO2!BC47 -> 0 | CE47: ='Detailed Projection'!CU32*EF_CO2!BA47 -> 0 | CF47: ='Detailed Projection'!CV32*EF_CO2!AZ47 -> 0 | CG47: ='Detailed Projection'!CW32*EF_CO2!BG47 -> 0 | CH47: ='Detailed Projection'!CX32*EF_CO2!BH47 -> 0 | CU47: =((EF_Electric!H48*BG47)/(1-EF_Electric!H48))+((EF_Steam!C45*BH47)/(1-EF_Steam!C45))+((EF_Water!C45*BI47)/(1-EF_Water!C45)) -> 872003.0952
B48: ='Linear Projection'!B21 -> 2027 | C48: ='Detailed Projection'!M33*EF_CO2!C48 -> 0 | D48: ='Detailed Projection'!N33*EF_CO2!D48 -> 0 | E48: ='Detailed Projection'!O33*EF_CO2!E48 -> 0 | F48: ='Detailed Projection'!P33*EF_CO2!F48 -> 0 | G48: ='Detailed Projection'!Q33*EF_CO2!G48 -> 0 | H48: ='Detailed Projection'!R33*EF_CO2!H48 -> 0 | I48: ='Detailed Projection'!S33*EF_CO2!I48 -> 0 | J48: ='Detailed Projection'!T33*EF_CO2!J48 -> 0 | K48: ='Detailed Projection'!U33*EF_CO2!K48 -> 0 | L48: ='Detailed Projection'!V33*EF_CO2!L48 -> 0 | M48: ='Detailed Projection'!W33*EF_CO2!M48 -> 0 | Q48: ='Detailed Projection'!AA33*EF_CO2!N48 -> 0 | R48: ='Detailed Projection'!AF33*EF_CO2!C48 -> 0 | S48: ='Detailed Projection'!AG33*EF_CO2!D48 -> -69959.12232 | T48: ='Detailed Projection'!AH33*EF_CO2!E48 -> 5562402.136 | U48: ='Detailed Projection'!AI33*EF_CO2!F48 -> 0 | V48: ='Detailed Projection'!AJ33*EF_CO2!G48 -> 2865216.268 | W48: ='Detailed Projection'!AK33*EF_CO2!H48 -> 0 | X48: ='Detailed Projection'!AL33*EF_CO2!I48 -> -223628.8185 | Y48: ='Detailed Projection'!AM33*EF_CO2!J48 -> 0 | Z48: ='Detailed Projection'!AN33*EF_CO2!K48 -> 0 | AA48: ='Detailed Projection'!AO33*EF_CO2!L48 -> 0 | AB48: ='Detailed Projection'!AP33*EF_CO2!M48 -> 0 | AF48: ='Detailed Projection'!AT33*EF_CO2!N48 -> 0 | AG48: ='Detailed Projection'!AU33*EF_CO2!O48 -> 213499.0014 | AH48: ='Detailed Projection'!AV33*EF_CO2!P48 -> 36242.47543 | AI48: ='Detailed Projection'!AW33*EF_CO2!Q48 -> 0 | AJ48: ='Detailed Projection'!AX33*EF_CO2!R48 -> 0 | AK48: ='Detailed Projection'!AY33*EF_CO2!S48 -> 0 | AL48: ='Detailed Projection'!AZ33*EF_CO2!T48 -> 0 | AM48: ='Detailed Projection'!BA33*EF_CO2!U48 -> 0 | AN48: ='Detailed Projection'!BB33*EF_CO2!V48 -> 0 | AO48: ='Detailed Projection'!BC33*EF_CO2!W48 -> 0 | AP48: ='Detailed Projection'!BD33*EF_CO2!AN48 -> 0 | BG48: ='Detailed Projection'!BW33*EF_CO2!AN48 -> 9641346.118 | BH48: ='Detailed Projection'!BX33*EF_CO2!AO48 -> 0 | BI48: ='Detailed Projection'!BY33*EF_CO2!AP48 -> 0 | BK48: ='Detailed Projection'!CA33*EF_CO2!AQ48 -> 1122652.185 | BL48: ='Detailed Projection'!CB33*EF_CO2!AR48 -> 0 | BM48: ='Detailed Projection'!CC33*EF_CO2!AS48 -> 0 | BN48: ='Detailed Projection'!CD33*EF_CO2!AT48 -> 0 | BP48: ='Detailed Projection'!CF33*EF_CO2!AU48 -> 4662160.049 | BQ48: ='Detailed Projection'!CG33*EF_CO2!AV48 -> 0 | BR48: ='Detailed Projection'!CH33*EF_CO2!AW48 -> 0 | BS48: ='Detailed Projection'!CI33*EF_CO2!AX48 -> 0 | BT48: ='Detailed Projection'!CJ33*EF_CO2!AY48 -> 0 | BU48: ='Detailed Projection'!CK33*EF_CO2!AZ48 -> 0 | BV48: ='Detailed Projection'!CL33*EF_CO2!BA48 -> 0 | BW48: ='Detailed Projection'!CM33*EF_CO2!BB48 -> 4628.110546 | BX48: ='Detailed Projection'!CN33*EF_CO2!BC48 -> 14297.78133 | BY48: ='Detailed Projection'!CO33*EF_CO2!BD48 -> 0 | BZ48: ='Detailed Projection'!CP33*EF_CO2!BE48 -> 0 | CA48: ='Detailed Projection'!CQ33*EF_CO2!BF48 -> 2459358.036 | CB48: ='Detailed Projection'!CR33*EF_CO2!BE48 -> 0 | CC48: ='Detailed Projection'!CS33*EF_CO2!BE48/2 -> 0 | CD48: ='Detailed Projection'!CT33*EF_CO2!BC48 -> 0 | CE48: ='Detailed Projection'!CU33*EF_CO2!BA48 -> 0 | CF48: ='Detailed Projection'!CV33*EF_CO2!AZ48 -> 0 | CG48: ='Detailed Projection'!CW33*EF_CO2!BG48 -> 0 | CH48: ='Detailed Projection'!CX33*EF_CO2!BH48 -> 0 | CU48: =((EF_Electric!H49*BG48)/(1-EF_Electric!H49))+((EF_Steam!C46*BH48)/(1-EF_Steam!C46))+((EF_Water!C46*BI48)/(1-EF_Water!C46)) -> 876402.3255
B49: ='Linear Projection'!B22 -> 2028 | C49: ='Detailed Projection'!M34*EF_CO2!C49 -> 0 | D49: ='Detailed Projection'!N34*EF_CO2!D49 -> 0 | E49: ='Detailed Projection'!O34*EF_CO2!E49 -> 0 | F49: ='Detailed Projection'!P34*EF_CO2!F49 -> 0 | G49: ='Detailed Projection'!Q34*EF_CO2!G49 -> 0 | H49: ='Detailed Projection'!R34*EF_CO2!H49 -> 0 | I49: ='Detailed Projection'!S34*EF_CO2!I49 -> 0 | J49: ='Detailed Projection'!T34*EF_CO2!J49 -> 0 | K49: ='Detailed Projection'!U34*EF_CO2!K49 -> 0 | L49: ='Detailed Projection'!V34*EF_CO2!L49 -> 0 | M49: ='Detailed Projection'!W34*EF_CO2!M49 -> 0 | Q49: ='Detailed Projection'!AA34*EF_CO2!N49 -> 0 | R49: ='Detailed Projection'!AF34*EF_CO2!C49 -> 0 | S49: ='Detailed Projection'!AG34*EF_CO2!D49 -> -75212.50263 | T49: ='Detailed Projection'!AH34*EF_CO2!E49 -> 5592358.39 | U49: ='Detailed Projection'!AI34*EF_CO2!F49 -> 0 | V49: ='Detailed Projection'!AJ34*EF_CO2!G49 -> 2786803.215 | W49: ='Detailed Projection'!AK34*EF_CO2!H49 -> 0 | X49: ='Detailed Projection'!AL34*EF_CO2!I49 -> -238876.2379 | Y49: ='Detailed Projection'!AM34*EF_CO2!J49 -> 0 | Z49: ='Detailed Projection'!AN34*EF_CO2!K49 -> 0 | AA49: ='Detailed Projection'!AO34*EF_CO2!L49 -> 0 | AB49: ='Detailed Projection'!AP34*EF_CO2!M49 -> 0 | AF49: ='Detailed Projection'!AT34*EF_CO2!N49 -> 0 | AG49: ='Detailed Projection'!AU34*EF_CO2!O49 -> 210947.5038 | AH49: ='Detailed Projection'!AV34*EF_CO2!P49 -> 36530.05705 | AI49: ='Detailed Projection'!AW34*EF_CO2!Q49 -> 0 | AJ49: ='Detailed Projection'!AX34*EF_CO2!R49 -> 0 | AK49: ='Detailed Projection'!AY34*EF_CO2!S49 -> 0 | AL49: ='Detailed Projection'!AZ34*EF_CO2!T49 -> 0 | AM49: ='Detailed Projection'!BA34*EF_CO2!U49 -> 0 | AN49: ='Detailed Projection'!BB34*EF_CO2!V49 -> 0 | AO49: ='Detailed Projection'!BC34*EF_CO2!W49 -> 0 | AP49: ='Detailed Projection'!BD34*EF_CO2!AN49 -> 0 | BG49: ='Detailed Projection'!BW34*EF_CO2!AN49 -> 9689742.272 | BH49: ='Detailed Projection'!BX34*EF_CO2!AO49 -> 0 | BI49: ='Detailed Projection'!BY34*EF_CO2!AP49 -> 0 | BK49: ='Detailed Projection'!CA34*EF_CO2!AQ49 -> 1145610.108 | BL49: ='Detailed Projection'!CB34*EF_CO2!AR49 -> 0 | BM49: ='Detailed Projection'!CC34*EF_CO2!AS49 -> 0 | BN49: ='Detailed Projection'!CD34*EF_CO2!AT49 -> 0 | BP49: ='Detailed Projection'!CF34*EF_CO2!AU49 -> 4732401.379 | BQ49: ='Detailed Projection'!CG34*EF_CO2!AV49 -> 0 | BR49: ='Detailed Projection'!CH34*EF_CO2!AW49 -> 0 | BS49: ='Detailed Projection'!CI34*EF_CO2!AX49 -> 0 | BT49: ='Detailed Projection'!CJ34*EF_CO2!AY49 -> 0 | BU49: ='Detailed Projection'!CK34*EF_CO2!AZ49 -> 0 | BV49: ='Detailed Projection'!CL34*EF_CO2!BA49 -> 0 | BW49: ='Detailed Projection'!CM34*EF_CO2!BB49 -> 4680.620264 | BX49: ='Detailed Projection'!CN34*EF_CO2!BC49 -> 14516.50751 | BY49: ='Detailed Projection'!CO34*EF_CO2!BD49 -> 0 | BZ49: ='Detailed Projection'!CP34*EF_CO2!BE49 -> 0 | CA49: ='Detailed Projection'!CQ34*EF_CO2!BF49 -> 2533565.009 | CB49: ='Detailed Projection'!CR34*EF_CO2!BE49 -> 0 | CC49: ='Detailed Projection'!CS34*EF_CO2!BE49/2 -> 0 | CD49: ='Detailed Projection'!CT34*EF_CO2!BC49 -> 0 | CE49: ='Detailed Projection'!CU34*EF_CO2!BA49 -> 0 | CF49: ='Detailed Projection'!CV34*EF_CO2!AZ49 -> 0 | CG49: ='Detailed Projection'!CW34*EF_CO2!BG49 -> 0 | CH49: ='Detailed Projection'!CX34*EF_CO2!BH49 -> 0 | CU49: =((EF_Electric!H50*BG49)/(1-EF_Electric!H50))+((EF_Steam!C47*BH49)/(1-EF_Steam!C47))+((EF_Water!C47*BI49)/(1-EF_Water!C47)) -> 880801.5558
B50: ='Linear Projection'!B23 -> 2029 | C50: ='Detailed Projection'!M35*EF_CO2!C50 -> 0 | D50: ='Detailed Projection'!N35*EF_CO2!D50 -> 0 | E50: ='Detailed Projection'!O35*EF_CO2!E50 -> 0 | F50: ='Detailed Projection'!P35*EF_CO2!F50 -> 0 | G50: ='Detailed Projection'!Q35*EF_CO2!G50 -> 0 | H50: ='Detailed Projection'!R35*EF_CO2!H50 -> 0 | I50: ='Detailed Projection'!S35*EF_CO2!I50 -> 0 | J50: ='Detailed Projection'!T35*EF_CO2!J50 -> 0 | K50: ='Detailed Projection'!U35*EF_CO2!K50 -> 0 | L50: ='Detailed Projection'!V35*EF_CO2!L50 -> 0 | M50: ='Detailed Projection'!W35*EF_CO2!M50 -> 0 | Q50: ='Detailed Projection'!AA35*EF_CO2!N50 -> 0 | R50: ='Detailed Projection'!AF35*EF_CO2!C50 -> 0 | S50: ='Detailed Projection'!AG35*EF_CO2!D50 -> -80465.88293 | T50: ='Detailed Projection'!AH35*EF_CO2!E50 -> 5622314.644 | U50: ='Detailed Projection'!AI35*EF_CO2!F50 -> 0 | V50: ='Detailed Projection'!AJ35*EF_CO2!G50 -> 2708390.162 | W50: ='Detailed Projection'!AK35*EF_CO2!H50 -> 0 | X50: ='Detailed Projection'!AL35*EF_CO2!I50 -> -254123.6573 | Y50: ='Detailed Projection'!AM35*EF_CO2!J50 -> 0 | Z50: ='Detailed Projection'!AN35*EF_CO2!K50 -> 0 | AA50: ='Detailed Projection'!AO35*EF_CO2!L50 -> 0 | AB50: ='Detailed Projection'!AP35*EF_CO2!M50 -> 0 | AF50: ='Detailed Projection'!AT35*EF_CO2!N50 -> 0 | AG50: ='Detailed Projection'!AU35*EF_CO2!O50 -> 208396.0062 | AH50: ='Detailed Projection'!AV35*EF_CO2!P50 -> 36817.63867 | AI50: ='Detailed Projection'!AW35*EF_CO2!Q50 -> 0 | AJ50: ='Detailed Projection'!AX35*EF_CO2!R50 -> 0 | AK50: ='Detailed Projection'!AY35*EF_CO2!S50 -> 0 | AL50: ='Detailed Projection'!AZ35*EF_CO2!T50 -> 0 | AM50: ='Detailed Projection'!BA35*EF_CO2!U50 -> 0 | AN50: ='Detailed Projection'!BB35*EF_CO2!V50 -> 0 | AO50: ='Detailed Projection'!BC35*EF_CO2!W50 -> 0 | AP50: ='Detailed Projection'!BD35*EF_CO2!AN50 -> 0 | BG50: ='Detailed Projection'!BW35*EF_CO2!AN50 -> 9738138.426 | BH50: ='Detailed Projection'!BX35*EF_CO2!AO50 -> 0 | BI50: ='Detailed Projection'!BY35*EF_CO2!AP50 -> 0 | BK50: ='Detailed Projection'!CA35*EF_CO2!AQ50 -> 1168568.031 | BL50: ='Detailed Projection'!CB35*EF_CO2!AR50 -> 0 | BM50: ='Detailed Projection'!CC35*EF_CO2!AS50 -> 0 | BN50: ='Detailed Projection'!CD35*EF_CO2!AT50 -> 0 | BP50: ='Detailed Projection'!CF35*EF_CO2!AU50 -> 4802642.709 | BQ50: ='Detailed Projection'!CG35*EF_CO2!AV50 -> 0 | BR50: ='Detailed Projection'!CH35*EF_CO2!AW50 -> 0 | BS50: ='Detailed Projection'!CI35*EF_CO2!AX50 -> 0 | BT50: ='Detailed Projection'!CJ35*EF_CO2!AY50 -> 0 | BU50: ='Detailed Projection'!CK35*EF_CO2!AZ50 -> 0 | BV50: ='Detailed Projection'!CL35*EF_CO2!BA50 -> 0 | BW50: ='Detailed Projection'!CM35*EF_CO2!BB50 -> 4733.129982 | BX50: ='Detailed Projection'!CN35*EF_CO2!BC50 -> 14735.23369 | BY50: ='Detailed Projection'!CO35*EF_CO2!BD50 -> 0 | BZ50: ='Detailed Projection'!CP35*EF_CO2!BE50 -> 0 | CA50: ='Detailed Projection'!CQ35*EF_CO2!BF50 -> 2607771.981 | CB50: ='Detailed Projection'!CR35*EF_CO2!BE50 -> 0 | CC50: ='Detailed Projection'!CS35*EF_CO2!BE50/2 -> 0 | CD50: ='Detailed Projection'!CT35*EF_CO2!BC50 -> 0 | CE50: ='Detailed Projection'!CU35*EF_CO2!BA50 -> 0 | CF50: ='Detailed Projection'!CV35*EF_CO2!AZ50 -> 0 | CG50: ='Detailed Projection'!CW35*EF_CO2!BG50 -> 0 | CH50: ='Detailed Projection'!CX35*EF_CO2!BH50 -> 0 | CU50: =((EF_Electric!H51*BG50)/(1-EF_Electric!H51))+((EF_Steam!C48*BH50)/(1-EF_Steam!C48))+((EF_Water!C48*BI50)/(1-EF_Water!C48)) -> 885200.786
B51: ='Linear Projection'!B24 -> 2030 | C51: ='Detailed Projection'!M36*EF_CO2!C51 -> 0 | D51: ='Detailed Projection'!N36*EF_CO2!D51 -> 0 | E51: ='Detailed Projection'!O36*EF_CO2!E51 -> 0 | F51: ='Detailed Projection'!P36*EF_CO2!F51 -> 0 | G51: ='Detailed Projection'!Q36*EF_CO2!G51 -> 0 | H51: ='Detailed Projection'!R36*EF_CO2!H51 -> 0 | I51: ='Detailed Projection'!S36*EF_CO2!I51 -> 0 | J51: ='Detailed Projection'!T36*EF_CO2!J51 -> 0 | K51: ='Detailed Projection'!U36*EF_CO2!K51 -> 0 | L51: ='Detailed Projection'!V36*EF_CO2!L51 -> 0 | M51: ='Detailed Projection'!W36*EF_CO2!M51 -> 0 | Q51: ='Detailed Projection'!AA36*EF_CO2!N51 -> 0 | R51: ='Detailed Projection'!AF36*EF_CO2!C51 -> 0 | S51: ='Detailed Projection'!AG36*EF_CO2!D51 -> -85719.26324 | T51: ='Detailed Projection'!AH36*EF_CO2!E51 -> 5652270.898 | U51: ='Detailed Projection'!AI36*EF_CO2!F51 -> 0 | V51: ='Detailed Projection'!AJ36*EF_CO2!G51 -> 2629977.11 | W51: ='Detailed Projection'!AK36*EF_CO2!H51 -> 0 | X51: ='Detailed Projection'!AL36*EF_CO2!I51 -> -269371.0768 | Y51: ='Detailed Projection'!AM36*EF_CO2!J51 -> 0 | Z51: ='Detailed Projection'!AN36*EF_CO2!K51 -> 0 | AA51: ='Detailed Projection'!AO36*EF_CO2!L51 -> 0 | AB51: ='Detailed Projection'!AP36*EF_CO2!M51 -> 0 | AF51: ='Detailed Projection'!AT36*EF_CO2!N51 -> 0 | AG51: ='Detailed Projection'!AU36*EF_CO2!O51 -> 205844.5086 | AH51: ='Detailed Projection'!AV36*EF_CO2!P51 -> 37105.22029 | AI51: ='Detailed Projection'!AW36*EF_CO2!Q51 -> 0 | AJ51: ='Detailed Projection'!AX36*EF_CO2!R51 -> 0 | AK51: ='Detailed Projection'!AY36*EF_CO2!S51 -> 0 | AL51: ='Detailed Projection'!AZ36*EF_CO2!T51 -> 0 | AM51: ='Detailed Projection'!BA36*EF_CO2!U51 -> 0 | AN51: ='Detailed Projection'!BB36*EF_CO2!V51 -> 0 | AO51: ='Detailed Projection'!BC36*EF_CO2!W51 -> 0 | AP51: ='Detailed Projection'!BD36*EF_CO2!AN51 -> 0 | BG51: ='Detailed Projection'!BW36*EF_CO2!AN51 -> 9786534.58 | BH51: ='Detailed Projection'!BX36*EF_CO2!AO51 -> 0 | BI51: ='Detailed Projection'!BY36*EF_CO2!AP51 -> 0 | BK51: ='Detailed Projection'!CA36*EF_CO2!AQ51 -> 1191525.955 | BL51: ='Detailed Projection'!CB36*EF_CO2!AR51 -> 0 | BM51: ='Detailed Projection'!CC36*EF_CO2!AS51 -> 0 | BN51: ='Detailed Projection'!CD36*EF_CO2!AT51 -> 0 | BP51: ='Detailed Projection'!CF36*EF_CO2!AU51 -> 4872884.039 | BQ51: ='Detailed Projection'!CG36*EF_CO2!AV51 -> 0 | BR51: ='Detailed Projection'!CH36*EF_CO2!AW51 -> 0 | BS51: ='Detailed Projection'!CI36*EF_CO2!AX51 -> 0 | BT51: ='Detailed Projection'!CJ36*EF_CO2!AY51 -> 0 | BU51: ='Detailed Projection'!CK36*EF_CO2!AZ51 -> 0 | BV51: ='Detailed Projection'!CL36*EF_CO2!BA51 -> 0 | BW51: ='Detailed Projection'!CM36*EF_CO2!BB51 -> 4785.6397 | BX51: ='Detailed Projection'!CN36*EF_CO2!BC51 -> 14953.95987 | BY51: ='Detailed Projection'!CO36*EF_CO2!BD51 -> 0 | BZ51: ='Detailed Projection'!CP36*EF_CO2!BE51 -> 0 | CA51: ='Detailed Projection'!CQ36*EF_CO2!BF51 -> 2681978.954 | CB51: ='Detailed Projection'!CR36*EF_CO2!BE51 -> 0 | CC51: ='Detailed Projection'!CS36*EF_CO2!BE51/2 -> 0 | CD51: ='Detailed Projection'!CT36*EF_CO2!BC51 -> 0 | CE51: ='Detailed Projection'!CU36*EF_CO2!BA51 -> 0 | CF51: ='Detailed Projection'!CV36*EF_CO2!AZ51 -> 0 | CG51: ='Detailed Projection'!CW36*EF_CO2!BG51 -> 0 | CH51: ='Detailed Projection'!CX36*EF_CO2!BH51 -> 0 | CU51: =((EF_Electric!H52*BG51)/(1-EF_Electric!H52))+((EF_Steam!C49*BH51)/(1-EF_Steam!C49))+((EF_Water!C49*BI51)/(1-EF_Water!C49)) -> 889600.0163
B52: ='Linear Projection'!B25 -> 2031 | C52: ='Detailed Projection'!M37*EF_CO2!C52 -> 0 | D52: ='Detailed Projection'!N37*EF_CO2!D52 -> 0 | E52: ='Detailed Projection'!O37*EF_CO2!E52 -> 0 | F52: ='Detailed Projection'!P37*EF_CO2!F52 -> 0 | G52: ='Detailed Projection'!Q37*EF_CO2!G52 -> 0 | H52: ='Detailed Projection'!R37*EF_CO2!H52 -> 0 | I52: ='Detailed Projection'!S37*EF_CO2!I52 -> 0 | J52: ='Detailed Projection'!T37*EF_CO2!J52 -> 0 | K52: ='Detailed Projection'!U37*EF_CO2!K52 -> 0 | L52: ='Detailed Projection'!V37*EF_CO2!L52 -> 0 | M52: ='Detailed Projection'!W37*EF_CO2!M52 -> 0 | Q52: ='Detailed Projection'!AA37*EF_CO2!N52 -> 0 | R52: ='Detailed Projection'!AF37*EF_CO2!C52 -> 0 | S52: ='Detailed Projection'!AG37*EF_CO2!D52 -> -90972.64355 | T52: ='Detailed Projection'!AH37*EF_CO2!E52 -> 5682227.152 | U52: ='Detailed Projection'!AI37*EF_CO2!F52 -> 0 | V52: ='Detailed Projection'!AJ37*EF_CO2!G52 -> 2551564.057 | W52: ='Detailed Projection'!AK37*EF_CO2!H52 -> 0 | X52: ='Detailed Projection'!AL37*EF_CO2!I52 -> -284618.4962 | Y52: ='Detailed Projection'!AM37*EF_CO2!J52 -> 0 | Z52: ='Detailed Projection'!AN37*EF_CO2!K52 -> 0 | AA52: ='Detailed Projection'!AO37*EF_CO2!L52 -> 0 | AB52: ='Detailed Projection'!AP37*EF_CO2!M52 -> 0 | AF52: ='Detailed Projection'!AT37*EF_CO2!N52 -> 0 | AG52: ='Detailed Projection'!AU37*EF_CO2!O52 -> 203293.011 | AH52: ='Detailed Projection'!AV37*EF_CO2!P52 -> 37392.80192 | AI52: ='Detailed Projection'!AW37*EF_CO2!Q52 -> 0 | AJ52: ='Detailed Projection'!AX37*EF_CO2!R52 -> 0 | AK52: ='Detailed Projection'!AY37*EF_CO2!S52 -> 0 | AL52: ='Detailed Projection'!AZ37*EF_CO2!T52 -> 0 | AM52: ='Detailed Projection'!BA37*EF_CO2!U52 -> 0 | AN52: ='Detailed Projection'!BB37*EF_CO2!V52 -> 0 | AO52: ='Detailed Projection'!BC37*EF_CO2!W52 -> 0 | AP52: ='Detailed Projection'!BD37*EF_CO2!AN52 -> 0 | BG52: ='Detailed Projection'!BW37*EF_CO2!AN52 -> 9834930.734 | BH52: ='Detailed Projection'!BX37*EF_CO2!AO52 -> 0 | BI52: ='Detailed Projection'!BY37*EF_CO2!AP52 -> 0 | BK52: ='Detailed Projection'!CA37*EF_CO2!AQ52 -> 1214483.878 | BL52: ='Detailed Projection'!CB37*EF_CO2!AR52 -> 0 | BM52: ='Detailed Projection'!CC37*EF_CO2!AS52 -> 0 | BN52: ='Detailed Projection'!CD37*EF_CO2!AT52 -> 0 | BP52: ='Detailed Projection'!CF37*EF_CO2!AU52 -> 4943125.368 | BQ52: ='Detailed Projection'!CG37*EF_CO2!AV52 -> 0 | BR52: ='Detailed Projection'!CH37*EF_CO2!AW52 -> 0 | BS52: ='Detailed Projection'!CI37*EF_CO2!AX52 -> 0 | BT52: ='Detailed Projection'!CJ37*EF_CO2!AY52 -> 0 | BU52: ='Detailed Projection'!CK37*EF_CO2!AZ52 -> 0 | BV52: ='Detailed Projection'!CL37*EF_CO2!BA52 -> 0 | BW52: ='Detailed Projection'!CM37*EF_CO2!BB52 -> 4838.149418 | BX52: ='Detailed Projection'!CN37*EF_CO2!BC52 -> 15172.68605 | BY52: ='Detailed Projection'!CO37*EF_CO2!BD52 -> 0 | BZ52: ='Detailed Projection'!CP37*EF_CO2!BE52 -> 0 | CA52: ='Detailed Projection'!CQ37*EF_CO2!BF52 -> 2756185.926 | CB52: ='Detailed Projection'!CR37*EF_CO2!BE52 -> 0 | CC52: ='Detailed Projection'!CS37*EF_CO2!BE52/2 -> 0 | CD52: ='Detailed Projection'!CT37*EF_CO2!BC52 -> 0 | CE52: ='Detailed Projection'!CU37*EF_CO2!BA52 -> 0 | CF52: ='Detailed Projection'!CV37*EF_CO2!AZ52 -> 0 | CG52: ='Detailed Projection'!CW37*EF_CO2!BG52 -> 0 | CH52: ='Detailed Projection'!CX37*EF_CO2!BH52 -> 0 | CU52: =((EF_Electric!H53*BG52)/(1-EF_Electric!H53))+((EF_Steam!C50*BH52)/(1-EF_Steam!C50))+((EF_Water!C50*BI52)/(1-EF_Water!C50)) -> 893999.2466
B53: ='Linear Projection'!B26 -> 2032 | C53: ='Detailed Projection'!M38*EF_CO2!C53 -> 0 | D53: ='Detailed Projection'!N38*EF_CO2!D53 -> 0 | E53: ='Detailed Projection'!O38*EF_CO2!E53 -> 0 | F53: ='Detailed Projection'!P38*EF_CO2!F53 -> 0 | G53: ='Detailed Projection'!Q38*EF_CO2!G53 -> 0 | H53: ='Detailed Projection'!R38*EF_CO2!H53 -> 0 | I53: ='Detailed Projection'!S38*EF_CO2!I53 -> 0 | J53: ='Detailed Projection'!T38*EF_CO2!J53 -> 0 | K53: ='Detailed Projection'!U38*EF_CO2!K53 -> 0 | L53: ='Detailed Projection'!V38*EF_CO2!L53 -> 0 | M53: ='Detailed Projection'!W38*EF_CO2!M53 -> 0 | Q53: ='Detailed Projection'!AA38*EF_CO2!N53 -> 0 | R53: ='Detailed Projection'!AF38*EF_CO2!C53 -> 0 | S53: ='Detailed Projection'!AG38*EF_CO2!D53 -> -96226.02385 | T53: ='Detailed Projection'!AH38*EF_CO2!E53 -> 5712183.405 | U53: ='Detailed Projection'!AI38*EF_CO2!F53 -> 0 | V53: ='Detailed Projection'!AJ38*EF_CO2!G53 -> 2473151.004 | W53: ='Detailed Projection'!AK38*EF_CO2!H53 -> 0 | X53: ='Detailed Projection'!AL38*EF_CO2!I53 -> -299865.9157 | Y53: ='Detailed Projection'!AM38*EF_CO2!J53 -> 0 | Z53: ='Detailed Projection'!AN38*EF_CO2!K53 -> 0 | AA53: ='Detailed Projection'!AO38*EF_CO2!L53 -> 0 | AB53: ='Detailed Projection'!AP38*EF_CO2!M53 -> 0 | AF53: ='Detailed Projection'!AT38*EF_CO2!N53 -> 0 | AG53: ='Detailed Projection'!AU38*EF_CO2!O53 -> 200741.5134 | AH53: ='Detailed Projection'!AV38*EF_CO2!P53 -> 37680.38354 | AI53: ='Detailed Projection'!AW38*EF_CO2!Q53 -> 0 | AJ53: ='Detailed Projection'!AX38*EF_CO2!R53 -> 0 | AK53: ='Detailed Projection'!AY38*EF_CO2!S53 -> 0 | AL53: ='Detailed Projection'!AZ38*EF_CO2!T53 -> 0 | AM53: ='Detailed Projection'!BA38*EF_CO2!U53 -> 0 | AN53: ='Detailed Projection'!BB38*EF_CO2!V53 -> 0 | AO53: ='Detailed Projection'!BC38*EF_CO2!W53 -> 0 | AP53: ='Detailed Projection'!BD38*EF_CO2!AN53 -> 0 | BG53: ='Detailed Projection'!BW38*EF_CO2!AN53 -> 9883326.887 | BH53: ='Detailed Projection'!BX38*EF_CO2!AO53 -> 0 | BI53: ='Detailed Projection'!BY38*EF_CO2!AP53 -> 0 | BK53: ='Detailed Projection'!CA38*EF_CO2!AQ53 -> 1237441.801 | BL53: ='Detailed Projection'!CB38*EF_CO2!AR53 -> 0 | BM53: ='Detailed Projection'!CC38*EF_CO2!AS53 -> 0 | BN53: ='Detailed Projection'!CD38*EF_CO2!AT53 -> 0 | BP53: ='Detailed Projection'!CF38*EF_CO2!AU53 -> 5013366.698 | BQ53: ='Detailed Projection'!CG38*EF_CO2!AV53 -> 0 | BR53: ='Detailed Projection'!CH38*EF_CO2!AW53 -> 0 | BS53: ='Detailed Projection'!CI38*EF_CO2!AX53 -> 0 | BT53: ='Detailed Projection'!CJ38*EF_CO2!AY53 -> 0 | BU53: ='Detailed Projection'!CK38*EF_CO2!AZ53 -> 0 | BV53: ='Detailed Projection'!CL38*EF_CO2!BA53 -> 0 | BW53: ='Detailed Projection'!CM38*EF_CO2!BB53 -> 4890.659136 | BX53: ='Detailed Projection'!CN38*EF_CO2!BC53 -> 15391.41222 | BY53: ='Detailed Projection'!CO38*EF_CO2!BD53 -> 0 | BZ53: ='Detailed Projection'!CP38*EF_CO2!BE53 -> 0 | CA53: ='Detailed Projection'!CQ38*EF_CO2!BF53 -> 2830392.899 | CB53: ='Detailed Projection'!CR38*EF_CO2!BE53 -> 0 | CC53: ='Detailed Projection'!CS38*EF_CO2!BE53/2 -> 0 | CD53: ='Detailed Projection'!CT38*EF_CO2!BC53 -> 0 | CE53: ='Detailed Projection'!CU38*EF_CO2!BA53 -> 0 | CF53: ='Detailed Projection'!CV38*EF_CO2!AZ53 -> 0 | CG53: ='Detailed Projection'!CW38*EF_CO2!BG53 -> 0 | CH53: ='Detailed Projection'!CX38*EF_CO2!BH53 -> 0 | CU53: =((EF_Electric!H54*BG53)/(1-EF_Electric!H54))+((EF_Steam!C51*BH53)/(1-EF_Steam!C51))+((EF_Water!C51*BI53)/(1-EF_Water!C51)) -> 898398.4769
B54: ='Linear Projection'!B27 -> 2033 | C54: ='Detailed Projection'!M39*EF_CO2!C54 -> 0 | D54: ='Detailed Projection'!N39*EF_CO2!D54 -> 0 | E54: ='Detailed Projection'!O39*EF_CO2!E54 -> 0 | F54: ='Detailed Projection'!P39*EF_CO2!F54 -> 0 | G54: ='Detailed Projection'!Q39*EF_CO2!G54 -> 0 | H54: ='Detailed Projection'!R39*EF_CO2!H54 -> 0 | I54: ='Detailed Projection'!S39*EF_CO2!I54 -> 0 | J54: ='Detailed Projection'!T39*EF_CO2!J54 -> 0 | K54: ='Detailed Projection'!U39*EF_CO2!K54 -> 0 | L54: ='Detailed Projection'!V39*EF_CO2!L54 -> 0 | M54: ='Detailed Projection'!W39*EF_CO2!M54 -> 0 | Q54: ='Detailed Projection'!AA39*EF_CO2!N54 -> 0 | R54: ='Detailed Projection'!AF39*EF_CO2!C54 -> 0 | S54: ='Detailed Projection'!AG39*EF_CO2!D54 -> -101479.4042 | T54: ='Detailed Projection'!AH39*EF_CO2!E54 -> 5742139.659 | U54: ='Detailed Projection'!AI39*EF_CO2!F54 -> 0 | V54: ='Detailed Projection'!AJ39*EF_CO2!G54 -> 2394737.952 | W54: ='Detailed Projection'!AK39*EF_CO2!H54 -> 0 | X54: ='Detailed Projection'!AL39*EF_CO2!I54 -> -315113.3351 | Y54: ='Detailed Projection'!AM39*EF_CO2!J54 -> 0 | Z54: ='Detailed Projection'!AN39*EF_CO2!K54 -> 0 | AA54: ='Detailed Projection'!AO39*EF_CO2!L54 -> 0 | AB54: ='Detailed Projection'!AP39*EF_CO2!M54 -> 0 | AF54: ='Detailed Projection'!AT39*EF_CO2!N54 -> 0 | AG54: ='Detailed Projection'!AU39*EF_CO2!O54 -> 198190.0158 | AH54: ='Detailed Projection'!AV39*EF_CO2!P54 -> 37967.96516 | AI54: ='Detailed Projection'!AW39*EF_CO2!Q54 -> 0 | AJ54: ='Detailed Projection'!AX39*EF_CO2!R54 -> 0 | AK54: ='Detailed Projection'!AY39*EF_CO2!S54 -> 0 | AL54: ='Detailed Projection'!AZ39*EF_CO2!T54 -> 0 | AM54: ='Detailed Projection'!BA39*EF_CO2!U54 -> 0 | AN54: ='Detailed Projection'!BB39*EF_CO2!V54 -> 0 | AO54: ='Detailed Projection'!BC39*EF_CO2!W54 -> 0 | AP54: ='Detailed Projection'!BD39*EF_CO2!AN54 -> 0 | BG54: ='Detailed Projection'!BW39*EF_CO2!AN54 -> 9931723.041 | BH54: ='Detailed Projection'!BX39*EF_CO2!AO54 -> 0 | BI54: ='Detailed Projection'!BY39*EF_CO2!AP54 -> 0 | BK54: ='Detailed Projection'!CA39*EF_CO2!AQ54 -> 1260399.724 | BL54: ='Detailed Projection'!CB39*EF_CO2!AR54 -> 0 | BM54: ='Detailed Projection'!CC39*EF_CO2!AS54 -> 0 | BN54: ='Detailed Projection'!CD39*EF_CO2!AT54 -> 0 | BP54: ='Detailed Projection'!CF39*EF_CO2!AU54 -> 5083608.028 | BQ54: ='Detailed Projection'!CG39*EF_CO2!AV54 -> 0 | BR54: ='Detailed Projection'!CH39*EF_CO2!AW54 -> 0 | BS54: ='Detailed Projection'!CI39*EF_CO2!AX54 -> 0 | BT54: ='Detailed Projection'!CJ39*EF_CO2!AY54 -> 0 | BU54: ='Detailed Projection'!CK39*EF_CO2!AZ54 -> 0 | BV54: ='Detailed Projection'!CL39*EF_CO2!BA54 -> 0 | BW54: ='Detailed Projection'!CM39*EF_CO2!BB54 -> 4943.168854 | BX54: ='Detailed Projection'!CN39*EF_CO2!BC54 -> 15610.1384 | BY54: ='Detailed Projection'!CO39*EF_CO2!BD54 -> 0 | BZ54: ='Detailed Projection'!CP39*EF_CO2!BE54 -> 0 | CA54: ='Detailed Projection'!CQ39*EF_CO2!BF54 -> 2904599.872 | CB54: ='Detailed Projection'!CR39*EF_CO2!BE54 -> 0 | CC54: ='Detailed Projection'!CS39*EF_CO2!BE54/2 -> 0 | CD54: ='Detailed Projection'!CT39*EF_CO2!BC54 -> 0 | CE54: ='Detailed Projection'!CU39*EF_CO2!BA54 -> 0 | CF54: ='Detailed Projection'!CV39*EF_CO2!AZ54 -> 0 | CG54: ='Detailed Projection'!CW39*EF_CO2!BG54 -> 0 | CH54: ='Detailed Projection'!CX39*EF_CO2!BH54 -> 0 | CU54: =((EF_Electric!H55*BG54)/(1-EF_Electric!H55))+((EF_Steam!C52*BH54)/(1-EF_Steam!C52))+((EF_Water!C52*BI54)/(1-EF_Water!C52)) -> 902797.7072
B55: ='Linear Projection'!B28 -> 2034 | C55: ='Detailed Projection'!M40*EF_CO2!C55 -> 0 | D55: ='Detailed Projection'!N40*EF_CO2!D55 -> 0 | E55: ='Detailed Projection'!O40*EF_CO2!E55 -> 0 | F55: ='Detailed Projection'!P40*EF_CO2!F55 -> 0 | G55: ='Detailed Projection'!Q40*EF_CO2!G55 -> 0 | H55: ='Detailed Projection'!R40*EF_CO2!H55 -> 0 | I55: ='Detailed Projection'!S40*EF_CO2!I55 -> 0 | J55: ='Detailed Projection'!T40*EF_CO2!J55 -> 0 | K55: ='Detailed Projection'!U40*EF_CO2!K55 -> 0 | L55: ='Detailed Projection'!V40*EF_CO2!L55 -> 0 | M55: ='Detailed Projection'!W40*EF_CO2!M55 -> 0 | Q55: ='Detailed Projection'!AA40*EF_CO2!N55 -> 0 | R55: ='Detailed Projection'!AF40*EF_CO2!C55 -> 0 | S55: ='Detailed Projection'!AG40*EF_CO2!D55 -> -106732.7845 | T55: ='Detailed Projection'!AH40*EF_CO2!E55 -> 5772095.913 | U55: ='Detailed Projection'!AI40*EF_CO2!F55 -> 0 | V55: ='Detailed Projection'!AJ40*EF_CO2!G55 -> 2316324.899 | W55: ='Detailed Projection'!AK40*EF_CO2!H55 -> 0 | X55: ='Detailed Projection'!AL40*EF_CO2!I55 -> -330360.7545 | Y55: ='Detailed Projection'!AM40*EF_CO2!J55 -> 0 | Z55: ='Detailed Projection'!AN40*EF_CO2!K55 -> 0 | AA55: ='Detailed Projection'!AO40*EF_CO2!L55 -> 0 | AB55: ='Detailed Projection'!AP40*EF_CO2!M55 -> 0 | AF55: ='Detailed Projection'!AT40*EF_CO2!N55 -> 0 | AG55: ='Detailed Projection'!AU40*EF_CO2!O55 -> 195638.5182 | AH55: ='Detailed Projection'!AV40*EF_CO2!P55 -> 38255.54678 | AI55: ='Detailed Projection'!AW40*EF_CO2!Q55 -> 0 | AJ55: ='Detailed Projection'!AX40*EF_CO2!R55 -> 0 | AK55: ='Detailed Projection'!AY40*EF_CO2!S55 -> 0 | AL55: ='Detailed Projection'!AZ40*EF_CO2!T55 -> 0 | AM55: ='Detailed Projection'!BA40*EF_CO2!U55 -> 0 | AN55: ='Detailed Projection'!BB40*EF_CO2!V55 -> 0 | AO55: ='Detailed Projection'!BC40*EF_CO2!W55 -> 0 | AP55: ='Detailed Projection'!BD40*EF_CO2!AN55 -> 0 | BG55: ='Detailed Projection'!BW40*EF_CO2!AN55 -> 9980119.195 | BH55: ='Detailed Projection'!BX40*EF_CO2!AO55 -> 0 | BI55: ='Detailed Projection'!BY40*EF_CO2!AP55 -> 0 | BK55: ='Detailed Projection'!CA40*EF_CO2!AQ55 -> 1283357.648 | BL55: ='Detailed Projection'!CB40*EF_CO2!AR55 -> 0 | BM55: ='Detailed Projection'!CC40*EF_CO2!AS55 -> 0 | BN55: ='Detailed Projection'!CD40*EF_CO2!AT55 -> 0 | BP55: ='Detailed Projection'!CF40*EF_CO2!AU55 -> 5153849.358 | BQ55: ='Detailed Projection'!CG40*EF_CO2!AV55 -> 0 | BR55: ='Detailed Projection'!CH40*EF_CO2!AW55 -> 0 | BS55: ='Detailed Projection'!CI40*EF_CO2!AX55 -> 0 | BT55: ='Detailed Projection'!CJ40*EF_CO2!AY55 -> 0 | BU55: ='Detailed Projection'!CK40*EF_CO2!AZ55 -> 0 | BV55: ='Detailed Projection'!CL40*EF_CO2!BA55 -> 0 | BW55: ='Detailed Projection'!CM40*EF_CO2!BB55 -> 4995.678573 | BX55: ='Detailed Projection'!CN40*EF_CO2!BC55 -> 15828.86458 | BY55: ='Detailed Projection'!CO40*EF_CO2!BD55 -> 0 | BZ55: ='Detailed Projection'!CP40*EF_CO2!BE55 -> 0 | CA55: ='Detailed Projection'!CQ40*EF_CO2!BF55 -> 2978806.844 | CB55: ='Detailed Projection'!CR40*EF_CO2!BE55 -> 0 | CC55: ='Detailed Projection'!CS40*EF_CO2!BE55/2 -> 0 | CD55: ='Detailed Projection'!CT40*EF_CO2!BC55 -> 0 | CE55: ='Detailed Projection'!CU40*EF_CO2!BA55 -> 0 | CF55: ='Detailed Projection'!CV40*EF_CO2!AZ55 -> 0 | CG55: ='Detailed Projection'!CW40*EF_CO2!BG55 -> 0 | CH55: ='Detailed Projection'!CX40*EF_CO2!BH55 -> 0 | CU55: =((EF_Electric!H56*BG55)/(1-EF_Electric!H56))+((EF_Steam!C53*BH55)/(1-EF_Steam!C53))+((EF_Water!C53*BI55)/(1-EF_Water!C53)) -> 907196.9374
B56: ='Linear Projection'!B29 -> 2035 | C56: ='Detailed Projection'!M41*EF_CO2!C56 -> 0 | D56: ='Detailed Projection'!N41*EF_CO2!D56 -> 0 | E56: ='Detailed Projection'!O41*EF_CO2!E56 -> 0 | F56: ='Detailed Projection'!P41*EF_CO2!F56 -> 0 | G56: ='Detailed Projection'!Q41*EF_CO2!G56 -> 0 | H56: ='Detailed Projection'!R41*EF_CO2!H56 -> 0 | I56: ='Detailed Projection'!S41*EF_CO2!I56 -> 0 | J56: ='Detailed Projection'!T41*EF_CO2!J56 -> 0 | K56: ='Detailed Projection'!U41*EF_CO2!K56 -> 0 | L56: ='Detailed Projection'!V41*EF_CO2!L56 -> 0 | M56: ='Detailed Projection'!W41*EF_CO2!M56 -> 0 | Q56: ='Detailed Projection'!AA41*EF_CO2!N56 -> 0 | R56: ='Detailed Projection'!AF41*EF_CO2!C56 -> 0 | S56: ='Detailed Projection'!AG41*EF_CO2!D56 -> -111986.1648 | T56: ='Detailed Projection'!AH41*EF_CO2!E56 -> 5802052.167 | U56: ='Detailed Projection'!AI41*EF_CO2!F56 -> 0 | V56: ='Detailed Projection'!AJ41*EF_CO2!G56 -> 2237911.847 | W56: ='Detailed Projection'!AK41*EF_CO2!H56 -> 0 | X56: ='Detailed Projection'!AL41*EF_CO2!I56 -> -345608.174 | Y56: ='Detailed Projection'!AM41*EF_CO2!J56 -> 0 | Z56: ='Detailed Projection'!AN41*EF_CO2!K56 -> 0 | AA56: ='Detailed Projection'!AO41*EF_CO2!L56 -> 0 | AB56: ='Detailed Projection'!AP41*EF_CO2!M56 -> 0 | AF56: ='Detailed Projection'!AT41*EF_CO2!N56 -> 0 | AG56: ='Detailed Projection'!AU41*EF_CO2!O56 -> 193087.0206 | AH56: ='Detailed Projection'!AV41*EF_CO2!P56 -> 38543.1284 | AI56: ='Detailed Projection'!AW41*EF_CO2!Q56 -> 0 | AJ56: ='Detailed Projection'!AX41*EF_CO2!R56 -> 0 | AK56: ='Detailed Projection'!AY41*EF_CO2!S56 -> 0 | AL56: ='Detailed Projection'!AZ41*EF_CO2!T56 -> 0 | AM56: ='Detailed Projection'!BA41*EF_CO2!U56 -> 0 | AN56: ='Detailed Projection'!BB41*EF_CO2!V56 -> 0 | AO56: ='Detailed Projection'!BC41*EF_CO2!W56 -> 0 | AP56: ='Detailed Projection'!BD41*EF_CO2!AN56 -> 0 | BG56: ='Detailed Projection'!BW41*EF_CO2!AN56 -> 10028515.35 | BH56: ='Detailed Projection'!BX41*EF_CO2!AO56 -> 0 | BI56: ='Detailed Projection'!BY41*EF_CO2!AP56 -> 0 | BK56: ='Detailed Projection'!CA41*EF_CO2!AQ56 -> 1306315.571 | BL56: ='Detailed Projection'!CB41*EF_CO2!AR56 -> 0 | BM56: ='Detailed Projection'!CC41*EF_CO2!AS56 -> 0 | BN56: ='Detailed Projection'!CD41*EF_CO2!AT56 -> 0 | BP56: ='Detailed Projection'!CF41*EF_CO2!AU56 -> 5224090.688 | BQ56: ='Detailed Projection'!CG41*EF_CO2!AV56 -> 0 | BR56: ='Detailed Projection'!CH41*EF_CO2!AW56 -> 0 | BS56: ='Detailed Projection'!CI41*EF_CO2!AX56 -> 0 | BT56: ='Detailed Projection'!CJ41*EF_CO2!AY56 -> 0 | BU56: ='Detailed Projection'!CK41*EF_CO2!AZ56 -> 0 | BV56: ='Detailed Projection'!CL41*EF_CO2!BA56 -> 0 | BW56: ='Detailed Projection'!CM41*EF_CO2!BB56 -> 5048.188291 | BX56: ='Detailed Projection'!CN41*EF_CO2!BC56 -> 16047.59076 | BY56: ='Detailed Projection'!CO41*EF_CO2!BD56 -> 0 | BZ56: ='Detailed Projection'!CP41*EF_CO2!BE56 -> 0 | CA56: ='Detailed Projection'!CQ41*EF_CO2!BF56 -> 3053013.817 | CB56: ='Detailed Projection'!CR41*EF_CO2!BE56 -> 0 | CC56: ='Detailed Projection'!CS41*EF_CO2!BE56/2 -> 0 | CD56: ='Detailed Projection'!CT41*EF_CO2!BC56 -> 0 | CE56: ='Detailed Projection'!CU41*EF_CO2!BA56 -> 0 | CF56: ='Detailed Projection'!CV41*EF_CO2!AZ56 -> 0 | CG56: ='Detailed Projection'!CW41*EF_CO2!BG56 -> 0 | CH56: ='Detailed Projection'!CX41*EF_CO2!BH56 -> 0 | CU56: =((EF_Electric!H57*BG56)/(1-EF_Electric!H57))+((EF_Steam!C54*BH56)/(1-EF_Steam!C54))+((EF_Water!C54*BI56)/(1-EF_Water!C54)) -> 911596.1677
B57: ='Linear Projection'!B30 -> 2036 | C57: ='Detailed Projection'!M42*EF_CO2!C57 -> 0 | D57: ='Detailed Projection'!N42*EF_CO2!D57 -> 0 | E57: ='Detailed Projection'!O42*EF_CO2!E57 -> 0 | F57: ='Detailed Projection'!P42*EF_CO2!F57 -> 0 | G57: ='Detailed Projection'!Q42*EF_CO2!G57 -> 0 | H57: ='Detailed Projection'!R42*EF_CO2!H57 -> 0 | I57: ='Detailed Projection'!S42*EF_CO2!I57 -> 0 | J57: ='Detailed Projection'!T42*EF_CO2!J57 -> 0 | K57: ='Detailed Projection'!U42*EF_CO2!K57 -> 0 | L57: ='Detailed Projection'!V42*EF_CO2!L57 -> 0 | M57: ='Detailed Projection'!W42*EF_CO2!M57 -> 0 | Q57: ='Detailed Projection'!AA42*EF_CO2!N57 -> 0 | R57: ='Detailed Projection'!AF42*EF_CO2!C57 -> 0 | S57: ='Detailed Projection'!AG42*EF_CO2!D57 -> -117239.5451 | T57: ='Detailed Projection'!AH42*EF_CO2!E57 -> 5832008.421 | U57: ='Detailed Projection'!AI42*EF_CO2!F57 -> 0 | V57: ='Detailed Projection'!AJ42*EF_CO2!G57 -> 2159498.794 | W57: ='Detailed Projection'!AK42*EF_CO2!H57 -> 0 | X57: ='Detailed Projection'!AL42*EF_CO2!I57 -> -360855.5934 | Y57: ='Detailed Projection'!AM42*EF_CO2!J57 -> 0 | Z57: ='Detailed Projection'!AN42*EF_CO2!K57 -> 0 | AA57: ='Detailed Projection'!AO42*EF_CO2!L57 -> 0 | AB57: ='Detailed Projection'!AP42*EF_CO2!M57 -> 0 | AF57: ='Detailed Projection'!AT42*EF_CO2!N57 -> 0 | AG57: ='Detailed Projection'!AU42*EF_CO2!O57 -> 190535.523 | AH57: ='Detailed Projection'!AV42*EF_CO2!P57 -> 38830.71002 | AI57: ='Detailed Projection'!AW42*EF_CO2!Q57 -> 0 | AJ57: ='Detailed Projection'!AX42*EF_CO2!R57 -> 0 | AK57: ='Detailed Projection'!AY42*EF_CO2!S57 -> 0 | AL57: ='Detailed Projection'!AZ42*EF_CO2!T57 -> 0 | AM57: ='Detailed Projection'!BA42*EF_CO2!U57 -> 0 | AN57: ='Detailed Projection'!BB42*EF_CO2!V57 -> 0 | AO57: ='Detailed Projection'!BC42*EF_CO2!W57 -> 0 | AP57: ='Detailed Projection'!BD42*EF_CO2!AN57 -> 0 | BG57: ='Detailed Projection'!BW42*EF_CO2!AN57 -> 10076911.5 | BH57: ='Detailed Projection'!BX42*EF_CO2!AO57 -> 0 | BI57: ='Detailed Projection'!BY42*EF_CO2!AP57 -> 0 | BK57: ='Detailed Projection'!CA42*EF_CO2!AQ57 -> 1329273.494 | BL57: ='Detailed Projection'!CB42*EF_CO2!AR57 -> 0 | BM57: ='Detailed Projection'!CC42*EF_CO2!AS57 -> 0 | BN57: ='Detailed Projection'!CD42*EF_CO2!AT57 -> 0 | BP57: ='Detailed Projection'!CF42*EF_CO2!AU57 -> 5294332.018 | BQ57: ='Detailed Projection'!CG42*EF_CO2!AV57 -> 0 | BR57: ='Detailed Projection'!CH42*EF_CO2!AW57 -> 0 | BS57: ='Detailed Projection'!CI42*EF_CO2!AX57 -> 0 | BT57: ='Detailed Projection'!CJ42*EF_CO2!AY57 -> 0 | BU57: ='Detailed Projection'!CK42*EF_CO2!AZ57 -> 0 | BV57: ='Detailed Projection'!CL42*EF_CO2!BA57 -> 0 | BW57: ='Detailed Projection'!CM42*EF_CO2!BB57 -> 5100.698009 | BX57: ='Detailed Projection'!CN42*EF_CO2!BC57 -> 16266.31694 | BY57: ='Detailed Projection'!CO42*EF_CO2!BD57 -> 0 | BZ57: ='Detailed Projection'!CP42*EF_CO2!BE57 -> 0 | CA57: ='Detailed Projection'!CQ42*EF_CO2!BF57 -> 3127220.79 | CB57: ='Detailed Projection'!CR42*EF_CO2!BE57 -> 0 | CC57: ='Detailed Projection'!CS42*EF_CO2!BE57/2 -> 0 | CD57: ='Detailed Projection'!CT42*EF_CO2!BC57 -> 0 | CE57: ='Detailed Projection'!CU42*EF_CO2!BA57 -> 0 | CF57: ='Detailed Projection'!CV42*EF_CO2!AZ57 -> 0 | CG57: ='Detailed Projection'!CW42*EF_CO2!BG57 -> 0 | CH57: ='Detailed Projection'!CX42*EF_CO2!BH57 -> 0 | CU57: =((EF_Electric!H58*BG57)/(1-EF_Electric!H58))+((EF_Steam!C55*BH57)/(1-EF_Steam!C55))+((EF_Water!C55*BI57)/(1-EF_Water!C55)) -> 915995.398
B58: ='Linear Projection'!B31 -> 2037 | C58: ='Detailed Projection'!M43*EF_CO2!C58 -> 0 | D58: ='Detailed Projection'!N43*EF_CO2!D58 -> 0 | E58: ='Detailed Projection'!O43*EF_CO2!E58 -> 0 | F58: ='Detailed Projection'!P43*EF_CO2!F58 -> 0 | G58: ='Detailed Projection'!Q43*EF_CO2!G58 -> 0 | H58: ='Detailed Projection'!R43*EF_CO2!H58 -> 0 | I58: ='Detailed Projection'!S43*EF_CO2!I58 -> 0 | J58: ='Detailed Projection'!T43*EF_CO2!J58 -> 0 | K58: ='Detailed Projection'!U43*EF_CO2!K58 -> 0 | L58: ='Detailed Projection'!V43*EF_CO2!L58 -> 0 | M58: ='Detailed Projection'!W43*EF_CO2!M58 -> 0 | Q58: ='Detailed Projection'!AA43*EF_CO2!N58 -> 0 | R58: ='Detailed Projection'!AF43*EF_CO2!C58 -> 0 | S58: ='Detailed Projection'!AG43*EF_CO2!D58 -> -122492.9254 | T58: ='Detailed Projection'!AH43*EF_CO2!E58 -> 5861964.675 | U58: ='Detailed Projection'!AI43*EF_CO2!F58 -> 0 | V58: ='Detailed Projection'!AJ43*EF_CO2!G58 -> 2081085.741 | W58: ='Detailed Projection'!AK43*EF_CO2!H58 -> 0 | X58: ='Detailed Projection'!AL43*EF_CO2!I58 -> -376103.0129 | Y58: ='Detailed Projection'!AM43*EF_CO2!J58 -> 0 | Z58: ='Detailed Projection'!AN43*EF_CO2!K58 -> 0 | AA58: ='Detailed Projection'!AO43*EF_CO2!L58 -> 0 | AB58: ='Detailed Projection'!AP43*EF_CO2!M58 -> 0 | AF58: ='Detailed Projection'!AT43*EF_CO2!N58 -> 0 | AG58: ='Detailed Projection'!AU43*EF_CO2!O58 -> 187984.0254 | AH58: ='Detailed Projection'!AV43*EF_CO2!P58 -> 39118.29164 | AI58: ='Detailed Projection'!AW43*EF_CO2!Q58 -> 0 | AJ58: ='Detailed Projection'!AX43*EF_CO2!R58 -> 0 | AK58: ='Detailed Projection'!AY43*EF_CO2!S58 -> 0 | AL58: ='Detailed Projection'!AZ43*EF_CO2!T58 -> 0 | AM58: ='Detailed Projection'!BA43*EF_CO2!U58 -> 0 | AN58: ='Detailed Projection'!BB43*EF_CO2!V58 -> 0 | AO58: ='Detailed Projection'!BC43*EF_CO2!W58 -> 0 | AP58: ='Detailed Projection'!BD43*EF_CO2!AN58 -> 0 | BG58: ='Detailed Projection'!BW43*EF_CO2!AN58 -> 10125307.66 | BH58: ='Detailed Projection'!BX43*EF_CO2!AO58 -> 0 | BI58: ='Detailed Projection'!BY43*EF_CO2!AP58 -> 0 | BK58: ='Detailed Projection'!CA43*EF_CO2!AQ58 -> 1352231.417 | BL58: ='Detailed Projection'!CB43*EF_CO2!AR58 -> 0 | BM58: ='Detailed Projection'!CC43*EF_CO2!AS58 -> 0 | BN58: ='Detailed Projection'!CD43*EF_CO2!AT58 -> 0 | BP58: ='Detailed Projection'!CF43*EF_CO2!AU58 -> 5364573.348 | BQ58: ='Detailed Projection'!CG43*EF_CO2!AV58 -> 0 | BR58: ='Detailed Projection'!CH43*EF_CO2!AW58 -> 0 | BS58: ='Detailed Projection'!CI43*EF_CO2!AX58 -> 0 | BT58: ='Detailed Projection'!CJ43*EF_CO2!AY58 -> 0 | BU58: ='Detailed Projection'!CK43*EF_CO2!AZ58 -> 0 | BV58: ='Detailed Projection'!CL43*EF_CO2!BA58 -> 0 | BW58: ='Detailed Projection'!CM43*EF_CO2!BB58 -> 5153.207727 | BX58: ='Detailed Projection'!CN43*EF_CO2!BC58 -> 16485.04312 | BY58: ='Detailed Projection'!CO43*EF_CO2!BD58 -> 0 | BZ58: ='Detailed Projection'!CP43*EF_CO2!BE58 -> 0 | CA58: ='Detailed Projection'!CQ43*EF_CO2!BF58 -> 3201427.762 | CB58: ='Detailed Projection'!CR43*EF_CO2!BE58 -> 0 | CC58: ='Detailed Projection'!CS43*EF_CO2!BE58/2 -> 0 | CD58: ='Detailed Projection'!CT43*EF_CO2!BC58 -> 0 | CE58: ='Detailed Projection'!CU43*EF_CO2!BA58 -> 0 | CF58: ='Detailed Projection'!CV43*EF_CO2!AZ58 -> 0 | CG58: ='Detailed Projection'!CW43*EF_CO2!BG58 -> 0 | CH58: ='Detailed Projection'!CX43*EF_CO2!BH58 -> 0 | CU58: =((EF_Electric!H59*BG58)/(1-EF_Electric!H59))+((EF_Steam!C56*BH58)/(1-EF_Steam!C56))+((EF_Water!C56*BI58)/(1-EF_Water!C56)) -> 920394.6283
B59: ='Linear Projection'!B32 -> 2038 | C59: ='Detailed Projection'!M44*EF_CO2!C59 -> 0 | D59: ='Detailed Projection'!N44*EF_CO2!D59 -> 0 | E59: ='Detailed Projection'!O44*EF_CO2!E59 -> 0 | F59: ='Detailed Projection'!P44*EF_CO2!F59 -> 0 | G59: ='Detailed Projection'!Q44*EF_CO2!G59 -> 0 | H59: ='Detailed Projection'!R44*EF_CO2!H59 -> 0 | I59: ='Detailed Projection'!S44*EF_CO2!I59 -> 0 | J59: ='Detailed Projection'!T44*EF_CO2!J59 -> 0 | K59: ='Detailed Projection'!U44*EF_CO2!K59 -> 0 | L59: ='Detailed Projection'!V44*EF_CO2!L59 -> 0 | M59: ='Detailed Projection'!W44*EF_CO2!M59 -> 0 | Q59: ='Detailed Projection'!AA44*EF_CO2!N59 -> 0 | R59: ='Detailed Projection'!AF44*EF_CO2!C59 -> 0 | S59: ='Detailed Projection'!AG44*EF_CO2!D59 -> -127746.3057 | T59: ='Detailed Projection'!AH44*EF_CO2!E59 -> 5891920.929 | U59: ='Detailed Projection'!AI44*EF_CO2!F59 -> 0 | V59: ='Detailed Projection'!AJ44*EF_CO2!G59 -> 2002672.689 | W59: ='Detailed Projection'!AK44*EF_CO2!H59 -> 0 | X59: ='Detailed Projection'!AL44*EF_CO2!I59 -> -391350.4323 | Y59: ='Detailed Projection'!AM44*EF_CO2!J59 -> 0 | Z59: ='Detailed Projection'!AN44*EF_CO2!K59 -> 0 | AA59: ='Detailed Projection'!AO44*EF_CO2!L59 -> 0 | AB59: ='Detailed Projection'!AP44*EF_CO2!M59 -> 0 | AF59: ='Detailed Projection'!AT44*EF_CO2!N59 -> 0 | AG59: ='Detailed Projection'!AU44*EF_CO2!O59 -> 185432.5278 | AH59: ='Detailed Projection'!AV44*EF_CO2!P59 -> 39405.87326 | AI59: ='Detailed Projection'!AW44*EF_CO2!Q59 -> 0 | AJ59: ='Detailed Projection'!AX44*EF_CO2!R59 -> 0 | AK59: ='Detailed Projection'!AY44*EF_CO2!S59 -> 0 | AL59: ='Detailed Projection'!AZ44*EF_CO2!T59 -> 0 | AM59: ='Detailed Projection'!BA44*EF_CO2!U59 -> 0 | AN59: ='Detailed Projection'!BB44*EF_CO2!V59 -> 0 | AO59: ='Detailed Projection'!BC44*EF_CO2!W59 -> 0 | AP59: ='Detailed Projection'!BD44*EF_CO2!AN59 -> 0 | BG59: ='Detailed Projection'!BW44*EF_CO2!AN59 -> 10173703.81 | BH59: ='Detailed Projection'!BX44*EF_CO2!AO59 -> 0 | BI59: ='Detailed Projection'!BY44*EF_CO2!AP59 -> 0 | BK59: ='Detailed Projection'!CA44*EF_CO2!AQ59 -> 1375189.341 | BL59: ='Detailed Projection'!CB44*EF_CO2!AR59 -> 0 | BM59: ='Detailed Projection'!CC44*EF_CO2!AS59 -> 0 | BN59: ='Detailed Projection'!CD44*EF_CO2!AT59 -> 0 | BP59: ='Detailed Projection'!CF44*EF_CO2!AU59 -> 5434814.677 | BQ59: ='Detailed Projection'!CG44*EF_CO2!AV59 -> 0 | BR59: ='Detailed Projection'!CH44*EF_CO2!AW59 -> 0 | BS59: ='Detailed Projection'!CI44*EF_CO2!AX59 -> 0 | BT59: ='Detailed Projection'!CJ44*EF_CO2!AY59 -> 0 | BU59: ='Detailed Projection'!CK44*EF_CO2!AZ59 -> 0 | BV59: ='Detailed Projection'!CL44*EF_CO2!BA59 -> 0 | BW59: ='Detailed Projection'!CM44*EF_CO2!BB59 -> 5205.717445 | BX59: ='Detailed Projection'!CN44*EF_CO2!BC59 -> 16703.7693 | BY59: ='Detailed Projection'!CO44*EF_CO2!BD59 -> 0 | BZ59: ='Detailed Projection'!CP44*EF_CO2!BE59 -> 0 | CA59: ='Detailed Projection'!CQ44*EF_CO2!BF59 -> 3275634.735 | CB59: ='Detailed Projection'!CR44*EF_CO2!BE59 -> 0 | CC59: ='Detailed Projection'!CS44*EF_CO2!BE59/2 -> 0 | CD59: ='Detailed Projection'!CT44*EF_CO2!BC59 -> 0 | CE59: ='Detailed Projection'!CU44*EF_CO2!BA59 -> 0 | CF59: ='Detailed Projection'!CV44*EF_CO2!AZ59 -> 0 | CG59: ='Detailed Projection'!CW44*EF_CO2!BG59 -> 0 | CH59: ='Detailed Projection'!CX44*EF_CO2!BH59 -> 0 | CU59: =((EF_Electric!H60*BG59)/(1-EF_Electric!H60))+((EF_Steam!C57*BH59)/(1-EF_Steam!C57))+((EF_Water!C57*BI59)/(1-EF_Water!C57)) -> 924793.8586
B60: ='Linear Projection'!B33 -> 2039 | C60: ='Detailed Projection'!M45*EF_CO2!C60 -> 0 | D60: ='Detailed Projection'!N45*EF_CO2!D60 -> 0 | E60: ='Detailed Projection'!O45*EF_CO2!E60 -> 0 | F60: ='Detailed Projection'!P45*EF_CO2!F60 -> 0 | G60: ='Detailed Projection'!Q45*EF_CO2!G60 -> 0 | H60: ='Detailed Projection'!R45*EF_CO2!H60 -> 0 | I60: ='Detailed Projection'!S45*EF_CO2!I60 -> 0 | J60: ='Detailed Projection'!T45*EF_CO2!J60 -> 0 | K60: ='Detailed Projection'!U45*EF_CO2!K60 -> 0 | L60: ='Detailed Projection'!V45*EF_CO2!L60 -> 0 | M60: ='Detailed Projection'!W45*EF_CO2!M60 -> 0 | Q60: ='Detailed Projection'!AA45*EF_CO2!N60 -> 0 | R60: ='Detailed Projection'!AF45*EF_CO2!C60 -> 0 | S60: ='Detailed Projection'!AG45*EF_CO2!D60 -> -132999.686 | T60: ='Detailed Projection'!AH45*EF_CO2!E60 -> 5921877.183 | U60: ='Detailed Projection'!AI45*EF_CO2!F60 -> 0 | V60: ='Detailed Projection'!AJ45*EF_CO2!G60 -> 1924259.636 | W60: ='Detailed Projection'!AK45*EF_CO2!H60 -> 0 | X60: ='Detailed Projection'!AL45*EF_CO2!I60 -> -406597.8517 | Y60: ='Detailed Projection'!AM45*EF_CO2!J60 -> 0 | Z60: ='Detailed Projection'!AN45*EF_CO2!K60 -> 0 | AA60: ='Detailed Projection'!AO45*EF_CO2!L60 -> 0 | AB60: ='Detailed Projection'!AP45*EF_CO2!M60 -> 0 | AF60: ='Detailed Projection'!AT45*EF_CO2!N60 -> 0 | AG60: ='Detailed Projection'!AU45*EF_CO2!O60 -> 182881.0302 | AH60: ='Detailed Projection'!AV45*EF_CO2!P60 -> 39693.45488 | AI60: ='Detailed Projection'!AW45*EF_CO2!Q60 -> 0 | AJ60: ='Detailed Projection'!AX45*EF_CO2!R60 -> 0 | AK60: ='Detailed Projection'!AY45*EF_CO2!S60 -> 0 | AL60: ='Detailed Projection'!AZ45*EF_CO2!T60 -> 0 | AM60: ='Detailed Projection'!BA45*EF_CO2!U60 -> 0 | AN60: ='Detailed Projection'!BB45*EF_CO2!V60 -> 0 | AO60: ='Detailed Projection'!BC45*EF_CO2!W60 -> 0 | AP60: ='Detailed Projection'!BD45*EF_CO2!AN60 -> 0 | BG60: ='Detailed Projection'!BW45*EF_CO2!AN60 -> 10222099.96 | BH60: ='Detailed Projection'!BX45*EF_CO2!AO60 -> 0 | BI60: ='Detailed Projection'!BY45*EF_CO2!AP60 -> 0 | BK60: ='Detailed Projection'!CA45*EF_CO2!AQ60 -> 1398147.264 | BL60: ='Detailed Projection'!CB45*EF_CO2!AR60 -> 0 | BM60: ='Detailed Projection'!CC45*EF_CO2!AS60 -> 0 | BN60: ='Detailed Projection'!CD45*EF_CO2!AT60 -> 0 | BP60: ='Detailed Projection'!CF45*EF_CO2!AU60 -> 5505056.007 | BQ60: ='Detailed Projection'!CG45*EF_CO2!AV60 -> 0 | BR60: ='Detailed Projection'!CH45*EF_CO2!AW60 -> 0 | BS60: ='Detailed Projection'!CI45*EF_CO2!AX60 -> 0 | BT60: ='Detailed Projection'!CJ45*EF_CO2!AY60 -> 0 | BU60: ='Detailed Projection'!CK45*EF_CO2!AZ60 -> 0 | BV60: ='Detailed Projection'!CL45*EF_CO2!BA60 -> 0 | BW60: ='Detailed Projection'!CM45*EF_CO2!BB60 -> 5258.227163 | BX60: ='Detailed Projection'!CN45*EF_CO2!BC60 -> 16922.49548 | BY60: ='Detailed Projection'!CO45*EF_CO2!BD60 -> 0 | BZ60: ='Detailed Projection'!CP45*EF_CO2!BE60 -> 0 | CA60: ='Detailed Projection'!CQ45*EF_CO2!BF60 -> 3349841.708 | CB60: ='Detailed Projection'!CR45*EF_CO2!BE60 -> 0 | CC60: ='Detailed Projection'!CS45*EF_CO2!BE60/2 -> 0 | CD60: ='Detailed Projection'!CT45*EF_CO2!BC60 -> 0 | CE60: ='Detailed Projection'!CU45*EF_CO2!BA60 -> 0 | CF60: ='Detailed Projection'!CV45*EF_CO2!AZ60 -> 0 | CG60: ='Detailed Projection'!CW45*EF_CO2!BG60 -> 0 | CH60: ='Detailed Projection'!CX45*EF_CO2!BH60 -> 0 | CU60: =((EF_Electric!H61*BG60)/(1-EF_Electric!H61))+((EF_Steam!C58*BH60)/(1-EF_Steam!C58))+((EF_Water!C58*BI60)/(1-EF_Water!C58)) -> 929193.0888
B61: ='Linear Projection'!B34 -> 2040 | C61: ='Detailed Projection'!M46*EF_CO2!C61 -> 0 | D61: ='Detailed Projection'!N46*EF_CO2!D61 -> 0 | E61: ='Detailed Projection'!O46*EF_CO2!E61 -> 0 | F61: ='Detailed Projection'!P46*EF_CO2!F61 -> 0 | G61: ='Detailed Projection'!Q46*EF_CO2!G61 -> 0 | H61: ='Detailed Projection'!R46*EF_CO2!H61 -> 0 | I61: ='Detailed Projection'!S46*EF_CO2!I61 -> 0 | J61: ='Detailed Projection'!T46*EF_CO2!J61 -> 0 | K61: ='Detailed Projection'!U46*EF_CO2!K61 -> 0 | L61: ='Detailed Projection'!V46*EF_CO2!L61 -> 0 | M61: ='Detailed Projection'!W46*EF_CO2!M61 -> 0 | Q61: ='Detailed Projection'!AA46*EF_CO2!N61 -> 0 | R61: ='Detailed Projection'!AF46*EF_CO2!C61 -> 0 | S61: ='Detailed Projection'!AG46*EF_CO2!D61 -> -138253.0663 | T61: ='Detailed Projection'!AH46*EF_CO2!E61 -> 5951833.437 | U61: ='Detailed Projection'!AI46*EF_CO2!F61 -> 0 | V61: ='Detailed Projection'!AJ46*EF_CO2!G61 -> 1845846.584 | W61: ='Detailed Projection'!AK46*EF_CO2!H61 -> 0 | X61: ='Detailed Projection'!AL46*EF_CO2!I61 -> -421845.2712 | Y61: ='Detailed Projection'!AM46*EF_CO2!J61 -> 0 | Z61: ='Detailed Projection'!AN46*EF_CO2!K61 -> 0 | AA61: ='Detailed Projection'!AO46*EF_CO2!L61 -> 0 | AB61: ='Detailed Projection'!AP46*EF_CO2!M61 -> 0 | AF61: ='Detailed Projection'!AT46*EF_CO2!N61 -> 0 | AG61: ='Detailed Projection'!AU46*EF_CO2!O61 -> 180329.5326 | AH61: ='Detailed Projection'!AV46*EF_CO2!P61 -> 39981.0365 | AI61: ='Detailed Projection'!AW46*EF_CO2!Q61 -> 0 | AJ61: ='Detailed Projection'!AX46*EF_CO2!R61 -> 0 | AK61: ='Detailed Projection'!AY46*EF_CO2!S61 -> 0 | AL61: ='Detailed Projection'!AZ46*EF_CO2!T61 -> 0 | AM61: ='Detailed Projection'!BA46*EF_CO2!U61 -> 0 | AN61: ='Detailed Projection'!BB46*EF_CO2!V61 -> 0 | AO61: ='Detailed Projection'!BC46*EF_CO2!W61 -> 0 | AP61: ='Detailed Projection'!BD46*EF_CO2!AN61 -> 0 | BG61: ='Detailed Projection'!BW46*EF_CO2!AN61 -> 10270496.12 | BH61: ='Detailed Projection'!BX46*EF_CO2!AO61 -> 0 | BI61: ='Detailed Projection'!BY46*EF_CO2!AP61 -> 0 | BK61: ='Detailed Projection'!CA46*EF_CO2!AQ61 -> 1421105.187 | BL61: ='Detailed Projection'!CB46*EF_CO2!AR61 -> 0 | BM61: ='Detailed Projection'!CC46*EF_CO2!AS61 -> 0 | BN61: ='Detailed Projection'!CD46*EF_CO2!AT61 -> 0 | BP61: ='Detailed Projection'!CF46*EF_CO2!AU61 -> 5575297.337 | BQ61: ='Detailed Projection'!CG46*EF_CO2!AV61 -> 0 | BR61: ='Detailed Projection'!CH46*EF_CO2!AW61 -> 0 | BS61: ='Detailed Projection'!CI46*EF_CO2!AX61 -> 0 | BT61: ='Detailed Projection'!CJ46*EF_CO2!AY61 -> 0 | BU61: ='Detailed Projection'!CK46*EF_CO2!AZ61 -> 0 | BV61: ='Detailed Projection'!CL46*EF_CO2!BA61 -> 0 | BW61: ='Detailed Projection'!CM46*EF_CO2!BB61 -> 5310.736881 | BX61: ='Detailed Projection'!CN46*EF_CO2!BC61 -> 17141.22165 | BY61: ='Detailed Projection'!CO46*EF_CO2!BD61 -> 0 | BZ61: ='Detailed Projection'!CP46*EF_CO2!BE61 -> 0 | CA61: ='Detailed Projection'!CQ46*EF_CO2!BF61 -> 3424048.68 | CB61: ='Detailed Projection'!CR46*EF_CO2!BE61 -> 0 | CC61: ='Detailed Projection'!CS46*EF_CO2!BE61/2 -> 0 | CD61: ='Detailed Projection'!CT46*EF_CO2!BC61 -> 0 | CE61: ='Detailed Projection'!CU46*EF_CO2!BA61 -> 0 | CF61: ='Detailed Projection'!CV46*EF_CO2!AZ61 -> 0 | CG61: ='Detailed Projection'!CW46*EF_CO2!BG61 -> 0 | CH61: ='Detailed Projection'!CX46*EF_CO2!BH61 -> 0 | CU61: =((EF_Electric!H62*BG61)/(1-EF_Electric!H62))+((EF_Steam!C59*BH61)/(1-EF_Steam!C59))+((EF_Water!C59*BI61)/(1-EF_Water!C59)) -> 933592.3191
B62: ='Linear Projection'!B35 -> 2041 | C62: ='Detailed Projection'!M47*EF_CO2!C62 -> 0 | D62: ='Detailed Projection'!N47*EF_CO2!D62 -> 0 | E62: ='Detailed Projection'!O47*EF_CO2!E62 -> 0 | F62: ='Detailed Projection'!P47*EF_CO2!F62 -> 0 | G62: ='Detailed Projection'!Q47*EF_CO2!G62 -> 0 | H62: ='Detailed Projection'!R47*EF_CO2!H62 -> 0 | I62: ='Detailed Projection'!S47*EF_CO2!I62 -> 0 | J62: ='Detailed Projection'!T47*EF_CO2!J62 -> 0 | K62: ='Detailed Projection'!U47*EF_CO2!K62 -> 0 | L62: ='Detailed Projection'!V47*EF_CO2!L62 -> 0 | M62: ='Detailed Projection'!W47*EF_CO2!M62 -> 0 | Q62: ='Detailed Projection'!AA47*EF_CO2!N62 -> 0 | R62: ='Detailed Projection'!AF47*EF_CO2!C62 -> 0 | S62: ='Detailed Projection'!AG47*EF_CO2!D62 -> -143506.4466 | T62: ='Detailed Projection'!AH47*EF_CO2!E62 -> 5981789.691 | U62: ='Detailed Projection'!AI47*EF_CO2!F62 -> 0 | V62: ='Detailed Projection'!AJ47*EF_CO2!G62 -> 1767433.531 | W62: ='Detailed Projection'!AK47*EF_CO2!H62 -> 0 | X62: ='Detailed Projection'!AL47*EF_CO2!I62 -> -437092.6906 | Y62: ='Detailed Projection'!AM47*EF_CO2!J62 -> 0 | Z62: ='Detailed Projection'!AN47*EF_CO2!K62 -> 0 | AA62: ='Detailed Projection'!AO47*EF_CO2!L62 -> 0 | AB62: ='Detailed Projection'!AP47*EF_CO2!M62 -> 0 | AF62: ='Detailed Projection'!AT47*EF_CO2!N62 -> 0 | AG62: ='Detailed Projection'!AU47*EF_CO2!O62 -> 177778.035 | AH62: ='Detailed Projection'!AV47*EF_CO2!P62 -> 40268.61812 | AI62: ='Detailed Projection'!AW47*EF_CO2!Q62 -> 0 | AJ62: ='Detailed Projection'!AX47*EF_CO2!R62 -> 0 | AK62: ='Detailed Projection'!AY47*EF_CO2!S62 -> 0 | AL62: ='Detailed Projection'!AZ47*EF_CO2!T62 -> 0 | AM62: ='Detailed Projection'!BA47*EF_CO2!U62 -> 0 | AN62: ='Detailed Projection'!BB47*EF_CO2!V62 -> 0 | AO62: ='Detailed Projection'!BC47*EF_CO2!W62 -> 0 | AP62: ='Detailed Projection'!BD47*EF_CO2!AN62 -> 0 | BG62: ='Detailed Projection'!BW47*EF_CO2!AN62 -> 10318892.27 | BH62: ='Detailed Projection'!BX47*EF_CO2!AO62 -> 0 | BI62: ='Detailed Projection'!BY47*EF_CO2!AP62 -> 0 | BK62: ='Detailed Projection'!CA47*EF_CO2!AQ62 -> 1444063.11 | BL62: ='Detailed Projection'!CB47*EF_CO2!AR62 -> 0 | BM62: ='Detailed Projection'!CC47*EF_CO2!AS62 -> 0 | BN62: ='Detailed Projection'!CD47*EF_CO2!AT62 -> 0 | BP62: ='Detailed Projection'!CF47*EF_CO2!AU62 -> 5645538.667 | BQ62: ='Detailed Projection'!CG47*EF_CO2!AV62 -> 0 | BR62: ='Detailed Projection'!CH47*EF_CO2!AW62 -> 0 | BS62: ='Detailed Projection'!CI47*EF_CO2!AX62 -> 0 | BT62: ='Detailed Projection'!CJ47*EF_CO2!AY62 -> 0 | BU62: ='Detailed Projection'!CK47*EF_CO2!AZ62 -> 0 | BV62: ='Detailed Projection'!CL47*EF_CO2!BA62 -> 0 | BW62: ='Detailed Projection'!CM47*EF_CO2!BB62 -> 5363.246599 | BX62: ='Detailed Projection'!CN47*EF_CO2!BC62 -> 17359.94783 | BY62: ='Detailed Projection'!CO47*EF_CO2!BD62 -> 0 | BZ62: ='Detailed Projection'!CP47*EF_CO2!BE62 -> 0 | CA62: ='Detailed Projection'!CQ47*EF_CO2!BF62 -> 3498255.653 | CB62: ='Detailed Projection'!CR47*EF_CO2!BE62 -> 0 | CC62: ='Detailed Projection'!CS47*EF_CO2!BE62/2 -> 0 | CD62: ='Detailed Projection'!CT47*EF_CO2!BC62 -> 0 | CE62: ='Detailed Projection'!CU47*EF_CO2!BA62 -> 0 | CF62: ='Detailed Projection'!CV47*EF_CO2!AZ62 -> 0 | CG62: ='Detailed Projection'!CW47*EF_CO2!BG62 -> 0 | CH62: ='Detailed Projection'!CX47*EF_CO2!BH62 -> 0 | CU62: =((EF_Electric!H63*BG62)/(1-EF_Electric!H63))+((EF_Steam!C60*BH62)/(1-EF_Steam!C60))+((EF_Water!C60*BI62)/(1-EF_Water!C60)) -> 937991.5494
B63: ='Linear Projection'!B36 -> 2042 | C63: ='Detailed Projection'!M48*EF_CO2!C63 -> 0 | D63: ='Detailed Projection'!N48*EF_CO2!D63 -> 0 | E63: ='Detailed Projection'!O48*EF_CO2!E63 -> 0 | F63: ='Detailed Projection'!P48*EF_CO2!F63 -> 0 | G63: ='Detailed Projection'!Q48*EF_CO2!G63 -> 0 | H63: ='Detailed Projection'!R48*EF_CO2!H63 -> 0 | I63: ='Detailed Projection'!S48*EF_CO2!I63 -> 0 | J63: ='Detailed Projection'!T48*EF_CO2!J63 -> 0 | K63: ='Detailed Projection'!U48*EF_CO2!K63 -> 0 | L63: ='Detailed Projection'!V48*EF_CO2!L63 -> 0 | M63: ='Detailed Projection'!W48*EF_CO2!M63 -> 0 | Q63: ='Detailed Projection'!AA48*EF_CO2!N63 -> 0 | R63: ='Detailed Projection'!AF48*EF_CO2!C63 -> 0 | S63: ='Detailed Projection'!AG48*EF_CO2!D63 -> -148759.8269 | T63: ='Detailed Projection'!AH48*EF_CO2!E63 -> 6011745.944 | U63: ='Detailed Projection'!AI48*EF_CO2!F63 -> 0 | V63: ='Detailed Projection'!AJ48*EF_CO2!G63 -> 1689020.478 | W63: ='Detailed Projection'!AK48*EF_CO2!H63 -> 0 | X63: ='Detailed Projection'!AL48*EF_CO2!I63 -> -452340.1101 | Y63: ='Detailed Projection'!AM48*EF_CO2!J63 -> 0 | Z63: ='Detailed Projection'!AN48*EF_CO2!K63 -> 0 | AA63: ='Detailed Projection'!AO48*EF_CO2!L63 -> 0 | AB63: ='Detailed Projection'!AP48*EF_CO2!M63 -> 0 | AF63: ='Detailed Projection'!AT48*EF_CO2!N63 -> 0 | AG63: ='Detailed Projection'!AU48*EF_CO2!O63 -> 175226.5374 | AH63: ='Detailed Projection'!AV48*EF_CO2!P63 -> 40556.19974 | AI63: ='Detailed Projection'!AW48*EF_CO2!Q63 -> 0 | AJ63: ='Detailed Projection'!AX48*EF_CO2!R63 -> 0 | AK63: ='Detailed Projection'!AY48*EF_CO2!S63 -> 0 | AL63: ='Detailed Projection'!AZ48*EF_CO2!T63 -> 0 | AM63: ='Detailed Projection'!BA48*EF_CO2!U63 -> 0 | AN63: ='Detailed Projection'!BB48*EF_CO2!V63 -> 0 | AO63: ='Detailed Projection'!BC48*EF_CO2!W63 -> 0 | AP63: ='Detailed Projection'!BD48*EF_CO2!AN63 -> 0 | BG63: ='Detailed Projection'!BW48*EF_CO2!AN63 -> 10367288.43 | BH63: ='Detailed Projection'!BX48*EF_CO2!AO63 -> 0 | BI63: ='Detailed Projection'!BY48*EF_CO2!AP63 -> 0 | BK63: ='Detailed Projection'!CA48*EF_CO2!AQ63 -> 1467021.034 | BL63: ='Detailed Projection'!CB48*EF_CO2!AR63 -> 0 | BM63: ='Detailed Projection'!CC48*EF_CO2!AS63 -> 0 | BN63: ='Detailed Projection'!CD48*EF_CO2!AT63 -> 0 | BP63: ='Detailed Projection'!CF48*EF_CO2!AU63 -> 5715779.997 | BQ63: ='Detailed Projection'!CG48*EF_CO2!AV63 -> 0 | BR63: ='Detailed Projection'!CH48*EF_CO2!AW63 -> 0 | BS63: ='Detailed Projection'!CI48*EF_CO2!AX63 -> 0 | BT63: ='Detailed Projection'!CJ48*EF_CO2!AY63 -> 0 | BU63: ='Detailed Projection'!CK48*EF_CO2!AZ63 -> 0 | BV63: ='Detailed Projection'!CL48*EF_CO2!BA63 -> 0 | BW63: ='Detailed Projection'!CM48*EF_CO2!BB63 -> 5415.756317 | BX63: ='Detailed Projection'!CN48*EF_CO2!BC63 -> 17578.67401 | BY63: ='Detailed Projection'!CO48*EF_CO2!BD63 -> 0 | BZ63: ='Detailed Projection'!CP48*EF_CO2!BE63 -> 0 | CA63: ='Detailed Projection'!CQ48*EF_CO2!BF63 -> 3572462.626 | CB63: ='Detailed Projection'!CR48*EF_CO2!BE63 -> 0 | CC63: ='Detailed Projection'!CS48*EF_CO2!BE63/2 -> 0 | CD63: ='Detailed Projection'!CT48*EF_CO2!BC63 -> 0 | CE63: ='Detailed Projection'!CU48*EF_CO2!BA63 -> 0 | CF63: ='Detailed Projection'!CV48*EF_CO2!AZ63 -> 0 | CG63: ='Detailed Projection'!CW48*EF_CO2!BG63 -> 0 | CH63: ='Detailed Projection'!CX48*EF_CO2!BH63 -> 0 | CU63: =((EF_Electric!H64*BG63)/(1-EF_Electric!H64))+((EF_Steam!C61*BH63)/(1-EF_Steam!C61))+((EF_Water!C61*BI63)/(1-EF_Water!C61)) -> 942390.7797
B64: ='Linear Projection'!B37 -> 2043 | C64: ='Detailed Projection'!M49*EF_CO2!C64 -> 0 | D64: ='Detailed Projection'!N49*EF_CO2!D64 -> 0 | E64: ='Detailed Projection'!O49*EF_CO2!E64 -> 0 | F64: ='Detailed Projection'!P49*EF_CO2!F64 -> 0 | G64: ='Detailed Projection'!Q49*EF_CO2!G64 -> 0 | H64: ='Detailed Projection'!R49*EF_CO2!H64 -> 0 | I64: ='Detailed Projection'!S49*EF_CO2!I64 -> 0 | J64: ='Detailed Projection'!T49*EF_CO2!J64 -> 0 | K64: ='Detailed Projection'!U49*EF_CO2!K64 -> 0 | L64: ='Detailed Projection'!V49*EF_CO2!L64 -> 0 | M64: ='Detailed Projection'!W49*EF_CO2!M64 -> 0 | Q64: ='Detailed Projection'!AA49*EF_CO2!N64 -> 0 | R64: ='Detailed Projection'!AF49*EF_CO2!C64 -> 0 | S64: ='Detailed Projection'!AG49*EF_CO2!D64 -> -154013.2072 | T64: ='Detailed Projection'!AH49*EF_CO2!E64 -> 6041702.198 | U64: ='Detailed Projection'!AI49*EF_CO2!F64 -> 0 | V64: ='Detailed Projection'!AJ49*EF_CO2!G64 -> 1610607.426 | W64: ='Detailed Projection'!AK49*EF_CO2!H64 -> 0 | X64: ='Detailed Projection'!AL49*EF_CO2!I64 -> -467587.5295 | Y64: ='Detailed Projection'!AM49*EF_CO2!J64 -> 0 | Z64: ='Detailed Projection'!AN49*EF_CO2!K64 -> 0 | AA64: ='Detailed Projection'!AO49*EF_CO2!L64 -> 0 | AB64: ='Detailed Projection'!AP49*EF_CO2!M64 -> 0 | AF64: ='Detailed Projection'!AT49*EF_CO2!N64 -> 0 | AG64: ='Detailed Projection'!AU49*EF_CO2!O64 -> 172675.0397 | AH64: ='Detailed Projection'!AV49*EF_CO2!P64 -> 40843.78136 | AI64: ='Detailed Projection'!AW49*EF_CO2!Q64 -> 0 | AJ64: ='Detailed Projection'!AX49*EF_CO2!R64 -> 0 | AK64: ='Detailed Projection'!AY49*EF_CO2!S64 -> 0 | AL64: ='Detailed Projection'!AZ49*EF_CO2!T64 -> 0 | AM64: ='Detailed Projection'!BA49*EF_CO2!U64 -> 0 | AN64: ='Detailed Projection'!BB49*EF_CO2!V64 -> 0 | AO64: ='Detailed Projection'!BC49*EF_CO2!W64 -> 0 | AP64: ='Detailed Projection'!BD49*EF_CO2!AN64 -> 0 | BG64: ='Detailed Projection'!BW49*EF_CO2!AN64 -> 10415684.58 | BH64: ='Detailed Projection'!BX49*EF_CO2!AO64 -> 0 | BI64: ='Detailed Projection'!BY49*EF_CO2!AP64 -> 0 | BK64: ='Detailed Projection'!CA49*EF_CO2!AQ64 -> 1489978.957 | BL64: ='Detailed Projection'!CB49*EF_CO2!AR64 -> 0 | BM64: ='Detailed Projection'!CC49*EF_CO2!AS64 -> 0 | BN64: ='Detailed Projection'!CD49*EF_CO2!AT64 -> 0 | BP64: ='Detailed Projection'!CF49*EF_CO2!AU64 -> 5786021.327 | BQ64: ='Detailed Projection'!CG49*EF_CO2!AV64 -> 0 | BR64: ='Detailed Projection'!CH49*EF_CO2!AW64 -> 0 | BS64: ='Detailed Projection'!CI49*EF_CO2!AX64 -> 0 | BT64: ='Detailed Projection'!CJ49*EF_CO2!AY64 -> 0 | BU64: ='Detailed Projection'!CK49*EF_CO2!AZ64 -> 0 | BV64: ='Detailed Projection'!CL49*EF_CO2!BA64 -> 0 | BW64: ='Detailed Projection'!CM49*EF_CO2!BB64 -> 5468.266035 | BX64: ='Detailed Projection'!CN49*EF_CO2!BC64 -> 17797.40019 | BY64: ='Detailed Projection'!CO49*EF_CO2!BD64 -> 0 | BZ64: ='Detailed Projection'!CP49*EF_CO2!BE64 -> 0 | CA64: ='Detailed Projection'!CQ49*EF_CO2!BF64 -> 3646669.598 | CB64: ='Detailed Projection'!CR49*EF_CO2!BE64 -> 0 | CC64: ='Detailed Projection'!CS49*EF_CO2!BE64/2 -> 0 | CD64: ='Detailed Projection'!CT49*EF_CO2!BC64 -> 0 | CE64: ='Detailed Projection'!CU49*EF_CO2!BA64 -> 0 | CF64: ='Detailed Projection'!CV49*EF_CO2!AZ64 -> 0 | CG64: ='Detailed Projection'!CW49*EF_CO2!BG64 -> 0 | CH64: ='Detailed Projection'!CX49*EF_CO2!BH64 -> 0 | CU64: =((EF_Electric!H65*BG64)/(1-EF_Electric!H65))+((EF_Steam!C62*BH64)/(1-EF_Steam!C62))+((EF_Water!C62*BI64)/(1-EF_Water!C62)) -> 946790.01
B65: ='Linear Projection'!B38 -> 2044 | C65: ='Detailed Projection'!M50*EF_CO2!C65 -> 0 | D65: ='Detailed Projection'!N50*EF_CO2!D65 -> 0 | E65: ='Detailed Projection'!O50*EF_CO2!E65 -> 0 | F65: ='Detailed Projection'!P50*EF_CO2!F65 -> 0 | G65: ='Detailed Projection'!Q50*EF_CO2!G65 -> 0 | H65: ='Detailed Projection'!R50*EF_CO2!H65 -> 0 | I65: ='Detailed Projection'!S50*EF_CO2!I65 -> 0 | J65: ='Detailed Projection'!T50*EF_CO2!J65 -> 0 | K65: ='Detailed Projection'!U50*EF_CO2!K65 -> 0 | L65: ='Detailed Projection'!V50*EF_CO2!L65 -> 0 | M65: ='Detailed Projection'!W50*EF_CO2!M65 -> 0 | Q65: ='Detailed Projection'!AA50*EF_CO2!N65 -> 0 | R65: ='Detailed Projection'!AF50*EF_CO2!C65 -> 0 | S65: ='Detailed Projection'!AG50*EF_CO2!D65 -> -159266.5875 | T65: ='Detailed Projection'!AH50*EF_CO2!E65 -> 6071658.452 | U65: ='Detailed Projection'!AI50*EF_CO2!F65 -> 0 | V65: ='Detailed Projection'!AJ50*EF_CO2!G65 -> 1532194.373 | W65: ='Detailed Projection'!AK50*EF_CO2!H65 -> 0 | X65: ='Detailed Projection'!AL50*EF_CO2!I65 -> -482834.9489 | Y65: ='Detailed Projection'!AM50*EF_CO2!J65 -> 0 | Z65: ='Detailed Projection'!AN50*EF_CO2!K65 -> 0 | AA65: ='Detailed Projection'!AO50*EF_CO2!L65 -> 0 | AB65: ='Detailed Projection'!AP50*EF_CO2!M65 -> 0 | AF65: ='Detailed Projection'!AT50*EF_CO2!N65 -> 0 | AG65: ='Detailed Projection'!AU50*EF_CO2!O65 -> 170123.5421 | AH65: ='Detailed Projection'!AV50*EF_CO2!P65 -> 41131.36298 | AI65: ='Detailed Projection'!AW50*EF_CO2!Q65 -> 0 | AJ65: ='Detailed Projection'!AX50*EF_CO2!R65 -> 0 | AK65: ='Detailed Projection'!AY50*EF_CO2!S65 -> 0 | AL65: ='Detailed Projection'!AZ50*EF_CO2!T65 -> 0 | AM65: ='Detailed Projection'!BA50*EF_CO2!U65 -> 0 | AN65: ='Detailed Projection'!BB50*EF_CO2!V65 -> 0 | AO65: ='Detailed Projection'!BC50*EF_CO2!W65 -> 0 | AP65: ='Detailed Projection'!BD50*EF_CO2!AN65 -> 0 | BG65: ='Detailed Projection'!BW50*EF_CO2!AN65 -> 10464080.73 | BH65: ='Detailed Projection'!BX50*EF_CO2!AO65 -> 0 | BI65: ='Detailed Projection'!BY50*EF_CO2!AP65 -> 0 | BK65: ='Detailed Projection'!CA50*EF_CO2!AQ65 -> 1512936.88 | BL65: ='Detailed Projection'!CB50*EF_CO2!AR65 -> 0 | BM65: ='Detailed Projection'!CC50*EF_CO2!AS65 -> 0 | BN65: ='Detailed Projection'!CD50*EF_CO2!AT65 -> 0 | BP65: ='Detailed Projection'!CF50*EF_CO2!AU65 -> 5856262.657 | BQ65: ='Detailed Projection'!CG50*EF_CO2!AV65 -> 0 | BR65: ='Detailed Projection'!CH50*EF_CO2!AW65 -> 0 | BS65: ='Detailed Projection'!CI50*EF_CO2!AX65 -> 0 | BT65: ='Detailed Projection'!CJ50*EF_CO2!AY65 -> 0 | BU65: ='Detailed Projection'!CK50*EF_CO2!AZ65 -> 0 | BV65: ='Detailed Projection'!CL50*EF_CO2!BA65 -> 0 | BW65: ='Detailed Projection'!CM50*EF_CO2!BB65 -> 5520.775753 | BX65: ='Detailed Projection'!CN50*EF_CO2!BC65 -> 18016.12637 | BY65: ='Detailed Projection'!CO50*EF_CO2!BD65 -> 0 | BZ65: ='Detailed Projection'!CP50*EF_CO2!BE65 -> 0 | CA65: ='Detailed Projection'!CQ50*EF_CO2!BF65 -> 3720876.571 | CB65: ='Detailed Projection'!CR50*EF_CO2!BE65 -> 0 | CC65: ='Detailed Projection'!CS50*EF_CO2!BE65/2 -> 0 | CD65: ='Detailed Projection'!CT50*EF_CO2!BC65 -> 0 | CE65: ='Detailed Projection'!CU50*EF_CO2!BA65 -> 0 | CF65: ='Detailed Projection'!CV50*EF_CO2!AZ65 -> 0 | CG65: ='Detailed Projection'!CW50*EF_CO2!BG65 -> 0 | CH65: ='Detailed Projection'!CX50*EF_CO2!BH65 -> 0 | CU65: =((EF_Electric!H66*BG65)/(1-EF_Electric!H66))+((EF_Steam!C63*BH65)/(1-EF_Steam!C63))+((EF_Water!C63*BI65)/(1-EF_Water!C63)) -> 951189.2402
B66: ='Linear Projection'!B39 -> 2045 | C66: ='Detailed Projection'!M51*EF_CO2!C66 -> 0 | D66: ='Detailed Projection'!N51*EF_CO2!D66 -> 0 | E66: ='Detailed Projection'!O51*EF_CO2!E66 -> 0 | F66: ='Detailed Projection'!P51*EF_CO2!F66 -> 0 | G66: ='Detailed Projection'!Q51*EF_CO2!G66 -> 0 | H66: ='Detailed Projection'!R51*EF_CO2!H66 -> 0 | I66: ='Detailed Projection'!S51*EF_CO2!I66 -> 0 | J66: ='Detailed Projection'!T51*EF_CO2!J66 -> 0 | K66: ='Detailed Projection'!U51*EF_CO2!K66 -> 0 | L66: ='Detailed Projection'!V51*EF_CO2!L66 -> 0 | M66: ='Detailed Projection'!W51*EF_CO2!M66 -> 0 | Q66: ='Detailed Projection'!AA51*EF_CO2!N66 -> 0 | R66: ='Detailed Projection'!AF51*EF_CO2!C66 -> 0 | S66: ='Detailed Projection'!AG51*EF_CO2!D66 -> -164519.9678 | T66: ='Detailed Projection'!AH51*EF_CO2!E66 -> 6101614.706 | U66: ='Detailed Projection'!AI51*EF_CO2!F66 -> 0 | V66: ='Detailed Projection'!AJ51*EF_CO2!G66 -> 1453781.32 | W66: ='Detailed Projection'!AK51*EF_CO2!H66 -> 0 | X66: ='Detailed Projection'!AL51*EF_CO2!I66 -> -498082.3684 | Y66: ='Detailed Projection'!AM51*EF_CO2!J66 -> 0 | Z66: ='Detailed Projection'!AN51*EF_CO2!K66 -> 0 | AA66: ='Detailed Projection'!AO51*EF_CO2!L66 -> 0 | AB66: ='Detailed Projection'!AP51*EF_CO2!M66 -> 0 | AF66: ='Detailed Projection'!AT51*EF_CO2!N66 -> 0 | AG66: ='Detailed Projection'!AU51*EF_CO2!O66 -> 167572.0445 | AH66: ='Detailed Projection'!AV51*EF_CO2!P66 -> 41418.9446 | AI66: ='Detailed Projection'!AW51*EF_CO2!Q66 -> 0 | AJ66: ='Detailed Projection'!AX51*EF_CO2!R66 -> 0 | AK66: ='Detailed Projection'!AY51*EF_CO2!S66 -> 0 | AL66: ='Detailed Projection'!AZ51*EF_CO2!T66 -> 0 | AM66: ='Detailed Projection'!BA51*EF_CO2!U66 -> 0 | AN66: ='Detailed Projection'!BB51*EF_CO2!V66 -> 0 | AO66: ='Detailed Projection'!BC51*EF_CO2!W66 -> 0 | AP66: ='Detailed Projection'!BD51*EF_CO2!AN66 -> 0 | BG66: ='Detailed Projection'!BW51*EF_CO2!AN66 -> 10512476.89 | BH66: ='Detailed Projection'!BX51*EF_CO2!AO66 -> 0 | BI66: ='Detailed Projection'!BY51*EF_CO2!AP66 -> 0 | BK66: ='Detailed Projection'!CA51*EF_CO2!AQ66 -> 1535894.804 | BL66: ='Detailed Projection'!CB51*EF_CO2!AR66 -> 0 | BM66: ='Detailed Projection'!CC51*EF_CO2!AS66 -> 0 | BN66: ='Detailed Projection'!CD51*EF_CO2!AT66 -> 0 | BP66: ='Detailed Projection'!CF51*EF_CO2!AU66 -> 5926503.986 | BQ66: ='Detailed Projection'!CG51*EF_CO2!AV66 -> 0 | BR66: ='Detailed Projection'!CH51*EF_CO2!AW66 -> 0 | BS66: ='Detailed Projection'!CI51*EF_CO2!AX66 -> 0 | BT66: ='Detailed Projection'!CJ51*EF_CO2!AY66 -> 0 | BU66: ='Detailed Projection'!CK51*EF_CO2!AZ66 -> 0 | BV66: ='Detailed Projection'!CL51*EF_CO2!BA66 -> 0 | BW66: ='Detailed Projection'!CM51*EF_CO2!BB66 -> 5573.285471 | BX66: ='Detailed Projection'!CN51*EF_CO2!BC66 -> 18234.85255 | BY66: ='Detailed Projection'!CO51*EF_CO2!BD66 -> 0 | BZ66: ='Detailed Projection'!CP51*EF_CO2!BE66 -> 0 | CA66: ='Detailed Projection'!CQ51*EF_CO2!BF66 -> 3795083.543 | CB66: ='Detailed Projection'!CR51*EF_CO2!BE66 -> 0 | CC66: ='Detailed Projection'!CS51*EF_CO2!BE66/2 -> 0 | CD66: ='Detailed Projection'!CT51*EF_CO2!BC66 -> 0 | CE66: ='Detailed Projection'!CU51*EF_CO2!BA66 -> 0 | CF66: ='Detailed Projection'!CV51*EF_CO2!AZ66 -> 0 | CG66: ='Detailed Projection'!CW51*EF_CO2!BG66 -> 0 | CH66: ='Detailed Projection'!CX51*EF_CO2!BH66 -> 0 | CU66: =((EF_Electric!H67*BG66)/(1-EF_Electric!H67))+((EF_Steam!C64*BH66)/(1-EF_Steam!C64))+((EF_Water!C64*BI66)/(1-EF_Water!C64)) -> 955588.4705
